Workbook

Sheet Startseite
G3: Tischeinbaufelder 28TE + 44TE | U3: Wandanschlussgehäuse
C11: Option Oberfläche Aluminium gebürstet
C22: Option Oberfläche Aluminium angefast
G24: Bodentankmodulträger | U24: Wandkanalanschlussfelder
C32: Option integrierter LAN-Switch
L38: Anschlussfeld 19" 2HE
C41: Option Kabelausgang horizontal, hinten Wenn Durchführungen eingebaut sind müssen die Kabel von hinten aufsteckbar sein.
C50: Option Kabelausgang vertikal, unten
J51: In - 5 - Schritten zum Angebot / Bestellung
M53: 1. | N53: Modulträger auswählen
M55: 2. | N55: Module ins Anschlussfeld verschieben
M57: 3. | N57: Rückseite-Modul auswählen
M59: 4. | N59: Menge je Modul eintragen
M61: 5. | N61: evtl. Kabellänge in Metern eintragen

Sheet Konfigurator
A1: Firma: | H1: Zusammenstellung | S1: =IF($E$12=5520,"Netzkabel",IF($E$12=5522,"Netzkabel","")) ->  | U1: =IF($E$12=5520,"zusätzliches Netzkabel",IF($E$12=5522,"zusätzliches Netzkabel","")) ->  | X1: Vers.: | Y1: 2.04_01
A2: Ort: | H2: ArtikelNr. | I2: Artikel-Text - Anschlussfeld | N2: Kabelausgang | Q2: Einzel-Preis | R2: Menge | S2: =IF($E$12=5520,"Länge(m)",IF($E$12=5522,"Länge(m)","")) ->  | U2: =IF($E$12=5520,"Meter",IF($E$12=5522,"Meter","")) ->  | V2: =IF($E$12=5520,"Kabel",IF($E$12=5522,"Kabel","")) ->  | W2: =IF($E$12=5520,"Preis/m",IF($E$12=5522,"Preis/m","")) ->  | Y2: Gesamt-Preis
A3: Ansprechpartner: | H3: =IF(E12=0,"",E12) ->  | I3: =IF(ISNA(VLOOKUP($H3,'AFM-Artikel'!$A$2:$D$4762,2)),"",VLOOKUP($H3,'AFM-Artikel'!$A$2:$D$4762,2)) ->  | N3: =IF(OR(H3=5520,H3=5522),B22,"") ->  | P3: =IF(ISNA(VLOOKUP($H3,'AFM-Artikel'!$A$2:$D$5039,3)),"",VLOOKUP($H3,'AFM-Artikel'!$A$2:$D$5039,3)) ->  | R3: =IF(H3="","",1) ->  | X3: =IF($P$3="","",IF($U$5="",$P$3*$R$3,(($P$3*$R$3)+($U$5*$W$5)))) -> 
A4: Tel. Nummer: | H4: =IF(AND(B14="JA",F12=20),5553,IF(AND(B14="JA",F12=24),5551,IF(AND(B14="JA",F12=28),5552,IF(AND(B14="JA",F12=36),5550,IF(AND(B14="JA",F12=44),5555,IF(AND(B14="JA",F12=84),5556,IF(AND(B14="JA",F12=48),5554,""))))))) ->  | I4: =IF(ISNA(VLOOKUP($H4,'AFM-Artikel'!$A$2:$D$4762,2)),"",VLOOKUP($H4,'AFM-Artikel'!$A$2:$D$4762,2)) ->  | P4: =IF(ISNA(VLOOKUP($H4,'AFM-Artikel'!$A$2:$D$5039,3)),"",VLOOKUP($H4,'AFM-Artikel'!$A$2:$D$5039,3)) ->  | X4: =IF(P4="","",P4*R4) -> 
A5: Email-Adresse: | H5: =IF($B$15="Nein","",IF(AND(B15="JA",E12=5520,D15="Schuko-Stecker"),5726,IF(AND(B15="JA",E12=5522,D15="Schuko-Stecker"),5726,IF(AND(B15="JA",E12=5520,D15="Wieland-Stecker"),5793,IF(AND(B15="JA",E12=5522,D15="Wieland-Stecker"),5793,""))))) ->  | I5: =IF(ISNA(VLOOKUP($H5,'AFM-Artikel'!$A$2:$D$4762,2)),"",VLOOKUP($H5,'AFM-Artikel'!$A$2:$D$4762,2)) ->  | P5: =IF(ISNA(VLOOKUP($H5,'AFM-Artikel'!$A$2:$D$5039,3)),"",VLOOKUP($H5,'AFM-Artikel'!$A$2:$D$5039,3)) ->  | S5: =IF($B$15="Nein","",IF($E$12=5520,$C$15,IF($E$12=5522,$C$15,""))) ->  | U5: =IF($S$5="","",IF($S$5<=3,"",$S$5-3)) ->  | V5: =IF($S$5="","",IF($S$5<=3,"",5311)) ->  | W5: =IF($S$5="","",IF($S$5<=3,"",IF(ISNA(VLOOKUP($V$5,'AFM-Artikel'!$A$2:$D$5036,3)),"",VLOOKUP($V$5,'AFM-Artikel'!$A$2:$D$5036,3)))) ->  | X5: =IF($P$5="","",IF($U$5="",$P$5*$R$5,(($P$5*$R$5)+($U$5*$W$5)))) -> 
H6: =IF(AND($B$16="Ja",$B$17="Nein",OR($E$12=5520,$E$12=5522)),"",IF(AND($B$16="Ja",$B$17="Ja",OR($E$12=5520,$E$12=5522)),5523,IF(AND($B$17="Ja",$B$18="Ja",OR($E$12=5520,$E$12=5522)),"Fehler",""))) ->  | I6: =IF(ISNA(VLOOKUP($H6,'AFM-Artikel'!$A$2:$D$4762,2)),"",VLOOKUP($H6,'AFM-Artikel'!$A$2:$D$4762,2)) ->  | P6: =IF(ISNA(VLOOKUP($H6,'AFM-Artikel'!$A$2:$D$5039,3)),"",VLOOKUP($H6,'AFM-Artikel'!$A$2:$D$5039,3)) ->  | S6: RAL: | T6: =IF($C$17="","Farbangabe fehlt!",$C$17) -> 9007 | X6: =IF(P6="","",P6*R6) -> 
A7: Auftragsnummer: | H7: =IF(ISNA(VLOOKUP(Datenbank!BT8,Datenbank!BV1:BW34,2,FALSE))," ",VLOOKUP(Datenbank!BT8,Datenbank!BV1:BW34,2,FALSE)) ->  | I7: =IF(ISNA(VLOOKUP($H7,'AFM-Artikel'!$A$2:$D$4762,2)),"",VLOOKUP($H7,'AFM-Artikel'!$A$2:$D$4762,2)) ->  | P7: =IF(ISNA(VLOOKUP($H7,'AFM-Artikel'!$A$2:$D$5039,3)),"",VLOOKUP($H7,'AFM-Artikel'!$A$2:$D$5039,3)) ->  | R7: =IF(OR(H7=" ",H7="Fehler"),"",1) ->  | X7: =IF(P7="","",P7*R7) -> 
A8: Kommission: | H8: =IF(AND(B21="Ja",E$12=5520),5529,IF(AND($B$21="Ja",E$12=5522),5536,"")) ->  | I8: =IF(ISNA(VLOOKUP($H8,'AFM-Artikel'!$A$2:$D$4762,2)),"",VLOOKUP($H8,'AFM-Artikel'!$A$2:$D$4762,2)) ->  | P8: =IF(ISNA(VLOOKUP($H8,'AFM-Artikel'!$A$2:$D$5039,3)),"",VLOOKUP($H8,'AFM-Artikel'!$A$2:$D$5039,3)) ->  | X8: =IF(P8="","",P8*R8) -> 
A9: Kundenrabatt: | B9: 0 | C9: =IF(OR($B$9="Liste",$B$9=""),"","%") -> % | H9: =IF(AND(B22="hinten",OR(E$12=5520,E$12=5522)),"5520-HOR","") ->  | I9: =IF(N3="","",IF(H9="5520-HOR","AFM Option horizontal, Kabelausgang hinten","Kabelausgang Standard: vertikal unten ")) ->  | S9: zusätzliche Kabellänge
H10: ArtikelNr. | I10: Artikel-Text - Module | O10: TE | Q10: Einzel-Preis | R10: Menge | S10: Meter | T10: Kabel | U10: Preis | V10: Zusatz | W10: Preis | Y10: Gesamt-Preis
H11: =IF(Datenbank!$Y$1=0,"",IF(Datenbank!$Y$11>=Datenbank!$BG3,HLOOKUP(Datenbank!$BG3,Datenbank!$B$10:$Y$24,6),IF(Datenbank!$Y$31>=Datenbank!$BG3,HLOOKUP(Datenbank!$BG3,Datenbank!$B$30:$Y$44,6),IF(Datenbank!$Y$51>=Datenbank!$BG3,HLOOKUP(Datenbank!$BG3,Datenbank!$B$50:$Y$64,6),IF(Datenbank!$Y$71>=Datenbank!$BG3,HLOOKUP(Datenbank!$BG3,Datenbank!$B$70:$Y$84,6),IF(Datenbank!$Y$91>=Datenbank!$BG3,HLOOKUP(Datenbank!$BG3,Datenbank!$B$90:$Y$104,6),IF(Datenbank!$Y$111>=Datenbank!$BG3,HLOOKUP(Datenbank!$BG3,Datenbank!$B$110:$Y$124,6),""))))))) ->  | I11: =IF($H11="","",VLOOKUP($H11,'AFM-Artikel'!$A$2:$D$1763,2)) ->  | O11: =IF(Datenbank!$Y$1=0,"",IF(Datenbank!$Y$11>=Datenbank!$BG3,HLOOKUP(Datenbank!$BG3,Datenbank!$B$10:$Y$24,15),IF(Datenbank!$Y$31>=Datenbank!$BG3,HLOOKUP(Datenbank!$BG3,Datenbank!$B$30:$Y$44,15),IF(Datenbank!$Y$51>=Datenbank!$BG3,HLOOKUP(Datenbank!$BG3,Datenbank!$B$50:$Y$64,15),IF(Datenbank!$Y$71>=Datenbank!$BG3,HLOOKUP(Datenbank!$BG3,Datenbank!$B$70:$Y$84,15),IF(Datenbank!$Y$91>=Datenbank!$BG3,HLOOKUP(Datenbank!$BG3,Datenbank!$B$90:$Y$104,15),IF(Datenbank!$Y$111>=Datenbank!$BG3,HLOOKUP(Datenbank!$BG3,Datenbank!$B$110:$Y$124,15),""))))))) ->  | P11: =IF(Datenbank!$Y$1=0,"",IF(Datenbank!$Y$11>=Datenbank!$BG3,HLOOKUP(Datenbank!$BG3,Datenbank!$B$10:$Y$24,8),IF(Datenbank!$Y$31>=Datenbank!$BG3,HLOOKUP(Datenbank!$BG3,Datenbank!$B$30:$Y$44,8),IF(Datenbank!$Y$51>=Datenbank!$BG3,HLOOKUP(Datenbank!$BG3,Datenbank!$B$50:$Y$64,8),IF(Datenbank!$Y$71>=Datenbank!$BG3,HLOOKUP(Datenbank!$BG3,Datenbank!$B$70:$Y$84,8),IF(Datenbank!$Y$91>=Datenbank!$BG3,HLOOKUP(Datenbank!$BG3,Datenbank!$B$90:$Y$104,8),IF(Datenbank!$Y$111>=Datenbank!$BG3,HLOOKUP(Datenbank!$BG3,Datenbank!$B$110:$Y$124,8),""))))))) ->  | R11: =IF(Datenbank!$Y$1=0,"",IF(Datenbank!$Y$11>=Datenbank!$BG3,HLOOKUP(Datenbank!$BG3,Datenbank!$B$10:$Y$24,4),IF(Datenbank!$Y$31>=Datenbank!$BG3,HLOOKUP(Datenbank!$BG3,Datenbank!$B$30:$Y$44,4),IF(Datenbank!$Y$51>=Datenbank!$BG3,HLOOKUP(Datenbank!$BG3,Datenbank!$B$50:$Y$64,4),IF(Datenbank!$Y$71>=Datenbank!$BG3,HLOOKUP(Datenbank!$BG3,Datenbank!$B$70:$Y$84,4),IF(Datenbank!$Y$91>=Datenbank!$BG3,HLOOKUP(Datenbank!$BG3,Datenbank!$B$90:$Y$104,4),IF(Datenbank!$Y$111>=Datenbank!$BG3,HLOOKUP(Datenbank!$BG3,Datenbank!$B$110:$Y$124,4),""))))))) ->  | S11: =IF(Datenbank!$Y$1=0,"",IF(Datenbank!$Y$11>=Datenbank!$BG3,HLOOKUP(Datenbank!$BG3,Datenbank!$B$10:$Y$24,14),IF(Datenbank!$Y$31>=Datenbank!$BG3,HLOOKUP(Datenbank!$BG3,Datenbank!$B$30:$Y$44,14),IF(Datenbank!$Y$51>=Datenbank!$BG3,HLOOKUP(Datenbank!$BG3,Datenbank!$B$50:$Y$64,14),IF(Datenbank!$Y$71>=Datenbank!$BG3,HLOOKUP(Datenbank!$BG3,Datenbank!$B$70:$Y$84,14),IF(Datenbank!$Y$91>=Datenbank!$BG3,HLOOKUP(Datenbank!$BG3,Datenbank!$B$90:$Y$104,14),IF(Datenbank!$Y$111>=Datenbank!$BG3,HLOOKUP(Datenbank!$BG3,Datenbank!$B$110:$Y$124,14),""))))))) ->  | T11: =IF(Datenbank!$Y$1=0,"",IF(Datenbank!$Y$11>=Datenbank!$BG3,HLOOKUP(Datenbank!$BG3,Datenbank!$B$10:$Y$24,9),IF(Datenbank!$Y$31>=Datenbank!$BG3,HLOOKUP(Datenbank!$BG3,Datenbank!$B$30:$Y$44,9),IF(Datenbank!$Y$51>=Datenbank!$BG3,HLOOKUP(Datenbank!$BG3,Datenbank!$B$50:$Y$64,9),IF(Datenbank!$Y$71>=Datenbank!$BG3,HLOOKUP(Datenbank!$BG3,Datenbank!$B$70:$Y$84,9),IF(Datenbank!$Y$91>=Datenbank!$BG3,HLOOKUP(Datenbank!$BG3,Datenbank!$B$90:$Y$104,9),IF(Datenbank!$Y$111>=Datenbank!$BG3,HLOOKUP(Datenbank!$BG3,Datenbank!$B$110:$Y$124,9),""))))))) ->  | U11: =IF(Datenbank!$Y$1=0,"",IF(Datenbank!$Y$11>=Datenbank!$BG3,HLOOKUP(Datenbank!$BG3,Datenbank!$B$10:$Y$24,10),IF(Datenbank!$Y$31>=Datenbank!$BG3,HLOOKUP(Datenbank!$BG3,Datenbank!$B$30:$Y$44,10),IF(Datenbank!$Y$51>=Datenbank!$BG3,HLOOKUP(Datenbank!$BG3,Datenbank!$B$50:$Y$64,10),IF(Datenbank!$Y$71>=Datenbank!$BG3,HLOOKUP(Datenbank!$BG3,Datenbank!$B$70:$Y$84,10),IF(Datenbank!$Y$91>=Datenbank!$BG3,HLOOKUP(Datenbank!$BG3,Datenbank!$B$90:$Y$104,10),IF(Datenbank!$Y$111>=Datenbank!$BG3,HLOOKUP(Datenbank!$BG3,Datenbank!$B$110:$Y$124,10),""))))))) ->  | V11: =IF(Datenbank!$Y$1=0,"",IF(Datenbank!$Y$11>=Datenbank!$BG3,HLOOKUP(Datenbank!$BG3,Datenbank!$B$10:$Y$24,11),IF(Datenbank!$Y$31>=Datenbank!$BG3,HLOOKUP(Datenbank!$BG3,Datenbank!$B$30:$Y$44,11),IF(Datenbank!$Y$51>=Datenbank!$BG3,HLOOKUP(Datenbank!$BG3,Datenbank!$B$50:$Y$64,11),IF(Datenbank!$Y$71>=Datenbank!$BG3,HLOOKUP(Datenbank!$BG3,Datenbank!$B$70:$Y$84,11),IF(Datenbank!$Y$91>=Datenbank!$BG3,HLOOKUP(Datenbank!$BG3,Datenbank!$B$90:$Y$104,11),IF(Datenbank!$Y$111>=Datenbank!$BG3,HLOOKUP(Datenbank!$BG3,Datenbank!$B$110:$Y$124,11),""))))))) ->  | W11: =IF(Datenbank!$Y$1=0,"",IF(Datenbank!$Y$11>=Datenbank!$BG3,HLOOKUP(Datenbank!$BG3,Datenbank!$B$10:$Y$24,12),IF(Datenbank!$Y$31>=Datenbank!$BG3,HLOOKUP(Datenbank!$BG3,Datenbank!$B$30:$Y$44,12),IF(Datenbank!$Y$51>=Datenbank!$BG3,HLOOKUP(Datenbank!$BG3,Datenbank!$B$50:$Y$64,12),IF(Datenbank!$Y$71>=Datenbank!$BG3,HLOOKUP(Datenbank!$BG3,Datenbank!$B$70:$Y$84,12),IF(Datenbank!$Y$91>=Datenbank!$BG3,HLOOKUP(Datenbank!$BG3,Datenbank!$B$90:$Y$104,12),IF(Datenbank!$Y$111>=Datenbank!$BG3,HLOOKUP(Datenbank!$BG3,Datenbank!$B$110:$Y$124,12),""))))))) ->  | X11: =IF(H11="","",IF(AND(V11=5557,S11=0),ROUND(P11*R11,2)+ROUND(R11*W11,2),IF(AND(V11=5557,S11<>0),ROUND(P11*R11,2)+ROUND(S11*U11,2)+ROUND(R11*W11,2),IF($S11=0,ROUND(P11*R11,2),IF(OR(T11=4585,T11=4451,T11=4612,T11=4452,T11=4453,T11=4454,T11=4553,T11=4455,T11=4456,T11=4457,T11=4458,T11=4459,T11=4641,T11=4696,T11=5774,T11=4593,T11=4642,T11=4643,T11=4544,T11=4567),ROUND(P11*R11,2)+ROUND(U11*R11,2),IF(V11="",ROUND(P11*R11,2)+ROUND(S11*U11,2),ROUND(P11*R11,2)+ROUND(S11*U11,2)+ROUND(S11*W11,2))))))) -> 
A12: 1. Modulträger auswählen! | D12: ç | E12: =IF($A$12=Datenbank!$BL$3,Datenbank!$BK$3,IF(A12=Datenbank!BL4,Datenbank!BK4,IF(A12=Datenbank!BL5,Datenbank!BK5,IF(A12=Datenbank!BL6,Datenbank!BK6,IF(A12=Datenbank!BL7,Datenbank!BK7,IF(A12=Datenbank!BL8,Datenbank!BK8,IF(A12=Datenbank!BL9,Datenbank!BK9,IF(A12=Datenbank!BL10,Datenbank!BK10))))))))+IF(A12=Datenbank!BL11,Datenbank!BK11)+IF(A12=Datenbank!BL12,Datenbank!BK12)+IF(A12=Datenbank!BL13,Datenbank!BK13)+IF(A12=Datenbank!BL14,Datenbank!BK14)+IF(A12=Datenbank!BL15,Datenbank!BK15)+IF(A12=Datenbank!BL16,Datenbank!BK16)+IF(A12=Datenbank!BL17,Datenbank!BK17)+IF(A12=Datenbank!BL18,Datenbank!BK18)+IF(A12=Datenbank!BL19,Datenbank!BK19)+IF(A12=Datenbank!BL20,Datenbank!BK20)+IF(A12=Datenbank!BL21,Datenbank!BK21)+IF(A12=Datenbank!BL22,Datenbank!BK22)+IF(A12=Datenbank!BL23,Datenbank!BK23) -> 0 | F12: =IF($E$12=5500,36,IF($E$12=5501,28,IF($E$12=5502,36,IF($E$12=5503,28,IF($E$12=5504,36,IF($E$12=5505,36,IF($E$12=5506,28,IF($E$12=5507,36))))))))+IF(OR($E$12=5510,$E$12=5513),24)+IF($E$12=5511,36)+IF($E$12=5512,48)+IF($E$12=5532,20)+IF($E$12=5531,24)+IF($E$12=5530,36)+IF($E$12=5535,20)+IF($E$12=5534,24)+IF($E$12=5533,36)+IF($E$12=5520,28)+IF($E$12=5522,44)+IF($E$12=5519,84) -> 0 | H12: =IF(Datenbank!$Y$1=0,"",IF(Datenbank!$Y$11>=Datenbank!$BG4,HLOOKUP(Datenbank!$BG4,Datenbank!$B$10:$Y$24,6),IF(Datenbank!$Y$31>=Datenbank!$BG4,HLOOKUP(Datenbank!$BG4,Datenbank!$B$30:$Y$44,6),IF(Datenbank!$Y$51>=Datenbank!$BG4,HLOOKUP(Datenbank!$BG4,Datenbank!$B$50:$Y$64,6),IF(Datenbank!$Y$71>=Datenbank!$BG4,HLOOKUP(Datenbank!$BG4,Datenbank!$B$70:$Y$84,6),IF(Datenbank!$Y$91>=Datenbank!$BG4,HLOOKUP(Datenbank!$BG4,Datenbank!$B$90:$Y$104,6),IF(Datenbank!$Y$111>=Datenbank!$BG4,HLOOKUP(Datenbank!$BG4,Datenbank!$B$110:$Y$124,6),""))))))) ->  | I12: =IF($H12="","",VLOOKUP($H12,'AFM-Artikel'!$A$2:$D$1763,2)) ->  | O12: =IF(Datenbank!$Y$1=0,"",IF(Datenbank!$Y$11>=Datenbank!$BG4,HLOOKUP(Datenbank!$BG4,Datenbank!$B$10:$Y$24,15),IF(Datenbank!$Y$31>=Datenbank!$BG4,HLOOKUP(Datenbank!$BG4,Datenbank!$B$30:$Y$44,15),IF(Datenbank!$Y$51>=Datenbank!$BG4,HLOOKUP(Datenbank!$BG4,Datenbank!$B$50:$Y$64,15),IF(Datenbank!$Y$71>=Datenbank!$BG4,HLOOKUP(Datenbank!$BG4,Datenbank!$B$70:$Y$84,15),IF(Datenbank!$Y$91>=Datenbank!$BG4,HLOOKUP(Datenbank!$BG4,Datenbank!$B$90:$Y$104,15),IF(Datenbank!$Y$111>=Datenbank!$BG4,HLOOKUP(Datenbank!$BG4,Datenbank!$B$110:$Y$124,15),""))))))) ->  | P12: =IF(Datenbank!$Y$1=0,"",IF(Datenbank!$Y$11>=Datenbank!$BG4,HLOOKUP(Datenbank!$BG4,Datenbank!$B$10:$Y$24,8),IF(Datenbank!$Y$31>=Datenbank!$BG4,HLOOKUP(Datenbank!$BG4,Datenbank!$B$30:$Y$44,8),IF(Datenbank!$Y$51>=Datenbank!$BG4,HLOOKUP(Datenbank!$BG4,Datenbank!$B$50:$Y$64,8),IF(Datenbank!$Y$71>=Datenbank!$BG4,HLOOKUP(Datenbank!$BG4,Datenbank!$B$70:$Y$84,8),IF(Datenbank!$Y$91>=Datenbank!$BG4,HLOOKUP(Datenbank!$BG4,Datenbank!$B$90:$Y$104,8),IF(Datenbank!$Y$111>=Datenbank!$BG4,HLOOKUP(Datenbank!$BG4,Datenbank!$B$110:$Y$124,8),""))))))) ->  | R12: =IF(Datenbank!$Y$1=0,"",IF(Datenbank!$Y$11>=Datenbank!$BG4,HLOOKUP(Datenbank!$BG4,Datenbank!$B$10:$Y$24,4),IF(Datenbank!$Y$31>=Datenbank!$BG4,HLOOKUP(Datenbank!$BG4,Datenbank!$B$30:$Y$44,4),IF(Datenbank!$Y$51>=Datenbank!$BG4,HLOOKUP(Datenbank!$BG4,Datenbank!$B$50:$Y$64,4),IF(Datenbank!$Y$71>=Datenbank!$BG4,HLOOKUP(Datenbank!$BG4,Datenbank!$B$70:$Y$84,4),IF(Datenbank!$Y$91>=Datenbank!$BG4,HLOOKUP(Datenbank!$BG4,Datenbank!$B$90:$Y$104,4),IF(Datenbank!$Y$111>=Datenbank!$BG4,HLOOKUP(Datenbank!$BG4,Datenbank!$B$110:$Y$124,4),""))))))) ->  | S12: =IF(Datenbank!$Y$1=0,"",IF(Datenbank!$Y$11>=Datenbank!$BG4,HLOOKUP(Datenbank!$BG4,Datenbank!$B$10:$Y$24,14),IF(Datenbank!$Y$31>=Datenbank!$BG4,HLOOKUP(Datenbank!$BG4,Datenbank!$B$30:$Y$44,14),IF(Datenbank!$Y$51>=Datenbank!$BG4,HLOOKUP(Datenbank!$BG4,Datenbank!$B$50:$Y$64,14),IF(Datenbank!$Y$71>=Datenbank!$BG4,HLOOKUP(Datenbank!$BG4,Datenbank!$B$70:$Y$84,14),IF(Datenbank!$Y$91>=Datenbank!$BG4,HLOOKUP(Datenbank!$BG4,Datenbank!$B$90:$Y$104,14),IF(Datenbank!$Y$111>=Datenbank!$BG4,HLOOKUP(Datenbank!$BG4,Datenbank!$B$110:$Y$124,14),""))))))) ->  | T12: =IF(Datenbank!$Y$1=0,"",IF(Datenbank!$Y$11>=Datenbank!$BG4,HLOOKUP(Datenbank!$BG4,Datenbank!$B$10:$Y$24,9),IF(Datenbank!$Y$31>=Datenbank!$BG4,HLOOKUP(Datenbank!$BG4,Datenbank!$B$30:$Y$44,9),IF(Datenbank!$Y$51>=Datenbank!$BG4,HLOOKUP(Datenbank!$BG4,Datenbank!$B$50:$Y$64,9),IF(Datenbank!$Y$71>=Datenbank!$BG4,HLOOKUP(Datenbank!$BG4,Datenbank!$B$70:$Y$84,9),IF(Datenbank!$Y$91>=Datenbank!$BG4,HLOOKUP(Datenbank!$BG4,Datenbank!$B$90:$Y$104,9),IF(Datenbank!$Y$111>=Datenbank!$BG4,HLOOKUP(Datenbank!$BG4,Datenbank!$B$110:$Y$124,9),""))))))) ->  | U12: =IF(Datenbank!$Y$1=0,"",IF(Datenbank!$Y$11>=Datenbank!$BG4,HLOOKUP(Datenbank!$BG4,Datenbank!$B$10:$Y$24,10),IF(Datenbank!$Y$31>=Datenbank!$BG4,HLOOKUP(Datenbank!$BG4,Datenbank!$B$30:$Y$44,10),IF(Datenbank!$Y$51>=Datenbank!$BG4,HLOOKUP(Datenbank!$BG4,Datenbank!$B$50:$Y$64,10),IF(Datenbank!$Y$71>=Datenbank!$BG4,HLOOKUP(Datenbank!$BG4,Datenbank!$B$70:$Y$84,10),IF(Datenbank!$Y$91>=Datenbank!$BG4,HLOOKUP(Datenbank!$BG4,Datenbank!$B$90:$Y$104,10),IF(Datenbank!$Y$111>=Datenbank!$BG4,HLOOKUP(Datenbank!$BG4,Datenbank!$B$110:$Y$124,10),""))))))) ->  | V12: =IF(Datenbank!$Y$1=0,"",IF(Datenbank!$Y$11>=Datenbank!$BG4,HLOOKUP(Datenbank!$BG4,Datenbank!$B$10:$Y$24,11),IF(Datenbank!$Y$31>=Datenbank!$BG4,HLOOKUP(Datenbank!$BG4,Datenbank!$B$30:$Y$44,11),IF(Datenbank!$Y$51>=Datenbank!$BG4,HLOOKUP(Datenbank!$BG4,Datenbank!$B$50:$Y$64,11),IF(Datenbank!$Y$71>=Datenbank!$BG4,HLOOKUP(Datenbank!$BG4,Datenbank!$B$70:$Y$84,11),IF(Datenbank!$Y$91>=Datenbank!$BG4,HLOOKUP(Datenbank!$BG4,Datenbank!$B$90:$Y$104,11),IF(Datenbank!$Y$111>=Datenbank!$BG4,HLOOKUP(Datenbank!$BG4,Datenbank!$B$110:$Y$124,11),""))))))) ->  | W12: =IF(Datenbank!$Y$1=0,"",IF(Datenbank!$Y$11>=Datenbank!$BG4,HLOOKUP(Datenbank!$BG4,Datenbank!$B$10:$Y$24,12),IF(Datenbank!$Y$31>=Datenbank!$BG4,HLOOKUP(Datenbank!$BG4,Datenbank!$B$30:$Y$44,12),IF(Datenbank!$Y$51>=Datenbank!$BG4,HLOOKUP(Datenbank!$BG4,Datenbank!$B$50:$Y$64,12),IF(Datenbank!$Y$71>=Datenbank!$BG4,HLOOKUP(Datenbank!$BG4,Datenbank!$B$70:$Y$84,12),IF(Datenbank!$Y$91>=Datenbank!$BG4,HLOOKUP(Datenbank!$BG4,Datenbank!$B$90:$Y$104,12),IF(Datenbank!$Y$111>=Datenbank!$BG4,HLOOKUP(Datenbank!$BG4,Datenbank!$B$110:$Y$124,12),""))))))) ->  | X12: =IF(H12="","",IF(AND(V12=5557,S12=0),ROUND(P12*R12,2)+ROUND(R12*W12,2),IF(AND(V12=5557,S12<>0),ROUND(P12*R12,2)+ROUND(S12*U12,2)+ROUND(R12*W12,2),IF($S12=0,ROUND(P12*R12,2),IF(OR(T12=4585,T12=4451,T12=4612,T12=4452,T12=4453,T12=4454,T12=4553,T12=4455,T12=4456,T12=4457,T12=4458,T12=4459,T12=4641,T12=4696,T12=5774,T12=4593,T12=4642,T12=4643,T12=4544,T12=4567),ROUND(P12*R12,2)+ROUND(U12*R12,2),IF(V12="",ROUND(P12*R12,2)+ROUND(S12*U12,2),ROUND(P12*R12,2)+ROUND(S12*U12,2)+ROUND(S12*W12,2))))))) -> 
H13: =IF(Datenbank!$Y$1=0,"",IF(Datenbank!$Y$11>=Datenbank!$BG5,HLOOKUP(Datenbank!$BG5,Datenbank!$B$10:$Y$24,6),IF(Datenbank!$Y$31>=Datenbank!$BG5,HLOOKUP(Datenbank!$BG5,Datenbank!$B$30:$Y$44,6),IF(Datenbank!$Y$51>=Datenbank!$BG5,HLOOKUP(Datenbank!$BG5,Datenbank!$B$50:$Y$64,6),IF(Datenbank!$Y$71>=Datenbank!$BG5,HLOOKUP(Datenbank!$BG5,Datenbank!$B$70:$Y$84,6),IF(Datenbank!$Y$91>=Datenbank!$BG5,HLOOKUP(Datenbank!$BG5,Datenbank!$B$90:$Y$104,6),IF(Datenbank!$Y$111>=Datenbank!$BG5,HLOOKUP(Datenbank!$BG5,Datenbank!$B$110:$Y$124,6),""))))))) ->  | I13: =IF($H13="","",VLOOKUP($H13,'AFM-Artikel'!$A$2:$D$1763,2)) ->  | O13: =IF(Datenbank!$Y$1=0,"",IF(Datenbank!$Y$11>=Datenbank!$BG5,HLOOKUP(Datenbank!$BG5,Datenbank!$B$10:$Y$24,15),IF(Datenbank!$Y$31>=Datenbank!$BG5,HLOOKUP(Datenbank!$BG5,Datenbank!$B$30:$Y$44,15),IF(Datenbank!$Y$51>=Datenbank!$BG5,HLOOKUP(Datenbank!$BG5,Datenbank!$B$50:$Y$64,15),IF(Datenbank!$Y$71>=Datenbank!$BG5,HLOOKUP(Datenbank!$BG5,Datenbank!$B$70:$Y$84,15),IF(Datenbank!$Y$91>=Datenbank!$BG5,HLOOKUP(Datenbank!$BG5,Datenbank!$B$90:$Y$104,15),IF(Datenbank!$Y$111>=Datenbank!$BG5,HLOOKUP(Datenbank!$BG5,Datenbank!$B$110:$Y$124,15),""))))))) ->  | P13: =IF(Datenbank!$Y$1=0,"",IF(Datenbank!$Y$11>=Datenbank!$BG5,HLOOKUP(Datenbank!$BG5,Datenbank!$B$10:$Y$24,8),IF(Datenbank!$Y$31>=Datenbank!$BG5,HLOOKUP(Datenbank!$BG5,Datenbank!$B$30:$Y$44,8),IF(Datenbank!$Y$51>=Datenbank!$BG5,HLOOKUP(Datenbank!$BG5,Datenbank!$B$50:$Y$64,8),IF(Datenbank!$Y$71>=Datenbank!$BG5,HLOOKUP(Datenbank!$BG5,Datenbank!$B$70:$Y$84,8),IF(Datenbank!$Y$91>=Datenbank!$BG5,HLOOKUP(Datenbank!$BG5,Datenbank!$B$90:$Y$104,8),IF(Datenbank!$Y$111>=Datenbank!$BG5,HLOOKUP(Datenbank!$BG5,Datenbank!$B$110:$Y$124,8),""))))))) ->  | R13: =IF(Datenbank!$Y$1=0,"",IF(Datenbank!$Y$11>=Datenbank!$BG5,HLOOKUP(Datenbank!$BG5,Datenbank!$B$10:$Y$24,4),IF(Datenbank!$Y$31>=Datenbank!$BG5,HLOOKUP(Datenbank!$BG5,Datenbank!$B$30:$Y$44,4),IF(Datenbank!$Y$51>=Datenbank!$BG5,HLOOKUP(Datenbank!$BG5,Datenbank!$B$50:$Y$64,4),IF(Datenbank!$Y$71>=Datenbank!$BG5,HLOOKUP(Datenbank!$BG5,Datenbank!$B$70:$Y$84,4),IF(Datenbank!$Y$91>=Datenbank!$BG5,HLOOKUP(Datenbank!$BG5,Datenbank!$B$90:$Y$104,4),IF(Datenbank!$Y$111>=Datenbank!$BG5,HLOOKUP(Datenbank!$BG5,Datenbank!$B$110:$Y$124,4),""))))))) ->  | S13: =IF(Datenbank!$Y$1=0,"",IF(Datenbank!$Y$11>=Datenbank!$BG5,HLOOKUP(Datenbank!$BG5,Datenbank!$B$10:$Y$24,14),IF(Datenbank!$Y$31>=Datenbank!$BG5,HLOOKUP(Datenbank!$BG5,Datenbank!$B$30:$Y$44,14),IF(Datenbank!$Y$51>=Datenbank!$BG5,HLOOKUP(Datenbank!$BG5,Datenbank!$B$50:$Y$64,14),IF(Datenbank!$Y$71>=Datenbank!$BG5,HLOOKUP(Datenbank!$BG5,Datenbank!$B$70:$Y$84,14),IF(Datenbank!$Y$91>=Datenbank!$BG5,HLOOKUP(Datenbank!$BG5,Datenbank!$B$90:$Y$104,14),IF(Datenbank!$Y$111>=Datenbank!$BG5,HLOOKUP(Datenbank!$BG5,Datenbank!$B$110:$Y$124,14),""))))))) ->  | T13: =IF(Datenbank!$Y$1=0,"",IF(Datenbank!$Y$11>=Datenbank!$BG5,HLOOKUP(Datenbank!$BG5,Datenbank!$B$10:$Y$24,9),IF(Datenbank!$Y$31>=Datenbank!$BG5,HLOOKUP(Datenbank!$BG5,Datenbank!$B$30:$Y$44,9),IF(Datenbank!$Y$51>=Datenbank!$BG5,HLOOKUP(Datenbank!$BG5,Datenbank!$B$50:$Y$64,9),IF(Datenbank!$Y$71>=Datenbank!$BG5,HLOOKUP(Datenbank!$BG5,Datenbank!$B$70:$Y$84,9),IF(Datenbank!$Y$91>=Datenbank!$BG5,HLOOKUP(Datenbank!$BG5,Datenbank!$B$90:$Y$104,9),IF(Datenbank!$Y$111>=Datenbank!$BG5,HLOOKUP(Datenbank!$BG5,Datenbank!$B$110:$Y$124,9),""))))))) ->  | U13: =IF(Datenbank!$Y$1=0,"",IF(Datenbank!$Y$11>=Datenbank!$BG5,HLOOKUP(Datenbank!$BG5,Datenbank!$B$10:$Y$24,10),IF(Datenbank!$Y$31>=Datenbank!$BG5,HLOOKUP(Datenbank!$BG5,Datenbank!$B$30:$Y$44,10),IF(Datenbank!$Y$51>=Datenbank!$BG5,HLOOKUP(Datenbank!$BG5,Datenbank!$B$50:$Y$64,10),IF(Datenbank!$Y$71>=Datenbank!$BG5,HLOOKUP(Datenbank!$BG5,Datenbank!$B$70:$Y$84,10),IF(Datenbank!$Y$91>=Datenbank!$BG5,HLOOKUP(Datenbank!$BG5,Datenbank!$B$90:$Y$104,10),IF(Datenbank!$Y$111>=Datenbank!$BG5,HLOOKUP(Datenbank!$BG5,Datenbank!$B$110:$Y$124,10),""))))))) ->  | V13: =IF(Datenbank!$Y$1=0,"",IF(Datenbank!$Y$11>=Datenbank!$BG5,HLOOKUP(Datenbank!$BG5,Datenbank!$B$10:$Y$24,11),IF(Datenbank!$Y$31>=Datenbank!$BG5,HLOOKUP(Datenbank!$BG5,Datenbank!$B$30:$Y$44,11),IF(Datenbank!$Y$51>=Datenbank!$BG5,HLOOKUP(Datenbank!$BG5,Datenbank!$B$50:$Y$64,11),IF(Datenbank!$Y$71>=Datenbank!$BG5,HLOOKUP(Datenbank!$BG5,Datenbank!$B$70:$Y$84,11),IF(Datenbank!$Y$91>=Datenbank!$BG5,HLOOKUP(Datenbank!$BG5,Datenbank!$B$90:$Y$104,11),IF(Datenbank!$Y$111>=Datenbank!$BG5,HLOOKUP(Datenbank!$BG5,Datenbank!$B$110:$Y$124,11),""))))))) ->  | W13: =IF(Datenbank!$Y$1=0,"",IF(Datenbank!$Y$11>=Datenbank!$BG5,HLOOKUP(Datenbank!$BG5,Datenbank!$B$10:$Y$24,12),IF(Datenbank!$Y$31>=Datenbank!$BG5,HLOOKUP(Datenbank!$BG5,Datenbank!$B$30:$Y$44,12),IF(Datenbank!$Y$51>=Datenbank!$BG5,HLOOKUP(Datenbank!$BG5,Datenbank!$B$50:$Y$64,12),IF(Datenbank!$Y$71>=Datenbank!$BG5,HLOOKUP(Datenbank!$BG5,Datenbank!$B$70:$Y$84,12),IF(Datenbank!$Y$91>=Datenbank!$BG5,HLOOKUP(Datenbank!$BG5,Datenbank!$B$90:$Y$104,12),IF(Datenbank!$Y$111>=Datenbank!$BG5,HLOOKUP(Datenbank!$BG5,Datenbank!$B$110:$Y$124,12),""))))))) -> 
A14: Montage & Beschriftung | B14: Nein | C14: Meter | D14: Schuko oder Wieland | H14: =IF(Datenbank!$Y$1=0,"",IF(Datenbank!$Y$11>=Datenbank!$BG6,HLOOKUP(Datenbank!$BG6,Datenbank!$B$10:$Y$24,6),IF(Datenbank!$Y$31>=Datenbank!$BG6,HLOOKUP(Datenbank!$BG6,Datenbank!$B$30:$Y$44,6),IF(Datenbank!$Y$51>=Datenbank!$BG6,HLOOKUP(Datenbank!$BG6,Datenbank!$B$50:$Y$64,6),IF(Datenbank!$Y$71>=Datenbank!$BG6,HLOOKUP(Datenbank!$BG6,Datenbank!$B$70:$Y$84,6),IF(Datenbank!$Y$91>=Datenbank!$BG6,HLOOKUP(Datenbank!$BG6,Datenbank!$B$90:$Y$104,6),IF(Datenbank!$Y$111>=Datenbank!$BG6,HLOOKUP(Datenbank!$BG6,Datenbank!$B$110:$Y$124,6),""))))))) ->  | I14: =IF($H14="","",VLOOKUP($H14,'AFM-Artikel'!$A$2:$D$1763,2)) ->  | O14: =IF(Datenbank!$Y$1=0,"",IF(Datenbank!$Y$11>=Datenbank!$BG6,HLOOKUP(Datenbank!$BG6,Datenbank!$B$10:$Y$24,15),IF(Datenbank!$Y$31>=Datenbank!$BG6,HLOOKUP(Datenbank!$BG6,Datenbank!$B$30:$Y$44,15),IF(Datenbank!$Y$51>=Datenbank!$BG6,HLOOKUP(Datenbank!$BG6,Datenbank!$B$50:$Y$64,15),IF(Datenbank!$Y$71>=Datenbank!$BG6,HLOOKUP(Datenbank!$BG6,Datenbank!$B$70:$Y$84,15),IF(Datenbank!$Y$91>=Datenbank!$BG6,HLOOKUP(Datenbank!$BG6,Datenbank!$B$90:$Y$104,15),IF(Datenbank!$Y$111>=Datenbank!$BG6,HLOOKUP(Datenbank!$BG6,Datenbank!$B$110:$Y$124,15),""))))))) ->  | P14: =IF(Datenbank!$Y$1=0,"",IF(Datenbank!$Y$11>=Datenbank!$BG6,HLOOKUP(Datenbank!$BG6,Datenbank!$B$10:$Y$24,8),IF(Datenbank!$Y$31>=Datenbank!$BG6,HLOOKUP(Datenbank!$BG6,Datenbank!$B$30:$Y$44,8),IF(Datenbank!$Y$51>=Datenbank!$BG6,HLOOKUP(Datenbank!$BG6,Datenbank!$B$50:$Y$64,8),IF(Datenbank!$Y$71>=Datenbank!$BG6,HLOOKUP(Datenbank!$BG6,Datenbank!$B$70:$Y$84,8),IF(Datenbank!$Y$91>=Datenbank!$BG6,HLOOKUP(Datenbank!$BG6,Datenbank!$B$90:$Y$104,8),IF(Datenbank!$Y$111>=Datenbank!$BG6,HLOOKUP(Datenbank!$BG6,Datenbank!$B$110:$Y$124,8),""))))))) ->  | R14: =IF(Datenbank!$Y$1=0,"",IF(Datenbank!$Y$11>=Datenbank!$BG6,HLOOKUP(Datenbank!$BG6,Datenbank!$B$10:$Y$24,4),IF(Datenbank!$Y$31>=Datenbank!$BG6,HLOOKUP(Datenbank!$BG6,Datenbank!$B$30:$Y$44,4),IF(Datenbank!$Y$51>=Datenbank!$BG6,HLOOKUP(Datenbank!$BG6,Datenbank!$B$50:$Y$64,4),IF(Datenbank!$Y$71>=Datenbank!$BG6,HLOOKUP(Datenbank!$BG6,Datenbank!$B$70:$Y$84,4),IF(Datenbank!$Y$91>=Datenbank!$BG6,HLOOKUP(Datenbank!$BG6,Datenbank!$B$90:$Y$104,4),IF(Datenbank!$Y$111>=Datenbank!$BG6,HLOOKUP(Datenbank!$BG6,Datenbank!$B$110:$Y$124,4),""))))))) ->  | S14: =IF(Datenbank!$Y$1=0,"",IF(Datenbank!$Y$11>=Datenbank!$BG6,HLOOKUP(Datenbank!$BG6,Datenbank!$B$10:$Y$24,14),IF(Datenbank!$Y$31>=Datenbank!$BG6,HLOOKUP(Datenbank!$BG6,Datenbank!$B$30:$Y$44,14),IF(Datenbank!$Y$51>=Datenbank!$BG6,HLOOKUP(Datenbank!$BG6,Datenbank!$B$50:$Y$64,14),IF(Datenbank!$Y$71>=Datenbank!$BG6,HLOOKUP(Datenbank!$BG6,Datenbank!$B$70:$Y$84,14),IF(Datenbank!$Y$91>=Datenbank!$BG6,HLOOKUP(Datenbank!$BG6,Datenbank!$B$90:$Y$104,14),IF(Datenbank!$Y$111>=Datenbank!$BG6,HLOOKUP(Datenbank!$BG6,Datenbank!$B$110:$Y$124,14),""))))))) ->  | T14: =IF(Datenbank!$Y$1=0,"",IF(Datenbank!$Y$11>=Datenbank!$BG6,HLOOKUP(Datenbank!$BG6,Datenbank!$B$10:$Y$24,9),IF(Datenbank!$Y$31>=Datenbank!$BG6,HLOOKUP(Datenbank!$BG6,Datenbank!$B$30:$Y$44,9),IF(Datenbank!$Y$51>=Datenbank!$BG6,HLOOKUP(Datenbank!$BG6,Datenbank!$B$50:$Y$64,9),IF(Datenbank!$Y$71>=Datenbank!$BG6,HLOOKUP(Datenbank!$BG6,Datenbank!$B$70:$Y$84,9),IF(Datenbank!$Y$91>=Datenbank!$BG6,HLOOKUP(Datenbank!$BG6,Datenbank!$B$90:$Y$104,9),IF(Datenbank!$Y$111>=Datenbank!$BG6,HLOOKUP(Datenbank!$BG6,Datenbank!$B$110:$Y$124,9),""))))))) ->  | U14: =IF(Datenbank!$Y$1=0,"",IF(Datenbank!$Y$11>=Datenbank!$BG6,HLOOKUP(Datenbank!$BG6,Datenbank!$B$10:$Y$24,10),IF(Datenbank!$Y$31>=Datenbank!$BG6,HLOOKUP(Datenbank!$BG6,Datenbank!$B$30:$Y$44,10),IF(Datenbank!$Y$51>=Datenbank!$BG6,HLOOKUP(Datenbank!$BG6,Datenbank!$B$50:$Y$64,10),IF(Datenbank!$Y$71>=Datenbank!$BG6,HLOOKUP(Datenbank!$BG6,Datenbank!$B$70:$Y$84,10),IF(Datenbank!$Y$91>=Datenbank!$BG6,HLOOKUP(Datenbank!$BG6,Datenbank!$B$90:$Y$104,10),IF(Datenbank!$Y$111>=Datenbank!$BG6,HLOOKUP(Datenbank!$BG6,Datenbank!$B$110:$Y$124,10),""))))))) ->  | V14: =IF(Datenbank!$Y$1=0,"",IF(Datenbank!$Y$11>=Datenbank!$BG6,HLOOKUP(Datenbank!$BG6,Datenbank!$B$10:$Y$24,11),IF(Datenbank!$Y$31>=Datenbank!$BG6,HLOOKUP(Datenbank!$BG6,Datenbank!$B$30:$Y$44,11),IF(Datenbank!$Y$51>=Datenbank!$BG6,HLOOKUP(Datenbank!$BG6,Datenbank!$B$50:$Y$64,11),IF(Datenbank!$Y$71>=Datenbank!$BG6,HLOOKUP(Datenbank!$BG6,Datenbank!$B$70:$Y$84,11),IF(Datenbank!$Y$91>=Datenbank!$BG6,HLOOKUP(Datenbank!$BG6,Datenbank!$B$90:$Y$104,11),IF(Datenbank!$Y$111>=Datenbank!$BG6,HLOOKUP(Datenbank!$BG6,Datenbank!$B$110:$Y$124,11),""))))))) ->  | W14: =IF(Datenbank!$Y$1=0,"",IF(Datenbank!$Y$11>=Datenbank!$BG6,HLOOKUP(Datenbank!$BG6,Datenbank!$B$10:$Y$24,12),IF(Datenbank!$Y$31>=Datenbank!$BG6,HLOOKUP(Datenbank!$BG6,Datenbank!$B$30:$Y$44,12),IF(Datenbank!$Y$51>=Datenbank!$BG6,HLOOKUP(Datenbank!$BG6,Datenbank!$B$50:$Y$64,12),IF(Datenbank!$Y$71>=Datenbank!$BG6,HLOOKUP(Datenbank!$BG6,Datenbank!$B$70:$Y$84,12),IF(Datenbank!$Y$91>=Datenbank!$BG6,HLOOKUP(Datenbank!$BG6,Datenbank!$B$90:$Y$104,12),IF(Datenbank!$Y$111>=Datenbank!$BG6,HLOOKUP(Datenbank!$BG6,Datenbank!$B$110:$Y$124,12),""))))))) -> 
A15: Netzkabel angeschlossen (Standard: 3m) | B15: Nein | C15: 3 | D15: Schuko-Stecker | H15: =IF(Datenbank!$Y$1=0,"",IF(Datenbank!$Y$11>=Datenbank!$BG7,HLOOKUP(Datenbank!$BG7,Datenbank!$B$10:$Y$24,6),IF(Datenbank!$Y$31>=Datenbank!$BG7,HLOOKUP(Datenbank!$BG7,Datenbank!$B$30:$Y$44,6),IF(Datenbank!$Y$51>=Datenbank!$BG7,HLOOKUP(Datenbank!$BG7,Datenbank!$B$50:$Y$64,6),IF(Datenbank!$Y$71>=Datenbank!$BG7,HLOOKUP(Datenbank!$BG7,Datenbank!$B$70:$Y$84,6),IF(Datenbank!$Y$91>=Datenbank!$BG7,HLOOKUP(Datenbank!$BG7,Datenbank!$B$90:$Y$104,6),IF(Datenbank!$Y$111>=Datenbank!$BG7,HLOOKUP(Datenbank!$BG7,Datenbank!$B$110:$Y$124,6),""))))))) ->  | I15: =IF($H15="","",VLOOKUP($H15,'AFM-Artikel'!$A$2:$D$1763,2)) ->  | O15: =IF(Datenbank!$Y$1=0,"",IF(Datenbank!$Y$11>=Datenbank!$BG7,HLOOKUP(Datenbank!$BG7,Datenbank!$B$10:$Y$24,15),IF(Datenbank!$Y$31>=Datenbank!$BG7,HLOOKUP(Datenbank!$BG7,Datenbank!$B$30:$Y$44,15),IF(Datenbank!$Y$51>=Datenbank!$BG7,HLOOKUP(Datenbank!$BG7,Datenbank!$B$50:$Y$64,15),IF(Datenbank!$Y$71>=Datenbank!$BG7,HLOOKUP(Datenbank!$BG7,Datenbank!$B$70:$Y$84,15),IF(Datenbank!$Y$91>=Datenbank!$BG7,HLOOKUP(Datenbank!$BG7,Datenbank!$B$90:$Y$104,15),IF(Datenbank!$Y$111>=Datenbank!$BG7,HLOOKUP(Datenbank!$BG7,Datenbank!$B$110:$Y$124,15),""))))))) ->  | P15: =IF(Datenbank!$Y$1=0,"",IF(Datenbank!$Y$11>=Datenbank!$BG7,HLOOKUP(Datenbank!$BG7,Datenbank!$B$10:$Y$24,8),IF(Datenbank!$Y$31>=Datenbank!$BG7,HLOOKUP(Datenbank!$BG7,Datenbank!$B$30:$Y$44,8),IF(Datenbank!$Y$51>=Datenbank!$BG7,HLOOKUP(Datenbank!$BG7,Datenbank!$B$50:$Y$64,8),IF(Datenbank!$Y$71>=Datenbank!$BG7,HLOOKUP(Datenbank!$BG7,Datenbank!$B$70:$Y$84,8),IF(Datenbank!$Y$91>=Datenbank!$BG7,HLOOKUP(Datenbank!$BG7,Datenbank!$B$90:$Y$104,8),IF(Datenbank!$Y$111>=Datenbank!$BG7,HLOOKUP(Datenbank!$BG7,Datenbank!$B$110:$Y$124,8),""))))))) ->  | R15: =IF(Datenbank!$Y$1=0,"",IF(Datenbank!$Y$11>=Datenbank!$BG7,HLOOKUP(Datenbank!$BG7,Datenbank!$B$10:$Y$24,4),IF(Datenbank!$Y$31>=Datenbank!$BG7,HLOOKUP(Datenbank!$BG7,Datenbank!$B$30:$Y$44,4),IF(Datenbank!$Y$51>=Datenbank!$BG7,HLOOKUP(Datenbank!$BG7,Datenbank!$B$50:$Y$64,4),IF(Datenbank!$Y$71>=Datenbank!$BG7,HLOOKUP(Datenbank!$BG7,Datenbank!$B$70:$Y$84,4),IF(Datenbank!$Y$91>=Datenbank!$BG7,HLOOKUP(Datenbank!$BG7,Datenbank!$B$90:$Y$104,4),IF(Datenbank!$Y$111>=Datenbank!$BG7,HLOOKUP(Datenbank!$BG7,Datenbank!$B$110:$Y$124,4),""))))))) ->  | S15: =IF(Datenbank!$Y$1=0,"",IF(Datenbank!$Y$11>=Datenbank!$BG7,HLOOKUP(Datenbank!$BG7,Datenbank!$B$10:$Y$24,14),IF(Datenbank!$Y$31>=Datenbank!$BG7,HLOOKUP(Datenbank!$BG7,Datenbank!$B$30:$Y$44,14),IF(Datenbank!$Y$51>=Datenbank!$BG7,HLOOKUP(Datenbank!$BG7,Datenbank!$B$50:$Y$64,14),IF(Datenbank!$Y$71>=Datenbank!$BG7,HLOOKUP(Datenbank!$BG7,Datenbank!$B$70:$Y$84,14),IF(Datenbank!$Y$91>=Datenbank!$BG7,HLOOKUP(Datenbank!$BG7,Datenbank!$B$90:$Y$104,14),IF(Datenbank!$Y$111>=Datenbank!$BG7,HLOOKUP(Datenbank!$BG7,Datenbank!$B$110:$Y$124,14),""))))))) ->  | T15: =IF(Datenbank!$Y$1=0,"",IF(Datenbank!$Y$11>=Datenbank!$BG7,HLOOKUP(Datenbank!$BG7,Datenbank!$B$10:$Y$24,9),IF(Datenbank!$Y$31>=Datenbank!$BG7,HLOOKUP(Datenbank!$BG7,Datenbank!$B$30:$Y$44,9),IF(Datenbank!$Y$51>=Datenbank!$BG7,HLOOKUP(Datenbank!$BG7,Datenbank!$B$50:$Y$64,9),IF(Datenbank!$Y$71>=Datenbank!$BG7,HLOOKUP(Datenbank!$BG7,Datenbank!$B$70:$Y$84,9),IF(Datenbank!$Y$91>=Datenbank!$BG7,HLOOKUP(Datenbank!$BG7,Datenbank!$B$90:$Y$104,9),IF(Datenbank!$Y$111>=Datenbank!$BG7,HLOOKUP(Datenbank!$BG7,Datenbank!$B$110:$Y$124,9),""))))))) ->  | U15: =IF(Datenbank!$Y$1=0,"",IF(Datenbank!$Y$11>=Datenbank!$BG7,HLOOKUP(Datenbank!$BG7,Datenbank!$B$10:$Y$24,10),IF(Datenbank!$Y$31>=Datenbank!$BG7,HLOOKUP(Datenbank!$BG7,Datenbank!$B$30:$Y$44,10),IF(Datenbank!$Y$51>=Datenbank!$BG7,HLOOKUP(Datenbank!$BG7,Datenbank!$B$50:$Y$64,10),IF(Datenbank!$Y$71>=Datenbank!$BG7,HLOOKUP(Datenbank!$BG7,Datenbank!$B$70:$Y$84,10),IF(Datenbank!$Y$91>=Datenbank!$BG7,HLOOKUP(Datenbank!$BG7,Datenbank!$B$90:$Y$104,10),IF(Datenbank!$Y$111>=Datenbank!$BG7,HLOOKUP(Datenbank!$BG7,Datenbank!$B$110:$Y$124,10),""))))))) ->  | V15: =IF(Datenbank!$Y$1=0,"",IF(Datenbank!$Y$11>=Datenbank!$BG7,HLOOKUP(Datenbank!$BG7,Datenbank!$B$10:$Y$24,11),IF(Datenbank!$Y$31>=Datenbank!$BG7,HLOOKUP(Datenbank!$BG7,Datenbank!$B$30:$Y$44,11),IF(Datenbank!$Y$51>=Datenbank!$BG7,HLOOKUP(Datenbank!$BG7,Datenbank!$B$50:$Y$64,11),IF(Datenbank!$Y$71>=Datenbank!$BG7,HLOOKUP(Datenbank!$BG7,Datenbank!$B$70:$Y$84,11),IF(Datenbank!$Y$91>=Datenbank!$BG7,HLOOKUP(Datenbank!$BG7,Datenbank!$B$90:$Y$104,11),IF(Datenbank!$Y$111>=Datenbank!$BG7,HLOOKUP(Datenbank!$BG7,Datenbank!$B$110:$Y$124,11),""))))))) ->  | W15: =IF(Datenbank!$Y$1=0,"",IF(Datenbank!$Y$11>=Datenbank!$BG7,HLOOKUP(Datenbank!$BG7,Datenbank!$B$10:$Y$24,12),IF(Datenbank!$Y$31>=Datenbank!$BG7,HLOOKUP(Datenbank!$BG7,Datenbank!$B$30:$Y$44,12),IF(Datenbank!$Y$51>=Datenbank!$BG7,HLOOKUP(Datenbank!$BG7,Datenbank!$B$50:$Y$64,12),IF(Datenbank!$Y$71>=Datenbank!$BG7,HLOOKUP(Datenbank!$BG7,Datenbank!$B$70:$Y$84,12),IF(Datenbank!$Y$91>=Datenbank!$BG7,HLOOKUP(Datenbank!$BG7,Datenbank!$B$90:$Y$104,12),IF(Datenbank!$Y$111>=Datenbank!$BG7,HLOOKUP(Datenbank!$BG7,Datenbank!$B$110:$Y$124,12),""))))))) -> 
A16: Oberfläche Stahl 90° gepulvert RAL 9006 | B16: Ja | C16: Standard | H16: =IF(Datenbank!$Y$1=0,"",IF(Datenbank!$Y$11>=Datenbank!$BG8,HLOOKUP(Datenbank!$BG8,Datenbank!$B$10:$Y$24,6),IF(Datenbank!$Y$31>=Datenbank!$BG8,HLOOKUP(Datenbank!$BG8,Datenbank!$B$30:$Y$44,6),IF(Datenbank!$Y$51>=Datenbank!$BG8,HLOOKUP(Datenbank!$BG8,Datenbank!$B$50:$Y$64,6),IF(Datenbank!$Y$71>=Datenbank!$BG8,HLOOKUP(Datenbank!$BG8,Datenbank!$B$70:$Y$84,6),IF(Datenbank!$Y$91>=Datenbank!$BG8,HLOOKUP(Datenbank!$BG8,Datenbank!$B$90:$Y$104,6),IF(Datenbank!$Y$111>=Datenbank!$BG8,HLOOKUP(Datenbank!$BG8,Datenbank!$B$110:$Y$124,6),""))))))) ->  | I16: =IF($H16="","",VLOOKUP($H16,'AFM-Artikel'!$A$2:$D$1763,2)) ->  | O16: =IF(Datenbank!$Y$1=0,"",IF(Datenbank!$Y$11>=Datenbank!$BG8,HLOOKUP(Datenbank!$BG8,Datenbank!$B$10:$Y$24,15),IF(Datenbank!$Y$31>=Datenbank!$BG8,HLOOKUP(Datenbank!$BG8,Datenbank!$B$30:$Y$44,15),IF(Datenbank!$Y$51>=Datenbank!$BG8,HLOOKUP(Datenbank!$BG8,Datenbank!$B$50:$Y$64,15),IF(Datenbank!$Y$71>=Datenbank!$BG8,HLOOKUP(Datenbank!$BG8,Datenbank!$B$70:$Y$84,15),IF(Datenbank!$Y$91>=Datenbank!$BG8,HLOOKUP(Datenbank!$BG8,Datenbank!$B$90:$Y$104,15),IF(Datenbank!$Y$111>=Datenbank!$BG8,HLOOKUP(Datenbank!$BG8,Datenbank!$B$110:$Y$124,15),""))))))) ->  | P16: =IF(Datenbank!$Y$1=0,"",IF(Datenbank!$Y$11>=Datenbank!$BG8,HLOOKUP(Datenbank!$BG8,Datenbank!$B$10:$Y$24,8),IF(Datenbank!$Y$31>=Datenbank!$BG8,HLOOKUP(Datenbank!$BG8,Datenbank!$B$30:$Y$44,8),IF(Datenbank!$Y$51>=Datenbank!$BG8,HLOOKUP(Datenbank!$BG8,Datenbank!$B$50:$Y$64,8),IF(Datenbank!$Y$71>=Datenbank!$BG8,HLOOKUP(Datenbank!$BG8,Datenbank!$B$70:$Y$84,8),IF(Datenbank!$Y$91>=Datenbank!$BG8,HLOOKUP(Datenbank!$BG8,Datenbank!$B$90:$Y$104,8),IF(Datenbank!$Y$111>=Datenbank!$BG8,HLOOKUP(Datenbank!$BG8,Datenbank!$B$110:$Y$124,8),""))))))) ->  | R16: =IF(Datenbank!$Y$1=0,"",IF(Datenbank!$Y$11>=Datenbank!$BG8,HLOOKUP(Datenbank!$BG8,Datenbank!$B$10:$Y$24,4),IF(Datenbank!$Y$31>=Datenbank!$BG8,HLOOKUP(Datenbank!$BG8,Datenbank!$B$30:$Y$44,4),IF(Datenbank!$Y$51>=Datenbank!$BG8,HLOOKUP(Datenbank!$BG8,Datenbank!$B$50:$Y$64,4),IF(Datenbank!$Y$71>=Datenbank!$BG8,HLOOKUP(Datenbank!$BG8,Datenbank!$B$70:$Y$84,4),IF(Datenbank!$Y$91>=Datenbank!$BG8,HLOOKUP(Datenbank!$BG8,Datenbank!$B$90:$Y$104,4),IF(Datenbank!$Y$111>=Datenbank!$BG8,HLOOKUP(Datenbank!$BG8,Datenbank!$B$110:$Y$124,4),""))))))) ->  | S16: =IF(Datenbank!$Y$1=0,"",IF(Datenbank!$Y$11>=Datenbank!$BG8,HLOOKUP(Datenbank!$BG8,Datenbank!$B$10:$Y$24,14),IF(Datenbank!$Y$31>=Datenbank!$BG8,HLOOKUP(Datenbank!$BG8,Datenbank!$B$30:$Y$44,14),IF(Datenbank!$Y$51>=Datenbank!$BG8,HLOOKUP(Datenbank!$BG8,Datenbank!$B$50:$Y$64,14),IF(Datenbank!$Y$71>=Datenbank!$BG8,HLOOKUP(Datenbank!$BG8,Datenbank!$B$70:$Y$84,14),IF(Datenbank!$Y$91>=Datenbank!$BG8,HLOOKUP(Datenbank!$BG8,Datenbank!$B$90:$Y$104,14),IF(Datenbank!$Y$111>=Datenbank!$BG8,HLOOKUP(Datenbank!$BG8,Datenbank!$B$110:$Y$124,14),""))))))) ->  | T16: =IF(Datenbank!$Y$1=0,"",IF(Datenbank!$Y$11>=Datenbank!$BG8,HLOOKUP(Datenbank!$BG8,Datenbank!$B$10:$Y$24,9),IF(Datenbank!$Y$31>=Datenbank!$BG8,HLOOKUP(Datenbank!$BG8,Datenbank!$B$30:$Y$44,9),IF(Datenbank!$Y$51>=Datenbank!$BG8,HLOOKUP(Datenbank!$BG8,Datenbank!$B$50:$Y$64,9),IF(Datenbank!$Y$71>=Datenbank!$BG8,HLOOKUP(Datenbank!$BG8,Datenbank!$B$70:$Y$84,9),IF(Datenbank!$Y$91>=Datenbank!$BG8,HLOOKUP(Datenbank!$BG8,Datenbank!$B$90:$Y$104,9),IF(Datenbank!$Y$111>=Datenbank!$BG8,HLOOKUP(Datenbank!$BG8,Datenbank!$B$110:$Y$124,9),""))))))) ->  | U16: =IF(Datenbank!$Y$1=0,"",IF(Datenbank!$Y$11>=Datenbank!$BG8,HLOOKUP(Datenbank!$BG8,Datenbank!$B$10:$Y$24,10),IF(Datenbank!$Y$31>=Datenbank!$BG8,HLOOKUP(Datenbank!$BG8,Datenbank!$B$30:$Y$44,10),IF(Datenbank!$Y$51>=Datenbank!$BG8,HLOOKUP(Datenbank!$BG8,Datenbank!$B$50:$Y$64,10),IF(Datenbank!$Y$71>=Datenbank!$BG8,HLOOKUP(Datenbank!$BG8,Datenbank!$B$70:$Y$84,10),IF(Datenbank!$Y$91>=Datenbank!$BG8,HLOOKUP(Datenbank!$BG8,Datenbank!$B$90:$Y$104,10),IF(Datenbank!$Y$111>=Datenbank!$BG8,HLOOKUP(Datenbank!$BG8,Datenbank!$B$110:$Y$124,10),""))))))) ->  | V16: =IF(Datenbank!$Y$1=0,"",IF(Datenbank!$Y$11>=Datenbank!$BG8,HLOOKUP(Datenbank!$BG8,Datenbank!$B$10:$Y$24,11),IF(Datenbank!$Y$31>=Datenbank!$BG8,HLOOKUP(Datenbank!$BG8,Datenbank!$B$30:$Y$44,11),IF(Datenbank!$Y$51>=Datenbank!$BG8,HLOOKUP(Datenbank!$BG8,Datenbank!$B$50:$Y$64,11),IF(Datenbank!$Y$71>=Datenbank!$BG8,HLOOKUP(Datenbank!$BG8,Datenbank!$B$70:$Y$84,11),IF(Datenbank!$Y$91>=Datenbank!$BG8,HLOOKUP(Datenbank!$BG8,Datenbank!$B$90:$Y$104,11),IF(Datenbank!$Y$111>=Datenbank!$BG8,HLOOKUP(Datenbank!$BG8,Datenbank!$B$110:$Y$124,11),""))))))) ->  | W16: =IF(Datenbank!$Y$1=0,"",IF(Datenbank!$Y$11>=Datenbank!$BG8,HLOOKUP(Datenbank!$BG8,Datenbank!$B$10:$Y$24,12),IF(Datenbank!$Y$31>=Datenbank!$BG8,HLOOKUP(Datenbank!$BG8,Datenbank!$B$30:$Y$44,12),IF(Datenbank!$Y$51>=Datenbank!$BG8,HLOOKUP(Datenbank!$BG8,Datenbank!$B$50:$Y$64,12),IF(Datenbank!$Y$71>=Datenbank!$BG8,HLOOKUP(Datenbank!$BG8,Datenbank!$B$70:$Y$84,12),IF(Datenbank!$Y$91>=Datenbank!$BG8,HLOOKUP(Datenbank!$BG8,Datenbank!$B$90:$Y$104,12),IF(Datenbank!$Y$111>=Datenbank!$BG8,HLOOKUP(Datenbank!$BG8,Datenbank!$B$110:$Y$124,12),""))))))) -> 
A17: Option Oberfläche Sonderlackierung | B17: Nein | C17: 9007 | D17: << RAL-Farbe | F17: Link | H17: =IF(Datenbank!$Y$1=0,"",IF(Datenbank!$Y$11>=Datenbank!$BG9,HLOOKUP(Datenbank!$BG9,Datenbank!$B$10:$Y$24,6),IF(Datenbank!$Y$31>=Datenbank!$BG9,HLOOKUP(Datenbank!$BG9,Datenbank!$B$30:$Y$44,6),IF(Datenbank!$Y$51>=Datenbank!$BG9,HLOOKUP(Datenbank!$BG9,Datenbank!$B$50:$Y$64,6),IF(Datenbank!$Y$71>=Datenbank!$BG9,HLOOKUP(Datenbank!$BG9,Datenbank!$B$70:$Y$84,6),IF(Datenbank!$Y$91>=Datenbank!$BG9,HLOOKUP(Datenbank!$BG9,Datenbank!$B$90:$Y$104,6),IF(Datenbank!$Y$111>=Datenbank!$BG9,HLOOKUP(Datenbank!$BG9,Datenbank!$B$110:$Y$124,6),""))))))) ->  | I17: =IF($H17="","",VLOOKUP($H17,'AFM-Artikel'!$A$2:$D$1763,2)) ->  | O17: =IF(Datenbank!$Y$1=0,"",IF(Datenbank!$Y$11>=Datenbank!$BG9,HLOOKUP(Datenbank!$BG9,Datenbank!$B$10:$Y$24,15),IF(Datenbank!$Y$31>=Datenbank!$BG9,HLOOKUP(Datenbank!$BG9,Datenbank!$B$30:$Y$44,15),IF(Datenbank!$Y$51>=Datenbank!$BG9,HLOOKUP(Datenbank!$BG9,Datenbank!$B$50:$Y$64,15),IF(Datenbank!$Y$71>=Datenbank!$BG9,HLOOKUP(Datenbank!$BG9,Datenbank!$B$70:$Y$84,15),IF(Datenbank!$Y$91>=Datenbank!$BG9,HLOOKUP(Datenbank!$BG9,Datenbank!$B$90:$Y$104,15),IF(Datenbank!$Y$111>=Datenbank!$BG9,HLOOKUP(Datenbank!$BG9,Datenbank!$B$110:$Y$124,15),""))))))) ->  | P17: =IF(Datenbank!$Y$1=0,"",IF(Datenbank!$Y$11>=Datenbank!$BG9,HLOOKUP(Datenbank!$BG9,Datenbank!$B$10:$Y$24,8),IF(Datenbank!$Y$31>=Datenbank!$BG9,HLOOKUP(Datenbank!$BG9,Datenbank!$B$30:$Y$44,8),IF(Datenbank!$Y$51>=Datenbank!$BG9,HLOOKUP(Datenbank!$BG9,Datenbank!$B$50:$Y$64,8),IF(Datenbank!$Y$71>=Datenbank!$BG9,HLOOKUP(Datenbank!$BG9,Datenbank!$B$70:$Y$84,8),IF(Datenbank!$Y$91>=Datenbank!$BG9,HLOOKUP(Datenbank!$BG9,Datenbank!$B$90:$Y$104,8),IF(Datenbank!$Y$111>=Datenbank!$BG9,HLOOKUP(Datenbank!$BG9,Datenbank!$B$110:$Y$124,8),""))))))) ->  | R17: =IF(Datenbank!$Y$1=0,"",IF(Datenbank!$Y$11>=Datenbank!$BG9,HLOOKUP(Datenbank!$BG9,Datenbank!$B$10:$Y$24,4),IF(Datenbank!$Y$31>=Datenbank!$BG9,HLOOKUP(Datenbank!$BG9,Datenbank!$B$30:$Y$44,4),IF(Datenbank!$Y$51>=Datenbank!$BG9,HLOOKUP(Datenbank!$BG9,Datenbank!$B$50:$Y$64,4),IF(Datenbank!$Y$71>=Datenbank!$BG9,HLOOKUP(Datenbank!$BG9,Datenbank!$B$70:$Y$84,4),IF(Datenbank!$Y$91>=Datenbank!$BG9,HLOOKUP(Datenbank!$BG9,Datenbank!$B$90:$Y$104,4),IF(Datenbank!$Y$111>=Datenbank!$BG9,HLOOKUP(Datenbank!$BG9,Datenbank!$B$110:$Y$124,4),""))))))) ->  | S17: =IF(Datenbank!$Y$1=0,"",IF(Datenbank!$Y$11>=Datenbank!$BG9,HLOOKUP(Datenbank!$BG9,Datenbank!$B$10:$Y$24,14),IF(Datenbank!$Y$31>=Datenbank!$BG9,HLOOKUP(Datenbank!$BG9,Datenbank!$B$30:$Y$44,14),IF(Datenbank!$Y$51>=Datenbank!$BG9,HLOOKUP(Datenbank!$BG9,Datenbank!$B$50:$Y$64,14),IF(Datenbank!$Y$71>=Datenbank!$BG9,HLOOKUP(Datenbank!$BG9,Datenbank!$B$70:$Y$84,14),IF(Datenbank!$Y$91>=Datenbank!$BG9,HLOOKUP(Datenbank!$BG9,Datenbank!$B$90:$Y$104,14),IF(Datenbank!$Y$111>=Datenbank!$BG9,HLOOKUP(Datenbank!$BG9,Datenbank!$B$110:$Y$124,14),""))))))) ->  | T17: =IF(Datenbank!$Y$1=0,"",IF(Datenbank!$Y$11>=Datenbank!$BG9,HLOOKUP(Datenbank!$BG9,Datenbank!$B$10:$Y$24,9),IF(Datenbank!$Y$31>=Datenbank!$BG9,HLOOKUP(Datenbank!$BG9,Datenbank!$B$30:$Y$44,9),IF(Datenbank!$Y$51>=Datenbank!$BG9,HLOOKUP(Datenbank!$BG9,Datenbank!$B$50:$Y$64,9),IF(Datenbank!$Y$71>=Datenbank!$BG9,HLOOKUP(Datenbank!$BG9,Datenbank!$B$70:$Y$84,9),IF(Datenbank!$Y$91>=Datenbank!$BG9,HLOOKUP(Datenbank!$BG9,Datenbank!$B$90:$Y$104,9),IF(Datenbank!$Y$111>=Datenbank!$BG9,HLOOKUP(Datenbank!$BG9,Datenbank!$B$110:$Y$124,9),""))))))) ->  | U17: =IF(Datenbank!$Y$1=0,"",IF(Datenbank!$Y$11>=Datenbank!$BG9,HLOOKUP(Datenbank!$BG9,Datenbank!$B$10:$Y$24,10),IF(Datenbank!$Y$31>=Datenbank!$BG9,HLOOKUP(Datenbank!$BG9,Datenbank!$B$30:$Y$44,10),IF(Datenbank!$Y$51>=Datenbank!$BG9,HLOOKUP(Datenbank!$BG9,Datenbank!$B$50:$Y$64,10),IF(Datenbank!$Y$71>=Datenbank!$BG9,HLOOKUP(Datenbank!$BG9,Datenbank!$B$70:$Y$84,10),IF(Datenbank!$Y$91>=Datenbank!$BG9,HLOOKUP(Datenbank!$BG9,Datenbank!$B$90:$Y$104,10),IF(Datenbank!$Y$111>=Datenbank!$BG9,HLOOKUP(Datenbank!$BG9,Datenbank!$B$110:$Y$124,10),""))))))) ->  | V17: =IF(Datenbank!$Y$1=0,"",IF(Datenbank!$Y$11>=Datenbank!$BG9,HLOOKUP(Datenbank!$BG9,Datenbank!$B$10:$Y$24,11),IF(Datenbank!$Y$31>=Datenbank!$BG9,HLOOKUP(Datenbank!$BG9,Datenbank!$B$30:$Y$44,11),IF(Datenbank!$Y$51>=Datenbank!$BG9,HLOOKUP(Datenbank!$BG9,Datenbank!$B$50:$Y$64,11),IF(Datenbank!$Y$71>=Datenbank!$BG9,HLOOKUP(Datenbank!$BG9,Datenbank!$B$70:$Y$84,11),IF(Datenbank!$Y$91>=Datenbank!$BG9,HLOOKUP(Datenbank!$BG9,Datenbank!$B$90:$Y$104,11),IF(Datenbank!$Y$111>=Datenbank!$BG9,HLOOKUP(Datenbank!$BG9,Datenbank!$B$110:$Y$124,11),""))))))) ->  | W17: =IF(Datenbank!$Y$1=0,"",IF(Datenbank!$Y$11>=Datenbank!$BG9,HLOOKUP(Datenbank!$BG9,Datenbank!$B$10:$Y$24,12),IF(Datenbank!$Y$31>=Datenbank!$BG9,HLOOKUP(Datenbank!$BG9,Datenbank!$B$30:$Y$44,12),IF(Datenbank!$Y$51>=Datenbank!$BG9,HLOOKUP(Datenbank!$BG9,Datenbank!$B$50:$Y$64,12),IF(Datenbank!$Y$71>=Datenbank!$BG9,HLOOKUP(Datenbank!$BG9,Datenbank!$B$70:$Y$84,12),IF(Datenbank!$Y$91>=Datenbank!$BG9,HLOOKUP(Datenbank!$BG9,Datenbank!$B$90:$Y$104,12),IF(Datenbank!$Y$111>=Datenbank!$BG9,HLOOKUP(Datenbank!$BG9,Datenbank!$B$110:$Y$124,12),""))))))) -> 
A18: Option Oberfläche Alu 90° gebürstet | B18: Nein | H18: =IF(Datenbank!$Y$1=0,"",IF(Datenbank!$Y$11>=Datenbank!$BG10,HLOOKUP(Datenbank!$BG10,Datenbank!$B$10:$Y$24,6),IF(Datenbank!$Y$31>=Datenbank!$BG10,HLOOKUP(Datenbank!$BG10,Datenbank!$B$30:$Y$44,6),IF(Datenbank!$Y$51>=Datenbank!$BG10,HLOOKUP(Datenbank!$BG10,Datenbank!$B$50:$Y$64,6),IF(Datenbank!$Y$71>=Datenbank!$BG10,HLOOKUP(Datenbank!$BG10,Datenbank!$B$70:$Y$84,6),IF(Datenbank!$Y$91>=Datenbank!$BG10,HLOOKUP(Datenbank!$BG10,Datenbank!$B$90:$Y$104,6),IF(Datenbank!$Y$111>=Datenbank!$BG10,HLOOKUP(Datenbank!$BG10,Datenbank!$B$110:$Y$124,6),""))))))) ->  | I18: =IF($H18="","",VLOOKUP($H18,'AFM-Artikel'!$A$2:$D$1763,2)) ->  | O18: =IF(Datenbank!$Y$1=0,"",IF(Datenbank!$Y$11>=Datenbank!$BG10,HLOOKUP(Datenbank!$BG10,Datenbank!$B$10:$Y$24,15),IF(Datenbank!$Y$31>=Datenbank!$BG10,HLOOKUP(Datenbank!$BG10,Datenbank!$B$30:$Y$44,15),IF(Datenbank!$Y$51>=Datenbank!$BG10,HLOOKUP(Datenbank!$BG10,Datenbank!$B$50:$Y$64,15),IF(Datenbank!$Y$71>=Datenbank!$BG10,HLOOKUP(Datenbank!$BG10,Datenbank!$B$70:$Y$84,15),IF(Datenbank!$Y$91>=Datenbank!$BG10,HLOOKUP(Datenbank!$BG10,Datenbank!$B$90:$Y$104,15),IF(Datenbank!$Y$111>=Datenbank!$BG10,HLOOKUP(Datenbank!$BG10,Datenbank!$B$110:$Y$124,15),""))))))) ->  | P18: =IF(Datenbank!$Y$1=0,"",IF(Datenbank!$Y$11>=Datenbank!$BG10,HLOOKUP(Datenbank!$BG10,Datenbank!$B$10:$Y$24,8),IF(Datenbank!$Y$31>=Datenbank!$BG10,HLOOKUP(Datenbank!$BG10,Datenbank!$B$30:$Y$44,8),IF(Datenbank!$Y$51>=Datenbank!$BG10,HLOOKUP(Datenbank!$BG10,Datenbank!$B$50:$Y$64,8),IF(Datenbank!$Y$71>=Datenbank!$BG10,HLOOKUP(Datenbank!$BG10,Datenbank!$B$70:$Y$84,8),IF(Datenbank!$Y$91>=Datenbank!$BG10,HLOOKUP(Datenbank!$BG10,Datenbank!$B$90:$Y$104,8),IF(Datenbank!$Y$111>=Datenbank!$BG10,HLOOKUP(Datenbank!$BG10,Datenbank!$B$110:$Y$124,8),""))))))) ->  | R18: =IF(Datenbank!$Y$1=0,"",IF(Datenbank!$Y$11>=Datenbank!$BG10,HLOOKUP(Datenbank!$BG10,Datenbank!$B$10:$Y$24,4),IF(Datenbank!$Y$31>=Datenbank!$BG10,HLOOKUP(Datenbank!$BG10,Datenbank!$B$30:$Y$44,4),IF(Datenbank!$Y$51>=Datenbank!$BG10,HLOOKUP(Datenbank!$BG10,Datenbank!$B$50:$Y$64,4),IF(Datenbank!$Y$71>=Datenbank!$BG10,HLOOKUP(Datenbank!$BG10,Datenbank!$B$70:$Y$84,4),IF(Datenbank!$Y$91>=Datenbank!$BG10,HLOOKUP(Datenbank!$BG10,Datenbank!$B$90:$Y$104,4),IF(Datenbank!$Y$111>=Datenbank!$BG10,HLOOKUP(Datenbank!$BG10,Datenbank!$B$110:$Y$124,4),""))))))) ->  | S18: =IF(Datenbank!$Y$1=0,"",IF(Datenbank!$Y$11>=Datenbank!$BG10,HLOOKUP(Datenbank!$BG10,Datenbank!$B$10:$Y$24,14),IF(Datenbank!$Y$31>=Datenbank!$BG10,HLOOKUP(Datenbank!$BG10,Datenbank!$B$30:$Y$44,14),IF(Datenbank!$Y$51>=Datenbank!$BG10,HLOOKUP(Datenbank!$BG10,Datenbank!$B$50:$Y$64,14),IF(Datenbank!$Y$71>=Datenbank!$BG10,HLOOKUP(Datenbank!$BG10,Datenbank!$B$70:$Y$84,14),IF(Datenbank!$Y$91>=Datenbank!$BG10,HLOOKUP(Datenbank!$BG10,Datenbank!$B$90:$Y$104,14),IF(Datenbank!$Y$111>=Datenbank!$BG10,HLOOKUP(Datenbank!$BG10,Datenbank!$B$110:$Y$124,14),""))))))) ->  | T18: =IF(Datenbank!$Y$1=0,"",IF(Datenbank!$Y$11>=Datenbank!$BG10,HLOOKUP(Datenbank!$BG10,Datenbank!$B$10:$Y$24,9),IF(Datenbank!$Y$31>=Datenbank!$BG10,HLOOKUP(Datenbank!$BG10,Datenbank!$B$30:$Y$44,9),IF(Datenbank!$Y$51>=Datenbank!$BG10,HLOOKUP(Datenbank!$BG10,Datenbank!$B$50:$Y$64,9),IF(Datenbank!$Y$71>=Datenbank!$BG10,HLOOKUP(Datenbank!$BG10,Datenbank!$B$70:$Y$84,9),IF(Datenbank!$Y$91>=Datenbank!$BG10,HLOOKUP(Datenbank!$BG10,Datenbank!$B$90:$Y$104,9),IF(Datenbank!$Y$111>=Datenbank!$BG10,HLOOKUP(Datenbank!$BG10,Datenbank!$B$110:$Y$124,9),""))))))) ->  | U18: =IF(Datenbank!$Y$1=0,"",IF(Datenbank!$Y$11>=Datenbank!$BG10,HLOOKUP(Datenbank!$BG10,Datenbank!$B$10:$Y$24,10),IF(Datenbank!$Y$31>=Datenbank!$BG10,HLOOKUP(Datenbank!$BG10,Datenbank!$B$30:$Y$44,10),IF(Datenbank!$Y$51>=Datenbank!$BG10,HLOOKUP(Datenbank!$BG10,Datenbank!$B$50:$Y$64,10),IF(Datenbank!$Y$71>=Datenbank!$BG10,HLOOKUP(Datenbank!$BG10,Datenbank!$B$70:$Y$84,10),IF(Datenbank!$Y$91>=Datenbank!$BG10,HLOOKUP(Datenbank!$BG10,Datenbank!$B$90:$Y$104,10),IF(Datenbank!$Y$111>=Datenbank!$BG10,HLOOKUP(Datenbank!$BG10,Datenbank!$B$110:$Y$124,10),""))))))) ->  | V18: =IF(Datenbank!$Y$1=0,"",IF(Datenbank!$Y$11>=Datenbank!$BG10,HLOOKUP(Datenbank!$BG10,Datenbank!$B$10:$Y$24,11),IF(Datenbank!$Y$31>=Datenbank!$BG10,HLOOKUP(Datenbank!$BG10,Datenbank!$B$30:$Y$44,11),IF(Datenbank!$Y$51>=Datenbank!$BG10,HLOOKUP(Datenbank!$BG10,Datenbank!$B$50:$Y$64,11),IF(Datenbank!$Y$71>=Datenbank!$BG10,HLOOKUP(Datenbank!$BG10,Datenbank!$B$70:$Y$84,11),IF(Datenbank!$Y$91>=Datenbank!$BG10,HLOOKUP(Datenbank!$BG10,Datenbank!$B$90:$Y$104,11),IF(Datenbank!$Y$111>=Datenbank!$BG10,HLOOKUP(Datenbank!$BG10,Datenbank!$B$110:$Y$124,11),""))))))) ->  | W18: =IF(Datenbank!$Y$1=0,"",IF(Datenbank!$Y$11>=Datenbank!$BG10,HLOOKUP(Datenbank!$BG10,Datenbank!$B$10:$Y$24,12),IF(Datenbank!$Y$31>=Datenbank!$BG10,HLOOKUP(Datenbank!$BG10,Datenbank!$B$30:$Y$44,12),IF(Datenbank!$Y$51>=Datenbank!$BG10,HLOOKUP(Datenbank!$BG10,Datenbank!$B$50:$Y$64,12),IF(Datenbank!$Y$71>=Datenbank!$BG10,HLOOKUP(Datenbank!$BG10,Datenbank!$B$70:$Y$84,12),IF(Datenbank!$Y$91>=Datenbank!$BG10,HLOOKUP(Datenbank!$BG10,Datenbank!$B$90:$Y$104,12),IF(Datenbank!$Y$111>=Datenbank!$BG10,HLOOKUP(Datenbank!$BG10,Datenbank!$B$110:$Y$124,12),""))))))) -> 
A19: Option Oberfläche angefast 45° | B19: Nein | H19: =IF(Datenbank!$Y$1=0,"",IF(Datenbank!$Y$11>=Datenbank!$BG11,HLOOKUP(Datenbank!$BG11,Datenbank!$B$10:$Y$24,6),IF(Datenbank!$Y$31>=Datenbank!$BG11,HLOOKUP(Datenbank!$BG11,Datenbank!$B$30:$Y$44,6),IF(Datenbank!$Y$51>=Datenbank!$BG11,HLOOKUP(Datenbank!$BG11,Datenbank!$B$50:$Y$64,6),IF(Datenbank!$Y$71>=Datenbank!$BG11,HLOOKUP(Datenbank!$BG11,Datenbank!$B$70:$Y$84,6),IF(Datenbank!$Y$91>=Datenbank!$BG11,HLOOKUP(Datenbank!$BG11,Datenbank!$B$90:$Y$104,6),IF(Datenbank!$Y$111>=Datenbank!$BG11,HLOOKUP(Datenbank!$BG11,Datenbank!$B$110:$Y$124,6),""))))))) ->  | I19: =IF($H19="","",VLOOKUP($H19,'AFM-Artikel'!$A$2:$D$1763,2)) ->  | O19: =IF(Datenbank!$Y$1=0,"",IF(Datenbank!$Y$11>=Datenbank!$BG11,HLOOKUP(Datenbank!$BG11,Datenbank!$B$10:$Y$24,15),IF(Datenbank!$Y$31>=Datenbank!$BG11,HLOOKUP(Datenbank!$BG11,Datenbank!$B$30:$Y$44,15),IF(Datenbank!$Y$51>=Datenbank!$BG11,HLOOKUP(Datenbank!$BG11,Datenbank!$B$50:$Y$64,15),IF(Datenbank!$Y$71>=Datenbank!$BG11,HLOOKUP(Datenbank!$BG11,Datenbank!$B$70:$Y$84,15),IF(Datenbank!$Y$91>=Datenbank!$BG11,HLOOKUP(Datenbank!$BG11,Datenbank!$B$90:$Y$104,15),IF(Datenbank!$Y$111>=Datenbank!$BG11,HLOOKUP(Datenbank!$BG11,Datenbank!$B$110:$Y$124,15),""))))))) ->  | P19: =IF(Datenbank!$Y$1=0,"",IF(Datenbank!$Y$11>=Datenbank!$BG11,HLOOKUP(Datenbank!$BG11,Datenbank!$B$10:$Y$24,8),IF(Datenbank!$Y$31>=Datenbank!$BG11,HLOOKUP(Datenbank!$BG11,Datenbank!$B$30:$Y$44,8),IF(Datenbank!$Y$51>=Datenbank!$BG11,HLOOKUP(Datenbank!$BG11,Datenbank!$B$50:$Y$64,8),IF(Datenbank!$Y$71>=Datenbank!$BG11,HLOOKUP(Datenbank!$BG11,Datenbank!$B$70:$Y$84,8),IF(Datenbank!$Y$91>=Datenbank!$BG11,HLOOKUP(Datenbank!$BG11,Datenbank!$B$90:$Y$104,8),IF(Datenbank!$Y$111>=Datenbank!$BG11,HLOOKUP(Datenbank!$BG11,Datenbank!$B$110:$Y$124,8),""))))))) ->  | R19: =IF(Datenbank!$Y$1=0,"",IF(Datenbank!$Y$11>=Datenbank!$BG11,HLOOKUP(Datenbank!$BG11,Datenbank!$B$10:$Y$24,4),IF(Datenbank!$Y$31>=Datenbank!$BG11,HLOOKUP(Datenbank!$BG11,Datenbank!$B$30:$Y$44,4),IF(Datenbank!$Y$51>=Datenbank!$BG11,HLOOKUP(Datenbank!$BG11,Datenbank!$B$50:$Y$64,4),IF(Datenbank!$Y$71>=Datenbank!$BG11,HLOOKUP(Datenbank!$BG11,Datenbank!$B$70:$Y$84,4),IF(Datenbank!$Y$91>=Datenbank!$BG11,HLOOKUP(Datenbank!$BG11,Datenbank!$B$90:$Y$104,4),IF(Datenbank!$Y$111>=Datenbank!$BG11,HLOOKUP(Datenbank!$BG11,Datenbank!$B$110:$Y$124,4),""))))))) ->  | S19: =IF(Datenbank!$Y$1=0,"",IF(Datenbank!$Y$11>=Datenbank!$BG11,HLOOKUP(Datenbank!$BG11,Datenbank!$B$10:$Y$24,14),IF(Datenbank!$Y$31>=Datenbank!$BG11,HLOOKUP(Datenbank!$BG11,Datenbank!$B$30:$Y$44,14),IF(Datenbank!$Y$51>=Datenbank!$BG11,HLOOKUP(Datenbank!$BG11,Datenbank!$B$50:$Y$64,14),IF(Datenbank!$Y$71>=Datenbank!$BG11,HLOOKUP(Datenbank!$BG11,Datenbank!$B$70:$Y$84,14),IF(Datenbank!$Y$91>=Datenbank!$BG11,HLOOKUP(Datenbank!$BG11,Datenbank!$B$90:$Y$104,14),IF(Datenbank!$Y$111>=Datenbank!$BG11,HLOOKUP(Datenbank!$BG11,Datenbank!$B$110:$Y$124,14),""))))))) ->  | T19: =IF(Datenbank!$Y$1=0,"",IF(Datenbank!$Y$11>=Datenbank!$BG11,HLOOKUP(Datenbank!$BG11,Datenbank!$B$10:$Y$24,9),IF(Datenbank!$Y$31>=Datenbank!$BG11,HLOOKUP(Datenbank!$BG11,Datenbank!$B$30:$Y$44,9),IF(Datenbank!$Y$51>=Datenbank!$BG11,HLOOKUP(Datenbank!$BG11,Datenbank!$B$50:$Y$64,9),IF(Datenbank!$Y$71>=Datenbank!$BG11,HLOOKUP(Datenbank!$BG11,Datenbank!$B$70:$Y$84,9),IF(Datenbank!$Y$91>=Datenbank!$BG11,HLOOKUP(Datenbank!$BG11,Datenbank!$B$90:$Y$104,9),IF(Datenbank!$Y$111>=Datenbank!$BG11,HLOOKUP(Datenbank!$BG11,Datenbank!$B$110:$Y$124,9),""))))))) ->  | U19: =IF(Datenbank!$Y$1=0,"",IF(Datenbank!$Y$11>=Datenbank!$BG11,HLOOKUP(Datenbank!$BG11,Datenbank!$B$10:$Y$24,10),IF(Datenbank!$Y$31>=Datenbank!$BG11,HLOOKUP(Datenbank!$BG11,Datenbank!$B$30:$Y$44,10),IF(Datenbank!$Y$51>=Datenbank!$BG11,HLOOKUP(Datenbank!$BG11,Datenbank!$B$50:$Y$64,10),IF(Datenbank!$Y$71>=Datenbank!$BG11,HLOOKUP(Datenbank!$BG11,Datenbank!$B$70:$Y$84,10),IF(Datenbank!$Y$91>=Datenbank!$BG11,HLOOKUP(Datenbank!$BG11,Datenbank!$B$90:$Y$104,10),IF(Datenbank!$Y$111>=Datenbank!$BG11,HLOOKUP(Datenbank!$BG11,Datenbank!$B$110:$Y$124,10),""))))))) ->  | V19: =IF(Datenbank!$Y$1=0,"",IF(Datenbank!$Y$11>=Datenbank!$BG11,HLOOKUP(Datenbank!$BG11,Datenbank!$B$10:$Y$24,11),IF(Datenbank!$Y$31>=Datenbank!$BG11,HLOOKUP(Datenbank!$BG11,Datenbank!$B$30:$Y$44,11),IF(Datenbank!$Y$51>=Datenbank!$BG11,HLOOKUP(Datenbank!$BG11,Datenbank!$B$50:$Y$64,11),IF(Datenbank!$Y$71>=Datenbank!$BG11,HLOOKUP(Datenbank!$BG11,Datenbank!$B$70:$Y$84,11),IF(Datenbank!$Y$91>=Datenbank!$BG11,HLOOKUP(Datenbank!$BG11,Datenbank!$B$90:$Y$104,11),IF(Datenbank!$Y$111>=Datenbank!$BG11,HLOOKUP(Datenbank!$BG11,Datenbank!$B$110:$Y$124,11),""))))))) ->  | W19: =IF(Datenbank!$Y$1=0,"",IF(Datenbank!$Y$11>=Datenbank!$BG11,HLOOKUP(Datenbank!$BG11,Datenbank!$B$10:$Y$24,12),IF(Datenbank!$Y$31>=Datenbank!$BG11,HLOOKUP(Datenbank!$BG11,Datenbank!$B$30:$Y$44,12),IF(Datenbank!$Y$51>=Datenbank!$BG11,HLOOKUP(Datenbank!$BG11,Datenbank!$B$50:$Y$64,12),IF(Datenbank!$Y$71>=Datenbank!$BG11,HLOOKUP(Datenbank!$BG11,Datenbank!$B$70:$Y$84,12),IF(Datenbank!$Y$91>=Datenbank!$BG11,HLOOKUP(Datenbank!$BG11,Datenbank!$B$90:$Y$104,12),IF(Datenbank!$Y$111>=Datenbank!$BG11,HLOOKUP(Datenbank!$BG11,Datenbank!$B$110:$Y$124,12),""))))))) -> 
A20: Option Oberfläche Edelstahl 90° | B20: Nein | H20: =IF(Datenbank!$Y$1=0,"",IF(Datenbank!$Y$11>=Datenbank!$BG12,HLOOKUP(Datenbank!$BG12,Datenbank!$B$10:$Y$24,6),IF(Datenbank!$Y$31>=Datenbank!$BG12,HLOOKUP(Datenbank!$BG12,Datenbank!$B$30:$Y$44,6),IF(Datenbank!$Y$51>=Datenbank!$BG12,HLOOKUP(Datenbank!$BG12,Datenbank!$B$50:$Y$64,6),IF(Datenbank!$Y$71>=Datenbank!$BG12,HLOOKUP(Datenbank!$BG12,Datenbank!$B$70:$Y$84,6),IF(Datenbank!$Y$91>=Datenbank!$BG12,HLOOKUP(Datenbank!$BG12,Datenbank!$B$90:$Y$104,6),IF(Datenbank!$Y$111>=Datenbank!$BG12,HLOOKUP(Datenbank!$BG12,Datenbank!$B$110:$Y$124,6),""))))))) ->  | I20: =IF($H20="","",VLOOKUP($H20,'AFM-Artikel'!$A$2:$D$1763,2)) ->  | O20: =IF(Datenbank!$Y$1=0,"",IF(Datenbank!$Y$11>=Datenbank!$BG12,HLOOKUP(Datenbank!$BG12,Datenbank!$B$10:$Y$24,15),IF(Datenbank!$Y$31>=Datenbank!$BG12,HLOOKUP(Datenbank!$BG12,Datenbank!$B$30:$Y$44,15),IF(Datenbank!$Y$51>=Datenbank!$BG12,HLOOKUP(Datenbank!$BG12,Datenbank!$B$50:$Y$64,15),IF(Datenbank!$Y$71>=Datenbank!$BG12,HLOOKUP(Datenbank!$BG12,Datenbank!$B$70:$Y$84,15),IF(Datenbank!$Y$91>=Datenbank!$BG12,HLOOKUP(Datenbank!$BG12,Datenbank!$B$90:$Y$104,15),IF(Datenbank!$Y$111>=Datenbank!$BG12,HLOOKUP(Datenbank!$BG12,Datenbank!$B$110:$Y$124,15),""))))))) ->  | P20: =IF(Datenbank!$Y$1=0,"",IF(Datenbank!$Y$11>=Datenbank!$BG12,HLOOKUP(Datenbank!$BG12,Datenbank!$B$10:$Y$24,8),IF(Datenbank!$Y$31>=Datenbank!$BG12,HLOOKUP(Datenbank!$BG12,Datenbank!$B$30:$Y$44,8),IF(Datenbank!$Y$51>=Datenbank!$BG12,HLOOKUP(Datenbank!$BG12,Datenbank!$B$50:$Y$64,8),IF(Datenbank!$Y$71>=Datenbank!$BG12,HLOOKUP(Datenbank!$BG12,Datenbank!$B$70:$Y$84,8),IF(Datenbank!$Y$91>=Datenbank!$BG12,HLOOKUP(Datenbank!$BG12,Datenbank!$B$90:$Y$104,8),IF(Datenbank!$Y$111>=Datenbank!$BG12,HLOOKUP(Datenbank!$BG12,Datenbank!$B$110:$Y$124,8),""))))))) ->  | R20: =IF(Datenbank!$Y$1=0,"",IF(Datenbank!$Y$11>=Datenbank!$BG12,HLOOKUP(Datenbank!$BG12,Datenbank!$B$10:$Y$24,4),IF(Datenbank!$Y$31>=Datenbank!$BG12,HLOOKUP(Datenbank!$BG12,Datenbank!$B$30:$Y$44,4),IF(Datenbank!$Y$51>=Datenbank!$BG12,HLOOKUP(Datenbank!$BG12,Datenbank!$B$50:$Y$64,4),IF(Datenbank!$Y$71>=Datenbank!$BG12,HLOOKUP(Datenbank!$BG12,Datenbank!$B$70:$Y$84,4),IF(Datenbank!$Y$91>=Datenbank!$BG12,HLOOKUP(Datenbank!$BG12,Datenbank!$B$90:$Y$104,4),IF(Datenbank!$Y$111>=Datenbank!$BG12,HLOOKUP(Datenbank!$BG12,Datenbank!$B$110:$Y$124,4),""))))))) ->  | S20: =IF(Datenbank!$Y$1=0,"",IF(Datenbank!$Y$11>=Datenbank!$BG12,HLOOKUP(Datenbank!$BG12,Datenbank!$B$10:$Y$24,14),IF(Datenbank!$Y$31>=Datenbank!$BG12,HLOOKUP(Datenbank!$BG12,Datenbank!$B$30:$Y$44,14),IF(Datenbank!$Y$51>=Datenbank!$BG12,HLOOKUP(Datenbank!$BG12,Datenbank!$B$50:$Y$64,14),IF(Datenbank!$Y$71>=Datenbank!$BG12,HLOOKUP(Datenbank!$BG12,Datenbank!$B$70:$Y$84,14),IF(Datenbank!$Y$91>=Datenbank!$BG12,HLOOKUP(Datenbank!$BG12,Datenbank!$B$90:$Y$104,14),IF(Datenbank!$Y$111>=Datenbank!$BG12,HLOOKUP(Datenbank!$BG12,Datenbank!$B$110:$Y$124,14),""))))))) ->  | T20: =IF(Datenbank!$Y$1=0,"",IF(Datenbank!$Y$11>=Datenbank!$BG12,HLOOKUP(Datenbank!$BG12,Datenbank!$B$10:$Y$24,9),IF(Datenbank!$Y$31>=Datenbank!$BG12,HLOOKUP(Datenbank!$BG12,Datenbank!$B$30:$Y$44,9),IF(Datenbank!$Y$51>=Datenbank!$BG12,HLOOKUP(Datenbank!$BG12,Datenbank!$B$50:$Y$64,9),IF(Datenbank!$Y$71>=Datenbank!$BG12,HLOOKUP(Datenbank!$BG12,Datenbank!$B$70:$Y$84,9),IF(Datenbank!$Y$91>=Datenbank!$BG12,HLOOKUP(Datenbank!$BG12,Datenbank!$B$90:$Y$104,9),IF(Datenbank!$Y$111>=Datenbank!$BG12,HLOOKUP(Datenbank!$BG12,Datenbank!$B$110:$Y$124,9),""))))))) ->  | U20: =IF(Datenbank!$Y$1=0,"",IF(Datenbank!$Y$11>=Datenbank!$BG12,HLOOKUP(Datenbank!$BG12,Datenbank!$B$10:$Y$24,10),IF(Datenbank!$Y$31>=Datenbank!$BG12,HLOOKUP(Datenbank!$BG12,Datenbank!$B$30:$Y$44,10),IF(Datenbank!$Y$51>=Datenbank!$BG12,HLOOKUP(Datenbank!$BG12,Datenbank!$B$50:$Y$64,10),IF(Datenbank!$Y$71>=Datenbank!$BG12,HLOOKUP(Datenbank!$BG12,Datenbank!$B$70:$Y$84,10),IF(Datenbank!$Y$91>=Datenbank!$BG12,HLOOKUP(Datenbank!$BG12,Datenbank!$B$90:$Y$104,10),IF(Datenbank!$Y$111>=Datenbank!$BG12,HLOOKUP(Datenbank!$BG12,Datenbank!$B$110:$Y$124,10),""))))))) ->  | V20: =IF(Datenbank!$Y$1=0,"",IF(Datenbank!$Y$11>=Datenbank!$BG12,HLOOKUP(Datenbank!$BG12,Datenbank!$B$10:$Y$24,11),IF(Datenbank!$Y$31>=Datenbank!$BG12,HLOOKUP(Datenbank!$BG12,Datenbank!$B$30:$Y$44,11),IF(Datenbank!$Y$51>=Datenbank!$BG12,HLOOKUP(Datenbank!$BG12,Datenbank!$B$50:$Y$64,11),IF(Datenbank!$Y$71>=Datenbank!$BG12,HLOOKUP(Datenbank!$BG12,Datenbank!$B$70:$Y$84,11),IF(Datenbank!$Y$91>=Datenbank!$BG12,HLOOKUP(Datenbank!$BG12,Datenbank!$B$90:$Y$104,11),IF(Datenbank!$Y$111>=Datenbank!$BG12,HLOOKUP(Datenbank!$BG12,Datenbank!$B$110:$Y$124,11),""))))))) ->  | W20: =IF(Datenbank!$Y$1=0,"",IF(Datenbank!$Y$11>=Datenbank!$BG12,HLOOKUP(Datenbank!$BG12,Datenbank!$B$10:$Y$24,12),IF(Datenbank!$Y$31>=Datenbank!$BG12,HLOOKUP(Datenbank!$BG12,Datenbank!$B$30:$Y$44,12),IF(Datenbank!$Y$51>=Datenbank!$BG12,HLOOKUP(Datenbank!$BG12,Datenbank!$B$50:$Y$64,12),IF(Datenbank!$Y$71>=Datenbank!$BG12,HLOOKUP(Datenbank!$BG12,Datenbank!$B$70:$Y$84,12),IF(Datenbank!$Y$91>=Datenbank!$BG12,HLOOKUP(Datenbank!$BG12,Datenbank!$B$90:$Y$104,12),IF(Datenbank!$Y$111>=Datenbank!$BG12,HLOOKUP(Datenbank!$BG12,Datenbank!$B$110:$Y$124,12),""))))))) -> 
A21: Option LAN-Switch | B21: Nein | H21: =IF(Datenbank!$Y$1=0,"",IF(Datenbank!$Y$11>=Datenbank!$BG13,HLOOKUP(Datenbank!$BG13,Datenbank!$B$10:$Y$24,6),IF(Datenbank!$Y$31>=Datenbank!$BG13,HLOOKUP(Datenbank!$BG13,Datenbank!$B$30:$Y$44,6),IF(Datenbank!$Y$51>=Datenbank!$BG13,HLOOKUP(Datenbank!$BG13,Datenbank!$B$50:$Y$64,6),IF(Datenbank!$Y$71>=Datenbank!$BG13,HLOOKUP(Datenbank!$BG13,Datenbank!$B$70:$Y$84,6),IF(Datenbank!$Y$91>=Datenbank!$BG13,HLOOKUP(Datenbank!$BG13,Datenbank!$B$90:$Y$104,6),IF(Datenbank!$Y$111>=Datenbank!$BG13,HLOOKUP(Datenbank!$BG13,Datenbank!$B$110:$Y$124,6),""))))))) ->  | I21: =IF($H21="","",VLOOKUP($H21,'AFM-Artikel'!$A$2:$D$1763,2)) ->  | O21: =IF(Datenbank!$Y$1=0,"",IF(Datenbank!$Y$11>=Datenbank!$BG13,HLOOKUP(Datenbank!$BG13,Datenbank!$B$10:$Y$24,15),IF(Datenbank!$Y$31>=Datenbank!$BG13,HLOOKUP(Datenbank!$BG13,Datenbank!$B$30:$Y$44,15),IF(Datenbank!$Y$51>=Datenbank!$BG13,HLOOKUP(Datenbank!$BG13,Datenbank!$B$50:$Y$64,15),IF(Datenbank!$Y$71>=Datenbank!$BG13,HLOOKUP(Datenbank!$BG13,Datenbank!$B$70:$Y$84,15),IF(Datenbank!$Y$91>=Datenbank!$BG13,HLOOKUP(Datenbank!$BG13,Datenbank!$B$90:$Y$104,15),IF(Datenbank!$Y$111>=Datenbank!$BG13,HLOOKUP(Datenbank!$BG13,Datenbank!$B$110:$Y$124,15),""))))))) ->  | P21: =IF(Datenbank!$Y$1=0,"",IF(Datenbank!$Y$11>=Datenbank!$BG13,HLOOKUP(Datenbank!$BG13,Datenbank!$B$10:$Y$24,8),IF(Datenbank!$Y$31>=Datenbank!$BG13,HLOOKUP(Datenbank!$BG13,Datenbank!$B$30:$Y$44,8),IF(Datenbank!$Y$51>=Datenbank!$BG13,HLOOKUP(Datenbank!$BG13,Datenbank!$B$50:$Y$64,8),IF(Datenbank!$Y$71>=Datenbank!$BG13,HLOOKUP(Datenbank!$BG13,Datenbank!$B$70:$Y$84,8),IF(Datenbank!$Y$91>=Datenbank!$BG13,HLOOKUP(Datenbank!$BG13,Datenbank!$B$90:$Y$104,8),IF(Datenbank!$Y$111>=Datenbank!$BG13,HLOOKUP(Datenbank!$BG13,Datenbank!$B$110:$Y$124,8),""))))))) ->  | R21: =IF(Datenbank!$Y$1=0,"",IF(Datenbank!$Y$11>=Datenbank!$BG13,HLOOKUP(Datenbank!$BG13,Datenbank!$B$10:$Y$24,4),IF(Datenbank!$Y$31>=Datenbank!$BG13,HLOOKUP(Datenbank!$BG13,Datenbank!$B$30:$Y$44,4),IF(Datenbank!$Y$51>=Datenbank!$BG13,HLOOKUP(Datenbank!$BG13,Datenbank!$B$50:$Y$64,4),IF(Datenbank!$Y$71>=Datenbank!$BG13,HLOOKUP(Datenbank!$BG13,Datenbank!$B$70:$Y$84,4),IF(Datenbank!$Y$91>=Datenbank!$BG13,HLOOKUP(Datenbank!$BG13,Datenbank!$B$90:$Y$104,4),IF(Datenbank!$Y$111>=Datenbank!$BG13,HLOOKUP(Datenbank!$BG13,Datenbank!$B$110:$Y$124,4),""))))))) ->  | S21: =IF(Datenbank!$Y$1=0,"",IF(Datenbank!$Y$11>=Datenbank!$BG13,HLOOKUP(Datenbank!$BG13,Datenbank!$B$10:$Y$24,14),IF(Datenbank!$Y$31>=Datenbank!$BG13,HLOOKUP(Datenbank!$BG13,Datenbank!$B$30:$Y$44,14),IF(Datenbank!$Y$51>=Datenbank!$BG13,HLOOKUP(Datenbank!$BG13,Datenbank!$B$50:$Y$64,14),IF(Datenbank!$Y$71>=Datenbank!$BG13,HLOOKUP(Datenbank!$BG13,Datenbank!$B$70:$Y$84,14),IF(Datenbank!$Y$91>=Datenbank!$BG13,HLOOKUP(Datenbank!$BG13,Datenbank!$B$90:$Y$104,14),IF(Datenbank!$Y$111>=Datenbank!$BG13,HLOOKUP(Datenbank!$BG13,Datenbank!$B$110:$Y$124,14),""))))))) ->  | T21: =IF(Datenbank!$Y$1=0,"",IF(Datenbank!$Y$11>=Datenbank!$BG13,HLOOKUP(Datenbank!$BG13,Datenbank!$B$10:$Y$24,9),IF(Datenbank!$Y$31>=Datenbank!$BG13,HLOOKUP(Datenbank!$BG13,Datenbank!$B$30:$Y$44,9),IF(Datenbank!$Y$51>=Datenbank!$BG13,HLOOKUP(Datenbank!$BG13,Datenbank!$B$50:$Y$64,9),IF(Datenbank!$Y$71>=Datenbank!$BG13,HLOOKUP(Datenbank!$BG13,Datenbank!$B$70:$Y$84,9),IF(Datenbank!$Y$91>=Datenbank!$BG13,HLOOKUP(Datenbank!$BG13,Datenbank!$B$90:$Y$104,9),IF(Datenbank!$Y$111>=Datenbank!$BG13,HLOOKUP(Datenbank!$BG13,Datenbank!$B$110:$Y$124,9),""))))))) ->  | U21: =IF(Datenbank!$Y$1=0,"",IF(Datenbank!$Y$11>=Datenbank!$BG13,HLOOKUP(Datenbank!$BG13,Datenbank!$B$10:$Y$24,10),IF(Datenbank!$Y$31>=Datenbank!$BG13,HLOOKUP(Datenbank!$BG13,Datenbank!$B$30:$Y$44,10),IF(Datenbank!$Y$51>=Datenbank!$BG13,HLOOKUP(Datenbank!$BG13,Datenbank!$B$50:$Y$64,10),IF(Datenbank!$Y$71>=Datenbank!$BG13,HLOOKUP(Datenbank!$BG13,Datenbank!$B$70:$Y$84,10),IF(Datenbank!$Y$91>=Datenbank!$BG13,HLOOKUP(Datenbank!$BG13,Datenbank!$B$90:$Y$104,10),IF(Datenbank!$Y$111>=Datenbank!$BG13,HLOOKUP(Datenbank!$BG13,Datenbank!$B$110:$Y$124,10),""))))))) ->  | V21: =IF(Datenbank!$Y$1=0,"",IF(Datenbank!$Y$11>=Datenbank!$BG13,HLOOKUP(Datenbank!$BG13,Datenbank!$B$10:$Y$24,11),IF(Datenbank!$Y$31>=Datenbank!$BG13,HLOOKUP(Datenbank!$BG13,Datenbank!$B$30:$Y$44,11),IF(Datenbank!$Y$51>=Datenbank!$BG13,HLOOKUP(Datenbank!$BG13,Datenbank!$B$50:$Y$64,11),IF(Datenbank!$Y$71>=Datenbank!$BG13,HLOOKUP(Datenbank!$BG13,Datenbank!$B$70:$Y$84,11),IF(Datenbank!$Y$91>=Datenbank!$BG13,HLOOKUP(Datenbank!$BG13,Datenbank!$B$90:$Y$104,11),IF(Datenbank!$Y$111>=Datenbank!$BG13,HLOOKUP(Datenbank!$BG13,Datenbank!$B$110:$Y$124,11),""))))))) ->  | W21: =IF(Datenbank!$Y$1=0,"",IF(Datenbank!$Y$11>=Datenbank!$BG13,HLOOKUP(Datenbank!$BG13,Datenbank!$B$10:$Y$24,12),IF(Datenbank!$Y$31>=Datenbank!$BG13,HLOOKUP(Datenbank!$BG13,Datenbank!$B$30:$Y$44,12),IF(Datenbank!$Y$51>=Datenbank!$BG13,HLOOKUP(Datenbank!$BG13,Datenbank!$B$50:$Y$64,12),IF(Datenbank!$Y$71>=Datenbank!$BG13,HLOOKUP(Datenbank!$BG13,Datenbank!$B$70:$Y$84,12),IF(Datenbank!$Y$91>=Datenbank!$BG13,HLOOKUP(Datenbank!$BG13,Datenbank!$B$90:$Y$104,12),IF(Datenbank!$Y$111>=Datenbank!$BG13,HLOOKUP(Datenbank!$BG13,Datenbank!$B$110:$Y$124,12),""))))))) -> 
A22: Option Kabelausgang | B22: unten | H22: =IF(Datenbank!$Y$1=0,"",IF(Datenbank!$Y$11>=Datenbank!$BG14,HLOOKUP(Datenbank!$BG14,Datenbank!$B$10:$Y$24,6),IF(Datenbank!$Y$31>=Datenbank!$BG14,HLOOKUP(Datenbank!$BG14,Datenbank!$B$30:$Y$44,6),IF(Datenbank!$Y$51>=Datenbank!$BG14,HLOOKUP(Datenbank!$BG14,Datenbank!$B$50:$Y$64,6),IF(Datenbank!$Y$71>=Datenbank!$BG14,HLOOKUP(Datenbank!$BG14,Datenbank!$B$70:$Y$84,6),IF(Datenbank!$Y$91>=Datenbank!$BG14,HLOOKUP(Datenbank!$BG14,Datenbank!$B$90:$Y$104,6),IF(Datenbank!$Y$111>=Datenbank!$BG14,HLOOKUP(Datenbank!$BG14,Datenbank!$B$110:$Y$124,6),""))))))) ->  | I22: =IF($H22="","",VLOOKUP($H22,'AFM-Artikel'!$A$2:$D$1763,2)) ->  | O22: =IF(Datenbank!$Y$1=0,"",IF(Datenbank!$Y$11>=Datenbank!$BG14,HLOOKUP(Datenbank!$BG14,Datenbank!$B$10:$Y$24,15),IF(Datenbank!$Y$31>=Datenbank!$BG14,HLOOKUP(Datenbank!$BG14,Datenbank!$B$30:$Y$44,15),IF(Datenbank!$Y$51>=Datenbank!$BG14,HLOOKUP(Datenbank!$BG14,Datenbank!$B$50:$Y$64,15),IF(Datenbank!$Y$71>=Datenbank!$BG14,HLOOKUP(Datenbank!$BG14,Datenbank!$B$70:$Y$84,15),IF(Datenbank!$Y$91>=Datenbank!$BG14,HLOOKUP(Datenbank!$BG14,Datenbank!$B$90:$Y$104,15),IF(Datenbank!$Y$111>=Datenbank!$BG14,HLOOKUP(Datenbank!$BG14,Datenbank!$B$110:$Y$124,15),""))))))) ->  | P22: =IF(Datenbank!$Y$1=0,"",IF(Datenbank!$Y$11>=Datenbank!$BG14,HLOOKUP(Datenbank!$BG14,Datenbank!$B$10:$Y$24,8),IF(Datenbank!$Y$31>=Datenbank!$BG14,HLOOKUP(Datenbank!$BG14,Datenbank!$B$30:$Y$44,8),IF(Datenbank!$Y$51>=Datenbank!$BG14,HLOOKUP(Datenbank!$BG14,Datenbank!$B$50:$Y$64,8),IF(Datenbank!$Y$71>=Datenbank!$BG14,HLOOKUP(Datenbank!$BG14,Datenbank!$B$70:$Y$84,8),IF(Datenbank!$Y$91>=Datenbank!$BG14,HLOOKUP(Datenbank!$BG14,Datenbank!$B$90:$Y$104,8),IF(Datenbank!$Y$111>=Datenbank!$BG14,HLOOKUP(Datenbank!$BG14,Datenbank!$B$110:$Y$124,8),""))))))) ->  | R22: =IF(Datenbank!$Y$1=0,"",IF(Datenbank!$Y$11>=Datenbank!$BG14,HLOOKUP(Datenbank!$BG14,Datenbank!$B$10:$Y$24,4),IF(Datenbank!$Y$31>=Datenbank!$BG14,HLOOKUP(Datenbank!$BG14,Datenbank!$B$30:$Y$44,4),IF(Datenbank!$Y$51>=Datenbank!$BG14,HLOOKUP(Datenbank!$BG14,Datenbank!$B$50:$Y$64,4),IF(Datenbank!$Y$71>=Datenbank!$BG14,HLOOKUP(Datenbank!$BG14,Datenbank!$B$70:$Y$84,4),IF(Datenbank!$Y$91>=Datenbank!$BG14,HLOOKUP(Datenbank!$BG14,Datenbank!$B$90:$Y$104,4),IF(Datenbank!$Y$111>=Datenbank!$BG14,HLOOKUP(Datenbank!$BG14,Datenbank!$B$110:$Y$124,4),""))))))) ->  | S22: =IF(Datenbank!$Y$1=0,"",IF(Datenbank!$Y$11>=Datenbank!$BG14,HLOOKUP(Datenbank!$BG14,Datenbank!$B$10:$Y$24,14),IF(Datenbank!$Y$31>=Datenbank!$BG14,HLOOKUP(Datenbank!$BG14,Datenbank!$B$30:$Y$44,14),IF(Datenbank!$Y$51>=Datenbank!$BG14,HLOOKUP(Datenbank!$BG14,Datenbank!$B$50:$Y$64,14),IF(Datenbank!$Y$71>=Datenbank!$BG14,HLOOKUP(Datenbank!$BG14,Datenbank!$B$70:$Y$84,14),IF(Datenbank!$Y$91>=Datenbank!$BG14,HLOOKUP(Datenbank!$BG14,Datenbank!$B$90:$Y$104,14),IF(Datenbank!$Y$111>=Datenbank!$BG14,HLOOKUP(Datenbank!$BG14,Datenbank!$B$110:$Y$124,14),""))))))) ->  | T22: =IF(Datenbank!$Y$1=0,"",IF(Datenbank!$Y$11>=Datenbank!$BG14,HLOOKUP(Datenbank!$BG14,Datenbank!$B$10:$Y$24,9),IF(Datenbank!$Y$31>=Datenbank!$BG14,HLOOKUP(Datenbank!$BG14,Datenbank!$B$30:$Y$44,9),IF(Datenbank!$Y$51>=Datenbank!$BG14,HLOOKUP(Datenbank!$BG14,Datenbank!$B$50:$Y$64,9),IF(Datenbank!$Y$71>=Datenbank!$BG14,HLOOKUP(Datenbank!$BG14,Datenbank!$B$70:$Y$84,9),IF(Datenbank!$Y$91>=Datenbank!$BG14,HLOOKUP(Datenbank!$BG14,Datenbank!$B$90:$Y$104,9),IF(Datenbank!$Y$111>=Datenbank!$BG14,HLOOKUP(Datenbank!$BG14,Datenbank!$B$110:$Y$124,9),""))))))) ->  | U22: =IF(Datenbank!$Y$1=0,"",IF(Datenbank!$Y$11>=Datenbank!$BG14,HLOOKUP(Datenbank!$BG14,Datenbank!$B$10:$Y$24,10),IF(Datenbank!$Y$31>=Datenbank!$BG14,HLOOKUP(Datenbank!$BG14,Datenbank!$B$30:$Y$44,10),IF(Datenbank!$Y$51>=Datenbank!$BG14,HLOOKUP(Datenbank!$BG14,Datenbank!$B$50:$Y$64,10),IF(Datenbank!$Y$71>=Datenbank!$BG14,HLOOKUP(Datenbank!$BG14,Datenbank!$B$70:$Y$84,10),IF(Datenbank!$Y$91>=Datenbank!$BG14,HLOOKUP(Datenbank!$BG14,Datenbank!$B$90:$Y$104,10),IF(Datenbank!$Y$111>=Datenbank!$BG14,HLOOKUP(Datenbank!$BG14,Datenbank!$B$110:$Y$124,10),""))))))) ->  | V22: =IF(Datenbank!$Y$1=0,"",IF(Datenbank!$Y$11>=Datenbank!$BG14,HLOOKUP(Datenbank!$BG14,Datenbank!$B$10:$Y$24,11),IF(Datenbank!$Y$31>=Datenbank!$BG14,HLOOKUP(Datenbank!$BG14,Datenbank!$B$30:$Y$44,11),IF(Datenbank!$Y$51>=Datenbank!$BG14,HLOOKUP(Datenbank!$BG14,Datenbank!$B$50:$Y$64,11),IF(Datenbank!$Y$71>=Datenbank!$BG14,HLOOKUP(Datenbank!$BG14,Datenbank!$B$70:$Y$84,11),IF(Datenbank!$Y$91>=Datenbank!$BG14,HLOOKUP(Datenbank!$BG14,Datenbank!$B$90:$Y$104,11),IF(Datenbank!$Y$111>=Datenbank!$BG14,HLOOKUP(Datenbank!$BG14,Datenbank!$B$110:$Y$124,11),""))))))) ->  | W22: =IF(Datenbank!$Y$1=0,"",IF(Datenbank!$Y$11>=Datenbank!$BG14,HLOOKUP(Datenbank!$BG14,Datenbank!$B$10:$Y$24,12),IF(Datenbank!$Y$31>=Datenbank!$BG14,HLOOKUP(Datenbank!$BG14,Datenbank!$B$30:$Y$44,12),IF(Datenbank!$Y$51>=Datenbank!$BG14,HLOOKUP(Datenbank!$BG14,Datenbank!$B$50:$Y$64,12),IF(Datenbank!$Y$71>=Datenbank!$BG14,HLOOKUP(Datenbank!$BG14,Datenbank!$B$70:$Y$84,12),IF(Datenbank!$Y$91>=Datenbank!$BG14,HLOOKUP(Datenbank!$BG14,Datenbank!$B$90:$Y$104,12),IF(Datenbank!$Y$111>=Datenbank!$BG14,HLOOKUP(Datenbank!$BG14,Datenbank!$B$110:$Y$124,12),""))))))) -> 
H23: =IF(Datenbank!$Y$1=0,"",IF(Datenbank!$Y$11>=Datenbank!$BG15,HLOOKUP(Datenbank!$BG15,Datenbank!$B$10:$Y$24,6),IF(Datenbank!$Y$31>=Datenbank!$BG15,HLOOKUP(Datenbank!$BG15,Datenbank!$B$30:$Y$44,6),IF(Datenbank!$Y$51>=Datenbank!$BG15,HLOOKUP(Datenbank!$BG15,Datenbank!$B$50:$Y$64,6),IF(Datenbank!$Y$71>=Datenbank!$BG15,HLOOKUP(Datenbank!$BG15,Datenbank!$B$70:$Y$84,6),IF(Datenbank!$Y$91>=Datenbank!$BG15,HLOOKUP(Datenbank!$BG15,Datenbank!$B$90:$Y$104,6),IF(Datenbank!$Y$111>=Datenbank!$BG15,HLOOKUP(Datenbank!$BG15,Datenbank!$B$110:$Y$124,6),""))))))) ->  | I23: =IF($H23="","",VLOOKUP($H23,'AFM-Artikel'!$A$2:$D$1763,2)) ->  | O23: =IF(Datenbank!$Y$1=0,"",IF(Datenbank!$Y$11>=Datenbank!$BG15,HLOOKUP(Datenbank!$BG15,Datenbank!$B$10:$Y$24,15),IF(Datenbank!$Y$31>=Datenbank!$BG15,HLOOKUP(Datenbank!$BG15,Datenbank!$B$30:$Y$44,15),IF(Datenbank!$Y$51>=Datenbank!$BG15,HLOOKUP(Datenbank!$BG15,Datenbank!$B$50:$Y$64,15),IF(Datenbank!$Y$71>=Datenbank!$BG15,HLOOKUP(Datenbank!$BG15,Datenbank!$B$70:$Y$84,15),IF(Datenbank!$Y$91>=Datenbank!$BG15,HLOOKUP(Datenbank!$BG15,Datenbank!$B$90:$Y$104,15),IF(Datenbank!$Y$111>=Datenbank!$BG15,HLOOKUP(Datenbank!$BG15,Datenbank!$B$110:$Y$124,15),""))))))) ->  | P23: =IF(Datenbank!$Y$1=0,"",IF(Datenbank!$Y$11>=Datenbank!$BG15,HLOOKUP(Datenbank!$BG15,Datenbank!$B$10:$Y$24,8),IF(Datenbank!$Y$31>=Datenbank!$BG15,HLOOKUP(Datenbank!$BG15,Datenbank!$B$30:$Y$44,8),IF(Datenbank!$Y$51>=Datenbank!$BG15,HLOOKUP(Datenbank!$BG15,Datenbank!$B$50:$Y$64,8),IF(Datenbank!$Y$71>=Datenbank!$BG15,HLOOKUP(Datenbank!$BG15,Datenbank!$B$70:$Y$84,8),IF(Datenbank!$Y$91>=Datenbank!$BG15,HLOOKUP(Datenbank!$BG15,Datenbank!$B$90:$Y$104,8),IF(Datenbank!$Y$111>=Datenbank!$BG15,HLOOKUP(Datenbank!$BG15,Datenbank!$B$110:$Y$124,8),""))))))) ->  | R23: =IF(Datenbank!$Y$1=0,"",IF(Datenbank!$Y$11>=Datenbank!$BG15,HLOOKUP(Datenbank!$BG15,Datenbank!$B$10:$Y$24,4),IF(Datenbank!$Y$31>=Datenbank!$BG15,HLOOKUP(Datenbank!$BG15,Datenbank!$B$30:$Y$44,4),IF(Datenbank!$Y$51>=Datenbank!$BG15,HLOOKUP(Datenbank!$BG15,Datenbank!$B$50:$Y$64,4),IF(Datenbank!$Y$71>=Datenbank!$BG15,HLOOKUP(Datenbank!$BG15,Datenbank!$B$70:$Y$84,4),IF(Datenbank!$Y$91>=Datenbank!$BG15,HLOOKUP(Datenbank!$BG15,Datenbank!$B$90:$Y$104,4),IF(Datenbank!$Y$111>=Datenbank!$BG15,HLOOKUP(Datenbank!$BG15,Datenbank!$B$110:$Y$124,4),""))))))) ->  | S23: =IF(Datenbank!$Y$1=0,"",IF(Datenbank!$Y$11>=Datenbank!$BG15,HLOOKUP(Datenbank!$BG15,Datenbank!$B$10:$Y$24,14),IF(Datenbank!$Y$31>=Datenbank!$BG15,HLOOKUP(Datenbank!$BG15,Datenbank!$B$30:$Y$44,14),IF(Datenbank!$Y$51>=Datenbank!$BG15,HLOOKUP(Datenbank!$BG15,Datenbank!$B$50:$Y$64,14),IF(Datenbank!$Y$71>=Datenbank!$BG15,HLOOKUP(Datenbank!$BG15,Datenbank!$B$70:$Y$84,14),IF(Datenbank!$Y$91>=Datenbank!$BG15,HLOOKUP(Datenbank!$BG15,Datenbank!$B$90:$Y$104,14),IF(Datenbank!$Y$111>=Datenbank!$BG15,HLOOKUP(Datenbank!$BG15,Datenbank!$B$110:$Y$124,14),""))))))) ->  | T23: =IF(Datenbank!$Y$1=0,"",IF(Datenbank!$Y$11>=Datenbank!$BG15,HLOOKUP(Datenbank!$BG15,Datenbank!$B$10:$Y$24,9),IF(Datenbank!$Y$31>=Datenbank!$BG15,HLOOKUP(Datenbank!$BG15,Datenbank!$B$30:$Y$44,9),IF(Datenbank!$Y$51>=Datenbank!$BG15,HLOOKUP(Datenbank!$BG15,Datenbank!$B$50:$Y$64,9),IF(Datenbank!$Y$71>=Datenbank!$BG15,HLOOKUP(Datenbank!$BG15,Datenbank!$B$70:$Y$84,9),IF(Datenbank!$Y$91>=Datenbank!$BG15,HLOOKUP(Datenbank!$BG15,Datenbank!$B$90:$Y$104,9),IF(Datenbank!$Y$111>=Datenbank!$BG15,HLOOKUP(Datenbank!$BG15,Datenbank!$B$110:$Y$124,9),""))))))) ->  | U23: =IF(Datenbank!$Y$1=0,"",IF(Datenbank!$Y$11>=Datenbank!$BG15,HLOOKUP(Datenbank!$BG15,Datenbank!$B$10:$Y$24,10),IF(Datenbank!$Y$31>=Datenbank!$BG15,HLOOKUP(Datenbank!$BG15,Datenbank!$B$30:$Y$44,10),IF(Datenbank!$Y$51>=Datenbank!$BG15,HLOOKUP(Datenbank!$BG15,Datenbank!$B$50:$Y$64,10),IF(Datenbank!$Y$71>=Datenbank!$BG15,HLOOKUP(Datenbank!$BG15,Datenbank!$B$70:$Y$84,10),IF(Datenbank!$Y$91>=Datenbank!$BG15,HLOOKUP(Datenbank!$BG15,Datenbank!$B$90:$Y$104,10),IF(Datenbank!$Y$111>=Datenbank!$BG15,HLOOKUP(Datenbank!$BG15,Datenbank!$B$110:$Y$124,10),""))))))) ->  | V23: =IF(Datenbank!$Y$1=0,"",IF(Datenbank!$Y$11>=Datenbank!$BG15,HLOOKUP(Datenbank!$BG15,Datenbank!$B$10:$Y$24,11),IF(Datenbank!$Y$31>=Datenbank!$BG15,HLOOKUP(Datenbank!$BG15,Datenbank!$B$30:$Y$44,11),IF(Datenbank!$Y$51>=Datenbank!$BG15,HLOOKUP(Datenbank!$BG15,Datenbank!$B$50:$Y$64,11),IF(Datenbank!$Y$71>=Datenbank!$BG15,HLOOKUP(Datenbank!$BG15,Datenbank!$B$70:$Y$84,11),IF(Datenbank!$Y$91>=Datenbank!$BG15,HLOOKUP(Datenbank!$BG15,Datenbank!$B$90:$Y$104,11),IF(Datenbank!$Y$111>=Datenbank!$BG15,HLOOKUP(Datenbank!$BG15,Datenbank!$B$110:$Y$124,11),""))))))) ->  | W23: =IF(Datenbank!$Y$1=0,"",IF(Datenbank!$Y$11>=Datenbank!$BG15,HLOOKUP(Datenbank!$BG15,Datenbank!$B$10:$Y$24,12),IF(Datenbank!$Y$31>=Datenbank!$BG15,HLOOKUP(Datenbank!$BG15,Datenbank!$B$30:$Y$44,12),IF(Datenbank!$Y$51>=Datenbank!$BG15,HLOOKUP(Datenbank!$BG15,Datenbank!$B$50:$Y$64,12),IF(Datenbank!$Y$71>=Datenbank!$BG15,HLOOKUP(Datenbank!$BG15,Datenbank!$B$70:$Y$84,12),IF(Datenbank!$Y$91>=Datenbank!$BG15,HLOOKUP(Datenbank!$BG15,Datenbank!$B$90:$Y$104,12),IF(Datenbank!$Y$111>=Datenbank!$BG15,HLOOKUP(Datenbank!$BG15,Datenbank!$B$110:$Y$124,12),""))))))) -> 
H24: =IF(Datenbank!$Y$1=0,"",IF(Datenbank!$Y$11>=Datenbank!$BG16,HLOOKUP(Datenbank!$BG16,Datenbank!$B$10:$Y$24,6),IF(Datenbank!$Y$31>=Datenbank!$BG16,HLOOKUP(Datenbank!$BG16,Datenbank!$B$30:$Y$44,6),IF(Datenbank!$Y$51>=Datenbank!$BG16,HLOOKUP(Datenbank!$BG16,Datenbank!$B$50:$Y$64,6),IF(Datenbank!$Y$71>=Datenbank!$BG16,HLOOKUP(Datenbank!$BG16,Datenbank!$B$70:$Y$84,6),IF(Datenbank!$Y$91>=Datenbank!$BG16,HLOOKUP(Datenbank!$BG16,Datenbank!$B$90:$Y$104,6),IF(Datenbank!$Y$111>=Datenbank!$BG16,HLOOKUP(Datenbank!$BG16,Datenbank!$B$110:$Y$124,6),""))))))) ->  | I24: =IF($H24="","",VLOOKUP($H24,'AFM-Artikel'!$A$2:$D$1763,2)) ->  | O24: =IF(Datenbank!$Y$1=0,"",IF(Datenbank!$Y$11>=Datenbank!$BG16,HLOOKUP(Datenbank!$BG16,Datenbank!$B$10:$Y$24,15),IF(Datenbank!$Y$31>=Datenbank!$BG16,HLOOKUP(Datenbank!$BG16,Datenbank!$B$30:$Y$44,15),IF(Datenbank!$Y$51>=Datenbank!$BG16,HLOOKUP(Datenbank!$BG16,Datenbank!$B$50:$Y$64,15),IF(Datenbank!$Y$71>=Datenbank!$BG16,HLOOKUP(Datenbank!$BG16,Datenbank!$B$70:$Y$84,15),IF(Datenbank!$Y$91>=Datenbank!$BG16,HLOOKUP(Datenbank!$BG16,Datenbank!$B$90:$Y$104,15),IF(Datenbank!$Y$111>=Datenbank!$BG16,HLOOKUP(Datenbank!$BG16,Datenbank!$B$110:$Y$124,15),""))))))) ->  | P24: =IF(Datenbank!$Y$1=0,"",IF(Datenbank!$Y$11>=Datenbank!$BG16,HLOOKUP(Datenbank!$BG16,Datenbank!$B$10:$Y$24,8),IF(Datenbank!$Y$31>=Datenbank!$BG16,HLOOKUP(Datenbank!$BG16,Datenbank!$B$30:$Y$44,8),IF(Datenbank!$Y$51>=Datenbank!$BG16,HLOOKUP(Datenbank!$BG16,Datenbank!$B$50:$Y$64,8),IF(Datenbank!$Y$71>=Datenbank!$BG16,HLOOKUP(Datenbank!$BG16,Datenbank!$B$70:$Y$84,8),IF(Datenbank!$Y$91>=Datenbank!$BG16,HLOOKUP(Datenbank!$BG16,Datenbank!$B$90:$Y$104,8),IF(Datenbank!$Y$111>=Datenbank!$BG16,HLOOKUP(Datenbank!$BG16,Datenbank!$B$110:$Y$124,8),""))))))) ->  | R24: =IF(Datenbank!$Y$1=0,"",IF(Datenbank!$Y$11>=Datenbank!$BG16,HLOOKUP(Datenbank!$BG16,Datenbank!$B$10:$Y$24,4),IF(Datenbank!$Y$31>=Datenbank!$BG16,HLOOKUP(Datenbank!$BG16,Datenbank!$B$30:$Y$44,4),IF(Datenbank!$Y$51>=Datenbank!$BG16,HLOOKUP(Datenbank!$BG16,Datenbank!$B$50:$Y$64,4),IF(Datenbank!$Y$71>=Datenbank!$BG16,HLOOKUP(Datenbank!$BG16,Datenbank!$B$70:$Y$84,4),IF(Datenbank!$Y$91>=Datenbank!$BG16,HLOOKUP(Datenbank!$BG16,Datenbank!$B$90:$Y$104,4),IF(Datenbank!$Y$111>=Datenbank!$BG16,HLOOKUP(Datenbank!$BG16,Datenbank!$B$110:$Y$124,4),""))))))) ->  | S24: =IF(Datenbank!$Y$1=0,"",IF(Datenbank!$Y$11>=Datenbank!$BG16,HLOOKUP(Datenbank!$BG16,Datenbank!$B$10:$Y$24,14),IF(Datenbank!$Y$31>=Datenbank!$BG16,HLOOKUP(Datenbank!$BG16,Datenbank!$B$30:$Y$44,14),IF(Datenbank!$Y$51>=Datenbank!$BG16,HLOOKUP(Datenbank!$BG16,Datenbank!$B$50:$Y$64,14),IF(Datenbank!$Y$71>=Datenbank!$BG16,HLOOKUP(Datenbank!$BG16,Datenbank!$B$70:$Y$84,14),IF(Datenbank!$Y$91>=Datenbank!$BG16,HLOOKUP(Datenbank!$BG16,Datenbank!$B$90:$Y$104,14),IF(Datenbank!$Y$111>=Datenbank!$BG16,HLOOKUP(Datenbank!$BG16,Datenbank!$B$110:$Y$124,14),""))))))) ->  | T24: =IF(Datenbank!$Y$1=0,"",IF(Datenbank!$Y$11>=Datenbank!$BG16,HLOOKUP(Datenbank!$BG16,Datenbank!$B$10:$Y$24,9),IF(Datenbank!$Y$31>=Datenbank!$BG16,HLOOKUP(Datenbank!$BG16,Datenbank!$B$30:$Y$44,9),IF(Datenbank!$Y$51>=Datenbank!$BG16,HLOOKUP(Datenbank!$BG16,Datenbank!$B$50:$Y$64,9),IF(Datenbank!$Y$71>=Datenbank!$BG16,HLOOKUP(Datenbank!$BG16,Datenbank!$B$70:$Y$84,9),IF(Datenbank!$Y$91>=Datenbank!$BG16,HLOOKUP(Datenbank!$BG16,Datenbank!$B$90:$Y$104,9),IF(Datenbank!$Y$111>=Datenbank!$BG16,HLOOKUP(Datenbank!$BG16,Datenbank!$B$110:$Y$124,9),""))))))) ->  | U24: =IF(Datenbank!$Y$1=0,"",IF(Datenbank!$Y$11>=Datenbank!$BG16,HLOOKUP(Datenbank!$BG16,Datenbank!$B$10:$Y$24,10),IF(Datenbank!$Y$31>=Datenbank!$BG16,HLOOKUP(Datenbank!$BG16,Datenbank!$B$30:$Y$44,10),IF(Datenbank!$Y$51>=Datenbank!$BG16,HLOOKUP(Datenbank!$BG16,Datenbank!$B$50:$Y$64,10),IF(Datenbank!$Y$71>=Datenbank!$BG16,HLOOKUP(Datenbank!$BG16,Datenbank!$B$70:$Y$84,10),IF(Datenbank!$Y$91>=Datenbank!$BG16,HLOOKUP(Datenbank!$BG16,Datenbank!$B$90:$Y$104,10),IF(Datenbank!$Y$111>=Datenbank!$BG16,HLOOKUP(Datenbank!$BG16,Datenbank!$B$110:$Y$124,10),""))))))) ->  | V24: =IF(Datenbank!$Y$1=0,"",IF(Datenbank!$Y$11>=Datenbank!$BG16,HLOOKUP(Datenbank!$BG16,Datenbank!$B$10:$Y$24,11),IF(Datenbank!$Y$31>=Datenbank!$BG16,HLOOKUP(Datenbank!$BG16,Datenbank!$B$30:$Y$44,11),IF(Datenbank!$Y$51>=Datenbank!$BG16,HLOOKUP(Datenbank!$BG16,Datenbank!$B$50:$Y$64,11),IF(Datenbank!$Y$71>=Datenbank!$BG16,HLOOKUP(Datenbank!$BG16,Datenbank!$B$70:$Y$84,11),IF(Datenbank!$Y$91>=Datenbank!$BG16,HLOOKUP(Datenbank!$BG16,Datenbank!$B$90:$Y$104,11),IF(Datenbank!$Y$111>=Datenbank!$BG16,HLOOKUP(Datenbank!$BG16,Datenbank!$B$110:$Y$124,11),""))))))) ->  | W24: =IF(Datenbank!$Y$1=0,"",IF(Datenbank!$Y$11>=Datenbank!$BG16,HLOOKUP(Datenbank!$BG16,Datenbank!$B$10:$Y$24,12),IF(Datenbank!$Y$31>=Datenbank!$BG16,HLOOKUP(Datenbank!$BG16,Datenbank!$B$30:$Y$44,12),IF(Datenbank!$Y$51>=Datenbank!$BG16,HLOOKUP(Datenbank!$BG16,Datenbank!$B$50:$Y$64,12),IF(Datenbank!$Y$71>=Datenbank!$BG16,HLOOKUP(Datenbank!$BG16,Datenbank!$B$70:$Y$84,12),IF(Datenbank!$Y$91>=Datenbank!$BG16,HLOOKUP(Datenbank!$BG16,Datenbank!$B$90:$Y$104,12),IF(Datenbank!$Y$111>=Datenbank!$BG16,HLOOKUP(Datenbank!$BG16,Datenbank!$B$110:$Y$124,12),""))))))) -> 
H25: =IF(Datenbank!$Y$1=0,"",IF(Datenbank!$Y$11>=Datenbank!$BG17,HLOOKUP(Datenbank!$BG17,Datenbank!$B$10:$Y$24,6),IF(Datenbank!$Y$31>=Datenbank!$BG17,HLOOKUP(Datenbank!$BG17,Datenbank!$B$30:$Y$44,6),IF(Datenbank!$Y$51>=Datenbank!$BG17,HLOOKUP(Datenbank!$BG17,Datenbank!$B$50:$Y$64,6),IF(Datenbank!$Y$71>=Datenbank!$BG17,HLOOKUP(Datenbank!$BG17,Datenbank!$B$70:$Y$84,6),IF(Datenbank!$Y$91>=Datenbank!$BG17,HLOOKUP(Datenbank!$BG17,Datenbank!$B$90:$Y$104,6),IF(Datenbank!$Y$111>=Datenbank!$BG17,HLOOKUP(Datenbank!$BG17,Datenbank!$B$110:$Y$124,6),""))))))) ->  | I25: =IF($H25="","",VLOOKUP($H25,'AFM-Artikel'!$A$2:$D$1763,2)) ->  | O25: =IF(Datenbank!$Y$1=0,"",IF(Datenbank!$Y$11>=Datenbank!$BG17,HLOOKUP(Datenbank!$BG17,Datenbank!$B$10:$Y$24,15),IF(Datenbank!$Y$31>=Datenbank!$BG17,HLOOKUP(Datenbank!$BG17,Datenbank!$B$30:$Y$44,15),IF(Datenbank!$Y$51>=Datenbank!$BG17,HLOOKUP(Datenbank!$BG17,Datenbank!$B$50:$Y$64,15),IF(Datenbank!$Y$71>=Datenbank!$BG17,HLOOKUP(Datenbank!$BG17,Datenbank!$B$70:$Y$84,15),IF(Datenbank!$Y$91>=Datenbank!$BG17,HLOOKUP(Datenbank!$BG17,Datenbank!$B$90:$Y$104,15),IF(Datenbank!$Y$111>=Datenbank!$BG17,HLOOKUP(Datenbank!$BG17,Datenbank!$B$110:$Y$124,15),""))))))) ->  | P25: =IF(Datenbank!$Y$1=0,"",IF(Datenbank!$Y$11>=Datenbank!$BG17,HLOOKUP(Datenbank!$BG17,Datenbank!$B$10:$Y$24,8),IF(Datenbank!$Y$31>=Datenbank!$BG17,HLOOKUP(Datenbank!$BG17,Datenbank!$B$30:$Y$44,8),IF(Datenbank!$Y$51>=Datenbank!$BG17,HLOOKUP(Datenbank!$BG17,Datenbank!$B$50:$Y$64,8),IF(Datenbank!$Y$71>=Datenbank!$BG17,HLOOKUP(Datenbank!$BG17,Datenbank!$B$70:$Y$84,8),IF(Datenbank!$Y$91>=Datenbank!$BG17,HLOOKUP(Datenbank!$BG17,Datenbank!$B$90:$Y$104,8),IF(Datenbank!$Y$111>=Datenbank!$BG17,HLOOKUP(Datenbank!$BG17,Datenbank!$B$110:$Y$124,8),""))))))) ->  | R25: =IF(Datenbank!$Y$1=0,"",IF(Datenbank!$Y$11>=Datenbank!$BG17,HLOOKUP(Datenbank!$BG17,Datenbank!$B$10:$Y$24,4),IF(Datenbank!$Y$31>=Datenbank!$BG17,HLOOKUP(Datenbank!$BG17,Datenbank!$B$30:$Y$44,4),IF(Datenbank!$Y$51>=Datenbank!$BG17,HLOOKUP(Datenbank!$BG17,Datenbank!$B$50:$Y$64,4),IF(Datenbank!$Y$71>=Datenbank!$BG17,HLOOKUP(Datenbank!$BG17,Datenbank!$B$70:$Y$84,4),IF(Datenbank!$Y$91>=Datenbank!$BG17,HLOOKUP(Datenbank!$BG17,Datenbank!$B$90:$Y$104,4),IF(Datenbank!$Y$111>=Datenbank!$BG17,HLOOKUP(Datenbank!$BG17,Datenbank!$B$110:$Y$124,4),""))))))) ->  | S25: =IF(Datenbank!$Y$1=0,"",IF(Datenbank!$Y$11>=Datenbank!$BG17,HLOOKUP(Datenbank!$BG17,Datenbank!$B$10:$Y$24,14),IF(Datenbank!$Y$31>=Datenbank!$BG17,HLOOKUP(Datenbank!$BG17,Datenbank!$B$30:$Y$44,14),IF(Datenbank!$Y$51>=Datenbank!$BG17,HLOOKUP(Datenbank!$BG17,Datenbank!$B$50:$Y$64,14),IF(Datenbank!$Y$71>=Datenbank!$BG17,HLOOKUP(Datenbank!$BG17,Datenbank!$B$70:$Y$84,14),IF(Datenbank!$Y$91>=Datenbank!$BG17,HLOOKUP(Datenbank!$BG17,Datenbank!$B$90:$Y$104,14),IF(Datenbank!$Y$111>=Datenbank!$BG17,HLOOKUP(Datenbank!$BG17,Datenbank!$B$110:$Y$124,14),""))))))) ->  | T25: =IF(Datenbank!$Y$1=0,"",IF(Datenbank!$Y$11>=Datenbank!$BG17,HLOOKUP(Datenbank!$BG17,Datenbank!$B$10:$Y$24,9),IF(Datenbank!$Y$31>=Datenbank!$BG17,HLOOKUP(Datenbank!$BG17,Datenbank!$B$30:$Y$44,9),IF(Datenbank!$Y$51>=Datenbank!$BG17,HLOOKUP(Datenbank!$BG17,Datenbank!$B$50:$Y$64,9),IF(Datenbank!$Y$71>=Datenbank!$BG17,HLOOKUP(Datenbank!$BG17,Datenbank!$B$70:$Y$84,9),IF(Datenbank!$Y$91>=Datenbank!$BG17,HLOOKUP(Datenbank!$BG17,Datenbank!$B$90:$Y$104,9),IF(Datenbank!$Y$111>=Datenbank!$BG17,HLOOKUP(Datenbank!$BG17,Datenbank!$B$110:$Y$124,9),""))))))) ->  | U25: =IF(Datenbank!$Y$1=0,"",IF(Datenbank!$Y$11>=Datenbank!$BG17,HLOOKUP(Datenbank!$BG17,Datenbank!$B$10:$Y$24,10),IF(Datenbank!$Y$31>=Datenbank!$BG17,HLOOKUP(Datenbank!$BG17,Datenbank!$B$30:$Y$44,10),IF(Datenbank!$Y$51>=Datenbank!$BG17,HLOOKUP(Datenbank!$BG17,Datenbank!$B$50:$Y$64,10),IF(Datenbank!$Y$71>=Datenbank!$BG17,HLOOKUP(Datenbank!$BG17,Datenbank!$B$70:$Y$84,10),IF(Datenbank!$Y$91>=Datenbank!$BG17,HLOOKUP(Datenbank!$BG17,Datenbank!$B$90:$Y$104,10),IF(Datenbank!$Y$111>=Datenbank!$BG17,HLOOKUP(Datenbank!$BG17,Datenbank!$B$110:$Y$124,10),""))))))) ->  | V25: =IF(Datenbank!$Y$1=0,"",IF(Datenbank!$Y$11>=Datenbank!$BG17,HLOOKUP(Datenbank!$BG17,Datenbank!$B$10:$Y$24,11),IF(Datenbank!$Y$31>=Datenbank!$BG17,HLOOKUP(Datenbank!$BG17,Datenbank!$B$30:$Y$44,11),IF(Datenbank!$Y$51>=Datenbank!$BG17,HLOOKUP(Datenbank!$BG17,Datenbank!$B$50:$Y$64,11),IF(Datenbank!$Y$71>=Datenbank!$BG17,HLOOKUP(Datenbank!$BG17,Datenbank!$B$70:$Y$84,11),IF(Datenbank!$Y$91>=Datenbank!$BG17,HLOOKUP(Datenbank!$BG17,Datenbank!$B$90:$Y$104,11),IF(Datenbank!$Y$111>=Datenbank!$BG17,HLOOKUP(Datenbank!$BG17,Datenbank!$B$110:$Y$124,11),""))))))) ->  | W25: =IF(Datenbank!$Y$1=0,"",IF(Datenbank!$Y$11>=Datenbank!$BG17,HLOOKUP(Datenbank!$BG17,Datenbank!$B$10:$Y$24,12),IF(Datenbank!$Y$31>=Datenbank!$BG17,HLOOKUP(Datenbank!$BG17,Datenbank!$B$30:$Y$44,12),IF(Datenbank!$Y$51>=Datenbank!$BG17,HLOOKUP(Datenbank!$BG17,Datenbank!$B$50:$Y$64,12),IF(Datenbank!$Y$71>=Datenbank!$BG17,HLOOKUP(Datenbank!$BG17,Datenbank!$B$70:$Y$84,12),IF(Datenbank!$Y$91>=Datenbank!$BG17,HLOOKUP(Datenbank!$BG17,Datenbank!$B$90:$Y$104,12),IF(Datenbank!$Y$111>=Datenbank!$BG17,HLOOKUP(Datenbank!$BG17,Datenbank!$B$110:$Y$124,12),""))))))) -> 
H26: =IF(Datenbank!$Y$1=0,"",IF(Datenbank!$Y$11>=Datenbank!$BG18,HLOOKUP(Datenbank!$BG18,Datenbank!$B$10:$Y$24,6),IF(Datenbank!$Y$31>=Datenbank!$BG18,HLOOKUP(Datenbank!$BG18,Datenbank!$B$30:$Y$44,6),IF(Datenbank!$Y$51>=Datenbank!$BG18,HLOOKUP(Datenbank!$BG18,Datenbank!$B$50:$Y$64,6),IF(Datenbank!$Y$71>=Datenbank!$BG18,HLOOKUP(Datenbank!$BG18,Datenbank!$B$70:$Y$84,6),IF(Datenbank!$Y$91>=Datenbank!$BG18,HLOOKUP(Datenbank!$BG18,Datenbank!$B$90:$Y$104,6),IF(Datenbank!$Y$111>=Datenbank!$BG18,HLOOKUP(Datenbank!$BG18,Datenbank!$B$110:$Y$124,6),""))))))) ->  | I26: =IF($H26="","",VLOOKUP($H26,'AFM-Artikel'!$A$2:$D$1763,2)) ->  | O26: =IF(Datenbank!$Y$1=0,"",IF(Datenbank!$Y$11>=Datenbank!$BG18,HLOOKUP(Datenbank!$BG18,Datenbank!$B$10:$Y$24,15),IF(Datenbank!$Y$31>=Datenbank!$BG18,HLOOKUP(Datenbank!$BG18,Datenbank!$B$30:$Y$44,15),IF(Datenbank!$Y$51>=Datenbank!$BG18,HLOOKUP(Datenbank!$BG18,Datenbank!$B$50:$Y$64,15),IF(Datenbank!$Y$71>=Datenbank!$BG18,HLOOKUP(Datenbank!$BG18,Datenbank!$B$70:$Y$84,15),IF(Datenbank!$Y$91>=Datenbank!$BG18,HLOOKUP(Datenbank!$BG18,Datenbank!$B$90:$Y$104,15),IF(Datenbank!$Y$111>=Datenbank!$BG18,HLOOKUP(Datenbank!$BG18,Datenbank!$B$110:$Y$124,15),""))))))) ->  | P26: =IF(Datenbank!$Y$1=0,"",IF(Datenbank!$Y$11>=Datenbank!$BG18,HLOOKUP(Datenbank!$BG18,Datenbank!$B$10:$Y$24,8),IF(Datenbank!$Y$31>=Datenbank!$BG18,HLOOKUP(Datenbank!$BG18,Datenbank!$B$30:$Y$44,8),IF(Datenbank!$Y$51>=Datenbank!$BG18,HLOOKUP(Datenbank!$BG18,Datenbank!$B$50:$Y$64,8),IF(Datenbank!$Y$71>=Datenbank!$BG18,HLOOKUP(Datenbank!$BG18,Datenbank!$B$70:$Y$84,8),IF(Datenbank!$Y$91>=Datenbank!$BG18,HLOOKUP(Datenbank!$BG18,Datenbank!$B$90:$Y$104,8),IF(Datenbank!$Y$111>=Datenbank!$BG18,HLOOKUP(Datenbank!$BG18,Datenbank!$B$110:$Y$124,8),""))))))) ->  | R26: =IF(Datenbank!$Y$1=0,"",IF(Datenbank!$Y$11>=Datenbank!$BG18,HLOOKUP(Datenbank!$BG18,Datenbank!$B$10:$Y$24,4),IF(Datenbank!$Y$31>=Datenbank!$BG18,HLOOKUP(Datenbank!$BG18,Datenbank!$B$30:$Y$44,4),IF(Datenbank!$Y$51>=Datenbank!$BG18,HLOOKUP(Datenbank!$BG18,Datenbank!$B$50:$Y$64,4),IF(Datenbank!$Y$71>=Datenbank!$BG18,HLOOKUP(Datenbank!$BG18,Datenbank!$B$70:$Y$84,4),IF(Datenbank!$Y$91>=Datenbank!$BG18,HLOOKUP(Datenbank!$BG18,Datenbank!$B$90:$Y$104,4),IF(Datenbank!$Y$111>=Datenbank!$BG18,HLOOKUP(Datenbank!$BG18,Datenbank!$B$110:$Y$124,4),""))))))) ->  | S26: =IF(Datenbank!$Y$1=0,"",IF(Datenbank!$Y$11>=Datenbank!$BG18,HLOOKUP(Datenbank!$BG18,Datenbank!$B$10:$Y$24,14),IF(Datenbank!$Y$31>=Datenbank!$BG18,HLOOKUP(Datenbank!$BG18,Datenbank!$B$30:$Y$44,14),IF(Datenbank!$Y$51>=Datenbank!$BG18,HLOOKUP(Datenbank!$BG18,Datenbank!$B$50:$Y$64,14),IF(Datenbank!$Y$71>=Datenbank!$BG18,HLOOKUP(Datenbank!$BG18,Datenbank!$B$70:$Y$84,14),IF(Datenbank!$Y$91>=Datenbank!$BG18,HLOOKUP(Datenbank!$BG18,Datenbank!$B$90:$Y$104,14),IF(Datenbank!$Y$111>=Datenbank!$BG18,HLOOKUP(Datenbank!$BG18,Datenbank!$B$110:$Y$124,14),""))))))) ->  | T26: =IF(Datenbank!$Y$1=0,"",IF(Datenbank!$Y$11>=Datenbank!$BG18,HLOOKUP(Datenbank!$BG18,Datenbank!$B$10:$Y$24,9),IF(Datenbank!$Y$31>=Datenbank!$BG18,HLOOKUP(Datenbank!$BG18,Datenbank!$B$30:$Y$44,9),IF(Datenbank!$Y$51>=Datenbank!$BG18,HLOOKUP(Datenbank!$BG18,Datenbank!$B$50:$Y$64,9),IF(Datenbank!$Y$71>=Datenbank!$BG18,HLOOKUP(Datenbank!$BG18,Datenbank!$B$70:$Y$84,9),IF(Datenbank!$Y$91>=Datenbank!$BG18,HLOOKUP(Datenbank!$BG18,Datenbank!$B$90:$Y$104,9),IF(Datenbank!$Y$111>=Datenbank!$BG18,HLOOKUP(Datenbank!$BG18,Datenbank!$B$110:$Y$124,9),""))))))) ->  | U26: =IF(Datenbank!$Y$1=0,"",IF(Datenbank!$Y$11>=Datenbank!$BG18,HLOOKUP(Datenbank!$BG18,Datenbank!$B$10:$Y$24,10),IF(Datenbank!$Y$31>=Datenbank!$BG18,HLOOKUP(Datenbank!$BG18,Datenbank!$B$30:$Y$44,10),IF(Datenbank!$Y$51>=Datenbank!$BG18,HLOOKUP(Datenbank!$BG18,Datenbank!$B$50:$Y$64,10),IF(Datenbank!$Y$71>=Datenbank!$BG18,HLOOKUP(Datenbank!$BG18,Datenbank!$B$70:$Y$84,10),IF(Datenbank!$Y$91>=Datenbank!$BG18,HLOOKUP(Datenbank!$BG18,Datenbank!$B$90:$Y$104,10),IF(Datenbank!$Y$111>=Datenbank!$BG18,HLOOKUP(Datenbank!$BG18,Datenbank!$B$110:$Y$124,10),""))))))) ->  | V26: =IF(Datenbank!$Y$1=0,"",IF(Datenbank!$Y$11>=Datenbank!$BG18,HLOOKUP(Datenbank!$BG18,Datenbank!$B$10:$Y$24,11),IF(Datenbank!$Y$31>=Datenbank!$BG18,HLOOKUP(Datenbank!$BG18,Datenbank!$B$30:$Y$44,11),IF(Datenbank!$Y$51>=Datenbank!$BG18,HLOOKUP(Datenbank!$BG18,Datenbank!$B$50:$Y$64,11),IF(Datenbank!$Y$71>=Datenbank!$BG18,HLOOKUP(Datenbank!$BG18,Datenbank!$B$70:$Y$84,11),IF(Datenbank!$Y$91>=Datenbank!$BG18,HLOOKUP(Datenbank!$BG18,Datenbank!$B$90:$Y$104,11),IF(Datenbank!$Y$111>=Datenbank!$BG18,HLOOKUP(Datenbank!$BG18,Datenbank!$B$110:$Y$124,11),""))))))) ->  | W26: =IF(Datenbank!$Y$1=0,"",IF(Datenbank!$Y$11>=Datenbank!$BG18,HLOOKUP(Datenbank!$BG18,Datenbank!$B$10:$Y$24,12),IF(Datenbank!$Y$31>=Datenbank!$BG18,HLOOKUP(Datenbank!$BG18,Datenbank!$B$30:$Y$44,12),IF(Datenbank!$Y$51>=Datenbank!$BG18,HLOOKUP(Datenbank!$BG18,Datenbank!$B$50:$Y$64,12),IF(Datenbank!$Y$71>=Datenbank!$BG18,HLOOKUP(Datenbank!$BG18,Datenbank!$B$70:$Y$84,12),IF(Datenbank!$Y$91>=Datenbank!$BG18,HLOOKUP(Datenbank!$BG18,Datenbank!$B$90:$Y$104,12),IF(Datenbank!$Y$111>=Datenbank!$BG18,HLOOKUP(Datenbank!$BG18,Datenbank!$B$110:$Y$124,12),""))))))) -> 
D27: MAX TE | F27: =F12 -> 0 | H27: Freie TE | J27: =IF(SUM($F$27-$O$27)<=0,0,SUM($F$27-$O$27)) -> 0 | K27: =(SUM($F$27-$O$27)) -> 0 | M27: Summe TE | O27: =SUM(O11:O26) -> 0 | P27: Fehler! | T27: zzgl. MwSt. | V27: Summe: | X27: =SUM(X3:Y26) -> 0
T28: =IF($B$9="Liste","",$A$9) -> Kundenrabatt: | W28: =IF($B$9=0,"",$B$9/100) ->  | X28: =IF($B$9=0,"",(X27*W28)*-1) -> 
B29: Mit CRTL-D Modul duplizieren! | G29: Bei gedrückter "ALT-Taste" richten sich die Module am Raster aus! | T29: =IF($B$9="Liste","","zzgl. MwSt.") -> zzgl. MwSt. | V29: =IF($B$9="Liste","","Netto: ") -> Netto: | X29: =IF($B$9=0,"",X27+X28) -> 
A30: Texte
A32: Teileinheiten | H32: 20TE | I32: 24TE | J32: 28TE | L32: 36TE | N32: 44TE | O32: 48TE | X32: 84TE
A33: Beschriftung | C33: VGA | E33: DVI | G33: HDMI | H33: LAN | I33: XLR | J33: TON | K33: Contr.
A34: Anschlussfeld Module Vorderseite
B38: VGA | D38: 3,5Klinke-Bu | F38: VGA/Audio | H38: DVI | L38: HDMI | R38: HDMI-AWG24 | T38: DisplayPort
A39: Anschlussfeldmodulreihe - 1 | B39: =B41 -> VGA-Buchse | D39: =D41 -> 3,5Kl.-Bu./Ster. | F39: =F41 -> VGA-Bu./3,5Kl. | H39: =H41 -> DVI-Buchse | J39: =J41 -> DVI-Bu/3,5Kl. | L39: =L41 -> HDMI-Bu. | P39: =P41 -> HDMI-Bu.360° | R39: =R41 -> HDMI-Bu.Platine | T39: =T41 -> DP-Bu. | V39: =V41 -> DP-Bu.
A40: Module 2. ins Anschlussfeld verschieben
A41: Vorderseite-Modul | B41: =Datenbank!$A$200 -> VGA-Buchse | D41: =Datenbank!$A$220 -> 3,5Kl.-Bu./Ster. | F41: =Datenbank!$A$240 -> VGA-Bu./3,5Kl. | H41: =Datenbank!$A$260 -> DVI-Buchse | J41: =Datenbank!$A$280 -> DVI-Bu/3,5Kl. | L41: =Datenbank!$A$300 -> HDMI-Bu. | M41: á | P41: =Datenbank!$A$340 -> HDMI-Bu.360° | R41: =Datenbank!$A$360 -> HDMI-Bu.Platine | T41: =Datenbank!$A$380 -> DP-Bu. | V41: =Datenbank!$A$400 -> DP-Bu. | W41: á
A42: 3. Rückseite-Modul auswählen | B42: Auswählen! | D42: Auswählen! | F42: Auswählen! | H42: Auswählen! | J42: Auswählen! | L42: Auswählen! | N42: Auswählen! | P42: Auswählen! | R42: Auswählen! | T42: Auswählen! | V42: Auswählen! | X42: Auswählen!
A43: 4. Menge je Modul eintragen | C43: 200 | E43: 220 | G43: 240 | I43: 260 | K43: 280 | M43: 300 | O43: 320 | Q43: 340 | S43: 360 | U43: 380 | W43: 400 | Y43: 420
A44: 5. evtl. Gesamt-Kabellänge (m) | C44: =Datenbank!B$22 ->  | E44: =Datenbank!D$22 ->  | G44: =Datenbank!F$22 ->  | I44: =Datenbank!H$22 ->  | K44: =Datenbank!J$22 ->  | M44: =Datenbank!L$22 ->  | O44: =Datenbank!N$22 ->  | Q44: =Datenbank!P$22 ->  | S44: =Datenbank!R$22 ->  | U44: =Datenbank!T$22 ->  | W44: =Datenbank!V$22 ->  | Y44: =Datenbank!X$22 -> 
B48: XLR
A49: Anschlussfeldmodulreihe - 2 | B49: XLR 3pol-Bu. | D49: XLR 3pol-St. | F49: XLR4 pol-Bu. | H49: XLR 5pol-Bu. | J49: XLR 6pol-Bu. | L49: XLR USB-A/B | N49: XLR EtherCon | P49: XLR Eth.Cat.6 | R49: XLR Eth.Cat.6A | T49: XLR 4p.-Speak. | V49: PowerCon-A | X49: PowerCon-B
A50: Module ins Anschlussfeld verschieben
A51: Vorderseite-Modul | B51: =Datenbank!$A$440 -> 3pol-Bu. | D51: =Datenbank!$A$460 -> 3pol-St. | F51: =Datenbank!$A$480 -> 4pol-Bu. | H51: =Datenbank!$A$500 -> 5pol-Bu. | J51: =Datenbank!$A$520 -> 6pol-Bu. | L51: =Datenbank!$A$540 -> XLR USB-Bu/Bu. | N51: =Datenbank!$A$560 -> XLR - RJ45 | P51: =Datenbank!$A$580 -> XLR - Cat.6 | R51: =Datenbank!$A$600 -> XLR - Cat.6A | T51: =Datenbank!$A$620 -> 4pol-Speakon | V51: =Datenbank!$A$640 -> PowerCon-A | X51: =Datenbank!$A$660 -> PowerCon-B
A52: Rückseite-Modul auswählen | B52: Auswählen! | D52: Auswählen! | F52: Auswählen! | H52: Auswählen! | J52: Auswählen! | L52: Auswählen! | N52: Auswählen! | P52: Auswählen! | R52: Auswählen! | T52: Auswählen! | V52: Auswählen! | X52: Auswählen!
A53: Menge je Modul eintragen | C53: 440 | E53: 460 | G53: 480 | I53: 500 | K53: 520 | M53: 540 | O53: 560 | Q53: 580 | S53: 600 | U53: 620 | W53: 640 | Y53: 660
A54: evtl. Gesamt-Kabellänge (m) | C54: =Datenbank!B$42 ->  | E54: =Datenbank!D$42 ->  | G54: =Datenbank!F$42 ->  | I54: =Datenbank!H$42 ->  | K54: =Datenbank!J$42 ->  | M54: =Datenbank!L$42 ->  | O54: =Datenbank!N$42 ->  | Q54: =Datenbank!P$42 ->  | S54: =Datenbank!R$42 ->  | U54: =Datenbank!T$42 ->  | W54: =Datenbank!V$42 ->  | Y54: =Datenbank!X$42 -> 
B58: Cinch | P58: 3,5Kl.- 4pol | R58: RJ45 | T58: USB
A59: Anschlussfeldmodulreihe - 3 | B59: ge | D59: sw | F59: rt | H59: gn | J59: bl | L59: 3xCinch | P59: 3,5Kl. 4pol | R59: CAT6 | T59: USB-A | V59: USB-B | X59: USB-Ladeteil
A60: Module ins Anschlussfeld verschieben
A61: Vorderseite-Modul | B61: =Datenbank!$A$680 -> Cinch-Bu.-ge | D61: =Datenbank!$A$700 -> Cinch-Bu.-sw | F61: =Datenbank!$A$720 -> Cinch-Bu.-rt | H61: =Datenbank!$A$740 -> Cinch-Bu.-gn | J61: =Datenbank!$A$760 -> Cinch-Bu.-bl | L61: =Datenbank!$A$780 -> 3xCinch-Bu. | N61: =Datenbank!$A$800 -> Frei 800 | P61: =Datenbank!$A$820 -> 3,5Kl. 4p.-Bu. | R61: =Datenbank!$A$840 -> RJ45-Bu. | T61: =Datenbank!$A$860 -> USB-A-Bu. | V61: =Datenbank!$A$880 -> USB-B-Bu. | X61: =Datenbank!$A$900 -> USB-A-Bu.
A62: Rückseite-Modul auswählen | B62: Auswählen! | D62: Auswählen! | F62: Auswählen! | H62: Auswählen! | J62: Auswählen! | L62: Auswählen! | N62: Auswählen! | P62: Auswählen! | R62: Auswählen! | T62: Auswählen! | V62: Auswählen! | X62: Auswählen!
A63: Menge je Modul eintragen | C63: 680 | E63: 700 | G63: 720 | I63: 740 | K63: 760 | M63: 780 | O63: 800 | Q63: 820 | S63: 840 | U63: 860 | W63: 880 | Y63: 900
A64: evtl. Gesamt-Kabellänge (m) | C64: =Datenbank!B$62 ->  | E64: =Datenbank!D$62 ->  | G64: =Datenbank!F$62 ->  | I64: =Datenbank!H$62 ->  | K64: =Datenbank!J$62 ->  | M64: =Datenbank!L$62 ->  | O64: =Datenbank!N$62 ->  | Q64: =Datenbank!P$62 ->  | S64: =Datenbank!R$62 ->  | U64: =Datenbank!T$62 ->  | W64: =Datenbank!V$62 ->  | Y64: =Datenbank!X$62 -> 
B68: BNC | R68: Sub-D | X68: Mini-Con
A69: Anschlussfeldmodulreihe - 4 | B69: rt | D69: gn | F69: bl | H69: sw | J69: ws | L69: ge | N69: 5x BNC, RGBHV | R69: 9pin-Bu. | T69: 9pin-St. | V69: 15pin-Bu. | X69: 12pin-Mini-Con
A70: Module ins Anschlussfeld verschieben
A71: Vorderseite-Modul | B71: =Datenbank!$A$920 -> BNC-Bu.-rt | D71: =Datenbank!$A$940 -> BNC-Bu.-gn | F71: =Datenbank!$A$960 -> BNC-Bu.-bl | H71: =Datenbank!$A$980 -> BNC-Bu.-sw | J71: =Datenbank!$A$1000 -> BNC-Bu.-ws | L71: =Datenbank!$A$1020 -> BNC-Bu.-ge | N71: =Datenbank!$A$1040 -> 5xBNC-Bu. | P71: =Datenbank!$A$1060 -> Frei 1060 | R71: =Datenbank!$A$1080 -> Sub-D-9pin-Bu. | T71: =Datenbank!$A$1100 -> Sub-D-9pin-St. | V71: =Datenbank!$A$1120 -> Sub-D-15pin-Bu. | X71: =Datenbank!$A$1140 -> 12p-MiniCon
A72: Rückseite-Modul auswählen | B72: Auswählen! | D72: Auswählen! | F72: Auswählen! | H72: Auswählen! | J72: Auswählen! | L72: Auswählen! | N72: Auswählen! | P72: Auswählen! | R72: Auswählen! | T72: Auswählen! | V72: Auswählen! | X72: Auswählen!
A73: Menge je Modul eintragen | C73: 920 | E73: 940 | G73: 960 | I73: 980 | K73: 1000 | M73: 1020 | O73: 1040 | Q73: 1060 | S73: 1080 | U73: 1100 | W73: 1120 | Y73: 1140
A74: evtl. Gesamt-Kabellänge (m) | C74: =Datenbank!B$82 ->  | E74: =Datenbank!D$82 ->  | G74: =Datenbank!F$82 ->  | I74: =Datenbank!H$82 ->  | K74: =Datenbank!J$82 ->  | M74: =Datenbank!L$82 ->  | O74: =Datenbank!N$82 ->  | Q74: =Datenbank!P$82 ->  | S74: =Datenbank!R$82 ->  | U74: =Datenbank!T$82 ->  | W74: =Datenbank!V$82 ->  | Y74: =Datenbank!X$82 -> 
B78: Taster mit LED | F78: Schalter mit LED | J78: Taster ohne LED / mit LED / Beschriftung
A79: Anschlussfeldmodulreihe - 5 | B79: rt | D79: gn | F79: rt | H79: gn | J79: Chrom | L79: Edelstahl/bel. | N79: beleuchtet / beschriftbar
A80: Module ins Anschlussfeld verschieben
A81: Vorderseite-Modul | B81: =Datenbank!$A$1160 -> Taster rot | D81: =Datenbank!$A$1180 -> Taster grün | F81: =Datenbank!$A$1200 -> Schalter rot | H81: =Datenbank!$A$1220 -> Schalter grün | J81: =Datenbank!$A$1240 -> Taster Chrom | L81: =Datenbank!$A$1260 -> Taster Chr. LED | N81: =Datenbank!$A$1280 -> Taster 18x18 | P81: =Datenbank!$A$1300 -> Taster 24x18 | R81: =Datenbank!$A$1320 -> Frei 1320 | T81: =Datenbank!$A$1340 -> Frei 1340 | V81: =Datenbank!$A$1360 -> Frei 1360 | X81: =Datenbank!$A$1380 -> Frei 1380
A82: Rückseite-Modul auswählen | B82: Auswählen! | D82: Auswählen! | F82: Auswählen! | H82: Auswählen! | J82: Auswählen! | L82: Auswählen! | N82: Auswählen! | P82: Auswählen! | R82: Auswählen! | T82: Auswählen! | V82: Auswählen! | X82: Auswählen!
A83: Menge je Modul eintragen | C83: 1160 | E83: 1180 | G83: 1200 | I83: 1220 | K83: 1240 | M83: 1260 | O83: Beschr. | Q83: Beschr. | S83: 1320 | U83: 1340 | W83: 1360 | Y83: 1380
A84: evtl. Gesamt-Kabellänge (m) | C84: =Datenbank!B$102 ->  | E84: =Datenbank!D$102 ->  | G84: =Datenbank!F$102 ->  | I84: =Datenbank!H$102 ->  | K84: =Datenbank!J$102 ->  | M84: =Datenbank!L$102 ->  | O84: Ja | Q84: Ja | S84: =Datenbank!R$102 ->  | U84: =Datenbank!T$102 ->  | W84: =Datenbank!V$102 ->  | Y84: =Datenbank!X$102 -> 
F88: Durchführungen incl. Gummitüllen | N88: Blindblenden
A89: Anschlussfeldmodulreihe - 6 | N89: 4TE | P89: 8TE | R89: 12TE | V89: 16TE
A90: Module ins Anschlussfeld verschieben
A91: Vorderseite-Modul | B91: =Datenbank!$A1400 -> Frei 1400 | D91: =Datenbank!$A1420 -> Frei 1420 | F91: =Datenbank!$A1440 -> Durchf. RU | H91: =Datenbank!$A1460 -> Durchf. LU/RO | J91: =Datenbank!$A1480 -> Durchf. LO/RU | L91: =Datenbank!$A1500 -> Durchf. LU | N91: =Datenbank!$A1520 -> Blindpl. 4TE | P91: =Datenbank!$A1540 -> Blindpl. 8TE | R91: =Datenbank!$A1560 -> Blindpl. 12TE | T91: =Datenbank!$A1580 -> Frei 1580 | V91: =Datenbank!$A1600 -> Blindpl. 16TE | X91: =Datenbank!$A1620 -> Frei 1620
A92: Rückseite-Modul auswählen | B92: Auswählen! | D92: Auswählen! | F92: Durchf. Ende Ru | H92: Durchf. Mitte Lu/Ro | J92: Durchf. Mitte Lo/Ru | L92: Durchf. Ende Lu | N92: Blindplatte 4TE | P92: Blindplatte 8TE | R92: Blindplatte 12TE | V92: Blindplatte 16TE
A93: Menge je Modul eintragen | C93: 1400 | E93: 1420 | G93: 1440 | I93: 1460 | K93: 1480 | M93: 1500 | O93: 1520 | Q93: 1540 | S93: 1560 | U93: 1580 | W93: 1600 | Y93: 1620
A94: evtl. Gesamt-Kabellänge (m) | C94: =Datenbank!B$122 ->  | E94: =Datenbank!D$122 ->  | G94: =Datenbank!F$122 -> N | I94: =Datenbank!H$122 -> N | K94: =Datenbank!J$122 -> N | M94: =Datenbank!L$122 -> N | O94: =Datenbank!N$122 -> N | Q94: =Datenbank!P$122 -> N | S94: =Datenbank!R$122 -> N | U94: =Datenbank!T$122 ->  | W94: =Datenbank!V$122 -> N | Y94: =Datenbank!X$122 -> 
A98: Sonderausführungen | B98: VGA | C98: (4TE) | F98: (8TE) | H98: Sub-D | I98: (4TE) | L98: (8TE) | N98: XLR | O98: (12TE) | R98: Taster | T98: Antenne | V98: (4TE) | X98: 3,5Klinke
A99: Vorderseite-Modul | B99: VGA/Bu. St. | D99: VGA/St. | F99: VGA/St./3,5Kl. | H99: 9pin-Bu. | J99: 9pin-St. | L99: 15pin-St. | N99: z.B. 2x XLR 3pol-Bu. | R99: 2x Taster | T99: Antennen-St./Bu. | X99: 2x 3,5Klinke
A100: Sonderanfertigungen auf Anfrage.
B101: Bitte rufen Sie uns an! Tel.: 06036/980251 Email: info@heidekabel.de
A104: Sonderausführungen | B104: HDMI-LÖT | D104: 4pin Mini-DIN
A105: Vorderseite-Modul | B105: HDMI-Bu. 4TE
A106: Sonderanfertigungen auf Anfrage. | C106: AWG24
B107: Bitte rufen Sie uns an! Tel.: 06036/980251 Email: info@heidekabel.de
Y110: =IF(OR(AND($B$16="Nein",$B$18="Nein",$B$20="Nein"),AND($B$16="Ja",$B$18="Nein",$B$20="Nein")),"",IF(AND($B$16="Nein",$B$17="Nein",$B$18="Ja",$B$19="Nein",$B$20="Nein",$E$12=5520),5524,IF(AND($B$16="Nein",$B$18="Ja",$B$19="Nein",$B$20="Nein",$E$12=5522),5526,IF(AND($B$16="Nein",$B$18="Ja",$B$19="Ja",$B$20="Nein",$E$12=5520),5538,IF(AND($B$16="Nein",$B$18="Ja",$B$19="Ja",$B$20="Nein",$E$12=5522),5539,IF(AND($B$16="Nein",$B$17="Nein",$B$18="Nein",$B$19="Nein",$B$20="Ja",$E$12=5520),5528,IF(AND($B$16="Nein",$B$17="Nein",$B$18="Nein",$B$19="Nein",$B$20="Ja",$E$12=5522),5537,IF(V115=5522,22)))))))) -> 
AE182: 36
AE183: 28
AE184: 36
AE185: 28
AE186: 36
AE187: 36
AE188: 36
AE189: 36
AE190: 24
AE191: 36
AE192: 48
AE193: 20
AE194: 24
AE195: 36
AE196: 20
AE197: 24
AE198: 36
AE199: 28
M200: =IF(ISNA(VLOOKUP(1,$M$197:$O$198,2,FALSE)),"",IF(AND(#REF!="Ja",J$14=5520),VLOOKUP(1,$M$197:$O$198,2),IF(AND(#REF!="Ja",J$14=5522),VLOOKUP(1,$M$197:$O$198,3),""))) ->  | AE200: 44

Sheet Datenbank
X1: Summe aller ausgewählten Module: | Y1: =SUM($B$11:$X$11)+SUM($B$31:$X$31)+SUM($B$51:$X$51)+SUM($B$71:$X$71)+SUM($B$91:$X$91)+SUM($B$111:$X$111) -> 0 | AT1: Alu_Ja_Nein | AW1: Schuko_Wieland | AY1: unten_hinten | BA1: Menge_Module | BC1: Ja_Nein | BE1: Rabatt | BG1: Liste_Zusammenstellung | BL1: Liste_Anschlussfelder | BS1: Selektion Oberfläche | BV1: SVWERWEIS | BW1: Oberfläche
AT2: Nein | AW2: Schuko-Stecker | AY2: unten | BC2: Ja | BE2: Liste | BL2: 1. Modulträger auswählen! | BR2: Tischanschlussfeld Ja oder nein | BS2: =Konfigurator!E12 -> 0 | BT2: =IF(OR(BS2=5520,BS2=5522),0,32) -> 32 | BV2: 0 | BW2: Fehler
AT3: Oberfläche Alu gebürstet | AW3: Wieland-Stecker | AY3: hinten | BA3: 1 | BC3: Nein | BE3: 1 | BG3: 1 | BJ3: 1 | BK3: 5500 | BL3: AFM Träger GB3 Ackermann 36TE | BR3: Anschlussfeld 28TE/44TE | BS3: =Konfigurator!E12 -> 0 | BT3: =IF(BS3=5520,0,1) -> 1 | BV3: 1 | BW3: Fehler
AT4: Oberfläche Alu gebürstet angefast | BA4: 2 | BE4: 2 | BG4: 2 | BJ4: 2 | BK4: 5501 | BL4: AFM Träger GB2 Ackermann 28TE | BR4: =Konfigurator!A16 -> Oberfläche Stahl 90° gepulvert RAL 9006 | BS4: =Konfigurator!B16 -> Ja | BT4: =IF(BS4="Ja",2,0) -> 2 | BV4: 2
BA5: 3 | BE5: 3 | BG5: 3 | BJ5: 3 | BK5: 5502 | BL5: AFM Träger GB3 Electraplan 36TE | BR5: =Konfigurator!A18 -> Option Oberfläche Alu 90° gebürstet | BS5: =Konfigurator!B18 -> Nein | BT5: =IF(BS5="Ja",4,0) -> 0 | BV5: 3
BA6: 4 | BE6: 4 | BG6: 4 | BJ6: 4 | BK6: 5503 | BL6: AFM Träger GB2 Electraplan 28TE | BR6: =Konfigurator!A19 -> Option Oberfläche angefast 45° | BS6: =Konfigurator!B19 -> Nein | BT6: =IF(BS6="Ja",8,0) -> 0 | BV6: 4 | BW6: 5524
BA7: 5 | BE7: 5 | BG7: 5 | BJ7: 5 | BK7: 5506 | BL7: AFM Träger GBV3 Electraplan 28TE | BR7: =Konfigurator!A20 -> Option Oberfläche Edelstahl 90° | BS7: =Konfigurator!B20 -> Nein | BT7: =IF(BS7="Ja",16,0) -> 0 | BV7: 5 | BW7: 5526
BA8: 6 | BE8: 6 | BG8: 6 | BJ8: 6 | BK8: 5507 | BL8: AFM Träger GBR3 Electraplan 36TE | BS8: Summe | BT8: =SUM(BT2:BT7) -> 35 | BV8: 6 | BW8: Fehler
A9: Modulreihe - 1 | B9: =$A200 -> VGA-Buchse | D9: =$A220 -> 3,5Kl.-Bu./Ster. | F9: =$A240 -> VGA-Bu./3,5Kl. | H9: =$A260 -> DVI-Buchse | J9: =$A280 -> DVI-Bu/3,5Kl. | L9: =$A300 -> HDMI-Bu. | N9: =$A320 -> 0 | P9: =$A340 -> HDMI-Bu.360° | R9: =$A360 -> HDMI-Bu.Platine | T9: =$A380 -> DP-Bu. | V9: =$A400 -> DP-Bu. | X9: =$A420 -> 0 | BA9: 7 | BE9: 7 | BG9: 7 | BJ9: 7 | BK9: 5505 | BL9: AFM Träger GBV4 Electraplan 36TE | BV9: 7 | BW9: Fehler
A10: Laufende Nummer 1 | B10: =IF(B$11<1,"",B$11) ->  | D10: =IF(D$11<1,"",SUM($B$11:D$11)) ->  | F10: =IF(F$11<1,"",SUM($B$11:F$11)) ->  | H10: =IF(H$11<1,"",SUM($B$11:H$11)) ->  | J10: =IF(J$11<1,"",SUM($B$11:J$11)) ->  | L10: =IF(L$11<1,"",SUM($B$11:L$11)) ->  | N10: =IF(N$11<1,"",SUM($B$11:N$11)) ->  | P10: =IF(P$11<1,"",SUM($B$11:P$11)) ->  | R10: =IF(R$11<1,"",SUM($B$11:R$11)) ->  | T10: =IF(T$11<1,"",SUM($B$11:T$11)) ->  | V10: =IF(V$11<1,"",SUM($B$11:V$11)) ->  | X10: =IF(X$11<1,"",SUM($B$11:X$11)) ->  | BA10: 8 | BE10: 8 | BG10: 8 | BJ10: 8 | BK10: 5504 | BL10: AFM Träger PUK/Vergokan | BV10: 8 | BW10: Fehler
A11: Modul ausgewählt 2 | B11: =IF($F$200=0,0,IF(B$13>0,1,0)) -> 0 | D11: =IF($F$220=0,0,IF(D$13>0,1,0)) -> 0 | F11: =IF($F$240=0,0,IF(F$13>0,1,0)) -> 0 | H11: =IF($F$260=0,0,IF(H$13>0,1,0)) -> 0 | J11: =IF($F$280=0,0,IF(J$13>0,1,0)) -> 0 | L11: =IF($F$300=0,0,IF(L$13>0,1,0)) -> 0 | N11: =IF($F$320=0,0,IF(N$13>0,1,0)) -> 0 | P11: =IF($F$340=0,0,IF(P$13>0,1,0)) -> 0 | R11: =IF($F$360=0,0,IF(R$13>0,1,0)) -> 0 | T11: =IF($F$380=0,0,IF(T$13>0,1,0)) -> 0 | V11: =IF($F$400=0,0,IF(V$13>0,1,0)) -> 0 | X11: =IF($F$420=0,0,IF(X$13>0,1,0)) -> 0 | Y11: =SUM(B11:X11) -> 0 | BA11: 9 | BE11: 9 | BG11: 9 | BJ11: 9 | BK11: 5510 | BL11: AFM Wandkanal 24TE | BV11: 9 | BW11: Fehler
A12: Abzug Standard-Kabellänge 3 | B12: =IF(B$14>0,(-0.3*B$13),0) -> 0 | D12: =IF(D$14>0,(-0.3*D$13),0) -> 0 | F12: =IF(F$14>0,(-0.3*F$13),0) -> 0 | H12: =IF(H$14>0,(-0.3*H$13),0) -> 0 | J12: =IF(J$14>0,(-0.3*J$13),0) -> 0 | L12: =IF(L$14>0,(-0.3*L$13),0) -> 0 | N12: =IF(N$14>0,(-0.3*N$13),0) -> 0 | P12: =IF(P$14>0,(-0.3*P$13),0) -> 0 | R12: =IF(R$14>0,(-0.3*R$13),0) -> 0 | T12: =IF(T$14>0,(-0.3*T$13),0) -> 0 | V12: =IF(V$14>0,(-0.3*V$13),0) -> 0 | X12: =IF(X$14>0,(-0.3*X$13),0) -> 0 | BA12: 10 | BE12: 10 | BG12: 10 | BJ12: 10 | BK12: 5511 | BL12: AFM Wandkanal 36TE | BV12: 10 | BW12: 5525
A13: Menge Module 4 | B13: =Konfigurator!B43 -> 0 | D13: =Konfigurator!D43 -> 0 | F13: =Konfigurator!F43 -> 0 | H13: =Konfigurator!H43 -> 0 | J13: =Konfigurator!J43 -> 0 | L13: =Konfigurator!L43 -> 0 | N13: =Konfigurator!N43 -> 0 | P13: =Konfigurator!P43 -> 0 | R13: =Konfigurator!R43 -> 0 | T13: =Konfigurator!T43 -> 0 | V13: =Konfigurator!V43 -> 0 | X13: =Konfigurator!X43 -> 0 | BE13: 11 | BG13: 11 | BJ13: 11 | BK13: 5512 | BL13: AFM Wandkanal 48TE | BV13: 11 | BW13: 5527
A14: Kabellänge (Meter) 5 | B14: =Konfigurator!B44 -> 0 | D14: =Konfigurator!D44 -> 0 | F14: =Konfigurator!F44 -> 0 | H14: =Konfigurator!H44 -> 0 | J14: =Konfigurator!J44 -> 0 | L14: =Konfigurator!L44 -> 0 | N14: =Konfigurator!N44 -> 0 | P14: =Konfigurator!P44 -> 0 | R14: =Konfigurator!R44 -> 0 | T14: =Konfigurator!T44 -> 0 | V14: =Konfigurator!V44 -> 0 | X14: =Konfigurator!X44 -> 0 | BE14: 12 | BG14: 12 | BJ14: 12 | BK14: 5513 | BL14: AFM Wandkanal schräg 24TE | BV14: 12 | BW14: 5538
A15: Artikel-Nr. 6 | B15: =IF($B$13=0,"",IF(ISNA(VLOOKUP($F$200,$F$201:$J$210,2,FALSE)),"",IF($F$200=FALSE,"",VLOOKUP($F$200,$F$201:$J$210,2)))) ->  | D15: =IF($D$13=0,"",IF(ISNA(VLOOKUP($F$220,$F$221:$J$230,2,FALSE)),"",IF($F$220=FALSE,"",VLOOKUP($F$220,$F$221:$J$230,2)))) ->  | F15: =IF($F$13=0,"",IF(ISNA(VLOOKUP($F$240,$F$241:$J$250,2,FALSE)),"",IF($F$240=FALSE,"",VLOOKUP($F$240,$F$241:$J$250,2)))) ->  | H15: =IF($H$13=0,"",IF(ISNA(VLOOKUP($F$260,$F$261:$J$270,2,FALSE)),"",IF($F$260=FALSE,"",VLOOKUP($F$260,$F$261:$J$270,2)))) ->  | J15: =IF($J$13=0,"",IF(ISNA(VLOOKUP($F$280,$F$281:$J$290,2,FALSE)),"",IF($F$280=FALSE,"",VLOOKUP($F$280,$F$281:$J$290,2)))) ->  | L15: =IF($L$13=0,"",IF(ISNA(VLOOKUP($F$300,$F$301:$J$314,2,FALSE)),"",IF($F$300=FALSE,"",VLOOKUP($F$300,$F$301:$J$314,2)))) ->  | N15: =IF($N$13=0,"",IF(ISNA(VLOOKUP($F$320,$F$321:$J$333,2,FALSE)),"",IF($F$320=FALSE,"",VLOOKUP($F$320,$F$321:$J$333,2)))) ->  | P15: =IF($P$13=0,"",IF(ISNA(VLOOKUP($F$340,$F$341:$J$353,2,FALSE)),"",IF($F$340=FALSE,"",VLOOKUP($F$340,$F$341:$J$353,2)))) ->  | R15: =IF($R$13=0,"",IF(ISNA(VLOOKUP($F$360,$F$361:$J$370,2,FALSE)),"",IF($F$360=FALSE,"",VLOOKUP($F$360,$F$361:$J$370,2)))) ->  | T15: =IF($T$13=0,"",IF(ISNA(VLOOKUP($F$380,$F$381:$J$390,2,FALSE)),"",IF($F$380=FALSE,"",VLOOKUP($F$380,$F$381:$J$390,2)))) ->  | V15: =IF($V$13=0,"",IF(ISNA(VLOOKUP($F$400,$F$401:$J$410,2,FALSE)),"",IF($F$400=FALSE,"",VLOOKUP($F$400,$F$401:$J$410,2)))) ->  | X15: =IF($X$13=0,"",IF(ISNA(VLOOKUP($F$420,$F$421:$J$430,2,FALSE)),"",IF($F$420=FALSE,"",VLOOKUP($F$420,$F$421:$J$430,2)))) ->  | BE15: 13 | BG15: 13 | BJ15: 13 | BK15: 5532 | BL15: AFM Wandgehäuse 125mm 20TE sw | BV15: 13 | BW15: 5539
A16: TE 7 | B16: =IF($B$13=0,"",IF(ISNA(VLOOKUP($F$200,$F$201:$J$210,3,FALSE)),"",IF($F$200=FALSE,"",VLOOKUP($F$200,$F$201:$J$210,3)))) ->  | D16: =IF($D$13=0,"",IF(ISNA(VLOOKUP($F$220,$F$221:$J$230,3,FALSE)),"",IF($F$220=FALSE,"",VLOOKUP($F$220,$F$221:$J$230,3)))) ->  | F16: =IF($F$13=0,"",IF(ISNA(VLOOKUP($F$240,$F$241:$J$250,3,FALSE)),"",IF($F$240=FALSE,"",VLOOKUP($F$240,$F$241:$J$250,3)))) ->  | H16: =IF($H$13=0,"",IF(ISNA(VLOOKUP($F$260,$F$261:$J$270,3,FALSE)),"",IF($F$260=FALSE,"",VLOOKUP($F$260,$F$261:$J$270,3)))) ->  | J16: =IF($J$13=0,"",IF(ISNA(VLOOKUP($F$280,$F$281:$J$290,3,FALSE)),"",IF($F$280=FALSE,"",VLOOKUP($F$280,$F$281:$J$290,3)))) ->  | L16: =IF($L$13=0,"",IF(ISNA(VLOOKUP($F$300,$F$301:$J$314,3,FALSE)),"",IF($F$300=FALSE,"",VLOOKUP($F$300,$F$301:$J$314,3)))) ->  | N16: =IF($N$13=0,"",IF(ISNA(VLOOKUP($F$320,$F$321:$J$333,3,FALSE)),"",IF($F$320=FALSE,"",VLOOKUP($F$320,$F$321:$J$333,3)))) ->  | P16: =IF($P$13=0,"",IF(ISNA(VLOOKUP($F$340,$F$341:$J$353,3,FALSE)),"",IF($F$340=FALSE,"",VLOOKUP($F$340,$F$341:$J$353,3)))) ->  | R16: =IF($R$13=0,"",IF(ISNA(VLOOKUP($F$360,$F$361:$J$370,3,FALSE)),"",IF($F$360=FALSE,"",VLOOKUP($F$360,$F$361:$J$370,3)))) ->  | T16: =IF($T$13=0,"",IF(ISNA(VLOOKUP($F$380,$F$381:$J$390,3,FALSE)),"",IF($F$380=FALSE,"",VLOOKUP($F$380,$F$381:$J$390,3)))) ->  | V16: =IF($V$13=0,"",IF(ISNA(VLOOKUP($F$400,$F$401:$J$410,3,FALSE)),"",IF($F$400=FALSE,"",VLOOKUP($F$400,$F$401:$J$410,3)))) ->  | X16: =IF($X$13=0,"",IF(ISNA(VLOOKUP($F$420,$F$421:$J$430,3,FALSE)),"",IF($F$420=FALSE,"",VLOOKUP($F$420,$F$421:$J$430,3)))) ->  | BE16: 14 | BG16: 14 | BJ16: 14 | BK16: 5531 | BL16: AFM Wandgehäuse 160mm 24TE sw | BV16: 14 | BW16: Fehler
A17: Einzel-Preis 8 | B17: =IF(B13=0,"",IF(ISNA(VLOOKUP($F$200,$F$201:$J$210,4,FALSE)),"",IF($F$200=FALSE,"",VLOOKUP($F$200,$F$201:$J$210,4)))) ->  | D17: =IF($D$13=0,"",IF(ISNA(VLOOKUP($F$220,$F$221:$J$230,4,FALSE)),"",IF($F$220=FALSE,"",VLOOKUP($F$220,$F$221:$J$230,4)))) ->  | F17: =IF($F$13=0,"",IF(ISNA(VLOOKUP($F$240,$F$241:$J$250,4,FALSE)),"",IF($F$240=FALSE,"",VLOOKUP($F$240,$F$241:$J$250,4)))) ->  | H17: =IF($H$13=0,"",IF(ISNA(VLOOKUP($F$260,$F$261:$J$270,4,FALSE)),"",IF($F$260=FALSE,"",VLOOKUP($F$260,$F$261:$J$270,4)))) ->  | J17: =IF($J$13=0,"",IF(ISNA(VLOOKUP($F$280,$F$281:$J$290,4,FALSE)),"",IF($F$280=FALSE,"",VLOOKUP($F$280,$F$281:$J$290,4)))) ->  | L17: =IF($L$13=0,"",IF(ISNA(VLOOKUP($F$300,$F$301:$J$314,4,FALSE)),"",IF($F$300=FALSE,"",VLOOKUP($F$300,$F$301:$J$314,4)))) ->  | N17: =IF($N$13=0,"",IF(ISNA(VLOOKUP($F$320,$F$321:$J$333,4,FALSE)),"",IF($F$320=FALSE,"",VLOOKUP($F$320,$F$321:$J$333,4)))) ->  | P17: =IF($P$13=0,"",IF(ISNA(VLOOKUP($F$340,$F$341:$J$353,4,FALSE)),"",IF($F$340=FALSE,"",VLOOKUP($F$340,$F$341:$J$353,4)))) ->  | R17: =IF($R$13=0,"",IF(ISNA(VLOOKUP($F$360,$F$361:$J$370,4,FALSE)),"",IF($F$360=FALSE,"",VLOOKUP($F$360,$F$361:$J$370,4)))) ->  | T17: =IF($T$13=0,"",IF(ISNA(VLOOKUP($F$380,$F$381:$J$390,4,FALSE)),"",IF($F$380=FALSE,"",VLOOKUP($F$380,$F$381:$J$390,4)))) ->  | V17: =IF($V$13=0,"",IF(ISNA(VLOOKUP($F$400,$F$401:$J$410,4,FALSE)),"",IF($F$400=FALSE,"",VLOOKUP($F$400,$F$401:$J$410,4)))) ->  | X17: =IF($X$13=0,"",IF(ISNA(VLOOKUP($F$420,$F$421:$J$430,4,FALSE)),"",IF($F$420=FALSE,"",VLOOKUP($F$420,$F$421:$J$430,4)))) ->  | BE17: 15 | BG17: 15 | BJ17: 15 | BK17: 5530 | BL17: AFM Wandgehäuse 215mm 36TE sw | BV17: 15 | BW17: Fehler
A18: Artikel-Nr. Zusatzkabel - 1 9 | B18: =IF(OR($B$22="N",$B$14=0),"",IF($F$200=FALSE,"",IF($F$200=0,"",$G$211))) ->  | D18: =IF(OR($D$22="N",$D$14=0),"",IF($F$220=FALSE,"",IF(OR($F$220=0,$F$220=1,$F$220=2),"",IF(OR($F$220=3,$F$220=4,$F$220=7),$G$233,IF(OR($F$220=5,$F$220=6),$G$234))))) ->  | F18: =IF(OR($F$22="N",$F$14=0),"",IF($F$240=FALSE,"",IF($F$240=0,"",$G$251))) ->  | H18: =IF(OR($H$22="N",$H$14=0),"",IF($F$260=FALSE,"",IF($F$260=0,"",IF(OR($F$260=3,$F$260=4),$G$271,IF(OR($F$260=5,$F$260=6),$G$272,""))))) ->  | J18: =IF(OR($J$22="N",$J$14=0),"",IF($F$280=FALSE,"",IF($F$280=0,"",IF(OR($F$280=2,$F$280=3),$G$291,IF(OR($F$280=4,$F$280=5),$G$292,""))))) ->  | L18: =IF(OR($L$22="N",$L$14=0),"",IF($F$300=FALSE,"",IF($F$300=0,"",VLOOKUP(L$14,$B$303:$J$314,6)))) ->  | N18: =IF(OR($N$22="N",$N$14=0),"",IF($F$320=FALSE,"",IF($F$320=0,"",VLOOKUP(N$14,$B$322:$J$333,6)))) ->  | P18: =IF(OR($P$22="N",$P$14=0),"",IF($F$340=FALSE,"",IF($F$340=0,"",VLOOKUP(P$14,$B$342:$J$353,6)))) ->  | R18: =IF(OR($R$22="N",$R$14=0),"",IF($F$360=FALSE,"",IF($F$360=0,"",$G$371))) ->  | T18: =IF(OR($T$22="N",$T$14=0),"",IF($F$380=FALSE,"",IF($F$380=0,"",$G$391))) ->  | V18: =IF(OR($V$22="N",$V$14=0),"",IF($F$400=FALSE,"",IF($F$400=0,"",$G$411))) ->  | X18: =IF(OR($X$22="N",$X$14=0),"",IF($F$420=FALSE,"",IF($F$420=0,"",$G$431))) ->  | BE18: 16 | BG18: 16 | BJ18: 16 | BK18: 5535 | BL18: AFM Wandgehäuse 125mm 20TE gr | BV18: 16 | BW18: 5528
A19: zusätzliche Kabellänge /m 10 | B19: =IF(OR($B$22="N",$B$14=0),"",IF($F$200=FALSE,"",IF($F$200=0,"",$I$211))) ->  | D19: =IF(OR($D$22="N",$D$14=0),"",IF($F$220=FALSE,"",IF(OR($F$220=0,$F$220=1,$F$220=2),"",IF(OR($F$220=3,$F$220=4,$F$220=7),$I$233,IF(OR($F$220=5,$F$220=6),$I$234,"X"))))) ->  | F19: =IF(OR($F$22="N",$F$14=0),"",IF($F$240=FALSE,"",IF($F$240=0,"",$I$251))) ->  | H19: =IF(OR($H$22="N",$H$14=0),"",IF($F$260=FALSE,0,IF($F$260=0,0,IF(OR($F$260=3,$F$260=4),$I$271,IF(OR($F$260=5,$F$260=6),$I$272,0))))) ->  | J19: =IF(OR($J$22="N",$J$14=0),"",IF($F$280=FALSE,"",IF($F$280=0,"",IF(OR($F$280=2,$F$280=3),$I$291,IF(OR($F$280=4,$F$280=5),$I$292,""))))) ->  | L19: =IF(OR($L$22="N",$L$14=0),"",IF($F$300=FALSE,"",IF($F$300=0,"",VLOOKUP(L$14,$B$303:$J$314,8)))) ->  | N19: =IF(OR($N$22="N",$N$14=0),"",IF($F$320=FALSE,"",IF($F$320=0,"",VLOOKUP(N$14,$B$322:$J$333,8)))) ->  | P19: =IF(OR($P$22="N",$P$14=0),"",IF($F$340=FALSE,"",IF($F$340=0,"",VLOOKUP(P$14,$B$342:$J$353,8)))) ->  | R19: =IF(OR($R$22="N",$R$14=0),"",IF($F$360=FALSE,"",IF($F$360=0,"",$I$371))) ->  | T19: =IF(OR($T$22="N",$T$14=0),"",IF($F$380=FALSE,"",IF($F$380=0,"",$I$391))) ->  | V19: =IF(OR($V$22="N",$V$14=0),"",IF($F$400=FALSE,"",IF($F$400=0,"",$I$411))) ->  | X19: =IF(OR($X$22="N",$X$14=0),"",IF($F$420=FALSE,"",IF($F$420=0,"",$I$431))) ->  | BE19: 17 | BG19: 17 | BJ19: 17 | BK19: 5534 | BL19: AFM Wandgehäuse 160mm 24TE gr | BV19: 17 | BW19: 5537
A20: Artikel-Nr. Zusatzkabel Audio 11 | B20: =IF(OR($B$22="N",$B$14=0,$G$213=""),"",IF($F$200=FALSE,"",IF($F$200=0,"",$G$213))) ->  | D20: =IF(OR($D$22="N",$D$14=0,$G$233=""),"",IF($F$220=FALSE,"",IF($F$220=0,"",""))) ->  | F20: =IF(OR($F$22="N",$F$14=0,$G$253=""),"",IF($F$240=FALSE,"",IF($F$240=0,"",$G$253))) ->  | H20: =IF(OR($H$22="N",$H$14=0,$G$273=""),"",IF($F$260=FALSE,"",IF($F$260=0,"",$G$273))) ->  | J20: =IF(OR($J$22="N",$J$14=0,$G$293=""),"",IF($F$280=FALSE,"",IF($F$280=0,"",$G$293))) ->  | L20: =IF(OR($L$22="N",$L$14=0,$G$317=""),"",IF($F$300=FALSE,"",IF($F$300=0,"",$G$317))) ->  | N20: =IF(OR($N$22="N",$N$14=0,$G$336=""),"",IF($F$320=FALSE,"",IF($F$320=0,"",$G$336))) ->  | P20: =IF(OR($P$22="N",$P$14=0,$G$356=""),"",IF($F$340=FALSE,"",IF($F$340=0,"",$G$356))) ->  | R20: =IF(OR($R$22="N",$R$14=0,$G$373=""),"",IF($F$360=FALSE,"",IF($F$360=0,"",$G$373))) ->  | T20: =IF(OR($T$22="N",$T$14=0,$G$393=""),"",IF($F$380=FALSE,"",IF($F$380=0,"",$G$393))) ->  | V20: =IF(OR($V$22="N",$V$14=0,$G$412=""),"",IF($F$400=FALSE,"",IF($F$400=0,"",IF(OR($V$15=5619,$V$15=5620,$V$15=5739),$G$412,$G$413)))) ->  | X20: =IF(OR($X$22="N",$X$14=0,$G$433=""),"",IF($F$420=FALSE,"",IF($F$420=0,"",$G$433))) ->  | BE20: 18 | BG20: 18 | BJ20: 18 | BK20: 5533 | BL20: AFM Wandgehäuse 215mm 36TE gr | BV20: 18 | BW20: Fehler
A21: zusätzliche Kabellänge Audio /m 12 | B21: =IF(OR($B$22="N",$B$14=0,$G$213=""),"",IF($F$200=FALSE,"",IF($F$200=0,"",$I$213))) ->  | D21: =IF(OR($D$22="N",$D$14=0,$G$233=""),"",IF($F$220=FALSE,"",IF($F$220=0,"",""))) ->  | F21: =IF(OR($F$22="N",$F$14=0,$G$253=""),"",IF($F$240=FALSE,"",IF($F$240=0,"",$I$253))) ->  | H21: =IF(OR($H$22="N",$H$14=0,$G$273=""),"",IF($F$260=FALSE,"",IF($F$260=0,"",$I$273))) ->  | J21: =IF(OR($J$22="N",$J$14=0,$G$293=""),"",IF($F$280=FALSE,"",IF($F$280=0,"",$I$293))) ->  | L21: =IF(OR($L$22="N",$L$14=0,$G$317=""),"",IF($F$300=FALSE,"",IF($F$300=0,"",$I$317))) ->  | N21: =IF(OR($N$22="N",$N$14=0,$G$336=""),"",IF($F$320=FALSE,"",IF($F$320=0,"",$I$336))) ->  | P21: =IF(OR($P$22="N",$P$14=0,$G$356=""),"",IF($F$340=FALSE,"",IF($F$340=0,"",$I$356))) ->  | R21: =IF(OR($R$22="N",$R$14=0,$G$373=""),"",IF($F$360=FALSE,"",IF($F$360=0,"",$I$373))) ->  | T21: =IF(OR($T$22="N",$T$14=0,$G$393=""),"",IF($F$380=FALSE,"",IF($F$380=0,"",$I$393))) ->  | V21: =IF(OR($V$22="N",$V$14=0,$G$412=""),"",IF($F$400=FALSE,"",IF($F$400=0,"",IF(OR($V$15=5619,$V$15=5620,$V$15=5739),$I$412,$I$413)))) ->  | X21: =IF(OR($X$22="N",$X$14=0,$G$433=""),"",IF($F$420=FALSE,"",IF($F$420=0,"",$I$433))) ->  | BE21: 19 | BG21: 19 | BJ21: 19 | BK21: 5520 | BL21: AFM Tischeinbaufeld 28TE | BV21: 19 | BW21: Fehler
A22: (je ausgewähltem Anschluss) Kabel J/N 13 | B22: =IF(ISNA(VLOOKUP($F$200,$F$201:$J$210,5,FALSE)),"",IF($F$200=FALSE,"",VLOOKUP($F$200,$F$201:$J$210,5))) ->  | D22: =IF(ISNA(VLOOKUP($F$220,$F$221:$J$230,5,FALSE)),"",IF($F$220=FALSE,"",VLOOKUP($F$220,$F$221:$J$230,5))) ->  | F22: =IF(ISNA(VLOOKUP($F$240,$F$241:$J$250,5,FALSE)),"",IF($F$240=FALSE,"",VLOOKUP($F$240,$F$241:$J$250,5))) ->  | H22: =IF(ISNA(VLOOKUP($F$260,$F$261:$J$270,5,FALSE)),"",IF($F$260=FALSE,"",VLOOKUP($F$260,$F$261:$J$270,5))) ->  | J22: =IF(ISNA(VLOOKUP($F$280,$F$281:$J$290,5,FALSE)),"",IF($F$280=FALSE,"",VLOOKUP($F$280,$F$281:$J$290,5))) ->  | L22: =IF(ISNA(VLOOKUP($F$300,$F$301:$J$314,5,FALSE)),"",IF($F$300=FALSE,"",VLOOKUP($F$300,$F$301:$J$314,5))) ->  | N22: =IF(ISNA(VLOOKUP($F$320,$F$321:$J$333,5,FALSE)),"",IF($F$320=FALSE,"",VLOOKUP($F$320,$F$321:$J$333,5))) ->  | P22: =IF(ISNA(VLOOKUP($F$340,$F$341:$J$353,5,FALSE)),"",IF($F$340=FALSE,"",VLOOKUP($F$340,$F$341:$J$353,5))) ->  | R22: =IF(ISNA(VLOOKUP($F$360,$F$361:$J$370,5,FALSE)),"",IF($F$360=FALSE,"",VLOOKUP($F$360,$F$361:$J$370,5))) ->  | T22: =IF(ISNA(VLOOKUP($F$380,$F$381:$J$390,5,FALSE)),"",IF($F$380=FALSE,"",VLOOKUP($F$380,$F$381:$J$390,5))) ->  | V22: =IF(ISNA(VLOOKUP($F$400,$F$401:$J$410,5,FALSE)),"",IF($F$400=FALSE,"",VLOOKUP($F$400,$F$401:$J$410,5))) ->  | X22: =IF(ISNA(VLOOKUP($F$420,$F$421:$J$430,5,FALSE)),"",IF($F$420=FALSE,"",VLOOKUP($F$420,$F$421:$J$430,5))) ->  | BE22: 20 | BG22: 20 | BJ22: 20 | BK22: 5522 | BL22: AFM Tischeinbaufeld 44TE | BV22: 20 | BW22: Fehler
A23: Zusätzliche Kabellänge 14 | B23: =IF(B22="N",0,(B14*B13)+B12) -> 0 | D23: =IF(D22="N",0,(D14*D13)+D12) -> 0 | F23: =IF(F22="N",0,(F14*F13)+F12) -> 0 | H23: =IF(H22="N",0,(H14*H13)+H12) -> 0 | J23: =IF(J22="N",0,(J14*J13)+J12) -> 0 | L23: =L14*L13 -> 0 | N23: =N14*N13 -> 0 | P23: =P14*P13 -> 0 | R23: =IF(R22="N",0,(R14*R13)+R12) -> 0 | T23: =IF(T22="N",0,(T14*T13)+T12) -> 0 | V23: =IF(V22="N",0,(V14*V13)+V12) -> 0 | X23: =IF(X22="N",0,(X14*X13)+X12) -> 0 | BE23: 21 | BJ23: 21 | BK23: 5519 | BL23: AFM 19" 2HE Anschlussfeld 84TE | BV23: 21 | BW23: Fehler
A24: Summe TE 15 | B24: =IF(B$13=0,"",B$13*B$16) ->  | D24: =IF(D$13=0,"",D$13*D$16) ->  | F24: =IF(F$13=0,"",F$13*F$16) ->  | H24: =IF(H$13=0,"",H$13*H$16) ->  | J24: =IF(J$13=0,"",J$13*J$16) ->  | L24: =IF(L$13=0,"",L$13*L$16) ->  | N24: =IF(N$13=0,"",N$13*N$16) ->  | P24: =IF(P$13=0,"",P$13*P$16) ->  | R24: =IF(R$13=0,"",R$13*R$16) ->  | T24: =IF(T$13=0,"",T$13*T$16) ->  | V24: =IF(V$13=0,"",V$13*V$16) ->  | X24: =IF(X$13=0,"",X$13*X$16) ->  | BE24: 22 | BV24: 22 | BW24: Fehler
A25: Datenaufbereitung | B25: 200 | D25: 220 | F25: 240 | H25: 260 | J25: 280 | L25: 300 | N25: 320 | P25: 340 | R25: 360 | T25: 380 | V25: 400 | X25: 420 | BE25: 23 | BV25: 23 | BW25: Fehler
A26: Konfigurator | B26: AFM | D26: AFM | F26: AFM | H26: AFM | J26: AFM | L26: AFM | N26: AFM | P26: AFM | R26: AFM | T26: AFM | V26: AFM | X26: AFM | BE26: 24 | BV26: 24 | BW26: Fehler
BE27: 25 | BV27: 25 | BW27: Fehler
BE28: 26 | BV28: 26 | BW28: Fehler
A29: Modulreihe - 2 | B29: =$A440 -> 3pol-Bu. | D29: =$A460 -> 3pol-St. | F29: =$A480 -> 4pol-Bu. | H29: =$A500 -> 5pol-Bu. | J29: =$A520 -> 6pol-Bu. | L29: =$A540 -> XLR USB-Bu/Bu. | N29: =$A560 -> XLR - RJ45 | P29: =$A580 -> XLR - Cat.6 | R29: =$A600 -> XLR - Cat.6A | T29: =$A620 -> 4pol-Speakon | V29: =$A640 -> PowerCon-A | X29: =$A660 -> PowerCon-B | BE29: 27 | BV29: 27 | BW29: Fehler
A30: Laufende Nummer 1 | B30: =IF(B$31<1,"",SUM($B$11:$X$11)+SUM($B$31)) ->  | D30: =IF(D$31<1,"",SUM($B$11:$X$11)+SUM($B$31:D$31)) ->  | F30: =IF(F$31<1,"",SUM($B$11:$X$11)+SUM($B$31:F$31)) ->  | H30: =IF(H$31<1,"",SUM($B$11:$X$11)+SUM($B$31:H$31)) ->  | J30: =IF(J$31<1,"",SUM($B$11:$X$11)+SUM($B$31:J$31)) ->  | L30: =IF(L$31<1,"",SUM($B$11:$X$11)+SUM($B$31:L$31)) ->  | N30: =IF(N$31<1,"",SUM($B$11:$X$11)+SUM($B$31:N$31)) ->  | P30: =IF(P$31<1,"",SUM($B$11:$X$11)+SUM($B$31:P$31)) ->  | R30: =IF(R$31<1,"",SUM($B$11:$X$11)+SUM($B$31:R$31)) ->  | T30: =IF(T$31<1,"",SUM($B$11:$X$11)+SUM($B$31:T$31)) ->  | V30: =IF(V$31<1,"",SUM($B$11:$X$11)+SUM($B$31:V$31)) ->  | X30: =IF(X$31<1,"",SUM($B$11:$X$11)+SUM($B$31:X$31)) ->  | BE30: 28 | BV30: 28 | BW30: Fehler
A31: Modul ausgewählt 2 | B31: =IF($F$440=0,0,IF(B$33>0,1,0)) -> 0 | D31: =IF($F$460=0,0,IF(D$33>0,1,0)) -> 0 | F31: =IF($F$480=0,0,IF(F$33>0,1,0)) -> 0 | H31: =IF($F$500=0,0,IF(H$33>0,1,0)) -> 0 | J31: =IF($F$520=0,0,IF(J$33>0,1,0)) -> 0 | L31: =IF($F$540=0,0,IF(L$33>0,1,0)) -> 0 | N31: =IF($F$560=0,0,IF(N$33>0,1,0)) -> 0 | P31: =IF($F$580=0,0,IF(P$33>0,1,0)) -> 0 | R31: =IF($F$600=0,0,IF(R$33>0,1,0)) -> 0 | T31: =IF($F$620=0,0,IF(T$33>0,1,0)) -> 0 | V31: =IF($F$640=0,0,IF(V$33>0,1,0)) -> 0 | X31: =IF($F$660=0,0,IF(X$33>0,1,0)) -> 0 | Y31: =SUM(B11:X11)+SUM(B31:X31) -> 0 | BE31: 29 | BV31: 29 | BW31: Fehler
A32: Abzug Standard-Kabellänge 3 | B32: =IF(B$34>0,(-0.3*B$33),0) -> 0 | D32: =IF(D$34>0,(-0.3*D$33),0) -> 0 | F32: =IF(F$34>0,(-0.3*F$33),0) -> 0 | H32: =IF(H$34>0,(-0.3*H$33),0) -> 0 | J32: =IF(J$34>0,(-0.3*J$33),0) -> 0 | L32: =IF(L$34>0,(-0.3*L$33),0) -> 0 | N32: =IF(N$34>0,(-0.3*N$33),0) -> 0 | P32: =IF(P$34>0,(-0.3*P$33),0) -> 0 | R32: =IF(R$34>0,(-0.3*R$33),0) -> 0 | T32: =IF(T$34>0,(-0.3*T$33),0) -> 0 | V32: =IF(V$34>0,(-0.3*V$33),0) -> 0 | X32: =IF(X$34>0,(-0.3*X$33),0) -> 0 | BE32: 30 | BV32: 30 | BW32: Fehler
A33: Menge Module 4 | B33: =Konfigurator!B53 -> 0 | D33: =Konfigurator!D53 -> 0 | F33: =Konfigurator!F53 -> 0 | H33: =Konfigurator!H53 -> 0 | J33: =Konfigurator!J53 -> 0 | L33: =Konfigurator!L53 -> 0 | N33: =Konfigurator!N53 -> 0 | P33: =Konfigurator!P53 -> 0 | R33: =Konfigurator!R53 -> 0 | T33: =Konfigurator!T53 -> 0 | V33: =Konfigurator!V53 -> 0 | X33: =Konfigurator!X53 -> 0 | BE33: 31 | BV33: 31 | BW33: Fehler
A34: Kabellänge (Meter) 5 | B34: =Konfigurator!B54 -> 0 | D34: =Konfigurator!D54 -> 0 | F34: =Konfigurator!F54 -> 0 | H34: =Konfigurator!H54 -> 0 | J34: =Konfigurator!J54 -> 0 | L34: =Konfigurator!L54 -> 0 | N34: =Konfigurator!N54 -> 0 | P34: =Konfigurator!P54 -> 0 | R34: =Konfigurator!R54 -> 0 | T34: =Konfigurator!T54 -> 0 | V34: =Konfigurator!V54 -> 0 | X34: =Konfigurator!X54 -> 0 | BE34: 32 | BV34: 32 | BW34: Fehler
A35: Artikel-Nr. 6 | B35: =IF($B$33=0,"",IF(ISNA(VLOOKUP($F$440,$F$441:$J$450,2,FALSE)),"",IF($F$440=FALSE,"",VLOOKUP($F$440,$F$441:$J$450,2)))) ->  | D35: =IF($D$33=0,"",IF(ISNA(VLOOKUP($F$460,$F$461:$J$470,2,FALSE)),"",IF($F$460=FALSE,"",VLOOKUP($F$460,$F$461:$J$470,2)))) ->  | F35: =IF($F$33=0,"",IF(ISNA(VLOOKUP($F$480,$F$481:$J$490,2,FALSE)),"",IF($F$480=FALSE,"",VLOOKUP($F$480,$F$481:$J$490,2)))) ->  | H35: =IF($H$33=0,"",IF(ISNA(VLOOKUP($F$500,$F$501:$J$510,2,FALSE)),"",IF($F$500=FALSE,"",VLOOKUP($F$500,$F$501:$J$510,2)))) ->  | J35: =IF($J$33=0,"",IF(ISNA(VLOOKUP($F$520,$F$521:$J$530,2,FALSE)),"",IF($F$520=FALSE,"",VLOOKUP($F$520,$F$521:$J$530,2)))) ->  | L35: =IF($L$33=0,"",IF(ISNA(VLOOKUP($F$540,$F$541:$J$550,2,FALSE)),"",IF($F$540=FALSE,"",VLOOKUP($F$540,$F$541:$J$550,2)))) ->  | N35: =IF($N$33=0,"",IF(ISNA(VLOOKUP($F$560,$F$561:$J$570,2,FALSE)),"",IF($F$560=FALSE,"",VLOOKUP($F$560,$F$561:$J$570,2)))) ->  | P35: =IF($P$33=0,"",IF(ISNA(VLOOKUP($F$580,$F$581:$J$591,2,FALSE)),"",IF($F$580=FALSE,"",VLOOKUP($F$580,$F$581:$J$591,2)))) ->  | R35: =IF($R$33=0,"",IF(ISNA(VLOOKUP($F$600,$F$601:$J$610,2,FALSE)),"",IF($F$600=FALSE,"",VLOOKUP($F$600,$F$601:$J$610,2)))) ->  | T35: =IF($T$33=0,"",IF(ISNA(VLOOKUP($F$620,$F$621:$J$630,2,FALSE)),"",IF($F$620=FALSE,"",VLOOKUP($F$620,$F$621:$J$630,2)))) ->  | V35: =IF($V$33=0,"",IF(ISNA(VLOOKUP($F$640,$F$641:$J$650,2,FALSE)),"",IF($F$640=FALSE,"",VLOOKUP($F$640,$F$641:$J$650,2)))) ->  | X35: =IF($X$33=0,"",IF(ISNA(VLOOKUP($F$660,$F$661:$J$670,2,FALSE)),"",IF($F$660=FALSE,"",VLOOKUP($F$660,$F$661:$J$670,2)))) ->  | BE35: 33
A36: TE 7 | B36: =IF($B$33=0,"",IF(ISNA(VLOOKUP($F$440,$F$441:$J$450,3,FALSE)),"",IF($F$440=FALSE,"",VLOOKUP($F$440,$F$441:$J$450,3)))) ->  | D36: =IF($D$33=0,"",IF(ISNA(VLOOKUP($F$460,$F$461:$J$470,3,FALSE)),"",IF($F$460=FALSE,"",VLOOKUP($F$460,$F$461:$J$470,3)))) ->  | F36: =IF($F$33=0,"",IF(ISNA(VLOOKUP($F$480,$F$481:$J$490,3,FALSE)),"",IF($F$480=FALSE,"",VLOOKUP($F$480,$F$481:$J$490,3)))) ->  | H36: =IF($H$33=0,"",IF(ISNA(VLOOKUP($F$500,$F$501:$J$510,3,FALSE)),"",IF($F$500=FALSE,"",VLOOKUP($F$500,$F$501:$J$510,3)))) ->  | J36: =IF($J$33=0,"",IF(ISNA(VLOOKUP($F$520,$F$521:$J$530,3,FALSE)),"",IF($F$520=FALSE,"",VLOOKUP($F$520,$F$521:$J$530,3)))) ->  | L36: =IF($L$33=0,"",IF(ISNA(VLOOKUP($F$540,$F$541:$J$550,3,FALSE)),"",IF($F$540=FALSE,"",VLOOKUP($F$540,$F$541:$J$550,3)))) ->  | N36: =IF($N$33=0,"",IF(ISNA(VLOOKUP($F$560,$F$561:$J$570,3,FALSE)),"",IF($F$560=FALSE,"",VLOOKUP($F$560,$F$561:$J$570,3)))) ->  | P36: =IF($P$33=0,"",IF(ISNA(VLOOKUP($F$580,$F$581:$J$591,3,FALSE)),"",IF($F$580=FALSE,"",VLOOKUP($F$580,$F$581:$J$591,3)))) ->  | R36: =IF($R$33=0,"",IF(ISNA(VLOOKUP($F$600,$F$601:$J$610,3,FALSE)),"",IF($F$600=FALSE,"",VLOOKUP($F$600,$F$601:$J$610,3)))) ->  | T36: =IF($T$33=0,"",IF(ISNA(VLOOKUP($F$620,$F$621:$J$630,3,FALSE)),"",IF($F$620=FALSE,"",VLOOKUP($F$620,$F$621:$J$630,3)))) ->  | V36: =IF($V$33=0,"",IF(ISNA(VLOOKUP($F$640,$F$641:$J$650,3,FALSE)),"",IF($F$640=FALSE,"",VLOOKUP($F$640,$F$641:$J$650,3)))) ->  | X36: =IF($X$33=0,"",IF(ISNA(VLOOKUP($F$660,$F$661:$J$670,3,FALSE)),"",IF($F$660=FALSE,"",VLOOKUP($F$660,$F$661:$J$670,3)))) ->  | BE36: 34
A37: Einzel-Preis 8 | B37: =IF($B$33=0,"",IF(ISNA(VLOOKUP($F$440,$F$441:$J$450,4,FALSE)),"",IF($F$440=FALSE,"",VLOOKUP($F$440,$F$441:$J$450,4)))) ->  | D37: =IF($D$33=0,"",IF(ISNA(VLOOKUP($F$460,$F$461:$J$470,4,FALSE)),"",IF($F$460=FALSE,"",VLOOKUP($F$460,$F$461:$J$470,4)))) ->  | F37: =IF($F$33=0,"",IF(ISNA(VLOOKUP($F$480,$F$481:$J$490,4,FALSE)),"",IF($F$480=FALSE,"",VLOOKUP($F$480,$F$481:$J$490,4)))) ->  | H37: =IF($H$33=0,"",IF(ISNA(VLOOKUP($F$500,$F$501:$J$510,4,FALSE)),"",IF($F$500=FALSE,"",VLOOKUP($F$500,$F$501:$J$510,4)))) ->  | J37: =IF($J$33=0,"",IF(ISNA(VLOOKUP($F$520,$F$521:$J$530,4,FALSE)),"",IF($F$520=FALSE,"",VLOOKUP($F$520,$F$521:$J$530,4)))) ->  | L37: =IF($L$33=0,"",IF(ISNA(VLOOKUP($F$540,$F$541:$J$550,4,FALSE)),"",IF($F$540=FALSE,"",VLOOKUP($F$540,$F$541:$J$550,4)))) ->  | N37: =IF($N$33=0,"",IF(ISNA(VLOOKUP($F$560,$F$561:$J$570,4,FALSE)),"",IF($F$560=FALSE,"",VLOOKUP($F$560,$F$561:$J$570,4)))) ->  | P37: =IF($P$33=0,"",IF(ISNA(VLOOKUP($F$580,$F$581:$J$591,4,FALSE)),"",IF($F$580=FALSE,"",VLOOKUP($F$580,$F$581:$J$591,4)))) ->  | R37: =IF($R$33=0,"",IF(ISNA(VLOOKUP($F$600,$F$601:$J$610,4,FALSE)),"",IF($F$600=FALSE,"",VLOOKUP($F$600,$F$601:$J$610,4)))) ->  | T37: =IF($T$33=0,"",IF(ISNA(VLOOKUP($F$620,$F$621:$J$630,4,FALSE)),"",IF($F$620=FALSE,"",VLOOKUP($F$620,$F$621:$J$630,4)))) ->  | V37: =IF($V$33=0,"",IF(ISNA(VLOOKUP($F$640,$F$641:$J$650,4,FALSE)),"",IF($F$640=FALSE,"",VLOOKUP($F$640,$F$641:$J$650,4)))) ->  | X37: =IF($X$33=0,"",IF(ISNA(VLOOKUP($F$660,$F$661:$J$670,4,FALSE)),"",IF($F$660=FALSE,"",VLOOKUP($F$660,$F$661:$J$670,4)))) ->  | BE37: 35
A38: Artikel-Nr. Zusatzkabel - 1 9 | B38: =IF(OR($B$42="N",$B$34=0),"",IF($F$440=FALSE,"",IF($F$440=0,"",$G$451))) ->  | D38: =IF(OR($D$42="N",$D$34=0),"",IF($F$460=FALSE,"",IF($F$460=0,"",$G$471))) ->  | F38: =IF(OR($F$42="N",$F$34=0),"",IF($F$480=FALSE,"",IF($F$480=0,"",$G$491))) ->  | H38: =IF(OR($H$42="N",$H$34=0),"",IF($F$500=FALSE,"",IF($F$500=0,"",$G$511))) ->  | J38: =IF(OR($J$42="N",$J$34=0),"",IF($F$520=FALSE,"",IF($F$520=0,"",$G$531))) ->  | L38: =IF(OR($L$42="N",$L$34=0),"",IF($F$540=FALSE,"",IF($F$540=0,"",$G$551))) ->  | N38: =IF(OR($N$42="N",$N$34=0),"",IF($F$560=FALSE,"",IF($F$560=0,"",$G$571))) ->  | P38: =IF(OR($P$42="N",$P$34=0),"",IF($F$580=FALSE,"",IF($F$580=0,"",$G$591))) ->  | R38: =IF(OR($R$42="N",$R$34=0),"",IF($F$600=FALSE,"",IF($F$600=0,"",$G$611))) ->  | T38: =IF(OR($T$42="N",$T$34=0),"",IF($F$620=FALSE,"",IF($F$620=0,"",$G$631))) ->  | V38: =IF(OR($V$42="N",$V$34=0),"",IF($F$640=FALSE,"",IF($F$640=0,"",$G$651))) ->  | X38: =IF(OR($X$42="N",$X$34=0),"",IF($F$660=FALSE,"",IF($F$660=0,"",$G$671))) ->  | BE38: 36
A39: zusätzliche Kabellänge /m 10 | B39: =IF(OR($B$42="N",$B$34=0),"",IF($F$440=FALSE,"",IF($F$440=0,"",$I$451))) ->  | D39: =IF(OR($D$42="N",$D$34=0),"",IF($F$460=FALSE,"",IF($F$460=0,"",$I$471))) ->  | F39: =IF(OR($F$42="N",$F$34=0),"",IF($F$480=FALSE,"",IF($F$480=0,"",$I$491))) ->  | H39: =IF(OR($H$42="N",$H$34=0),"",IF($F$500=FALSE,"",IF($F$500=0,"",$I$511))) ->  | J39: =IF(OR($J$42="N",$J$34=0),"",IF($F$520=FALSE,"",IF($F$520=0,"",$I$531))) ->  | L39: =IF(OR($L$42="N",$L$34=0),"",IF($F$540=FALSE,"",IF($F$540=0,"",$I$551))) ->  | N39: =IF(OR($N$42="N",$N$34=0),"",IF($F$560=FALSE,"",IF($F$560=0,"",$I$571))) ->  | P39: =IF(OR($P$42="N",$P$34=0),"",IF($F$580=FALSE,"",IF($F$580=0,"",$I$591))) ->  | R39: =IF(OR($R$42="N",$R$34=0),"",IF($F$600=FALSE,"",IF($F$600=0,"",$I$611))) ->  | T39: =IF(OR($T$42="N",$T$34=0),"",IF($F$620=FALSE,"",IF($F$620=0,"",$I$631))) ->  | V39: =IF(OR($V$42="N",$V$34=0),"",IF($F$640=FALSE,"",IF($F$640=0,"",$I$651))) ->  | X39: =IF(OR($X$42="N",$X$34=0),"",IF($F$660=FALSE,"",IF($F$660=0,"",$I$671))) ->  | BE39: 37
A40: Artikel-Nr. Zusatzkabel Audio 11 | B40: =IF(OR($B$42="N",$B$34=0,$G$453=""),"",IF($F$440=FALSE,"",IF($F$440=0,"",$G$453))) ->  | D40: =IF(OR($D$42="N",$D$34=0,$G$473=""),"",IF($F$460=FALSE,"",IF($F$460=0,"",$G$473))) ->  | F40: =IF(OR($F$42="N",$F$34=0,$G$493=""),"",IF($F$480=FALSE,"",IF($F$480=0,"",$G$493))) ->  | H40: =IF(OR($H$42="N",$H$34=0,$G$513=""),"",IF($F$500=FALSE,"",IF($F$500=0,"",$G$513))) ->  | J40: =IF(OR($J$42="N",$J$34=0,$G$533=""),"",IF($F$520=FALSE,"",IF($F$520=0,"",$G$533))) ->  | L40: =IF(OR($L$42="N",$L$34=0,$G$553=""),"",IF($F$540=FALSE,"",IF($F$540=0,"",$G$553))) ->  | N40: =IF(OR($N$42="N",$N$34=0,$G$573=""),"",IF($F$560=FALSE,"",IF($F$560=0,"",$G$573))) ->  | P40: =IF(OR($P$42="N",$P$34=0,$G$593=""),"",IF($F$580=FALSE,"",IF($F$580=0,"",$G$593))) ->  | R40: =IF(OR($R$42="N",$R$34=0,$G$613=""),"",IF($F$600=FALSE,"",IF($F$600=0,"",$G$613))) ->  | T40: =IF(OR($T$42="N",$T$34=0,$G$633=""),"",IF($F$620=FALSE,"",IF($F$620=0,"",$G$633))) ->  | V40: =IF(OR($V$42="N",$V$34=0,$G$653=""),"",IF($F$640=FALSE,"",IF($F$640=0,"",$G$653))) ->  | X40: =IF(OR($X$42="N",$X$34=0,$G$673=""),"",IF($F$660=FALSE,"",IF($F$660=0,"",$G$673))) ->  | BE40: 38
A41: zusätzliche Kabellänge Audio /m 12 | B41: =IF(OR($B$42="N",$B$34=0,$G$453=""),"",IF($F$440=FALSE,"",IF($F$440=0,"",$I$453))) ->  | D41: =IF(OR($D$42="N",$D$34=0,$G$473=""),"",IF($F$460=FALSE,"",IF($F$460=0,"",$I$473))) ->  | F41: =IF(OR($F$42="N",$F$34=0,$G$493=""),"",IF($F$480=FALSE,"",IF($F$480=0,"",$I$493))) ->  | H41: =IF(OR($H$42="N",$H$34=0,$G$513=""),"",IF($F$500=FALSE,"",IF($F$500=0,"",$I$513))) ->  | J41: =IF(OR($J$42="N",$J$34=0,$G$533=""),"",IF($F$520=FALSE,"",IF($F$520=0,"",$I$533))) ->  | L41: =IF(OR($L$42="N",$L$34=0,$G$553=""),"",IF($F$540=FALSE,"",IF($F$540=0,"",$I$553))) ->  | N41: =IF(OR($N$42="N",$N$34=0,$G$573=""),"",IF($F$560=FALSE,"",IF($F$560=0,"",$I$573))) ->  | P41: =IF(OR($P$42="N",$P$34=0,$G$593=""),"",IF($F$580=FALSE,"",IF($F$580=0,"",$I$592))) ->  | R41: =IF(OR($R$42="N",$R$34=0,$G$613=""),"",IF($F$600=FALSE,"",IF($F$600=0,"",$I$613))) ->  | T41: =IF(OR($T$42="N",$T$34=0,$G$633=""),"",IF($F$620=FALSE,"",IF($F$620=0,"",$I$633))) ->  | V41: =IF(OR($V$42="N",$V$34=0,$G$653=""),"",IF($F$640=FALSE,"",IF($F$640=0,"",$I$653))) ->  | X41: =IF(OR($X$42="N",$X$34=0,$G$673=""),"",IF($F$660=FALSE,"",IF($F$660=0,"",$I$673))) ->  | BE41: 39
A42: (je ausgewähltem Anschluss) Kabel J/N 13 | B42: =IF(ISNA(VLOOKUP($F$440,$F$441:$J$450,5,FALSE)),"",IF($F$440=FALSE,"",VLOOKUP($F$440,$F$441:$J$450,5))) ->  | D42: =IF(ISNA(VLOOKUP($F$460,$F$461:$J$470,5,FALSE)),"",IF($F$460=FALSE,"",VLOOKUP($F$460,$F$461:$J$470,5))) ->  | F42: =IF(ISNA(VLOOKUP($F$480,$F$481:$J$490,5,FALSE)),"",IF($F$480=FALSE,"",VLOOKUP($F$480,$F$481:$J$490,5))) ->  | H42: =IF(ISNA(VLOOKUP($F$500,$F$501:$J$510,5,FALSE)),"",IF($F$500=FALSE,"",VLOOKUP($F$500,$F$501:$J$510,5))) ->  | J42: =IF(ISNA(VLOOKUP($F$520,$F$521:$J$530,5,FALSE)),"",IF($F$520=FALSE,"",VLOOKUP($F$520,$F$521:$J$530,5))) ->  | L42: =IF(ISNA(VLOOKUP($F$540,$F$541:$J$550,5,FALSE)),"",IF($F$540=FALSE,"",VLOOKUP($F$540,$F$541:$J$550,5))) ->  | N42: =IF(ISNA(VLOOKUP($F$560,$F$561:$J$570,5,FALSE)),"",IF($F$560=FALSE,"",VLOOKUP($F$560,$F$561:$J$570,5))) ->  | P42: =IF(ISNA(VLOOKUP($F$580,$F$581:$J$590,5,FALSE)),"",IF($F$580=FALSE,"",VLOOKUP($F$580,$F$581:$J$590,5))) ->  | R42: =IF(ISNA(VLOOKUP($F$600,$F$601:$J$610,5,FALSE)),"",IF($F$600=FALSE,"",VLOOKUP($F$600,$F$601:$J$610,5))) ->  | T42: =IF(ISNA(VLOOKUP($F$620,$F$621:$J$630,5,FALSE)),"",IF($F$620=FALSE,"",VLOOKUP($F$620,$F$621:$J$630,5))) ->  | V42: =IF(ISNA(VLOOKUP($F$640,$F$641:$J$650,5,FALSE)),"",IF($F$640=FALSE,"",VLOOKUP($F$640,$F$641:$J$650,5))) ->  | X42: =IF(ISNA(VLOOKUP($F$660,$F$661:$J$670,5,FALSE)),"",IF($F$660=FALSE,"",VLOOKUP($F$660,$F$661:$J$670,5))) ->  | BE42: 40
A43: Zusätzliche Kabellänge 14 | B43: =IF(B42="N",0,(B34*B33)+B32) -> 0 | D43: =IF(D42="N",0,(D34*D33)+D32) -> 0 | F43: =IF(F42="N",0,(F34*F33)+F32) -> 0 | H43: =IF(H42="N",0,(H34*H33)+H32) -> 0 | J43: =IF(J42="N",0,(J34*J33)+J32) -> 0 | L43: =IF(L42="N",0,(L34*L33)+L32) -> 0 | N43: =IF(N42="N",0,(N34*N33)+N32) -> 0 | P43: =IF(P42="N",0,(P34*P33)+P32) -> 0 | R43: =IF(R42="N",0,(R34*R33)+R32) -> 0 | T43: =IF(T42="N",0,(T34*T33)+T32) -> 0 | V43: =IF(V42="N",0,(V34*V33)+V32) -> 0 | X43: =IF(X42="N",0,(X34*X33)+X32) -> 0 | BE43: 41
A44: Summe TE 15 | B44: =IF(B$33=0,"",B$33*B$36) ->  | D44: =IF(D$33=0,"",D$33*D$36) ->  | F44: =IF(F$33=0,"",F$33*F$36) ->  | H44: =IF(H$33=0,"",H$33*H$36) ->  | J44: =IF(J$33=0,"",J$33*J$36) ->  | L44: =IF(L$33=0,"",L$33*L$36) ->  | N44: =IF(N$33=0,"",N$33*N$36) ->  | P44: =IF(P$33=0,"",P$33*P$36) ->  | R44: =IF(R$33=0,"",R$33*R$36) ->  | T44: =IF(T$33=0,"",T$33*T$36) ->  | V44: =IF(V$33=0,"",V$33*V$36) ->  | X44: =IF(X$33=0,"",X$33*X$36) ->  | BE44: 42
A45: Datenaufbereitung | B45: 440 | D45: 460 | F45: 480 | H45: 500 | J45: 520 | L45: 540 | N45: 560 | P45: 580 | R45: 600 | T45: 620 | V45: 640 | X45: 660 | BE45: 43
A46: Konfigurator | B46: 440 | D46: 460 | F46: 480 | H46: 500 | J46: 520 | L46: 540 | N46: 560 | P46: 580 | R46: 600 | T46: 620 | V46: 640 | X46: 660 | BE46: 44
BE47: 45
BE48: 46
A49: Modulreihe - 3 | B49: =$A680 -> Cinch-Bu.-ge | D49: =$A700 -> Cinch-Bu.-sw | F49: =$A720 -> Cinch-Bu.-rt | H49: =$A740 -> Cinch-Bu.-gn | J49: =$A760 -> Cinch-Bu.-bl | L49: =$A780 -> 3xCinch-Bu. | N49: =$A800 -> Frei 800 | P49: =$A820 -> 3,5Kl. 4p.-Bu. | R49: =$A840 -> RJ45-Bu. | T49: =$A860 -> USB-A-Bu. | V49: =$A880 -> USB-B-Bu. | X49: =$A900 -> USB-A-Bu. | BE49: 47
A50: Laufende Nummer 1 | B50: =IF(B$51<1,"",SUM($B$11:$X$11)+SUM($B$31:X$31)+SUM($B$51)) ->  | D50: =IF(D$51<1,"",SUM($B$11:$X$11)+SUM($B$31:$X$31)+SUM($B$51:D$51)) ->  | F50: =IF(F$51<1,"",SUM($B$11:$X$11)+SUM($B$31:$X$31)+SUM($B$51:F$51)) ->  | H50: =IF(H$51<1,"",SUM($B$11:$X$11)+SUM($B$31:$X$31)+SUM($B$51:H$51)) ->  | J50: =IF(J$51<1,"",SUM($B$11:$X$11)+SUM($B$31:$X$31)+SUM($B$51:J$51)) ->  | L50: =IF(L$51<1,"",SUM($B$11:$X$11)+SUM($B$31:$X$31)+SUM($B$51:L$51)) ->  | N50: =IF(N$51<1,"",SUM($B$11:$X$11)+SUM($B$31:$X$31)+SUM($B$51:N$51)) ->  | P50: =IF(P$51<1,"",SUM($B$11:$X$11)+SUM($B$31:$X$31)+SUM($B$51:P$51)) ->  | R50: =IF(R$51<1,"",SUM($B$11:$X$11)+SUM($B$31:$X$31)+SUM($B$51:R$51)) ->  | T50: =IF(T$51<1,"",SUM($B$11:$X$11)+SUM($B$31:$X$31)+SUM($B$51:T$51)) ->  | V50: =IF(V$51<1,"",SUM($B$11:$X$11)+SUM($B$31:$X$31)+SUM($B$51:V$51)) ->  | X50: =IF(X$51<1,"",SUM($B$11:$X$11)+SUM($B$31:$X$31)+SUM($B$51:X$51)) ->  | BE50: 48
A51: Modul ausgewählt 2 | B51: =IF($F$680=0,0,IF(B$53>0,1,0)) -> 0 | D51: =IF($F$700=0,0,IF(D$53>0,1,0)) -> 0 | F51: =IF($F$720=0,0,IF(F$53>0,1,0)) -> 0 | H51: =IF($F$740=0,0,IF(H$53>0,1,0)) -> 0 | J51: =IF($F$760=0,0,IF(J$53>0,1,0)) -> 0 | L51: =IF($F$780=0,0,IF(L$53>0,1,0)) -> 0 | N51: =IF($F$800=0,0,IF(N$53>0,1,0)) -> 0 | P51: =IF($F$820=0,0,IF(P$53>0,1,0)) -> 0 | R51: =IF($F$840=0,0,IF(R$53>0,1,0)) -> 0 | T51: =IF($F$860=0,0,IF(T$53>0,1,0)) -> 0 | V51: =IF($F$880=0,0,IF(V$53>0,1,0)) -> 0 | X51: =IF($F$900=0,0,IF(X$53>0,1,0)) -> 0 | Y51: =SUM(B11:X11)+SUM(B31:X31)+SUM(B51:X51) -> 0 | BE51: 49
A52: Abzug Standard-Kabellänge 3 | B52: =IF(B$54>0,(-0.3*B$53),0) -> 0 | D52: =IF(D$54>0,(-0.3*D$53),0) -> 0 | F52: =IF(F$54>0,(-0.3*F$53),0) -> 0 | H52: =IF(H$54>0,(-0.3*H$53),0) -> 0 | J52: =IF(J$54>0,(-0.3*J$53),0) -> 0 | L52: =IF(L$54>0,(-0.3*L$53),0) -> 0 | N52: =IF(N$54>0,(-0.3*N$53),0) -> 0 | P52: =IF(P$54>0,(-0.3*P$53),0) -> 0 | R52: =IF(R$54>0,(-0.3*R$53),0) -> 0 | T52: =IF(T$54>0,(-0.3*T$53),0) -> 0 | V52: =IF(V$54>0,(-0.3*V$53),0) -> 0 | X52: =IF(X$54>0,(-0.3*X$53),0) -> 0 | BE52: 50
A53: Menge Module 4 | B53: =Konfigurator!B63 -> 0 | D53: =Konfigurator!D63 -> 0 | F53: =Konfigurator!F63 -> 0 | H53: =Konfigurator!H63 -> 0 | J53: =Konfigurator!J63 -> 0 | L53: =Konfigurator!L63 -> 0 | N53: =Konfigurator!N63 -> 0 | P53: =Konfigurator!P63 -> 0 | R53: =Konfigurator!R63 -> 0 | T53: =Konfigurator!T63 -> 0 | V53: =Konfigurator!V63 -> 0 | X53: =Konfigurator!X63 -> 0 | BE53: 51
A54: Kabellänge (Meter) 5 | B54: =Konfigurator!B64 -> 0 | D54: =Konfigurator!D64 -> 0 | F54: =Konfigurator!F64 -> 0 | H54: =Konfigurator!H64 -> 0 | J54: =Konfigurator!J64 -> 0 | L54: =Konfigurator!L64 -> 0 | N54: =Konfigurator!N64 -> 0 | P54: =Konfigurator!P64 -> 0 | R54: =Konfigurator!R64 -> 0 | T54: =Konfigurator!T64 -> 0 | V54: =Konfigurator!V64 -> 0 | X54: =Konfigurator!X64 -> 0 | BE54: 52
A55: Artikel-Nr. 6 | B55: =IF($B$53=0,"",IF(ISNA(VLOOKUP($F$680,$F$681:$J$690,2,FALSE)),"",IF($F$680=FALSE,"",VLOOKUP($F$680,$F$681:$J$690,2)))) ->  | D55: =IF($D$53=0,"",IF(ISNA(VLOOKUP($F$700,$F$701:$J$710,2,FALSE)),"",IF($F$700=FALSE,"",VLOOKUP($F$700,$F$701:$J$710,2)))) ->  | F55: =IF($F$53=0,"",IF(ISNA(VLOOKUP($F$720,$F$721:$J$730,2,FALSE)),"",IF($F$720=FALSE,"",VLOOKUP($F$720,$F$721:$J$730,2)))) ->  | H55: =IF($H$53=0,"",IF(ISNA(VLOOKUP($F$740,$F$741:$J$750,2,FALSE)),"",IF($F$740=FALSE,"",VLOOKUP($F$740,$F$741:$J$750,2)))) ->  | J55: =IF($J$53=0,"",IF(ISNA(VLOOKUP($F$760,$F$761:$J$770,2,FALSE)),"",IF($F$760=FALSE,"",VLOOKUP($F$760,$F$761:$J$770,2)))) ->  | L55: =IF($L$53=0,"",IF(ISNA(VLOOKUP($F$780,$F$781:$J$790,2,FALSE)),"",IF($F$780=FALSE,"",VLOOKUP($F$780,$F$781:$J$790,2)))) ->  | N55: =IF($N$53=0,"",IF(ISNA(VLOOKUP($F$800,$F$801:$J$810,2,FALSE)),"",IF($F$800=FALSE,"",VLOOKUP($F$800,$F$801:$J$810,2)))) ->  | P55: =IF($P$53=0,"",IF(ISNA(VLOOKUP($F$820,$F$821:$J$831,2,FALSE)),"",IF($F$820=FALSE,"",VLOOKUP($F$820,$F$821:$J$831,2)))) ->  | R55: =IF($R$53=0,"",IF(ISNA(VLOOKUP($F$840,$F$841:$J$850,2,FALSE)),"",IF($F$840=FALSE,"",VLOOKUP($F$840,$F$841:$J$850,2)))) ->  | T55: =IF($T$53=0,"",IF(ISNA(VLOOKUP($F$860,$F$861:$J$870,2,FALSE)),"",IF($F$860=FALSE,"",VLOOKUP($F$860,$F$861:$J$870,2)))) ->  | V55: =IF($V$53=0,"",IF(ISNA(VLOOKUP($F$880,$F$881:$J$890,2,FALSE)),"",IF($F$880=FALSE,"",VLOOKUP($F$880,$F$881:$J$890,2)))) ->  | X55: =IF($X$53=0,"",IF(ISNA(VLOOKUP($F$900,$F$901:$J$910,2,FALSE)),"",IF($F$900=FALSE,"",VLOOKUP($F$900,$F$901:$J$910,2)))) ->  | BE55: 53
A56: TE 7 | B56: =IF($B$53=0,"",IF(ISNA(VLOOKUP($F$680,$F$681:$J$690,3,FALSE)),"",IF($F$680=FALSE,"",VLOOKUP($F$680,$F$681:$J$690,3)))) ->  | D56: =IF($D$53=0,"",IF(ISNA(VLOOKUP($F$700,$F$701:$J$710,3,FALSE)),"",IF($F$700=FALSE,"",VLOOKUP($F$700,$F$701:$J$710,3)))) ->  | F56: =IF($F$53=0,"",IF(ISNA(VLOOKUP($F$720,$F$721:$J$730,3,FALSE)),"",IF($F$720=FALSE,"",VLOOKUP($F$720,$F$721:$J$730,3)))) ->  | H56: =IF($H$53=0,"",IF(ISNA(VLOOKUP($F$740,$F$741:$J$750,3,FALSE)),"",IF($F$740=FALSE,"",VLOOKUP($F$740,$F$741:$J$750,3)))) ->  | J56: =IF($J$53=0,"",IF(ISNA(VLOOKUP($F$760,$F$761:$J$770,3,FALSE)),"",IF($F$760=FALSE,"",VLOOKUP($F$760,$F$761:$J$770,3)))) ->  | L56: =IF($L$53=0,"",IF(ISNA(VLOOKUP($F$780,$F$781:$J$790,3,FALSE)),"",IF($F$780=FALSE,"",VLOOKUP($F$780,$F$781:$J$790,3)))) ->  | N56: =IF($N$53=0,"",IF(ISNA(VLOOKUP($F$800,$F$801:$J$810,3,FALSE)),"",IF($F$800=FALSE,"",VLOOKUP($F$800,$F$801:$J$810,3)))) ->  | P56: =IF($P$53=0,"",IF(ISNA(VLOOKUP($F$820,$F$821:$J$831,3,FALSE)),"",IF($F$820=FALSE,"",VLOOKUP($F$820,$F$821:$J$831,3)))) ->  | R56: =IF($R$53=0,"",IF(ISNA(VLOOKUP($F$840,$F$841:$J$850,3,FALSE)),"",IF($F$840=FALSE,"",VLOOKUP($F$840,$F$841:$J$850,3)))) ->  | T56: =IF($T$53=0,"",IF(ISNA(VLOOKUP($F$860,$F$861:$J$870,3,FALSE)),"",IF($F$860=FALSE,"",VLOOKUP($F$860,$F$861:$J$870,3)))) ->  | V56: =IF($V$53=0,"",IF(ISNA(VLOOKUP($F$880,$F$881:$J$890,3,FALSE)),"",IF($F$880=FALSE,"",VLOOKUP($F$880,$F$881:$J$890,3)))) ->  | X56: =IF($X$53=0,"",IF(ISNA(VLOOKUP($F$900,$F$901:$J$910,3,FALSE)),"",IF($F$900=FALSE,"",VLOOKUP($F$900,$F$901:$J$910,3)))) ->  | BE56: 54
A57: Einzel-Preis 8 | B57: =IF($B$53=0,"",IF(ISNA(VLOOKUP($F$680,$F$681:$J$690,4,FALSE)),"",IF($F$680=FALSE,"",VLOOKUP($F$680,$F$681:$J$690,4)))) ->  | D57: =IF($D$53=0,"",IF(ISNA(VLOOKUP($F$700,$F$701:$J$710,4,FALSE)),"",IF($F$700=FALSE,"",VLOOKUP($F$700,$F$701:$J$710,4)))) ->  | F57: =IF($F$53=0,"",IF(ISNA(VLOOKUP($F$720,$F$721:$J$730,4,FALSE)),"",IF($F$720=FALSE,"",VLOOKUP($F$720,$F$721:$J$730,4)))) ->  | H57: =IF($H$53=0,"",IF(ISNA(VLOOKUP($F$740,$F$741:$J$750,4,FALSE)),"",IF($F$740=FALSE,"",VLOOKUP($F$740,$F$741:$J$750,4)))) ->  | J57: =IF($J$53=0,"",IF(ISNA(VLOOKUP($F$760,$F$761:$J$770,4,FALSE)),"",IF($F$760=FALSE,"",VLOOKUP($F$760,$F$761:$J$770,4)))) ->  | L57: =IF($L$53=0,"",IF(ISNA(VLOOKUP($F$780,$F$781:$J$790,4,FALSE)),"",IF($F$780=FALSE,"",VLOOKUP($F$780,$F$781:$J$790,4)))) ->  | N57: =IF($N$53=0,"",IF(ISNA(VLOOKUP($F$800,$F$801:$J$810,4,FALSE)),"",IF($F$800=FALSE,"",VLOOKUP($F$800,$F$801:$J$810,4)))) ->  | P57: =IF($P$53=0,"",IF(ISNA(VLOOKUP($F$820,$F$821:$J$831,4,FALSE)),"",IF($F$820=FALSE,"",VLOOKUP($F$820,$F$821:$J$831,4)))) ->  | R57: =IF($R$53=0,"",IF(ISNA(VLOOKUP($F$840,$F$841:$J$850,4,FALSE)),"",IF($F$840=FALSE,"",VLOOKUP($F$840,$F$841:$J$850,4)))) ->  | T57: =IF($T$53=0,"",IF(ISNA(VLOOKUP($F$860,$F$861:$J$870,4,FALSE)),"",IF($F$860=FALSE,"",VLOOKUP($F$860,$F$861:$J$870,4)))) ->  | V57: =IF($V$53=0,"",IF(ISNA(VLOOKUP($F$880,$F$881:$J$890,4,FALSE)),"",IF($F$880=FALSE,"",VLOOKUP($F$880,$F$881:$J$890,4)))) ->  | X57: =IF($X$53=0,"",IF(ISNA(VLOOKUP($F$900,$F$901:$J$910,4,FALSE)),"",IF($F$900=FALSE,"",VLOOKUP($F$900,$F$901:$J$910,4)))) ->  | BE57: 55
A58: Artikel-Nr. Zusatzkabel - 1 9 | B58: =IF(OR($B$62="N",$B$54=0),"",IF($F$680=FALSE,"",IF($F$680=0,"",$G$691))) ->  | D58: =IF(OR($D$62="N",$D$54=0),"",IF($F$700=FALSE,"",IF($F$700=0,"",$G$711))) ->  | F58: =IF(OR($F$62="N",$F$54=0),"",IF($F$720=FALSE,"",IF($F$720=0,"",$G$731))) ->  | H58: =IF(OR($H$62="N",$H$54=0),"",IF($F$740=FALSE,"",IF($F$740=0,"",$G$751))) ->  | J58: =IF(OR($J$62="N",$J$54=0),"",IF($F$760=FALSE,"",IF($F$760=0,"",$G$771))) ->  | L58: =IF(OR($L$62="N",$L$54=0),"",IF($F$780=FALSE,"",IF($F$780=0,"",$G$791))) ->  | N58: =IF(OR($N$62="N",$N$54=0),"",IF($F$800=FALSE,"",IF($F$800=0,"",$G$811))) ->  | P58: =IF(OR($P$62="N",$P$54=0),"",IF($F$820=FALSE,"",IF($F$820=0,"",$G$831))) ->  | R58: =IF(OR($R$62="N",$R$54=0),"",IF($F$840=FALSE,"",IF($F$840=0,"",$G$851))) ->  | T58: =IF(OR($T$62="N",$T$54=0),"",IF($F$860=FALSE,"",IF($F$860=0,"",$G$871))) ->  | V58: =IF(OR($V$62="N",$V$54=0),"",IF($F$880=FALSE,"",IF($F$880=0,"",$G$891))) ->  | X58: =IF(OR($X$62="N",$X$54=0),"",IF($F$900=FALSE,"",IF($F$900=0,"",$G$911))) ->  | BE58: 56
A59: zusätzliche Kabellänge /m 10 | B59: =IF(OR($B$62="N",$B$54=0),"",IF($F$680=FALSE,"",IF($F$680=0,"",$I$691))) ->  | D59: =IF(OR($D$62="N",$D$54=0),"",IF($F$700=FALSE,"",IF($F$700=0,"",$I$711))) ->  | F59: =IF(OR($F$62="N",$F$54=0),"",IF($F$720=FALSE,"",IF($F$720=0,"",$I$731))) ->  | H59: =IF(OR($H$62="N",$H$54=0),"",IF($F$740=FALSE,"",IF($F$740=0,"",$I$751))) ->  | J59: =IF(OR($J$62="N",$J$54=0),"",IF($F$760=FALSE,"",IF($F$760=0,"",$I$771))) ->  | L59: =IF(OR($L$62="N",$L$54=0),"",IF($F$780=FALSE,"",IF($F$780=0,"",$I$791))) ->  | N59: =IF(OR($N$62="N",$N$54=0),"",IF($F$800=FALSE,"",IF($F$800=0,"",$I$811))) ->  | P59: =IF(OR($P$62="N",$P$54=0),"",IF($F$820=FALSE,"",IF($F$820=0,"",$I$831))) ->  | R59: =IF(OR($R$62="N",$R$54=0),"",IF($F$840=FALSE,"",IF($F$840=0,"",$I$851))) ->  | T59: =IF(OR($T$62="N",$T$54=0),"",IF($F$860=FALSE,"",IF($F$860=0,"",$I$871))) ->  | V59: =IF(OR($V$62="N",$V$54=0),"",IF($F$880=FALSE,"",IF($F$880=0,"",$I$891))) ->  | X59: =IF(OR($X$62="N",$X$54=0),"",IF($F$900=FALSE,"",IF($F$900=0,"",$I$911))) ->  | BE59: 57
A60: Artikel-Nr. Zusatzkabel Audio 11 | B60: =IF(OR($B$62="N",$B$54=0,$G$693=""),"",IF($F$680=FALSE,"",IF($F$680=0,"",$G$693))) ->  | D60: =IF(OR($D$62="N",$D$54=0,$G$713=""),"",IF($F$700=FALSE,"",IF($F$700=0,"",$G$713))) ->  | F60: =IF(OR($F$62="N",$F$54=0,$G$733=""),"",IF($F$720=FALSE,"",IF($F$720=0,"",$G$733))) ->  | H60: =IF(OR($H$62="N",$H$54=0,$G$753=""),"",IF($F$740=FALSE,"",IF($F$740=0,"",$G$753))) ->  | J60: =IF(OR($J$62="N",$J$54=0,$G$773=""),"",IF($F$760=FALSE,"",IF($F$760=0,"",$G$773))) ->  | L60: =IF(OR($L$62="N",$L$54=0,$G$793=""),"",IF($F$780=FALSE,"",IF($F$780=0,"",$G$793))) ->  | N60: =IF(OR($N$62="N",$N$54=0,$G$813=""),"",IF($F$800=FALSE,"",IF($F$800=0,"",$G$813))) ->  | P60: =IF(OR($P$62="N",$P$54=0,$G$833=""),"",IF($F$820=FALSE,"",IF($F$820=0,"",$G$833))) ->  | R60: =IF(OR($R$62="N",$R$54=0,$G$853=""),"",IF($F$840=FALSE,"",IF($F$840=0,"",$G$853))) ->  | T60: =IF(OR($T$62="N",$T$54=0,$G$873=""),"",IF($F$860=FALSE,"",IF($F$860=0,"",$G$873))) ->  | V60: =IF(OR($V$62="N",$V$54=0,$G$893=""),"",IF($F$880=FALSE,"",IF($F$880=0,"",$G$893))) ->  | X60: =IF(OR($X$62="N",$X$54=0,$G$913=""),"",IF($F$900=FALSE,"",IF($F$900=0,"",$G$913))) ->  | BE60: 58
A61: zusätzliche Kabellänge Audio /m 12 | B61: =IF(OR($B$62="N",$B$54=0,$G$693=""),"",IF($F$680=FALSE,"",IF($F$680=0,"",$I$693))) ->  | D61: =IF(OR($D$62="N",$D$54=0,$G$713=""),"",IF($F$700=FALSE,"",IF($F$700=0,"",$I$713))) ->  | F61: =IF(OR($F$62="N",$F$54=0,$G$733=""),"",IF($F$720=FALSE,"",IF($F$720=0,"",$I$733))) ->  | H61: =IF(OR($H$62="N",$H$54=0,$G$753=""),"",IF($F$740=FALSE,"",IF($F$740=0,"",$I$753))) ->  | J61: =IF(OR($J$62="N",$J$54=0,$G$773=""),"",IF($F$760=FALSE,"",IF($F$760=0,"",$I$773))) ->  | L61: =IF(OR($L$62="N",$L$54=0,$G$793=""),"",IF($F$780=FALSE,"",IF($F$780=0,"",$I$793))) ->  | N61: =IF(OR($N$62="N",$N$54=0,$G$813=""),"",IF($F$800=FALSE,"",IF($F$800=0,"",$I$813))) ->  | P61: =IF(OR($P$62="N",$P$54=0,$G$833=""),"",IF($F$820=FALSE,"",IF($F$820=0,"",$I$833))) ->  | R61: =IF(OR($R$62="N",$R$54=0,$G$853=""),"",IF($F$840=FALSE,"",IF($F$840=0,"",$I$853))) ->  | T61: =IF(OR($T$62="N",$T$54=0,$G$873=""),"",IF($F$860=FALSE,"",IF($F$860=0,"",$I$873))) ->  | V61: =IF(OR($V$62="N",$V$54=0,$G$893=""),"",IF($F$880=FALSE,"",IF($F$880=0,"",$I$893))) ->  | X61: =IF(OR($X$62="N",$X$54=0,$G$913=""),"",IF($F$900=FALSE,"",IF($F$900=0,"",$I$913))) ->  | BE61: 59
A62: (je ausgewähltem Anschluss) Kabel J/N 13 | B62: =IF(ISNA(VLOOKUP($F$680,$F$681:$J$690,5,FALSE)),"",IF($F$680=FALSE,"",VLOOKUP($F$680,$F$681:$J$690,5))) ->  | D62: =IF(ISNA(VLOOKUP($F$700,$F$701:$J$710,5,FALSE)),"",IF($F$700=FALSE,"",VLOOKUP($F$700,$F$701:$J$710,5))) ->  | F62: =IF(ISNA(VLOOKUP($F$720,$F$721:$J$730,5,FALSE)),"",IF($F$720=FALSE,"",VLOOKUP($F$720,$F$721:$J$730,5))) ->  | H62: =IF(ISNA(VLOOKUP($F$740,$F$741:$J$750,5,FALSE)),"",IF($F$740=FALSE,"",VLOOKUP($F$740,$F$741:$J$750,5))) ->  | J62: =IF(ISNA(VLOOKUP($F$760,$F$761:$J$770,5,FALSE)),"",IF($F$760=FALSE,"",VLOOKUP($F$760,$F$761:$J$770,5))) ->  | L62: =IF(ISNA(VLOOKUP($F$780,$F$781:$J$790,5,FALSE)),"",IF($F$780=FALSE,"",VLOOKUP($F$780,$F$781:$J$790,5))) ->  | N62: =IF(ISNA(VLOOKUP($F$800,$F$801:$J$810,5,FALSE)),"",IF($F$800=FALSE,"",VLOOKUP($F$800,$F$801:$J$810,5))) ->  | P62: =IF(ISNA(VLOOKUP($F$820,$F$821:$J$830,5,FALSE)),"",IF($F$820=FALSE,"",VLOOKUP($F$820,$F$821:$J$830,5))) ->  | R62: =IF(ISNA(VLOOKUP($F$840,$F$841:$J$850,5,FALSE)),"",IF($F$840=FALSE,"",VLOOKUP($F$840,$F$841:$J$850,5))) ->  | T62: =IF(ISNA(VLOOKUP($F$860,$F$861:$J$870,5,FALSE)),"",IF($F$860=FALSE,"",VLOOKUP($F$860,$F$861:$J$870,5))) ->  | V62: =IF(ISNA(VLOOKUP($F$880,$F$881:$J$890,5,FALSE)),"",IF($F$880=FALSE,"",VLOOKUP($F$880,$F$881:$J$890,5))) ->  | X62: =IF(ISNA(VLOOKUP($F$900,$F$901:$J$910,5,FALSE)),"",IF($F$900=FALSE,"",VLOOKUP($F$900,$F$901:$J$910,5))) ->  | BE62: 60
A63: Zusätzliche Kabellänge 14 | B63: =IF(B62="N",0,(B54*B53)+B52) -> 0 | D63: =IF(D62="N",0,(D54*D53)+D52) -> 0 | F63: =IF(F62="N",0,(F54*F53)+F52) -> 0 | H63: =IF(H62="N",0,(H54*H53)+H52) -> 0 | J63: =IF(J62="N",0,(J54*J53)+J52) -> 0 | L63: =IF(L62="N",0,(L54*L53)+L52) -> 0 | N63: =IF(N62="N",0,(N54*N53)+N52) -> 0 | P63: =IF(P62="N",0,(P54*P53)+P52) -> 0 | R63: =IF(R62="N",0,(R54*R53)+R52) -> 0 | T63: =IF(T62="N",0,(T54*T53)+T52) -> 0 | V63: =IF(V62="N",0,(V54*V53)+V52) -> 0 | X63: =IF(X62="N",0,(X54*X53)+X52) -> 0 | BE63: 61
A64: Summe TE 15 | B64: =IF(B$53=0,"",B$53*B$56) ->  | D64: =IF(D$53=0,"",D$53*D$56) ->  | F64: =IF(F$53=0,"",F$53*F$56) ->  | H64: =IF(H$53=0,"",H$53*H$56) ->  | J64: =IF(J$53=0,"",J$53*J$56) ->  | L64: =IF(L$53=0,"",L$53*L$56) ->  | N64: =IF(N$53=0,"",N$53*N$56) ->  | P64: =IF(P$53=0,"",P$53*P$56) ->  | R64: =IF(R$53=0,"",R$53*R$56) ->  | T64: =IF(T$53=0,"",T$53*T$56) ->  | V64: =IF(V$53=0,"",V$53*V$56) ->  | X64: =IF(X$53=0,"",X$53*X$56) ->  | BE64: 62
A65: Datenaufbereitung | B65: 680 | D65: 700 | F65: 720 | H65: 740 | J65: 760 | L65: 780 | N65: 800 | P65: 820 | R65: 840 | T65: 860 | V65: 880 | X65: 900 | BE65: 63
A66: Konfigurator | B66: AFM | D66: 700 | F66: 720 | H66: 740 | J66: 760 | L66: 780 | N66: 800 | P66: 820 | R66: 840 | T66: 860 | V66: 880 | X66: 900 | BE66: 64
BE67: 65
BE68: 66
A69: Modulreihe - 4 | B69: =$A920 -> BNC-Bu.-rt | D69: =$A940 -> BNC-Bu.-gn | F69: =$A960 -> BNC-Bu.-bl | H69: =$A980 -> BNC-Bu.-sw | J69: =$A1000 -> BNC-Bu.-ws | L69: =$A1020 -> BNC-Bu.-ge | N69: =$A1040 -> 5xBNC-Bu. | P69: =$A1060 -> Frei 1060 | R69: =$A1080 -> Sub-D-9pin-Bu. | T69: =$A1100 -> Sub-D-9pin-St. | V69: =$A1120 -> Sub-D-15pin-Bu. | X69: =$A1140 -> 12p-MiniCon | BE69: 67
A70: Laufende Nummer 1 | B70: =IF(B$71<1,"",SUM($B$11:$X$11)+SUM($B$31:$X$31)+SUM($B$51:$X$51)+SUM($B$71)) ->  | D70: =IF(D$71<1,"",SUM($B$11:$X$11)+SUM($B$31:$X$31)+SUM($B$51:$X$51)+SUM($B$71:D$71)) ->  | F70: =IF(F$71<1,"",SUM($B$11:$X$11)+SUM($B$31:$X$31)+SUM($B$51:$X$51)+SUM($B$71:F$71)) ->  | H70: =IF(H$71<1,"",SUM($B$11:$X$11)+SUM($B$31:$X$31)+SUM($B$51:$X$51)+SUM($B$71:H$71)) ->  | J70: =IF(J$71<1,"",SUM($B$11:$X$11)+SUM($B$31:$X$31)+SUM($B$51:$X$51)+SUM($B$71:J$71)) ->  | L70: =IF(L$71<1,"",SUM($B$11:$X$11)+SUM($B$31:$X$31)+SUM($B$51:$X$51)+SUM($B$71:L$71)) ->  | N70: =IF(N$71<1,"",SUM($B$11:$X$11)+SUM($B$31:$X$31)+SUM($B$51:$X$51)+SUM($B$71:N$71)) ->  | P70: =IF(P$71<1,"",SUM($B$11:$X$11)+SUM($B$31:$X$31)+SUM($B$51:$X$51)+SUM($B$71:P$71)) ->  | R70: =IF(R$71<1,"",SUM($B$11:$X$11)+SUM($B$31:$X$31)+SUM($B$51:$X$51)+SUM($B$71:R$71)) ->  | T70: =IF(T$71<1,"",SUM($B$11:$X$11)+SUM($B$31:$X$31)+SUM($B$51:$X$51)+SUM($B$71:T$71)) ->  | V70: =IF(V$71<1,"",SUM($B$11:$X$11)+SUM($B$31:$X$31)+SUM($B$51:$X$51)+SUM($B$71:V$71)) ->  | X70: =IF(X$71<1,"",SUM($B$11:$X$11)+SUM($B$31:$X$31)+SUM($B$51:$X$51)+SUM($B$71:X$71)) ->  | BE70: 68
A71: Modul ausgewählt 2 | B71: =IF($F$920=0,0,IF(B$73>0,1,0)) -> 0 | D71: =IF($F$940=0,0,IF(D$73>0,1,0)) -> 0 | F71: =IF($F$960=0,0,IF(F$73>0,1,0)) -> 0 | H71: =IF($F$980=0,0,IF(H$73>0,1,0)) -> 0 | J71: =IF($F$1000=0,0,IF(J$73>0,1,0)) -> 0 | L71: =IF($F$1020=0,0,IF(L$73>0,1,0)) -> 0 | N71: =IF($F$1040=0,0,IF(N$73>0,1,0)) -> 0 | P71: =IF($F$1060=0,0,IF(P$73>0,1,0)) -> 0 | R71: =IF($F$1080=0,0,IF(R$73>0,1,0)) -> 0 | T71: =IF($F$1100=0,0,IF(T$73>0,1,0)) -> 0 | V71: =IF($F$1120=0,0,IF(V$73>0,1,0)) -> 0 | X71: =IF($F$1140=0,0,IF(X$73>0,1,0)) -> 0 | Y71: =SUM(B11:X11)+SUM(B31:X31)+SUM(B51:X51)+SUM(B71:X71) -> 0 | BE71: 69
A72: Abzug Standard-Kabellänge 3 | B72: =IF(B$74>0,(-0.3*B$73),0) -> 0 | D72: =IF(D$74>0,(-0.3*D$73),0) -> 0 | F72: =IF(F$74>0,(-0.3*F$73),0) -> 0 | H72: =IF(H$74>0,(-0.3*H$73),0) -> 0 | J72: =IF(J$74>0,(-0.3*J$73),0) -> 0 | L72: =IF(L$74>0,(-0.3*L$73),0) -> 0 | N72: =IF(N$74>0,(-0.3*N$73),0) -> 0 | P72: =IF(P$74>0,(-0.3*P$73),0) -> 0 | R72: =IF(R$74>0,(-0.3*R$73),0) -> 0 | T72: =IF(T$74>0,(-0.3*T$73),0) -> 0 | V72: =IF(V$74>0,(-0.3*V$73),0) -> 0 | X72: =IF(X$74>0,(-0.3*X$73),0) -> 0 | BE72: 70
A73: Menge Module 4 | B73: =Konfigurator!B73 -> 0 | D73: =Konfigurator!D73 -> 0 | F73: =Konfigurator!F73 -> 0 | H73: =Konfigurator!H73 -> 0 | J73: =Konfigurator!J73 -> 0 | L73: =Konfigurator!L73 -> 0 | N73: =Konfigurator!N73 -> 0 | P73: =Konfigurator!P73 -> 0 | R73: =Konfigurator!R73 -> 0 | T73: =Konfigurator!T73 -> 0 | V73: =Konfigurator!V73 -> 0 | X73: =Konfigurator!X73 -> 0 | BE73: 71
A74: Kabellänge (Meter) 5 | B74: =Konfigurator!B74 -> 0 | D74: =Konfigurator!D74 -> 0 | F74: =Konfigurator!F74 -> 0 | H74: =Konfigurator!H74 -> 0 | J74: =Konfigurator!J74 -> 0 | L74: =Konfigurator!L74 -> 0 | N74: =Konfigurator!N74 -> 0 | P74: =Konfigurator!P74 -> 0 | R74: =Konfigurator!R74 -> 0 | T74: =Konfigurator!T74 -> 0 | V74: =Konfigurator!V74 -> 0 | X74: =Konfigurator!X74 -> 0 | BE74: 72
A75: Artikel-Nr. 6 | B75: =IF($B$73=0,"",IF(ISNA(VLOOKUP($F$920,$F$921:$J$930,2,FALSE)),"",IF($F$920=FALSE,"",VLOOKUP($F$920,$F$921:$J$930,2)))) ->  | D75: =IF($D$73=0,"",IF(ISNA(VLOOKUP($F$940,$F$941:$J$950,2,FALSE)),"",IF($F$940=FALSE,"",VLOOKUP($F$940,$F$941:$J$950,2)))) ->  | F75: =IF($F$73=0,"",IF(ISNA(VLOOKUP($F$960,$F$961:$J$970,2,FALSE)),"",IF($F$960=FALSE,"",VLOOKUP($F$960,$F$961:$J$970,2)))) ->  | H75: =IF($H$73=0,"",IF(ISNA(VLOOKUP($F$980,$F$981:$J$990,2,FALSE)),"",IF($F$980=FALSE,"",VLOOKUP($F$980,$F$981:$J$990,2)))) ->  | J75: =IF($J$73=0,"",IF(ISNA(VLOOKUP($F$1000,$F$1001:$J$1010,2,FALSE)),"",IF($F$1000=FALSE,"",VLOOKUP($F$1000,$F$1001:$J$1010,2)))) ->  | L75: =IF($L$73=0,"",IF(ISNA(VLOOKUP($F$1020,$F$1021:$J$1030,2,FALSE)),"",IF($F$1020=FALSE,"",VLOOKUP($F$1020,$F$1021:$J$1030,2)))) ->  | N75: =IF($N$73=0,"",IF(ISNA(VLOOKUP($F$1040,$F$1041:$J$1050,2,FALSE)),"",IF($F$1040=FALSE,"",VLOOKUP($F$1040,$F$1041:$J$1050,2)))) ->  | P75: =IF($P$73=0,"",IF(ISNA(VLOOKUP($F$1060,$F$1061:$J$1071,2,FALSE)),"",IF($F$1060=FALSE,"",VLOOKUP($F$1060,$F$1061:$J$1071,2)))) ->  | R75: =IF($R$73=0,"",IF(ISNA(VLOOKUP($F$1080,$F$1081:$J$1090,2,FALSE)),"",IF($F$1080=FALSE,"",VLOOKUP($F$1080,$F$1081:$J$1090,2)))) ->  | T75: =IF($T$73=0,"",IF(ISNA(VLOOKUP($F$1100,$F$1101:$J$1110,2,FALSE)),"",IF($F$1100=FALSE,"",VLOOKUP($F$1100,$F$1101:$J$1110,2)))) ->  | V75: =IF($V$73=0,"",IF(ISNA(VLOOKUP($F$1120,$F$1121:$J$1130,2,FALSE)),"",IF($F$1120=FALSE,"",VLOOKUP($F$1120,$F$1121:$J$1130,2)))) ->  | X75: =IF($X$73=0,"",IF(ISNA(VLOOKUP($F$1140,$F$1141:$J$1150,2,FALSE)),"",IF($F$1140=FALSE,"",VLOOKUP($F$1140,$F$1141:$J$1150,2)))) ->  | BE75: 73
A76: TE 7 | B76: =IF($B$73=0,"",IF(ISNA(VLOOKUP($F$920,$F$921:$J$930,3,FALSE)),"",IF($F$920=FALSE,"",VLOOKUP($F$920,$F$921:$J$930,3)))) ->  | D76: =IF($D$73=0,"",IF(ISNA(VLOOKUP($F$940,$F$941:$J$950,3,FALSE)),"",IF($F$940=FALSE,"",VLOOKUP($F$940,$F$941:$J$950,3)))) ->  | F76: =IF($F$73=0,"",IF(ISNA(VLOOKUP($F$960,$F$961:$J$970,3,FALSE)),"",IF($F$960=FALSE,"",VLOOKUP($F$960,$F$961:$J$970,3)))) ->  | H76: =IF($H$73=0,"",IF(ISNA(VLOOKUP($F$980,$F$981:$J$990,3,FALSE)),"",IF($F$980=FALSE,"",VLOOKUP($F$980,$F$981:$J$990,3)))) ->  | J76: =IF($J$73=0,"",IF(ISNA(VLOOKUP($F$1000,$F$1001:$J$1010,3,FALSE)),"",IF($F$1000=FALSE,"",VLOOKUP($F$1000,$F$1001:$J$1010,3)))) ->  | L76: =IF($L$73=0,"",IF(ISNA(VLOOKUP($F$1020,$F$1021:$J$1030,3,FALSE)),"",IF($F$1020=FALSE,"",VLOOKUP($F$1020,$F$1021:$J$1030,3)))) ->  | N76: =IF($N$73=0,"",IF(ISNA(VLOOKUP($F$1040,$F$1041:$J$1050,3,FALSE)),"",IF($F$1040=FALSE,"",VLOOKUP($F$1040,$F$1041:$J$1050,3)))) ->  | P76: =IF($P$73=0,"",IF(ISNA(VLOOKUP($F$1060,$F$1061:$J$1071,3,FALSE)),"",IF($F$1060=FALSE,"",VLOOKUP($F$1060,$F$1061:$J$1071,3)))) ->  | R76: =IF($R$73=0,"",IF(ISNA(VLOOKUP($F$1080,$F$1081:$J$1090,3,FALSE)),"",IF($F$1080=FALSE,"",VLOOKUP($F$1080,$F$1081:$J$1090,3)))) ->  | T76: =IF($T$73=0,"",IF(ISNA(VLOOKUP($F$1100,$F$1101:$J$1110,3,FALSE)),"",IF($F$1100=FALSE,"",VLOOKUP($F$1100,$F$1101:$J$1110,3)))) ->  | V76: =IF($V$73=0,"",IF(ISNA(VLOOKUP($F$1120,$F$1121:$J$1130,3,FALSE)),"",IF($F$1120=FALSE,"",VLOOKUP($F$1120,$F$1121:$J$1130,3)))) ->  | X76: =IF($X$73=0,"",IF(ISNA(VLOOKUP($F$1140,$F$1141:$J$1150,3,FALSE)),"",IF($F$1140=FALSE,"",VLOOKUP($F$1140,$F$1141:$J$1150,3)))) ->  | BE76: 74
A77: Einzel-Preis 8 | B77: =IF($B$73=0,"",IF(ISNA(VLOOKUP($F$920,$F$921:$J$930,4,FALSE)),"",IF($F$920=FALSE,"",VLOOKUP($F$920,$F$921:$J$930,4)))) ->  | D77: =IF($D$73=0,"",IF(ISNA(VLOOKUP($F$940,$F$941:$J$950,4,FALSE)),"",IF($F$940=FALSE,"",VLOOKUP($F$940,$F$941:$J$950,4)))) ->  | F77: =IF($F$73=0,"",IF(ISNA(VLOOKUP($F$960,$F$961:$J$970,4,FALSE)),"",IF($F$960=FALSE,"",VLOOKUP($F$960,$F$961:$J$970,4)))) ->  | H77: =IF($H$73=0,"",IF(ISNA(VLOOKUP($F$980,$F$981:$J$990,4,FALSE)),"",IF($F$980=FALSE,"",VLOOKUP($F$980,$F$981:$J$990,4)))) ->  | J77: =IF($J$73=0,"",IF(ISNA(VLOOKUP($F$1000,$F$1001:$J$1010,4,FALSE)),"",IF($F$1000=FALSE,"",VLOOKUP($F$1000,$F$1001:$J$1010,4)))) ->  | L77: =IF($L$73=0,"",IF(ISNA(VLOOKUP($F$1020,$F$1021:$J$1030,42,FALSE)),"",IF($F$1020=FALSE,"",VLOOKUP($F$1020,$F$1021:$J$1030,4)))) ->  | N77: =IF($N$73=0,"",IF(ISNA(VLOOKUP($F$1040,$F$1041:$J$1050,4,FALSE)),"",IF($F$1040=FALSE,"",VLOOKUP($F$1040,$F$1041:$J$1050,4)))) ->  | P77: =IF($P$73=0,"",IF(ISNA(VLOOKUP($F$1060,$F$1061:$J$1071,4,FALSE)),"",IF($F$1060=FALSE,"",VLOOKUP($F$1060,$F$1061:$J$1071,4)))) ->  | R77: =IF($R$73=0,"",IF(ISNA(VLOOKUP($F$1080,$F$1081:$J$1090,4,FALSE)),"",IF($F$1080=FALSE,"",VLOOKUP($F$1080,$F$1081:$J$1090,4)))) ->  | T77: =IF($T$73=0,"",IF(ISNA(VLOOKUP($F$1100,$F$1101:$J$1110,4,FALSE)),"",IF($F$1100=FALSE,"",VLOOKUP($F$1100,$F$1101:$J$1110,4)))) ->  | V77: =IF($V$73=0,"",IF(ISNA(VLOOKUP($F$1120,$F$1121:$J$1130,4,FALSE)),"",IF($F$1120=FALSE,"",VLOOKUP($F$1120,$F$1121:$J$1130,4)))) ->  | X77: =IF($X$73=0,"",IF(ISNA(VLOOKUP($F$1140,$F$1141:$J$1150,4,FALSE)),"",IF($F$1140=FALSE,"",VLOOKUP($F$1140,$F$1141:$J$1150,4)))) ->  | BE77: 75
A78: Artikel-Nr. Zusatzkabel - 1 9 | B78: =IF(OR($B$82="N",$B$74=0),"",IF($F$920=FALSE,"",IF($F$920=0,"",$G$931))) ->  | D78: =IF(OR($D$82="N",$D$74=0),"",IF($F$940=FALSE,"",IF($F$940=0,"",$G$951))) ->  | F78: =IF(OR($F$82="N",$F$74=0),"",IF($F$960=FALSE,"",IF($F$960=0,"",$G$971))) ->  | H78: =IF(OR($H$82="N",$H$74=0),"",IF($F$980=FALSE,"",IF($F$980=0,"",$G$991))) ->  | J78: =IF(OR($J$82="N",$J$74=0),"",IF($F$1000=FALSE,"",IF($F$1000=0,"",$G$1011))) ->  | L78: =IF(OR($L$82="N",$L$74=0),"",IF($F$1020=FALSE,"",IF($F$1020=0,"",$G$1031))) ->  | N78: =IF(OR($N$82="N",$N$74=0),"",IF($F$1040=FALSE,"",IF($F$1040=0,"",$G$1051))) ->  | P78: =IF(OR($P$82="N",$P$74=0),"",IF($F$1060=FALSE,"",IF($F$1060=0,"",$G$1071))) ->  | R78: =IF(OR($R$82="N",$R$74=0),"",IF($F$1080=FALSE,"",IF($F$1080=0,"",$G$1091))) ->  | T78: =IF(OR($T$82="N",$T$74=0),"",IF($F$1100=FALSE,"",IF($F$1100=0,"",$G$1111))) ->  | V78: =IF(OR($V$82="N",$V$74=0),"",IF($F$1120=FALSE,"",IF($F$1120=0,"",$G$1131))) ->  | X78: =IF(OR($X$82="N",$X$74=0),"",IF($F$1140=FALSE,"",IF($F$1140=0,"",$G$1151))) ->  | BE78: 76
A79: zusätzliche Kabellänge /m 10 | B79: =IF(OR($B$82="N",$B$74=0),"",IF($F$920=FALSE,"",IF($F$920=0,"",$I$931))) ->  | D79: =IF(OR($D$82="N",$D$74=0),"",IF($F$940=FALSE,"",IF($F$940=0,"",$I$951))) ->  | F79: =IF(OR($F$82="N",$F$74=0),"",IF($F$960=FALSE,"",IF($F$960=0,"",$I$971))) ->  | H79: =IF(OR($H$82="N",$H$74=0),"",IF($F$980=FALSE,"",IF($F$980=0,"",$I$991))) ->  | J79: =IF(OR($J$82="N",$J$74=0),"",IF($F$1000=FALSE,"",IF($F$1000=0,"",$I$1011))) ->  | L79: =IF(OR($L$82="N",$L$74=0),"",IF($F$1020=FALSE,"",IF($F$1020=0,"",$I$1031))) ->  | N79: =IF(OR($N$82="N",$N$74=0),"",IF($F$1040=FALSE,"",IF($F$1040=0,"",$I$1051))) ->  | P79: =IF(OR($P$82="N",$P$74=0),"",IF($F$1060=FALSE,"",IF($F$1060=0,"",$I$1071))) ->  | R79: =IF(OR($R$82="N",$R$74=0),"",IF($F$1080=FALSE,"",IF($F$1080=0,"",$I$1091))) ->  | T79: =IF(OR($T$82="N",$T$74=0),"",IF($F$1100=FALSE,"",IF($F$1100=0,"",$I$1111))) ->  | V79: =IF(OR($V$82="N",$V$74=0),"",IF($F$1120=FALSE,"",IF($F$1120=0,"",$I$1131))) ->  | X79: =IF(OR($X$82="N",$X$74=0),"",IF($F$1140=FALSE,"",IF($F$1140=0,"",$I$1151))) ->  | BE79: 77
A80: Artikel-Nr. Zusatzkabel Audio 11 | B80: =IF(OR($B$82="N",$B$74=0,$G$933=""),"",IF($F$920=FALSE,"",IF($F$920=0,"",$G$933))) ->  | D80: =IF(OR($D$82="N",$D$74=0,$G$953=""),"",IF($F$940=FALSE,"",IF($F$940=0,"",$G$953))) ->  | F80: =IF(OR($F$82="N",$F$74=0,$G$733=""),"",IF($F$960=FALSE,"",IF($F$960=0,"",$G$973))) ->  | H80: =IF(OR($H$82="N",$H$74=0,$G$993=""),"",IF($F$980=FALSE,"",IF($F$980=0,"",$G$993))) ->  | J80: =IF(OR($J$82="N",$J$74=0,$G$1013=""),"",IF($F$1000=FALSE,"",IF($F$1000=0,"",$G$1013))) ->  | L80: =IF(OR($L$82="N",$L$74=0,$G$1033=""),"",IF($F$1020=FALSE,"",IF($F$1020=0,"",$G$1033))) ->  | N80: =IF(OR($N$82="N",$N$74=0,$G$1053=""),"",IF($F$1040=FALSE,"",IF($F$1040=0,"",$G$1053))) ->  | P80: =IF(OR($P$82="N",$P$74=0,$G$1073=""),"",IF($F$1060=FALSE,"",IF($F$1060=0,"",$G$1073))) ->  | R80: =IF(OR($R$82="N",$R$74=0,$G$1093=""),"",IF($F$1080=FALSE,"",IF($F$1080=0,"",$G$1093))) ->  | T80: =IF(OR($T$82="N",$T$74=0,$G$1113=""),"",IF($F$1100=FALSE,"",IF($F$1100=0,"",$G$1113))) ->  | V80: =IF(OR($V$82="N",$V$74=0,$G$1133=""),"",IF($F$1120=FALSE,"",IF($F$1120=0,"",$G$1133))) ->  | X80: =IF(OR($X$82="N",$X$74=0,$G$1153=""),"",IF($F$1140=FALSE,"",IF($F$1140=0,"",$G$1153))) ->  | BE80: 78
A81: zusätzliche Kabellänge Audio /m 12 | B81: =IF(OR($B$82="N",$B$74=0,$G$933=""),"",IF($F$920=FALSE,"",IF($F$920=0,"",$I$933))) ->  | D81: =IF(OR($D$82="N",$D$74=0,$G$953=""),"",IF($F$940=FALSE,"",IF($F$940=0,"",$I$953))) ->  | F81: =IF(OR($F$82="N",$F$74=0,$G$733=""),"",IF($F$960=FALSE,"",IF($F$960=0,"",$I$973))) ->  | H81: =IF(OR($H$82="N",$H$74=0,$G$993=""),"",IF($F$980=FALSE,"",IF($F$980=0,"",$I$993))) ->  | J81: =IF(OR($J$82="N",$J$74=0,$G$1013=""),"",IF($F$1000=FALSE,"",IF($F$1000=0,"",$I$1013))) ->  | L81: =IF(OR($L$82="N",$L$74=0,$G$1033=""),"",IF($F$1020=FALSE,"",IF($F$1020=0,"",$I$1033))) ->  | N81: =IF(OR($N$82="N",$N$74=0,$G$1053=""),"",IF($F$1040=FALSE,"",IF($F$1040=0,"",$I$1053))) ->  | P81: =IF(OR($P$82="N",$P$74=0,$G$1073=""),"",IF($F$1060=FALSE,"",IF($F$1060=0,"",$I$1073))) ->  | R81: =IF(OR($R$82="N",$R$74=0,$G$1093=""),"",IF($F$1080=FALSE,"",IF($F$1080=0,"",$I$1093))) ->  | T81: =IF(OR($T$82="N",$T$74=0,$G$1113=""),"",IF($F$1100=FALSE,"",IF($F$1100=0,"",$I$1113))) ->  | V81: =IF(OR($V$82="N",$V$74=0,$G$1133=""),"",IF($F$1120=FALSE,"",IF($F$1120=0,"",$I$1133))) ->  | X81: =IF(OR($X$82="N",$X$74=0,$G$1153=""),"",IF($F$1140=FALSE,"",IF($F$1140=0,"",$I$1153))) ->  | BE81: 79
A82: (je ausgewähltem Anschluss) Kabel J/N 13 | B82: =IF(ISNA(VLOOKUP($F$920,$F$921:$J$930,5,FALSE)),"",IF($F$920=FALSE,"",VLOOKUP($F$920,$F$921:$J$930,5))) ->  | D82: =IF(ISNA(VLOOKUP($F$940,$F$941:$J$950,5,FALSE)),"",IF($F$940=FALSE,"",VLOOKUP($F$940,$F$941:$J$950,5))) ->  | F82: =IF(ISNA(VLOOKUP($F$960,$F$961:$J$970,5,FALSE)),"",IF($F$960=FALSE,"",VLOOKUP($F$960,$F$961:$J$970,5))) ->  | H82: =IF(ISNA(VLOOKUP($F$980,$F$981:$J$990,5,FALSE)),"",IF($F$980=FALSE,"",VLOOKUP($F$980,$F$981:$J$990,5))) ->  | J82: =IF(ISNA(VLOOKUP($F$1000,$F$1001:$J$1010,5,FALSE)),"",IF($F$1000=FALSE,"",VLOOKUP($F$1000,$F$1001:$J$1010,5))) ->  | L82: =IF(ISNA(VLOOKUP($F$1020,$F$1021:$J$1030,5,FALSE)),"",IF($F$1020=FALSE,"",VLOOKUP($F$1020,$F$1021:$J$1030,5))) ->  | N82: =IF(ISNA(VLOOKUP($F$1040,$F$1041:$J$1050,5,FALSE)),"",IF($F$1040=FALSE,"",VLOOKUP($F$1040,$F$1041:$J$1050,5))) ->  | P82: =IF(ISNA(VLOOKUP($F$1060,$F$1061:$J$1070,5,FALSE)),"",IF($F$1060=FALSE,"",VLOOKUP($F$1060,$F$1061:$J$1070,5))) ->  | R82: =IF(ISNA(VLOOKUP($F$1080,$F$1081:$J$1090,5,FALSE)),"",IF($F$1080=FALSE,"",VLOOKUP($F$1080,$F$1081:$J$1090,5))) ->  | T82: =IF(ISNA(VLOOKUP($F$1100,$F$1101:$J$1110,5,FALSE)),"",IF($F$1100=FALSE,"",VLOOKUP($F$1100,$F$1101:$J$1110,5))) ->  | V82: =IF(ISNA(VLOOKUP($F$1120,$F$1121:$J$1130,5,FALSE)),"",IF($F$1120=FALSE,"",VLOOKUP($F$1120,$F$1121:$J$1130,5))) ->  | X82: =IF(ISNA(VLOOKUP($F$1140,$F$1141:$J$1150,5,FALSE)),"",IF($F$1140=FALSE,"",VLOOKUP($F$1140,$F$1141:$J$1150,5))) ->  | BE82: 80
A83: Zusätzliche Kabellänge 14 | B83: =IF(B82="N",0,(B74*B73)+B72) -> 0 | D83: =IF(D82="N",0,(D74*D73)+D72) -> 0 | F83: =IF(F82="N",0,(F74*F73)+F72) -> 0 | H83: =IF(H82="N",0,(H74*H73)+H72) -> 0 | J83: =IF(J82="N",0,(J74*J73)+J72) -> 0 | L83: =IF(L82="N",0,(L74*L73)+L72) -> 0 | N83: =IF(N82="N",0,(N74*N73)+N72) -> 0 | P83: =IF(P82="N",0,(P74*P73)+P72) -> 0 | R83: =IF(R82="N",0,(R74*R73)+R72) -> 0 | T83: =IF(T82="N",0,(T74*T73)+T72) -> 0 | V83: =IF(V82="N",0,(V74*V73)+V72) -> 0 | X83: =IF(X82="N",0,(X74*X73)+X72) -> 0 | BE83: 81
A84: Summe TE 15 | B84: =IF(B$73=0,"",B$73*B$76) ->  | D84: =IF(D$73=0,"",D$73*D$76) ->  | F84: =IF(F$73=0,"",F$73*F$76) ->  | H84: =IF(H$73=0,"",H$73*H$76) ->  | J84: =IF(J$73=0,"",J$73*J$76) ->  | L84: =IF(L$73=0,"",L$73*L$76) ->  | N84: =IF(N$73=0,"",N$73*N$76) ->  | P84: =IF(P$73=0,"",P$73*P$76) ->  | R84: =IF(R$73=0,"",R$73*R$76) ->  | T84: =IF(T$73=0,"",T$73*T$76) ->  | V84: =IF(V$73=0,"",V$73*V$76) ->  | X84: =IF(X$73=0,"",X$73*X$76) ->  | BE84: 82
A85: Datenaufbereitung | B85: 920 | D85: 940 | F85: 960 | H85: 980 | J85: 1000 | L85: 1020 | N85: 1040 | P85: 1060 | R85: 1080 | T85: 1100 | V85: 1120 | X85: 1140 | BE85: 83
A86: Konfigurator | B86: AFM | D86: AFM | F86: AFM | H86: AFM | J86: AFM | L86: AFM | N86: AFM | P86: AFM | R86: AFM | T86: AFM | V86: AFM | X86: AFM | BE86: 84
BE87: 85
BE88: 86
A89: Modulreihe - 5 | B89: =$A1160 -> Taster rot | D89: =$A1180 -> Taster grün | F89: =$A1200 -> Schalter rot | H89: =$A1220 -> Schalter grün | J89: =$A1240 -> Taster Chrom | L89: =$A1260 -> Taster Chr. LED | N89: =$A1280 -> Taster 18x18 | P89: =$A1300 -> Taster 24x18 | R89: =$A1320 -> Frei 1320 | T89: =$A1340 -> Frei 1340 | V89: =$A1360 -> Frei 1360 | X89: =$A1380 -> Frei 1380 | BE89: 87
A90: Laufende Nummer 1 | B90: =IF(B$91<1,"",SUM($B$11:$X$11)+SUM($B$31:$X$31)+SUM($B$51:$X$51)+SUM($B$71:$X$71)+SUM($B$91)) ->  | D90: =IF(D$91<1,"",SUM($B$11:$X$11)+SUM($B$31:$X$31)+SUM($B$51:$X$51)+SUM($B$71:$X$71)+SUM($B$91:D$91)) ->  | F90: =IF(F$91<1,"",SUM($B$11:$X$11)+SUM($B$31:$X$31)+SUM($B$51:$X$51)+SUM($B$71:$X$71)+SUM($B$91:F$91)) ->  | H90: =IF(H$91<1,"",SUM($B$11:$X$11)+SUM($B$31:$X$31)+SUM($B$51:$X$51)+SUM($B$71:$X$71)+SUM($B$91:H$91)) ->  | J90: =IF(J$91<1,"",SUM($B$11:$X$11)+SUM($B$31:$X$31)+SUM($B$51:$X$51)+SUM($B$71:$X$71)+SUM($B$91:J$91)) ->  | L90: =IF(L$91<1,"",SUM($B$11:$X$11)+SUM($B$31:$X$31)+SUM($B$51:$X$51)+SUM($B$71:$X$71)+SUM($B$91:L$91)) ->  | N90: =IF(N$91<1,"",SUM($B$11:$X$11)+SUM($B$31:$X$31)+SUM($B$51:$X$51)+SUM($B$71:$X$71)+SUM($B$91:N$91)) ->  | P90: =IF(P$91<1,"",SUM($B$11:$X$11)+SUM($B$31:$X$31)+SUM($B$51:$X$51)+SUM($B$71:$X$71)+SUM($B$91:P$91)) ->  | R90: =IF(R$91<1,"",SUM($B$11:$X$11)+SUM($B$31:$X$31)+SUM($B$51:$X$51)+SUM($B$71:$X$71)+SUM($B$91:R$91)) ->  | T90: =IF(T$91<1,"",SUM($B$11:$X$11)+SUM($B$31:$X$31)+SUM($B$51:$X$51)+SUM($B$71:$X$71)+SUM($B$91:T$91)) ->  | V90: =IF(V$91<1,"",SUM($B$11:$X$11)+SUM($B$31:$X$31)+SUM($B$51:$X$51)+SUM($B$71:$X$71)+SUM($B$91:V$91)) ->  | X90: =IF(X$91<1,"",SUM($B$11:$X$11)+SUM($B$31:$X$31)+SUM($B$51:$X$51)+SUM($B$71:$X$71)+SUM($B$91:X$91)) ->  | BE90: 88
A91: Modul ausgewählt 2 | B91: =IF($F$1160=0,0,IF(B$93>0,1,0)) -> 0 | D91: =IF($F$1180=0,0,IF(D$93>0,1,0)) -> 0 | F91: =IF($F$1200=0,0,IF(F$93>0,1,0)) -> 0 | H91: =IF($F$1220=0,0,IF(H$93>0,1,0)) -> 0 | J91: =IF($F$1240=0,0,IF(J$93>0,1,0)) -> 0 | L91: =IF($F$1260=0,0,IF(L$93>0,1,0)) -> 0 | N91: =IF($F$1280=0,0,IF(N$93>0,1,0)) -> 0 | P91: =IF($F$1300=0,0,IF(P$93>0,1,0)) -> 0 | R91: =IF($F$1320=0,0,IF(R$93>0,1,0)) -> 0 | T91: =IF($F$1340=0,0,IF(T$93>0,1,0)) -> 0 | V91: =IF($F$1360=0,0,IF(V$93>0,1,0)) -> 0 | X91: =IF($F$1380=0,0,IF(X$93>0,1,0)) -> 0 | Y91: =SUM(B11:X11)+SUM(B31:X31)+SUM(B51:X51)+SUM(B71:X71)+SUM(B91:X91) -> 0 | BE91: 89
A92: Abzug Standard-Kabellänge 3 | B92: =IF(B$94>0,(-0.3*B$93),0) -> 0 | D92: =IF(D$94>0,(-0.3*D$93),0) -> 0 | F92: =IF(F$94>0,(-0.3*F$93),0) -> 0 | H92: =IF(H$94>0,(-0.3*H$93),0) -> 0 | J92: =IF(J$94>0,(-0.3*J$93),0) -> 0 | L92: =IF(L$94>0,(-0.3*L$93),0) -> 0 | N92: =IF(N$94>0,(-0.3*N$93),0) -> 0 | P92: =IF(P$94>0,(-0.3*P$93),0) -> 0 | R92: =IF(R$94>0,(-0.3*R$93),0) -> 0 | T92: =IF(T$94>0,(-0.3*T$93),0) -> 0 | V92: =IF(V$94>0,(-0.3*V$93),0) -> 0 | X92: =IF(X$94>0,(-0.3*X$93),0) -> 0 | BE92: 90
A93: Menge Module 4 | B93: =Konfigurator!B83 -> 0 | D93: =Konfigurator!D83 -> 0 | F93: =Konfigurator!F83 -> 0 | H93: =Konfigurator!H83 -> 0 | J93: =Konfigurator!J83 -> 0 | L93: =Konfigurator!L83 -> 0 | N93: =Konfigurator!N83 -> 0 | P93: =Konfigurator!P83 -> 0 | R93: =Konfigurator!R83 -> 0 | T93: =Konfigurator!T83 -> 0 | V93: =Konfigurator!V83 -> 0 | X93: =Konfigurator!X83 -> 0 | BE93: 91
A94: Kabellänge (Meter) 5 | B94: =Konfigurator!B84 -> 0 | D94: =Konfigurator!D84 -> 0 | F94: =Konfigurator!F84 -> 0 | H94: =Konfigurator!H84 -> 0 | J94: =Konfigurator!J84 -> 0 | L94: =Konfigurator!L84 -> 0 | N94: =Konfigurator!N84 -> 0 | P94: =Konfigurator!P84 -> 0 | R94: =Konfigurator!R84 -> 0 | T94: =Konfigurator!T84 -> 0 | V94: =Konfigurator!V84 -> 0 | X94: =Konfigurator!X84 -> 0 | BE94: 92
A95: Artikel-Nr. 6 | B95: =IF($B$93=0,"",IF(ISNA(VLOOKUP($F$1160,$F$1161:$J$1170,2,FALSE)),"",IF($F$1160=FALSE,"",VLOOKUP($F$1160,$F$1161:$J$1170,2)))) ->  | D95: =IF($D$93=0,"",IF(ISNA(VLOOKUP($F$1180,$F$1181:$J$1190,2,FALSE)),"",IF($F$1180=FALSE,"",VLOOKUP($F$1180,$F$1181:$J$1190,2)))) ->  | F95: =IF($F$93=0,"",IF(ISNA(VLOOKUP($F$1200,$F$1201:$J$1210,2,FALSE)),"",IF($F$1200=FALSE,"",VLOOKUP($F$1200,$F$1201:$J$1210,2)))) ->  | H95: =IF($H$93=0,"",IF(ISNA(VLOOKUP($F$1220,$F$1221:$J$1230,2,FALSE)),"",IF($F$1220=FALSE,"",VLOOKUP($F$1220,$F$1221:$J$1230,2)))) ->  | J95: =IF($J$93=0,"",IF(ISNA(VLOOKUP($F$1240,$F$1241:$J$1250,2,FALSE)),"",IF($F$1240=FALSE,"",VLOOKUP($F$1240,$F$1241:$J$1250,2)))) ->  | L95: =IF($L$93=0,"",IF(ISNA(VLOOKUP($F$1260,$F$1261:$J$1270,2,FALSE)),"",IF($F$1260=FALSE,"",VLOOKUP($F$1260,$F$1261:$J$1270,2)))) ->  | N95: =IF($N$93=0,"",IF(ISNA(VLOOKUP($F$1280,$F$1281:$J$1290,2,FALSE)),"",IF($F$1280=FALSE,"",VLOOKUP($F$1280,$F$1281:$J$1290,2)))) ->  | P95: =IF($P$93=0,"",IF(ISNA(VLOOKUP($F$1300,$F$1301:$J$1310,2,FALSE)),"",IF($F$1300=FALSE,"",VLOOKUP($F$1300,$F$1301:$J$1310,2)))) ->  | R95: =IF($R$93=0,"",IF(ISNA(VLOOKUP($F$1320,$F$1321:$J$1330,2,FALSE)),"",IF($F$1320=FALSE,"",VLOOKUP($F$1320,$F$1321:$J$1330,2)))) ->  | T95: =IF($T$93=0,"",IF(ISNA(VLOOKUP($F$1340,$F$1341:$J$1350,2,FALSE)),"",IF($F$1340=FALSE,"",VLOOKUP($F$1340,$F$1341:$J$1350,2)))) ->  | V95: =IF($V$93=0,"",IF(ISNA(VLOOKUP($F$1360,$F$1361:$J$1370,2,FALSE)),"",IF($F$1360=FALSE,"",VLOOKUP($F$1360,$F$1361:$J$1370,2)))) ->  | X95: =IF($X$93=0,"",IF(ISNA(VLOOKUP($F$1380,$F$1381:$J$1390,2,FALSE)),"",IF($F$1380=FALSE,"",VLOOKUP($F$1380,$F$1381:$J$1390,2)))) ->  | BE95: 93
A96: TE 7 | B96: =IF($B$93=0,"",IF(ISNA(VLOOKUP($F$1160,$F$1161:$J$1170,3,FALSE)),"",IF($F$1160=FALSE,"",VLOOKUP($F$1160,$F$1161:$J$1170,3)))) ->  | D96: =IF($D$93=0,"",IF(ISNA(VLOOKUP($F$1180,$F$1181:$J$1190,3,FALSE)),"",IF($F$1180=FALSE,"",VLOOKUP($F$1180,$F$1181:$J$1190,3)))) ->  | F96: =IF($F$93=0,"",IF(ISNA(VLOOKUP($F$1200,$F$1201:$J$1210,3,FALSE)),"",IF($F$1200=FALSE,"",VLOOKUP($F$1200,$F$1201:$J$1210,3)))) ->  | H96: =IF($H$93=0,"",IF(ISNA(VLOOKUP($F$1220,$F$1221:$J$1230,3,FALSE)),"",IF($F$1220=FALSE,"",VLOOKUP($F$1220,$F$1221:$J$1230,3)))) ->  | J96: =IF($J$93=0,"",IF(ISNA(VLOOKUP($F$1240,$F$1241:$J$1250,3,FALSE)),"",IF($F$1240=FALSE,"",VLOOKUP($F$1240,$F$1241:$J$1250,3)))) ->  | L96: =IF($L$93=0,"",IF(ISNA(VLOOKUP($F$1260,$F$1261:$J$1270,3,FALSE)),"",IF($F$1260=FALSE,"",VLOOKUP($F$1260,$F$1261:$J$1270,3)))) ->  | N96: =IF($N$93=0,"",IF(ISNA(VLOOKUP($F$1280,$F$1281:$J$1290,3,FALSE)),"",IF($F$1280=FALSE,"",VLOOKUP($F$1280,$F$1281:$J$1290,3)))) ->  | P96: =IF($P$93=0,"",IF(ISNA(VLOOKUP($F$1300,$F$1301:$J$1310,3,FALSE)),"",IF($F$1300=FALSE,"",VLOOKUP($F$1300,$F$1301:$J$1310,3)))) ->  | R96: =IF($R$93=0,"",IF(ISNA(VLOOKUP($F$1320,$F$1321:$J$1330,3,FALSE)),"",IF($F$1320=FALSE,"",VLOOKUP($F$1320,$F$1321:$J$1330,3)))) ->  | T96: =IF($T$93=0,"",IF(ISNA(VLOOKUP($F$1340,$F$1341:$J$1350,3,FALSE)),"",IF($F$1340=FALSE,"",VLOOKUP($F$1340,$F$1341:$J$1350,3)))) ->  | V96: =IF($V$93=0,"",IF(ISNA(VLOOKUP($F$1360,$F$1361:$J$1370,3,FALSE)),"",IF($F$1360=FALSE,"",VLOOKUP($F$1360,$F$1361:$J$1370,3)))) ->  | X96: =IF($X$93=0,"",IF(ISNA(VLOOKUP($F$1380,$F$1381:$J$1390,3,FALSE)),"",IF($F$1380=FALSE,"",VLOOKUP($F$1380,$F$1381:$J$1390,3)))) ->  | BE96: 94
A97: Einzel-Preis 8 | B97: =IF($B$93=0,"",IF(ISNA(VLOOKUP($F$1160,$F$1161:$J$1170,4,FALSE)),"",IF($F$1160=FALSE,"",VLOOKUP($F$1160,$F$1161:$J$1170,4)))) ->  | D97: =IF($D$93=0,"",IF(ISNA(VLOOKUP($F$1180,$F$1181:$J$1190,4,FALSE)),"",IF($F$1180=FALSE,"",VLOOKUP($F$1180,$F$1181:$J$1190,4)))) ->  | F97: =IF($F$93=0,"",IF(ISNA(VLOOKUP($F$1200,$F$1201:$J$1210,4,FALSE)),"",IF($F$1200=FALSE,"",VLOOKUP($F$1200,$F$1201:$J$1210,4)))) ->  | H97: =IF($H$93=0,"",IF(ISNA(VLOOKUP($F$1220,$F$1221:$J$1230,4,FALSE)),"",IF($F$1220=FALSE,"",VLOOKUP($F$1220,$F$1221:$J$1230,4)))) ->  | J97: =IF($J$93=0,"",IF(ISNA(VLOOKUP($F$1240,$F$1241:$J$1250,4,FALSE)),"",IF($F$1240=FALSE,"",VLOOKUP($F$1240,$F$1241:$J$1250,4)))) ->  | L97: =IF($L$93=0,"",IF(ISNA(VLOOKUP($F$1260,$F$1261:$J$1270,4,FALSE)),"",IF($F$1260=FALSE,"",VLOOKUP($F$1260,$F$1261:$J$1270,4)))) ->  | N97: =IF($N$93=0,"",IF(ISNA(VLOOKUP($F$1280,$F$1281:$J$1290,4,FALSE)),"",IF($F$1280=FALSE,"",VLOOKUP($F$1280,$F$1281:$J$1290,4)))) ->  | P97: =IF($P$93=0,"",IF(ISNA(VLOOKUP($F$1300,$F$1301:$J$1310,4,FALSE)),"",IF($F$1300=FALSE,"",VLOOKUP($F$1300,$F$1301:$J$1310,4)))) ->  | R97: =IF($R$93=0,"",IF(ISNA(VLOOKUP($F$1320,$F$1321:$J$1330,4,FALSE)),"",IF($F$1320=FALSE,"",VLOOKUP($F$1320,$F$1321:$J$1330,4)))) ->  | T97: =IF($T$93=0,"",IF(ISNA(VLOOKUP($F$1340,$F$1341:$J$1350,4,FALSE)),"",IF($F$1340=FALSE,"",VLOOKUP($F$1340,$F$1341:$J$1350,4)))) ->  | V97: =IF($V$93=0,"",IF(ISNA(VLOOKUP($F$1360,$F$1361:$J$1370,4,FALSE)),"",IF($F$1360=FALSE,"",VLOOKUP($F$1360,$F$1361:$J$1370,4)))) ->  | X97: =IF($X$93=0,"",IF(ISNA(VLOOKUP($F$1380,$F$1381:$J$1390,4,FALSE)),"",IF($F$1380=FALSE,"",VLOOKUP($F$1380,$F$1381:$J$1390,4)))) ->  | BE97: 95
A98: Artikel-Nr. Zusatzkabel - 1 9 | B98: =IF(OR($B$102="N",$B$94=0),"",IF($F$1160=FALSE,"",IF($F$1160=0,"",$G$1171))) ->  | D98: =IF(OR(D$102="N",D$94=0),"",IF($F$1180=FALSE,"",IF($F$1180=0,"",$G$1191))) ->  | F98: =IF(OR(F$102="N",F$94=0),"",IF($F$1200=FALSE,"",IF($F$1200=0,"",$G$1211))) ->  | H98: =IF(OR(H$102="N",H$94=0),"",IF($F$1220=FALSE,"",IF($F$1220=0,"",$G$1231))) ->  | J98: =IF(OR(J$102="N",J$94=0),"",IF($F$1240=FALSE,"",IF($F$1240=0,"",$G$1251))) ->  | L98: =IF(OR(L$102="N",L$94=0),"",IF($F$1260=FALSE,"",IF($F$1260=0,"",$G$1271))) ->  | N98: =IF(OR(N$102="N",N$94=0),"",IF($F$1280=FALSE,"",IF($F$1280=0,"",$G$1291))) ->  | P98: =IF(OR(P$102="N",P$94=0),"",IF($F$1300=FALSE,"",IF($F$1300=0,"",$G$1311))) ->  | R98: =IF(OR(R$102="N",R$94=0),"",IF($F$1320=FALSE,"",IF($F$1320=0,"",$G$1331))) ->  | T98: =IF(OR(T$102="N",T$94=0),"",IF($F$1340=FALSE,"",IF($F$1340=0,"",$G$1351))) ->  | V98: =IF(OR(V$102="N",V$94=0),"",IF($F$1360=FALSE,"",IF($F$1360=0,"",$G$1371))) ->  | X98: =IF(OR(X$102="N",X$94=0),"",IF($F$1380=FALSE,"",IF($F$1380=0,"",$G$1391))) ->  | BE98: 96
A99: zusätzliche Kabellänge /m 10 | B99: =IF(OR($B$102="N",$B$94=0),"",IF($F$1160=FALSE,"",IF($F$1160=0,"",$I$1171))) ->  | D99: =IF(OR(D$102="N",D$94=0),"",IF($F$1180=FALSE,"",IF($F$1180=0,"",$I$1191))) ->  | F99: =IF(OR(F$102="N",F$94=0),"",IF($F$1200=FALSE,"",IF($F$1200=0,"",$I$1211))) ->  | H99: =IF(OR(H$102="N",H$94=0),"",IF($F$1220=FALSE,"",IF($F$1220=0,"",$I$1231))) ->  | J99: =IF(OR(J$102="N",J$94=0),"",IF($F$1240=FALSE,"",IF($F$1240=0,"",$I$1251))) ->  | L99: =IF(OR(L$102="N",L$94=0),"",IF($F$1260=FALSE,"",IF($F$1260=0,"",$I$1271))) ->  | N99: =IF(OR(N$102="N",N$94=0),"",IF($F$1280=FALSE,"",IF($F$1280=0,"",$I$1291))) ->  | P99: =IF(OR(P$102="N",P$94=0),"",IF($F$1300=FALSE,"",IF($F$1300=0,"",$I$1311))) ->  | R99: =IF(OR(R$102="N",R$94=0),"",IF($F$1320=FALSE,"",IF($F$1320=0,"",$I$1331))) ->  | T99: =IF(OR(T$102="N",T$94=0),"",IF($F$1340=FALSE,"",IF($F$1340=0,"",$I$1351))) ->  | V99: =IF(OR(V$102="N",V$94=0),"",IF($F$1360=FALSE,"",IF($F$1360=0,"",$I$1371))) ->  | X99: =IF(OR(X$102="N",X$94=0),"",IF($F$1380=FALSE,"",IF($F$1380=0,"",$I$1391))) ->  | BE99: 97
A100: Artikel-Nr. Zusatzkabel Audio 11 | B100: =IF(OR(B$102="N",B$94=0,$G$1173=""),"",IF($F$1160=FALSE,"",IF($F$1160=0,"",$G$1173))) ->  | D100: =IF(OR(D$102="N",D$94=0,$G$1193=""),"",IF($F$1180=FALSE,"",IF($F$1180=0,"",$G$1193))) ->  | F100: =IF(OR(F$102="N",F$94=0,$G$1213=""),"",IF($F$1200=FALSE,"",IF($F$1200=0,"",$G$1213))) ->  | H100: =IF(OR(H$102="N",H$94=0,$G$1233=""),"",IF($F$1220=FALSE,"",IF($F$1220=0,"",$G$1233))) ->  | J100: =IF(OR(J$102="N",J$94=0,$G$1253=""),"",IF($F$1240=FALSE,"",IF($F$1240=0,"",$G$1253))) ->  | L100: =IF(OR(L$102="N",L$94=0,$G$1273=""),"",IF($F$1260=FALSE,"",IF($F$1260=0,"",$G$1273))) ->  | N100: =IF(J1292="J",5557,IF(OR(N$102="N",N$94=0,$G$1293=""),"",IF($F$1280=FALSE,"",IF($F$1280=0,"",$G$1293)))) -> 5557 | P100: =IF(J1312="J",5557,IF(OR(P$102="N",P$94=0,$G$1313=""),"",IF($F$1300=FALSE,"",IF($F$1300=0,"",$G$1313)))) -> 5557 | R100: =IF(OR(R$102="N",R$94=0,$G$1333=""),"",IF($F$1320=FALSE,"",IF($F$1320=0,"",$G$1333))) ->  | T100: =IF(OR(T$102="N",T$94=0,$G$1353=""),"",IF($F$1340=FALSE,"",IF($F$1340=0,"",$G$1353))) ->  | V100: =IF(OR(V$102="N",V$94=0,$G$1373=""),"",IF($F$1360=FALSE,"",IF($F$1360=0,"",$G$1373))) ->  | X100: =IF(OR(X$102="N",X$94=0,$G$1393=""),"",IF($F$1380=FALSE,"",IF($F$1380=0,"",$G$1393))) ->  | BE100: 98
A101: zusätzliche Kabellänge Audio /m 12 | B101: =IF(OR(B$102="N",B$94=0,$G$1173=""),"",IF($F$1160=FALSE,"",IF($F$1160=0,"",$I$1173))) ->  | D101: =IF(OR(D$102="N",D$94=0,$G$1193=""),"",IF($F$1180=FALSE,"",IF($F$1180=0,"",$I$1193))) ->  | F101: =IF(OR(F$102="N",F$94=0,$G$1213=""),"",IF($F$1200=FALSE,"",IF($F$1200=0,"",$I$1213))) ->  | H101: =IF(OR(H$102="N",H$94=0,$G$1233=""),"",IF($F$1220=FALSE,"",IF($F$1220=0,"",$I$1233))) ->  | J101: =IF(OR(J$102="N",J$94=0,$G$1253=""),"",IF($F$1240=FALSE,"",IF($F$1240=0,"",$I$1253))) ->  | L101: =IF(OR(L$102="N",L$94=0,$G$1273=""),"",IF($F$1260=FALSE,"",IF($F$1260=0,"",$I$1273))) ->  | N101: =IF($J$1292="J",$I$1292,IF(OR(N$102="N",N$94=0,$G$1293=""),"",IF($F$1280=FALSE,"",IF($F$1280=0,"",$I$1293)))) -> 11.991 | P101: =IF($J$1312="J",$I$1312,IF(OR(P$102="N",P$94=0,$G$1313=""),"",IF($F$1300=FALSE,"",IF($F$1300=0,"",$I$1313)))) -> 11.991 | R101: =IF(OR(R$102="N",R$94=0,$G$1333=""),"",IF($F$1320=FALSE,"",IF($F$1320=0,"",$I$1333))) ->  | T101: =IF(OR(T$102="N",T$94=0,$G$1353=""),"",IF($F$1340=FALSE,"",IF($F$1340=0,"",$I$1353))) ->  | V101: =IF(OR(V$102="N",V$94=0,$G$1373=""),"",IF($F$1360=FALSE,"",IF($F$1360=0,"",$I$1373))) ->  | X101: =IF(OR(X$102="N",X$94=0,$G$1393=""),"",IF($F$1380=FALSE,"",IF($F$1380=0,"",$I$1393))) ->  | BE101: 99
A102: (je ausgewähltem Anschluss) Kabel J/N 13 | B102: =IF(ISNA(VLOOKUP($F$1160,$F$1161:$J$1170,5,FALSE)),"",IF($F$1160=FALSE,"",VLOOKUP($F$1160,$F$1161:$J$1170,5))) ->  | D102: =IF(ISNA(VLOOKUP($F$1180,$F$1181:$J$1190,5,FALSE)),"",IF($F$1180=FALSE,"",VLOOKUP($F$1180,$F$1181:$J$1190,5))) ->  | F102: =IF(ISNA(VLOOKUP($F$1200,$F$1201:$J$1210,5,FALSE)),"",IF($F$1200=FALSE,"",VLOOKUP($F$1200,$F$1201:$J$1210,5))) ->  | H102: =IF(ISNA(VLOOKUP($F$1220,$F$1221:$J$1230,5,FALSE)),"",IF($F$1220=FALSE,"",VLOOKUP($F$1220,$F$1221:$J$1230,5))) ->  | J102: =IF(ISNA(VLOOKUP($F$1240,$F$1241:$J$1250,5,FALSE)),"",IF($F$1240=FALSE,"",VLOOKUP($F$1240,$F$1241:$J$1250,5))) ->  | L102: =IF(ISNA(VLOOKUP($F$1260,$F$1261:$J$1270,5,FALSE)),"",IF($F$1260=FALSE,"",VLOOKUP($F$1260,$F$1261:$J$1270,5))) ->  | N102: =IF(ISNA(VLOOKUP($F$1280,$F$1281:$J$1290,5,FALSE)),"",IF($F$1280=FALSE,"",VLOOKUP($F$1280,$F$1281:$J$1290,5))) ->  | P102: =IF(ISNA(VLOOKUP($F$1300,$F$1301:$J$1310,5,FALSE)),"",IF($F$1300=FALSE,"",VLOOKUP($F$1300,$F$1301:$J$1310,5))) ->  | R102: =IF(ISNA(VLOOKUP($F$1320,$F$1321:$J$1330,5,FALSE)),"",IF($F$1320=FALSE,"",VLOOKUP($F$1320,$F$1321:$J$1330,5))) ->  | T102: =IF(ISNA(VLOOKUP($F$1340,$F$1341:$J$1350,5,FALSE)),"",IF($F$1340=FALSE,"",VLOOKUP($F$1340,$F$1341:$J$1350,5))) ->  | V102: =IF(ISNA(VLOOKUP($F$1360,$F$1361:$J$1370,5,FALSE)),"",IF($F$1360=FALSE,"",VLOOKUP($F$1360,$F$1361:$J$1370,5))) ->  | X102: =IF(ISNA(VLOOKUP($F$1380,$F$1381:$J$1390,5,FALSE)),"",IF($F$1380=FALSE,"",VLOOKUP($F$1380,$F$1381:$J$1390,5))) ->  | BE102: 100
A103: Zusätzliche Kabellänge 14 | B103: =IF(B102="N",0,(B94*B93)+B92) -> 0 | D103: =IF(D102="N",0,(D94*D93)+D92) -> 0 | F103: =IF(F102="N",0,(F94*F93)+F92) -> 0 | H103: =IF(H102="N",0,(H94*H93)+H92) -> 0 | J103: =IF(J102="N",0,(J94*J93)+J92) -> 0 | L103: =IF(L102="N",0,(L94*L93)+L92) -> 0 | N103: =IF(N102="N",0,(N94*N93)+N92) -> 0 | P103: =IF(P102="N",0,(P94*P93)+P92) -> 0 | R103: =IF(R102="N",0,(R94*R93)+R92) -> 0 | T103: =IF(T102="N",0,(T94*T93)+T92) -> 0 | V103: =IF(V102="N",0,(V94*V93)+V92) -> 0 | X103: =IF(X102="N",0,(X94*X93)+X92) -> 0
A104: Summe TE 15 | B104: =IF(B$93=0,"",B$93*B$96) ->  | D104: =IF(D$93=0,"",D$93*D$96) ->  | F104: =IF(F$93=0,"",F$93*F$96) ->  | H104: =IF(H$93=0,"",H$93*H$96) ->  | J104: =IF(J$93=0,"",J$93*J$96) ->  | L104: =IF(L$93=0,"",L$93*L$96) ->  | N104: =IF(N$93=0,"",N$93*N$96) ->  | P104: =IF(P$93=0,"",P$93*P$96) ->  | R104: =IF(R$93=0,"",R$93*R$96) ->  | T104: =IF(T$93=0,"",T$93*T$96) ->  | V104: =IF(V$93=0,"",V$93*V$96) ->  | X104: =IF(X$93=0,"",X$93*X$96) -> 
A105: Datenaufbereitung | B105: 1160 | D105: 1180 | F105: 1200 | H105: 1220 | J105: 1240 | L105: 1260 | N105: 1280 | P105: 1300 | R105: 1320 | T105: 1340 | V105: 1360 | X105: 1380
A106: Konfigurator | B106: AFM | D106: AFM | F106: AFM | H106: AFM | J106: AFM | L106: AFM | N106: AFM | P106: AFM | R106: AFM | T106: AFM | V106: AFM | X106: AFM
A109: Modulreihe - 6 | B109: =$A1400 -> Frei 1400 | D109: =$A1420 -> Frei 1420 | F109: =$A1440 -> Durchf. RU | H109: =$A1460 -> Durchf. LU/RO | J109: =$A1480 -> Durchf. LO/RU | L109: =$A1500 -> Durchf. LU | N109: =$A1520 -> Blindpl. 4TE | P109: =$A1400 -> Frei 1400 | R109: =$A1400 -> Frei 1400 | T109: =$A1400 -> Frei 1400 | V109: =$A1400 -> Frei 1400 | X109: =$A1400 -> Frei 1400
A110: Laufende Nummer 1 | B110: =IF(B$111<1,"",SUM($B$11:$X$11)+SUM($B$31:$X$31)+SUM($B$51:$X$51)+SUM($B$71:$X$71)+SUM($B$91:$X$91)+SUM($B$111)) ->  | D110: =IF(D$111<1,"",SUM($B$11:$X$11)+SUM($B$31:$X$31)+SUM($B$51:$X$51)+SUM($B$71:$X$71)+SUM($B$91:$X$91)+SUM($B$111:D$111)) ->  | F110: =IF(F$111<1,"",SUM($B$11:$X$11)+SUM($B$31:$X$31)+SUM($B$51:$X$51)+SUM($B$71:$X$71)+SUM($B$91:$X$91)+SUM($B$111:F$111)) ->  | H110: =IF(H$111<1,"",SUM($B$11:$X$11)+SUM($B$31:$X$31)+SUM($B$51:$X$51)+SUM($B$71:$X$71)+SUM($B$91:$X$91)+SUM($B$111:H$111)) ->  | J110: =IF(J$111<1,"",SUM($B$11:$X$11)+SUM($B$31:$X$31)+SUM($B$51:$X$51)+SUM($B$71:$X$71)+SUM($B$91:$X$91)+SUM($B$111:J$111)) ->  | L110: =IF(L$111<1,"",SUM($B$11:$X$11)+SUM($B$31:$X$31)+SUM($B$51:$X$51)+SUM($B$71:$X$71)+SUM($B$91:$X$91)+SUM($B$111:L$111)) ->  | N110: =IF(N$111<1,"",SUM($B$11:$X$11)+SUM($B$31:$X$31)+SUM($B$51:$X$51)+SUM($B$71:$X$71)+SUM($B$91:$X$91)+SUM($B$111:N$111)) ->  | P110: =IF(P$111<1,"",SUM($B$11:$X$11)+SUM($B$31:$X$31)+SUM($B$51:$X$51)+SUM($B$71:$X$71)+SUM($B$91:$X$91)+SUM($B$111:P$111)) ->  | R110: =IF(R$111<1,"",SUM($B$11:$X$11)+SUM($B$31:$X$31)+SUM($B$51:$X$51)+SUM($B$71:$X$71)+SUM($B$91:$X$91)+SUM($B$111:R$111)) ->  | T110: =IF(T$111<1,"",SUM($B$11:$X$11)+SUM($B$31:$X$31)+SUM($B$51:$X$51)+SUM($B$71:$X$71)+SUM($B$91:$X$91)+SUM($B$111:T$111)) ->  | V110: =IF(V$111<1,"",SUM($B$11:$X$11)+SUM($B$31:$X$31)+SUM($B$51:$X$51)+SUM($B$71:$X$71)+SUM($B$91:$X$91)+SUM($B$111:V$111)) ->  | X110: =IF(X$111<1,"",SUM($B$11:$X$11)+SUM($B$31:$X$31)+SUM($B$51:$X$51)+SUM($B$71:$X$71)+SUM($B$91:$X$91)+SUM($B$111:X$111)) -> 
A111: Modul ausgewählt 2 | B111: =IF($F$1400=0,0,IF(B$113>0,1,0)) -> 0 | D111: =IF($F$1420=0,0,IF(D$113>0,1,0)) -> 0 | F111: =IF($F$1440=0,0,IF(F$113>0,1,0)) -> 0 | H111: =IF($F$1460=0,0,IF(H$113>0,1,0)) -> 0 | J111: =IF($F$1480=0,0,IF(J$113>0,1,0)) -> 0 | L111: =IF($F$1500=0,0,IF(L$113>0,1,0)) -> 0 | N111: =IF($F$1520=0,0,IF(N$113>0,1,0)) -> 0 | P111: =IF($F$1540=0,0,IF(P$113>0,1,0)) -> 0 | R111: =IF($F$1560=0,0,IF(R$113>0,1,0)) -> 0 | T111: =IF($F$1580=0,0,IF(T$113>0,1,0)) -> 0 | V111: =IF($F$1600=0,0,IF(V$113>0,1,0)) -> 0 | X111: =IF($F$1620=0,0,IF(X$113>0,1,0)) -> 0 | Y111: =SUM(B11:X11)+SUM(B31:X31)+SUM(B51:X51)+SUM(B71:X71)+SUM(B91:X91)+SUM(B111:X111) -> 0
A112: Abzug Standard-Kabellänge 3 | B112: =IF(B$114>0,(-0.3*B$113),0) -> 0 | D112: =IF(D$114>0,(-0.3*D$113),0) -> 0 | F112: =IF(F$114>0,(-0.3*F$113),0) -> 0 | H112: =IF(H$114>0,(-0.3*H$113),0) -> 0 | J112: =IF(J$114>0,(-0.3*J$113),0) -> 0 | L112: =IF(L$114>0,(-0.3*L$113),0) -> 0 | N112: =IF(N$114>0,(-0.3*N$113),0) -> 0 | P112: =IF(P$114>0,(-0.3*P$113),0) -> 0 | R112: =IF(R$114>0,(-0.3*R$113),0) -> 0 | T112: =IF(T$114>0,(-0.3*T$113),0) -> 0 | V112: =IF(V$114>0,(-0.3*V$113),0) -> 0 | X112: =IF(X$114>0,(-0.3*X$113),0) -> 0
A113: Menge Module 4 | B113: =Konfigurator!B$93 -> 0 | D113: =Konfigurator!D$93 -> 0 | F113: =Konfigurator!F$93 -> 0 | H113: =Konfigurator!H$93 -> 0 | J113: =Konfigurator!J$93 -> 0 | L113: =Konfigurator!L$93 -> 0 | N113: =Konfigurator!N$93 -> 0 | P113: =Konfigurator!P$93 -> 0 | R113: =Konfigurator!R$93 -> 0 | T113: =Konfigurator!T$93 -> 0 | V113: =Konfigurator!V$93 -> 0 | X113: =Konfigurator!X$93 -> 0
A114: Kabellänge (Meter) 5 | B114: =Konfigurator!B$94 -> 0 | D114: =Konfigurator!D$94 -> 0 | F114: =Konfigurator!F$94 -> 0 | H114: =Konfigurator!H$94 -> 0 | J114: =Konfigurator!J$94 -> 0 | L114: =Konfigurator!L$94 -> 0 | N114: =Konfigurator!N$94 -> 0 | P114: =Konfigurator!P$94 -> 0 | R114: =Konfigurator!R$94 -> 0 | T114: =Konfigurator!T$94 -> 0 | V114: =Konfigurator!V$94 -> 0 | X114: =Konfigurator!X$94 -> 0
A115: Artikel-Nr. 6 | B115: =IF($B$113=0,"",IF(ISNA(VLOOKUP($F$1400,$F$1401:$J$1410,2,FALSE)),"",IF($F$1400=FALSE,"",VLOOKUP($F$1400,$F$1401:$J$1410,2)))) ->  | D115: =IF($D$113=0,"",IF(ISNA(VLOOKUP($F$1420,$F$1421:$J$1430,2,FALSE)),"",IF($F$1420=FALSE,"",VLOOKUP($F$1420,$F$1421:$J$1430,2)))) ->  | F115: =IF($F$113=0,"",IF(ISNA(VLOOKUP($F$1440,$F$1441:$J$1450,2,FALSE)),"",IF($F$1440=FALSE,"",VLOOKUP($F$1440,$F$1441:$J$1450,2)))) ->  | H115: =IF($H$113=0,"",IF(ISNA(VLOOKUP($F$1460,$F$1461:$J$1470,2,FALSE)),"",IF($F$1460=FALSE,"",VLOOKUP($F$1460,$F$1461:$J$1470,2)))) ->  | J115: =IF($J$113=0,"",IF(ISNA(VLOOKUP($F$1480,$F$1481:$J$1490,2,FALSE)),"",IF($F$1480=FALSE,"",VLOOKUP($F$1480,$F$1481:$J$1490,2)))) ->  | L115: =IF($L$113=0,"",IF(ISNA(VLOOKUP($F$1500,$F$1501:$J$1510,2,FALSE)),"",IF($F$1500=FALSE,"",VLOOKUP($F$1500,$F$1501:$J$1510,2)))) ->  | N115: =IF($N$113=0,"",IF(ISNA(VLOOKUP($F$1520,$F$1521:$J$1530,2,FALSE)),"",IF($F$1520=FALSE,"",VLOOKUP($F$1520,$F$1521:$J$1530,2)))) ->  | P115: =IF($P$113=0,"",IF(ISNA(VLOOKUP($F$1540,$F$1541:$J$1550,2,FALSE)),"",IF($F$1540=FALSE,"",VLOOKUP($F$1540,$F$1541:$J$1550,2)))) ->  | R115: =IF($R$113=0,"",IF(ISNA(VLOOKUP($F$1560,$F$1561:$J$1570,2,FALSE)),"",IF($F$1560=FALSE,"",VLOOKUP($F$1560,$F$1561:$J$1570,2)))) ->  | T115: =IF($T$113=0,"",IF(ISNA(VLOOKUP($F$1580,$F$1581:$J$1590,2,FALSE)),"",IF($F$1580=FALSE,"",VLOOKUP($F$1580,$F$1581:$J$1590,2)))) ->  | V115: =IF($V$113=0,"",IF(ISNA(VLOOKUP($F$1600,$F$1601:$J$1610,2,FALSE)),"",IF($F$1600=FALSE,"",VLOOKUP($F$1600,$F$1601:$J$1610,2)))) ->  | X115: =IF($X$113=0,"",IF(ISNA(VLOOKUP($F$1620,$F$1621:$J$1630,2,FALSE)),"",IF($F$1620=FALSE,"",VLOOKUP($F$1620,$F$1621:$J$1630,2)))) -> 
A116: TE 7 | B116: =IF($B$113=0,"",IF(ISNA(VLOOKUP($F$1400,$F$1401:$J$1410,3,FALSE)),"",IF($F$1400=FALSE,"",VLOOKUP($F$1400,$F$1401:$J$1410,3)))) ->  | D116: =IF($D$113=0,"",IF(ISNA(VLOOKUP($F$1420,$F$1421:$J$1430,3,FALSE)),"",IF($F$1420=FALSE,"",VLOOKUP($F$1420,$F$1421:$J$1430,3)))) ->  | F116: =IF($F$113=0,"",IF(ISNA(VLOOKUP($F$1440,$F$1441:$J$1450,3,FALSE)),"",IF($F$1440=FALSE,"",VLOOKUP($F$1440,$F$1441:$J$1450,3)))) ->  | H116: =IF($H$113=0,"",IF(ISNA(VLOOKUP($F$1460,$F$1461:$J$1470,3,FALSE)),"",IF($F$1460=FALSE,"",VLOOKUP($F$1460,$F$1461:$J$1470,3)))) ->  | J116: =IF($J$113=0,"",IF(ISNA(VLOOKUP($F$1480,$F$1481:$J$1490,3,FALSE)),"",IF($F$1480=FALSE,"",VLOOKUP($F$1480,$F$1481:$J$1490,3)))) ->  | L116: =IF($L$113=0,"",IF(ISNA(VLOOKUP($F$1500,$F$1501:$J$1510,3,FALSE)),"",IF($F$1500=FALSE,"",VLOOKUP($F$1500,$F$1501:$J$1510,3)))) ->  | N116: =IF($N$113=0,"",IF(ISNA(VLOOKUP($F$1520,$F$1521:$J$1530,3,FALSE)),"",IF($F$1520=FALSE,"",VLOOKUP($F$1520,$F$1521:$J$1530,3)))) ->  | P116: =IF($P$113=0,"",IF(ISNA(VLOOKUP($F$1540,$F$1541:$J$1550,3,FALSE)),"",IF($F$1540=FALSE,"",VLOOKUP($F$1540,$F$1541:$J$1550,3)))) ->  | R116: =IF($R$113=0,"",IF(ISNA(VLOOKUP($F$1560,$F$1561:$J$1570,3,FALSE)),"",IF($F$1560=FALSE,"",VLOOKUP($F$1560,$F$1561:$J$1570,3)))) ->  | T116: =IF($T$113=0,"",IF(ISNA(VLOOKUP($F$1580,$F$1581:$J$1590,3,FALSE)),"",IF($F$1580=FALSE,"",VLOOKUP($F$1580,$F$1581:$J$1590,3)))) ->  | V116: =IF($V$113=0,"",IF(ISNA(VLOOKUP($F$1600,$F$1601:$J$1610,3,FALSE)),"",IF($F$1600=FALSE,"",VLOOKUP($F$1600,$F$1601:$J$1610,3)))) ->  | X116: =IF($X$113=0,"",IF(ISNA(VLOOKUP($F$1620,$F$1621:$J$1630,3,FALSE)),"",IF($F$1620=FALSE,"",VLOOKUP($F$1620,$F$1621:$J$1630,3)))) -> 
A117: Einzel-Preis 8 | B117: =IF($B$113=0,"",IF(ISNA(VLOOKUP($F$1400,$F$1401:$J$1410,4,FALSE)),"",IF($F$1400=FALSE,"",VLOOKUP($F$1400,$F$1401:$J$1410,4)))) ->  | D117: =IF($D$113=0,"",IF(ISNA(VLOOKUP($F$1420,$F$1421:$J$1430,4,FALSE)),"",IF($F$1420=FALSE,"",VLOOKUP($F$1420,$F$1421:$J$1430,4)))) ->  | F117: =IF($F$113=0,"",IF(ISNA(VLOOKUP($F$1440,$F$1441:$J$1450,4,FALSE)),"",IF($F$1440=FALSE,"",VLOOKUP($F$1440,$F$1441:$J$1450,4)))) ->  | H117: =IF($H$113=0,"",IF(ISNA(VLOOKUP($F$1460,$F$1461:$J$1470,4,FALSE)),"",IF($F$1460=FALSE,"",VLOOKUP($F$1460,$F$1461:$J$1470,4)))) ->  | J117: =IF($J$113=0,"",IF(ISNA(VLOOKUP($F$1480,$F$1481:$J$1490,4,FALSE)),"",IF($F$1480=FALSE,"",VLOOKUP($F$1480,$F$1481:$J$1490,4)))) ->  | L117: =IF($L$113=0,"",IF(ISNA(VLOOKUP($F$1500,$F$1501:$J$1510,4,FALSE)),"",IF($F$1500=FALSE,"",VLOOKUP($F$1500,$F$1501:$J$1510,4)))) ->  | N117: =IF($N$113=0,"",IF(ISNA(VLOOKUP($F$1520,$F$1521:$J$1530,4,FALSE)),"",IF($F$1520=FALSE,"",VLOOKUP($F$1520,$F$1521:$J$1530,4)))) ->  | P117: =IF($P$113=0,"",IF(ISNA(VLOOKUP($F$1540,$F$1541:$J$1550,4,FALSE)),"",IF($F$1540=FALSE,"",VLOOKUP($F$1540,$F$1541:$J$1550,4)))) ->  | R117: =IF($R$113=0,"",IF(ISNA(VLOOKUP($F$1560,$F$1561:$J$1570,4,FALSE)),"",IF($F$1560=FALSE,"",VLOOKUP($F$1560,$F$1561:$J$1570,4)))) ->  | T117: =IF($T$113=0,"",IF(ISNA(VLOOKUP($F$1580,$F$1581:$J$1590,4,FALSE)),"",IF($F$1580=FALSE,"",VLOOKUP($F$1580,$F$1581:$J$1590,4)))) ->  | V117: =IF($V$113=0,"",IF(ISNA(VLOOKUP($F$1600,$F$1601:$J$1610,4,FALSE)),"",IF($F$1600=FALSE,"",VLOOKUP($F$1600,$F$1601:$J$1610,4)))) ->  | X117: =IF($X$113=0,"",IF(ISNA(VLOOKUP($F$1620,$F$1621:$J$1630,4,FALSE)),"",IF($F$1620=FALSE,"",VLOOKUP($F$1620,$F$1621:$J$1630,4)))) -> 
A118: Artikel-Nr. Zusatzkabel - 1 9 | B118: =IF(OR(B$122="N",B$114=0),"",IF($F$1400=FALSE,"",IF($F$1400=0,"",$G$1411))) ->  | D118: =IF(OR(D$122="N",D$114=0),"",IF($F$1420=FALSE,"",IF($F$1420=0,"",$G$1431))) ->  | F118: =IF(OR(F$122="N",F$114=0),"",IF($F$1440=FALSE,"",IF($F$1440=0,"",$G$1451))) ->  | H118: =IF(OR(H$122="N",H$114=0),"",IF($F$1460=FALSE,"",IF($F$1460=0,"",$G$1471))) ->  | J118: =IF(OR(J$122="N",J$114=0),"",IF($F$1480=FALSE,"",IF($F$1480=0,"",$G$1491))) ->  | L118: =IF(OR(L$122="N",L$114=0),"",IF($F$1500=FALSE,"",IF($F$1500=0,"",$G$1511))) ->  | N118: =IF(OR(N$122="N",N$114=0),"",IF($F$1520=FALSE,"",IF($F$1520=0,"",$G$1531))) ->  | P118: =IF(OR(P$122="N",P$114=0),"",IF($F$1540=FALSE,"",IF($F$1540=0,"",$G$1551))) ->  | R118: =IF(OR(R$122="N",R$114=0),"",IF($F$1560=FALSE,"",IF($F$1560=0,"",$G$1571))) ->  | T118: =IF(OR(T$122="N",T$114=0),"",IF($F$1580=FALSE,"",IF($F$1580=0,"",$G$1591))) ->  | V118: =IF(OR(V$122="N",V$114=0),"",IF($F$1600=FALSE,"",IF($F$1600=0,"",$G$1611))) ->  | X118: =IF(OR(X$122="N",X$114=0),"",IF($F$1620=FALSE,"",IF($F$1620=0,"",$G$1631))) -> 
A119: zusätzliche Kabellänge /m 10 | B119: =IF(OR(B$122="N",B$114=0),"",IF($F$1400=FALSE,"",IF($F$1400=0,"",$I$1411))) ->  | D119: =IF(OR(D$122="N",D$114=0),"",IF($F$1420=FALSE,"",IF($F$1420=0,"",$I$1431))) ->  | F119: =IF(OR(F$122="N",F$114=0),"",IF($F$1440=FALSE,"",IF($F$1440=0,"",$I$1451))) ->  | H119: =IF(OR(H$122="N",H$114=0),"",IF($F$1460=FALSE,"",IF($F$1460=0,"",$I$1471))) ->  | J119: =IF(OR(J$122="N",J$114=0),"",IF($F$1480=FALSE,"",IF($F$1480=0,"",$I$1491))) ->  | L119: =IF(OR(L$122="N",L$114=0),"",IF($F$1500=FALSE,"",IF($F$1500=0,"",$I$1511))) ->  | N119: =IF(OR(N$122="N",N$114=0),"",IF($F$1520=FALSE,"",IF($F$1520=0,"",$I$1531))) ->  | P119: =IF(OR(P$122="N",P$114=0),"",IF($F$1540=FALSE,"",IF($F$1540=0,"",$I$1551))) ->  | R119: =IF(OR(R$122="N",R$114=0),"",IF($F$1560=FALSE,"",IF($F$1560=0,"",$I$1571))) ->  | T119: =IF(OR(T$122="N",T$114=0),"",IF($F$1580=FALSE,"",IF($F$1580=0,"",$I$1591))) ->  | V119: =IF(OR(V$122="N",V$114=0),"",IF($F$1600=FALSE,"",IF($F$1600=0,"",$I$1611))) ->  | X119: =IF(OR(X$122="N",X$114=0),"",IF($F$1620=FALSE,"",IF($F$1620=0,"",$I$1631))) -> 
A120: Artikel-Nr. Zusatzkabel Audio 11 | B120: =IF(OR(B$122="N",B$114=0,$G$1413=""),"",IF($F$1400=FALSE,"",IF($F$1400=0,"",$G$1413))) ->  | D120: =IF(OR(D$122="N",D$114=0,$G$1433=""),"",IF($F$1420=FALSE,"",IF($F$1420=0,"",$G$1433))) ->  | F120: =IF(OR(F$122="N",F$114=0,$G$1453=""),"",IF($F$1440=FALSE,"",IF($F$1440=0,"",$G$1453))) ->  | H120: =IF(OR(H$122="N",H$114=0,$G$1473=""),"",IF($F$1460=FALSE,"",IF($F$1460=0,"",$G$1473))) ->  | J120: =IF(OR(J$122="N",J$114=0,$G$1493=""),"",IF($F$1480=FALSE,"",IF($F$1480=0,"",$G$1493))) ->  | L120: =IF(OR(L$122="N",L$114=0,$G$1513=""),"",IF($F$1500=FALSE,"",IF($F$1500=0,"",$G$1513))) ->  | N120: =IF(OR(N$122="N",N$114=0,$G$1533=""),"",IF($F$1520=FALSE,"",IF($F$1520=0,"",$G$1533))) ->  | P120: =IF(OR(P$122="N",P$114=0,$G$1553=""),"",IF($F$1540=FALSE,"",IF($F$1540=0,"",$G$1553))) ->  | R120: =IF(OR(R$122="N",R$114=0,$G$1573=""),"",IF($F$1560=FALSE,"",IF($F$1560=0,"",$G$1573))) ->  | T120: =IF(OR(T$122="N",T$114=0,$G$1593=""),"",IF($F$1580=FALSE,"",IF($F$1580=0,"",$G$1593))) ->  | V120: =IF(OR(V$122="N",V$114=0,$G$1613=""),"",IF($F$1600=FALSE,"",IF($F$1600=0,"",$G$1613))) ->  | X120: =IF(OR(X$122="N",X$114=0,$G$1633=""),"",IF($F$1620=FALSE,"",IF($F$1620=0,"",$G$1633))) -> 
A121: zusätzliche Kabellänge Audio /m 12 | B121: =IF(OR(B$122="N",B$114=0,$G$1413=""),"",IF($F$1400=FALSE,"",IF($F$1400=0,"",$I$1413))) ->  | D121: =IF(OR(D$122="N",D$114=0,$G$1433=""),"",IF($F$1420=FALSE,"",IF($F$1420=0,"",$I$1433))) ->  | F121: =IF(OR(F$122="N",F$114=0,$G$1453=""),"",IF($F$1440=FALSE,"",IF($F$1440=0,"",$I$1453))) ->  | H121: =IF(OR(H$122="N",H$114=0,$G$1473=""),"",IF($F$1460=FALSE,"",IF($F$1460=0,"",$I$1473))) ->  | J121: =IF(OR(J$122="N",J$114=0,$G$1493=""),"",IF($F$1480=FALSE,"",IF($F$1480=0,"",$I$1493))) ->  | L121: =IF(OR(L$122="N",L$114=0,$G$1513=""),"",IF($F$1500=FALSE,"",IF($F$1500=0,"",$I$1513))) ->  | N121: =IF(OR(N$122="N",N$114=0,$G$1533=""),"",IF($F$1520=FALSE,"",IF($F$1520=0,"",$I$1533))) ->  | P121: =IF(OR(P$122="N",P$114=0,$G$1553=""),"",IF($F$1540=FALSE,"",IF($F$1540=0,"",$I$1553))) ->  | R121: =IF(OR(R$122="N",R$114=0,$G$1573=""),"",IF($F$1560=FALSE,"",IF($F$1560=0,"",$I$1573))) ->  | T121: =IF(OR(T$122="N",T$114=0,$G$1593=""),"",IF($F$1580=FALSE,"",IF($F$1580=0,"",$I$1593))) ->  | V121: =IF(OR(V$122="N",V$114=0,$G$1613=""),"",IF($F$1600=FALSE,"",IF($F$1600=0,"",$I$1613))) ->  | X121: =IF(OR(X$122="N",X$114=0,$G$1633=""),"",IF($F$1620=FALSE,"",IF($F$1620=0,"",$I$1633))) -> 
A122: (je ausgewähltem Anschluss) Kabel J/N 13 | B122: =IF(ISNA(VLOOKUP($F$1400,$F$1401:$J$1410,5,FALSE)),"",IF($F$1400=FALSE,"",VLOOKUP($F$1400,$F$1401:$J$1410,5))) ->  | D122: =IF(ISNA(VLOOKUP($F$1420,$F$1421:$J$1430,5,FALSE)),"",IF($F$1420=FALSE,"",VLOOKUP($F$1420,$F$1421:$J$1430,5))) ->  | F122: =IF(ISNA(VLOOKUP($F$1440,$F$1441:$J$1450,5,FALSE)),"",IF($F$1440=FALSE,"",VLOOKUP($F$1440,$F$1441:$J$1450,5))) -> N | H122: =IF(ISNA(VLOOKUP($F$1460,$F$1461:$J$1470,5,FALSE)),"",IF($F$1460=FALSE,"",VLOOKUP($F$1460,$F$1461:$J$1470,5))) -> N | J122: =IF(ISNA(VLOOKUP($F$1480,$F$1481:$J$1490,5,FALSE)),"",IF($F$1480=FALSE,"",VLOOKUP($F$1480,$F$1481:$J$1490,5))) -> N | L122: =IF(ISNA(VLOOKUP($F$1500,$F$1501:$J$1510,5,FALSE)),"",IF($F$1500=FALSE,"",VLOOKUP($F$1500,$F$1501:$J$1510,5))) -> N | N122: =IF(ISNA(VLOOKUP($F$1520,$F$1521:$J$1530,5,FALSE)),"",IF($F$1520=FALSE,"",VLOOKUP($F$1520,$F$1521:$J$1530,5))) -> N | P122: =IF(ISNA(VLOOKUP($F$1540,$F$1541:$J$1550,5,FALSE)),"",IF($F$1540=FALSE,"",VLOOKUP($F$1540,$F$1541:$J$1550,5))) -> N | R122: =IF(ISNA(VLOOKUP($F$1560,$F$1561:$J$1570,5,FALSE)),"",IF($F$1560=FALSE,"",VLOOKUP($F$1560,$F$1561:$J$1570,5))) -> N | T122: =IF(ISNA(VLOOKUP($F$1580,$F$1581:$J$1590,5,FALSE)),"",IF($F$1580=FALSE,"",VLOOKUP($F$1580,$F$1581:$J$1590,5))) ->  | V122: =IF(ISNA(VLOOKUP($F$1600,$F$1601:$J$1610,5,FALSE)),"",IF($F$1600=FALSE,"",VLOOKUP($F$1600,$F$1601:$J$1610,5))) -> N | X122: =IF(ISNA(VLOOKUP($F$1620,$F$1621:$J$1630,5,FALSE)),"",IF($F$1620=FALSE,"",VLOOKUP($F$1620,$F$1621:$J$1630,5))) -> 
A123: Zusätzliche Kabellänge 14 | B123: =IF(B122="N",0,(B114*B113)+B112) -> 0 | D123: =IF(D122="N",0,(D114*D113)+D112) -> 0 | F123: =IF(F122="N",0,(F114*F113)+F112) -> 0 | H123: =IF(H122="N",0,(H114*H113)+H112) -> 0 | J123: =IF(J122="N",0,(J114*J113)+J112) -> 0 | L123: =IF(L122="N",0,(L114*L113)+L112) -> 0 | N123: =IF(N122="N",0,(N114*N113)+N112) -> 0 | P123: =IF(P122="N",0,(P114*P113)+P112) -> 0 | R123: =IF(R122="N",0,(R114*R113)+R112) -> 0 | T123: =IF(T122="N",0,(T114*T113)+T112) -> 0 | V123: =IF(V122="N",0,(V114*V113)+V112) -> 0 | X123: =IF(X122="N",0,(X114*X113)+X112) -> 0
A124: Summe TE 15 | B124: =IF(B$113=0,"",B$113*B$116) ->  | D124: =IF(D$113=0,"",D$113*D$116) ->  | F124: =IF(F$113=0,"",F$113*F$116) ->  | H124: =IF(H$113=0,"",H$113*H$116) ->  | J124: =IF(J$113=0,"",J$113*J$116) ->  | L124: =IF(L$113=0,"",L$113*L$116) ->  | N124: =IF(N$113=0,"",N$113*N$116) ->  | P124: =IF(P$113=0,"",P$113*P$116) ->  | R124: =IF(R$113=0,"",R$113*R$116) ->  | T124: =IF(T$113=0,"",T$113*T$116) ->  | V124: =IF(V$113=0,"",V$113*V$116) ->  | X124: =IF(X$113=0,"",X$113*X$116) -> 
A125: Datenaufbereitung | B125: 1400 | D125: 1420 | F125: 1440 | H125: 1460 | J125: 1480 | L125: 1500 | N125: 1520 | P125: 1540 | R125: 1560 | T125: 1580 | V125: 1600 | X125: 1620
A126: Konfigurator | B126: AFM | D126: AFM | F126: AFM | H126: AFM | J126: AFM | L126: AFM | N126: AFM | P126: AFM | R126: AFM | T126: AFM | V126: AFM | X126: AFM
B199: AL200
A200: VGA-Buchse | B200: Auswählen! | C200: AFM | D200: DB | F200: =IF(Konfigurator!B$42=B201,1,IF(Konfigurator!B$42=B202,2,IF(Konfigurator!B$42=B203,3,IF(Konfigurator!B$42=B204,4,IF(Konfigurator!B$42=B205,5,IF(Konfigurator!B$42=B206,6,IF(Konfigurator!B$42=B207,7,IF(Konfigurator!B$42=B208,8,))))))))+IF(Konfigurator!B$42=B209,9)+IF(Konfigurator!B$42=B210,10)+IF(Konfigurator!B$42=E200,0)+IF(Konfigurator!B$42="",0) -> 0 | G200: Art.Nr. | H200: TE | I200: Liste | J200: Kabel
B201: =IF(ISNA(VLOOKUP(G201,'AFM-Artikel'!$A$1:$D$4762,4,FALSE)),"-",VLOOKUP(G201,'AFM-Artikel'!$A$1:$D$4762,4,FALSE)) -> lötbar | F201: 1 | G201: 5607 | H201: 8 | I201: =IF($G201="","",VLOOKUP($G201,'AFM-Artikel'!$A$1:$D$4762,3)) -> 13.4715 | J201: N
B202: =IF(ISNA(VLOOKUP(G202,'AFM-Artikel'!$A$1:$D$4762,4,FALSE)),"-",VLOOKUP(G202,'AFM-Artikel'!$A$1:$D$4762,4,FALSE)) -> VGA-Bu. steckbar | F202: 2 | G202: 5608 | H202: 8 | I202: =IF($G202="","",VLOOKUP($G202,'AFM-Artikel'!$A$1:$D$4762,3)) -> 18.858 | J202: N
B203: =IF(ISNA(VLOOKUP(G203,'AFM-Artikel'!$A$1:$D$4762,4,FALSE)),"-",VLOOKUP(G203,'AFM-Artikel'!$A$1:$D$4762,4,FALSE)) -> 5xBNC-Ku. 30cm | F203: 3 | G203: 5609 | H203: 8 | I203: =IF($G203="","",VLOOKUP($G203,'AFM-Artikel'!$A$1:$D$4762,3)) -> 80.913 | J203: J
B204: =IF(ISNA(VLOOKUP(G204,'AFM-Artikel'!$A$1:$D$4762,4,FALSE)),"-",VLOOKUP(G204,'AFM-Artikel'!$A$1:$D$4762,4,FALSE)) -> 5xBNC-St. 30cm | F204: 4 | G204: 5610 | H204: 8 | I204: =IF($G204="","",VLOOKUP($G204,'AFM-Artikel'!$A$1:$D$4762,3)) -> 75.411 | J204: J
B205: =IF(ISNA(VLOOKUP(G205,'AFM-Artikel'!$A$1:$D$4762,4,FALSE)),"-",VLOOKUP(G205,'AFM-Artikel'!$A$1:$D$4762,4,FALSE)) -> VGA-St. 30cm | F205: 5 | G205: 5611 | H205: 8 | I205: =IF($G205="","",VLOOKUP($G205,'AFM-Artikel'!$A$1:$D$4762,3)) -> 59.2515 | J205: J
B206: =IF(ISNA(VLOOKUP(G206,'AFM-Artikel'!$A$1:$D$4762,4,FALSE)),"-",VLOOKUP(G206,'AFM-Artikel'!$A$1:$D$4762,4,FALSE)) -> VGA-Ku. 30cm | F206: 6 | G206: 5612 | H206: 8 | I206: =IF($G206="","",VLOOKUP($G206,'AFM-Artikel'!$A$1:$D$4762,3)) -> 59.2515 | J206: J
B207: =IF(ISNA(VLOOKUP(G207,'AFM-Artikel'!$A$1:$D$4762,4,FALSE)),"-",VLOOKUP(G207,'AFM-Artikel'!$A$1:$D$4762,4,FALSE)) -> offen 30cm | F207: 7 | G207: 5738 | H207: 8 | I207: =IF($G207="","",VLOOKUP($G207,'AFM-Artikel'!$A$1:$D$4762,3)) -> 37.716 | J207: J
B208: =IF(ISNA(VLOOKUP(G208,'AFM-Artikel'!$A$1:$D$4762,4,FALSE)),"-",VLOOKUP(G208,'AFM-Artikel'!$A$1:$D$4762,4,FALSE)) -> - | F208: 8 | G208: 1 | I208: =IF($G208="","",VLOOKUP($G208,'AFM-Artikel'!$A$1:$D$4762,3)) -> 0
B209: =IF(ISNA(VLOOKUP(G209,'AFM-Artikel'!$A$1:$D$4762,4,FALSE)),"-",VLOOKUP(G209,'AFM-Artikel'!$A$1:$D$4762,4,FALSE)) -> - | F209: 9 | G209: 1 | I209: =IF($G209="","",VLOOKUP($G209,'AFM-Artikel'!$A$1:$D$4762,3)) -> 0
B210: =IF(ISNA(VLOOKUP(G210,'AFM-Artikel'!$A$1:$D$4762,4,FALSE)),"-",VLOOKUP(G210,'AFM-Artikel'!$A$1:$D$4762,4,FALSE)) -> - | F210: 10 | G210: 1 | I210: =IF($G210="","",VLOOKUP($G210,'AFM-Artikel'!$A$1:$D$4762,3)) -> 0
A211: Zusatzkabel-1 | B211: =IF($G211="","",VLOOKUP($G211,'AFM-Artikel'!$A$1:$D$4762,2)) -> zusätzliche Kabellänge VGA-Kabel | G211: 5300 | I211: =IF($G211="","",VLOOKUP($G211,'AFM-Artikel'!$A$1:$D$4762,3)) -> 5.061
A212: Zusatzkabel-2 | B212: =IF($G212="","",VLOOKUP($G212,'AFM-Artikel'!$A$1:$D$4762,2)) -> Nicht verfügbar! | G212: 0 | I212: =IF($G212="","",VLOOKUP($G212,'AFM-Artikel'!$A$1:$D$4762,3)) -> 0
A213: Zusatzkabel-Audio | B213: =IF($G213="","",VLOOKUP($G213,'AFM-Artikel'!$A$1:$D$4762,2)) -> Nicht verfügbar! | G213: 0 | I213: =IF($G213="","",VLOOKUP($G213,'AFM-Artikel'!$A$1:$D$4762,3)) -> 0
B219: AL220
A220: 3,5Kl.-Bu./Ster. | B220: Auswählen! | C220: AFM | D220: DB | F220: =IF(Konfigurator!D$42=B221,1,IF(Konfigurator!D$42=B222,2,IF(Konfigurator!D$42=B223,3,IF(Konfigurator!D$42=B224,4,IF(Konfigurator!D$42=B225,5,IF(Konfigurator!D$42=B226,6,IF(Konfigurator!D$42=B227,7,IF(Konfigurator!D$42=B228,8,))))))))+IF(Konfigurator!D$42=B229,9)+IF(Konfigurator!D$42=B230,10)+IF(Konfigurator!D$42=E220,0)+IF(Konfigurator!D$42="",0) -> 0 | G220: Art.Nr. | H220: TE | I220: Liste | J220: Kabel
B221: =IF(ISNA(VLOOKUP(G221,'AFM-Artikel'!$A$1:$D$4762,4,FALSE)),"-",VLOOKUP(G221,'AFM-Artikel'!$A$1:$D$4762,4,FALSE)) -> lötbar | F221: 1 | G221: 5616 | H221: 4 | I221: =IF($G221="","",VLOOKUP($G221,'AFM-Artikel'!$A$1:$D$4762,3)) -> 11.7705 | J221: N
B222: =IF(ISNA(VLOOKUP(G222,'AFM-Artikel'!$A$1:$D$4762,4,FALSE)),"-",VLOOKUP(G222,'AFM-Artikel'!$A$1:$D$4762,4,FALSE)) -> 3,5-Kl.-Bu. steckbar | F222: 2 | G222: 5704 | H222: 4 | I222: =IF($G222="","",VLOOKUP($G222,'AFM-Artikel'!$A$1:$D$4762,3)) -> 21.9345 | J222: N
B223: =IF(ISNA(VLOOKUP(G223,'AFM-Artikel'!$A$1:$D$4762,4,FALSE)),"-",VLOOKUP(G223,'AFM-Artikel'!$A$1:$D$4762,4,FALSE)) -> 3,5-Kl.-Ku. 30cm | F223: 3 | G223: 5617 | H223: 4 | I223: =IF($G223="","",VLOOKUP($G223,'AFM-Artikel'!$A$1:$D$4762,3)) -> 21.9345 | J223: J
B224: =IF(ISNA(VLOOKUP(G224,'AFM-Artikel'!$A$1:$D$4762,4,FALSE)),"-",VLOOKUP(G224,'AFM-Artikel'!$A$1:$D$4762,4,FALSE)) -> 3,5-Kl.-St. 30cm | F224: 4 | G224: 5618 | H224: 4 | I224: =IF($G224="","",VLOOKUP($G224,'AFM-Artikel'!$A$1:$D$4762,3)) -> 21.9345 | J224: J
B225: =IF(ISNA(VLOOKUP(G225,'AFM-Artikel'!$A$1:$D$4762,4,FALSE)),"-",VLOOKUP(G225,'AFM-Artikel'!$A$1:$D$4762,4,FALSE)) -> 2xCinch-Ku. 30cm | F225: 5 | G225: 5619 | H225: 4 | I225: =IF($G225="","",VLOOKUP($G225,'AFM-Artikel'!$A$1:$D$4762,3)) -> 23.856 | J225: J
B226: =IF(ISNA(VLOOKUP(G226,'AFM-Artikel'!$A$1:$D$4762,4,FALSE)),"-",VLOOKUP(G226,'AFM-Artikel'!$A$1:$D$4762,4,FALSE)) -> 2xCinch-St. 30cm | F226: 6 | G226: 5620 | H226: 4 | I226: =IF($G226="","",VLOOKUP($G226,'AFM-Artikel'!$A$1:$D$4762,3)) -> 23.856 | J226: J
B227: =IF(ISNA(VLOOKUP(G227,'AFM-Artikel'!$A$1:$D$4762,4,FALSE)),"-",VLOOKUP(G227,'AFM-Artikel'!$A$1:$D$4762,4,FALSE)) -> offen 30cm | F227: 7 | G227: 5739 | H227: 4 | I227: =IF($G227="","",VLOOKUP($G227,'AFM-Artikel'!$A$1:$D$4762,3)) -> 16.716 | J227: J
B228: =IF(ISNA(VLOOKUP(G228,'AFM-Artikel'!$A$1:$D$4762,4,FALSE)),"-",VLOOKUP(G228,'AFM-Artikel'!$A$1:$D$4762,4,FALSE)) -> - | F228: 8 | G228: 1 | I228: =IF($G228="","",VLOOKUP($G228,'AFM-Artikel'!$A$1:$D$4762,3)) -> 0
B229: =IF(ISNA(VLOOKUP(G229,'AFM-Artikel'!$A$1:$D$4762,4,FALSE)),"-",VLOOKUP(G229,'AFM-Artikel'!$A$1:$D$4762,4,FALSE)) -> - | F229: 9 | G229: 1 | I229: =IF($G229="","",VLOOKUP($G229,'AFM-Artikel'!$A$1:$D$4762,3)) -> 0
B230: =IF(ISNA(VLOOKUP(G230,'AFM-Artikel'!$A$1:$D$4762,4,FALSE)),"-",VLOOKUP(G230,'AFM-Artikel'!$A$1:$D$4762,4,FALSE)) -> - | F230: 10 | G230: 1 | I230: =IF($G230="","",VLOOKUP($G230,'AFM-Artikel'!$A$1:$D$4762,3)) -> 0
A231: Zusatzkabel-1 | B231: =IF($G231="","",VLOOKUP($G231,'AFM-Artikel'!$A$1:$D$4762,2)) -> Nicht verfügbar! | G231: 0 | I231: =IF($G231="","",VLOOKUP($G231,'AFM-Artikel'!$A$1:$D$4762,3)) -> 0
A232: Zusatzkabel-2 | B232: =IF($G232="","",VLOOKUP($G232,'AFM-Artikel'!$A$1:$D$4762,2)) -> Nicht verfügbar! | G232: 0 | I232: =IF($G232="","",VLOOKUP($G232,'AFM-Artikel'!$A$1:$D$4762,3)) -> 0
A233: Zusatzkabel-Audio | B233: =IF($G233="","",VLOOKUP($G233,'AFM-Artikel'!$A$1:$D$4762,2)) -> zusätzliche Kabellänge Audio 3mm | G233: 5301 | I233: =IF($G233="","",VLOOKUP($G233,'AFM-Artikel'!$A$1:$D$4762,3)) -> 0.6405
A234: Zusatzkabel-Audio | B234: =IF($G234="","",VLOOKUP($G234,'AFM-Artikel'!$A$1:$D$4762,2)) -> zusätzliche Kabellänge Audio-stereo | G234: 5302 | I234: =IF($G234="","",VLOOKUP($G234,'AFM-Artikel'!$A$1:$D$4762,3)) -> 2.2365
B239: AL240_
A240: VGA-Bu./3,5Kl. | B240: Auswählen! | C240: AFM | D240: DB | F240: =IF(Konfigurator!F$42=B241,1,IF(Konfigurator!F$42=B242,2,IF(Konfigurator!F$42=B243,3,IF(Konfigurator!F$42=B244,4,IF(Konfigurator!F$42=B245,5,IF(Konfigurator!F$42=B246,6,IF(Konfigurator!F$42=B247,7,IF(Konfigurator!F$42=B248,8,))))))))+IF(Konfigurator!F$42=B249,9)+IF(Konfigurator!F$42=B250,10)+IF(Konfigurator!F$42=E240,0)+IF(Konfigurator!F$42="",0) -> 0 | G240: Art.Nr. | H240: TE | I240: Liste | J240: Kabel
B241: =IF(ISNA(VLOOKUP(G241,'AFM-Artikel'!$A$1:$D$4762,4,FALSE)),"-",VLOOKUP(G241,'AFM-Artikel'!$A$1:$D$4762,4,FALSE)) -> lötbar | F241: 1 | G241: 5741 | H241: 8 | I241: =IF($G241="","",VLOOKUP($G241,'AFM-Artikel'!$A$1:$D$4762,3)) -> 25.242 | J241: N
B242: =IF(ISNA(VLOOKUP(G242,'AFM-Artikel'!$A$1:$D$4762,4,FALSE)),"-",VLOOKUP(G242,'AFM-Artikel'!$A$1:$D$4762,4,FALSE)) -> VGA-Bu.+Kl. steckbar | F242: 2 | G242: 5709 | H242: 8 | I242: =IF($G242="","",VLOOKUP($G242,'AFM-Artikel'!$A$1:$D$4762,3)) -> 40.782 | J242: N
B243: =IF(ISNA(VLOOKUP(G243,'AFM-Artikel'!$A$1:$D$4762,4,FALSE)),"-",VLOOKUP(G243,'AFM-Artikel'!$A$1:$D$4762,4,FALSE)) -> VGA-Ku.+Kl.-Ku. 30cm | F243: 3 | G243: 5725 | H243: 8 | I243: =IF($G243="","",VLOOKUP($G243,'AFM-Artikel'!$A$1:$D$4762,3)) -> 81.186 | J243: J
B244: =IF(ISNA(VLOOKUP(G244,'AFM-Artikel'!$A$1:$D$4762,4,FALSE)),"-",VLOOKUP(G244,'AFM-Artikel'!$A$1:$D$4762,4,FALSE)) -> VGA-St.+Kl.-St. 30cm | F244: 4 | G244: 5705 | H244: 8 | I244: =IF($G244="","",VLOOKUP($G244,'AFM-Artikel'!$A$1:$D$4762,3)) -> 81.186 | J244: J
B245: =IF(ISNA(VLOOKUP(G245,'AFM-Artikel'!$A$1:$D$4762,4,FALSE)),"-",VLOOKUP(G245,'AFM-Artikel'!$A$1:$D$4762,4,FALSE)) -> 5xBNC-Ku. 30cm+Kl. lötbar | F245: 5 | G245: 5719 | H245: 8 | I245: =IF($G245="","",VLOOKUP($G245,'AFM-Artikel'!$A$1:$D$4762,3)) -> 92.6835 | J245: J
B246: =IF(ISNA(VLOOKUP(G246,'AFM-Artikel'!$A$1:$D$4762,4,FALSE)),"-",VLOOKUP(G246,'AFM-Artikel'!$A$1:$D$4762,4,FALSE)) -> 5xBNC-St.+Kl.-St. 30cm | F246: 6 | G246: 5720 | H246: 8 | I246: =IF($G246="","",VLOOKUP($G246,'AFM-Artikel'!$A$1:$D$4762,3)) -> 97.3455 | J246: J
B247: =IF(ISNA(VLOOKUP(G247,'AFM-Artikel'!$A$1:$D$4762,4,FALSE)),"-",VLOOKUP(G247,'AFM-Artikel'!$A$1:$D$4762,4,FALSE)) -> 5xBNC-Ku.+Kl.-Ku. 30cm | F247: 7 | G247: 5701 | H247: 8 | I247: =IF($G247="","",VLOOKUP($G247,'AFM-Artikel'!$A$1:$D$4762,3)) -> 102.8475 | J247: J
B248: =IF(ISNA(VLOOKUP(G248,'AFM-Artikel'!$A$1:$D$4762,4,FALSE)),"-",VLOOKUP(G248,'AFM-Artikel'!$A$1:$D$4762,4,FALSE)) -> offen 30cm | F248: 8 | G248: 5740 | H248: 8 | I248: =IF($G248="","",VLOOKUP($G248,'AFM-Artikel'!$A$1:$D$4762,3)) -> 54.4425 | J248: j
B249: =IF(ISNA(VLOOKUP(G249,'AFM-Artikel'!$A$1:$D$4762,4,FALSE)),"-",VLOOKUP(G249,'AFM-Artikel'!$A$1:$D$4762,4,FALSE)) -> - | F249: 9 | G249: 1 | I249: =IF($G249="","",VLOOKUP($G249,'AFM-Artikel'!$A$1:$D$4762,3)) -> 0
B250: =IF(ISNA(VLOOKUP(G250,'AFM-Artikel'!$A$1:$D$4762,4,FALSE)),"-",VLOOKUP(G250,'AFM-Artikel'!$A$1:$D$4762,4,FALSE)) -> - | F250: 10 | G250: 1 | I250: =IF($G250="","",VLOOKUP($G250,'AFM-Artikel'!$A$1:$D$4762,3)) -> 0
A251: Zusatzkabel-1 | B251: =IF($G251="","",VLOOKUP($G251,'AFM-Artikel'!$A$1:$D$4762,2)) -> zusätzliche Kabellänge VGA-Kabel | G251: 5300 | I251: =IF($G251="","",VLOOKUP($G251,'AFM-Artikel'!$A$1:$D$4762,3)) -> 5.061
A252: Zusatzkabel-2 | B252: =IF($G252="","",VLOOKUP($G252,'AFM-Artikel'!$A$1:$D$4762,2)) -> Nicht verfügbar! | G252: 0 | I252: =IF($G252="","",VLOOKUP($G252,'AFM-Artikel'!$A$1:$D$4762,3)) -> 0
A253: Zusatzkabel-Audio | B253: =IF($G253="","",VLOOKUP($G253,'AFM-Artikel'!$A$1:$D$4762,2)) -> zusätzliche Kabellänge Audio 3mm | G253: 5301 | I253: =IF($G253="","",VLOOKUP($G253,'AFM-Artikel'!$A$1:$D$4762,3)) -> 0.6405
B259: AL260_
A260: DVI-Buchse | B260: Auswählen! | C260: AFM | D260: DB | F260: =IF(Konfigurator!H$42=B261,1,IF(Konfigurator!H$42=B262,2,IF(Konfigurator!H$42=B263,3,IF(Konfigurator!H$42=B264,4,IF(Konfigurator!H$42=B265,5,IF(Konfigurator!H$42=B266,6,IF(Konfigurator!H$42=B267,7,IF(Konfigurator!H$42=B268,8,))))))))+IF(Konfigurator!H$42=B269,9)+IF(Konfigurator!H$42=B270,10)+IF(Konfigurator!H$42=E260,0)+IF(Konfigurator!H$42="",0) -> 0 | G260: Art.Nr. | H260: TE | I260: Liste | J260: Kabel
B261: =IF(ISNA(VLOOKUP(G261,'AFM-Artikel'!$A$1:$D$4762,4,FALSE)),"-",VLOOKUP(G261,'AFM-Artikel'!$A$1:$D$4762,4,FALSE)) -> lötbar 24+5 | F261: 1 | G261: 5613 | H261: 8 | I261: =IF($G261="","",VLOOKUP($G261,'AFM-Artikel'!$A$1:$D$4762,3)) -> 18.858 | J261: N
B262: =IF(ISNA(VLOOKUP(G262,'AFM-Artikel'!$A$1:$D$4762,4,FALSE)),"-",VLOOKUP(G262,'AFM-Artikel'!$A$1:$D$4762,4,FALSE)) -> DVI-I-Bu.24+5 steckbar | F262: 2 | G262: 5702 | H262: 8 | I262: =IF($G262="","",VLOOKUP($G262,'AFM-Artikel'!$A$1:$D$4762,3)) -> 42.3255 | J262: N
B263: =IF(ISNA(VLOOKUP(G263,'AFM-Artikel'!$A$1:$D$4762,4,FALSE)),"-",VLOOKUP(G263,'AFM-Artikel'!$A$1:$D$4762,4,FALSE)) -> DVI-D-St. 30cm 24+1 | F263: 3 | G263: 5614 | H263: 8 | I263: =IF($G263="","",VLOOKUP($G263,'AFM-Artikel'!$A$1:$D$4762,3)) -> 71.1795 | J263: J
B264: =IF(ISNA(VLOOKUP(G264,'AFM-Artikel'!$A$1:$D$4762,4,FALSE)),"-",VLOOKUP(G264,'AFM-Artikel'!$A$1:$D$4762,4,FALSE)) -> DVI-D-Ku. 30cm 24+1 | F264: 4 | G264: 5615 | H264: 8 | I264: =IF($G264="","",VLOOKUP($G264,'AFM-Artikel'!$A$1:$D$4762,3)) -> 71.1795 | J264: J
B265: =IF(ISNA(VLOOKUP(G265,'AFM-Artikel'!$A$1:$D$4762,4,FALSE)),"-",VLOOKUP(G265,'AFM-Artikel'!$A$1:$D$4762,4,FALSE)) -> DVI-I-St.24+5 30cm | F265: 5 | G265: 5703 | H265: 8 | I265: =IF($G265="","",VLOOKUP($G265,'AFM-Artikel'!$A$1:$D$4762,3)) -> 81.732 | J265: J
B266: =IF(ISNA(VLOOKUP(G266,'AFM-Artikel'!$A$1:$D$4762,4,FALSE)),"-",VLOOKUP(G266,'AFM-Artikel'!$A$1:$D$4762,4,FALSE)) -> DVI-I-Ku.24+5 20cm | F266: 6 | G266: 5757 | H266: 8 | I266: =IF($G266="","",VLOOKUP($G266,'AFM-Artikel'!$A$1:$D$4762,3)) -> 81.732 | J266: N
B267: =IF(ISNA(VLOOKUP(G267,'AFM-Artikel'!$A$1:$D$4762,4,FALSE)),"-",VLOOKUP(G267,'AFM-Artikel'!$A$1:$D$4762,4,FALSE)) -> - | F267: 7 | G267: 1 | I267: =IF($G267="","",VLOOKUP($G267,'AFM-Artikel'!$A$1:$D$4762,3)) -> 0
B268: =IF(ISNA(VLOOKUP(G268,'AFM-Artikel'!$A$1:$D$4762,4,FALSE)),"-",VLOOKUP(G268,'AFM-Artikel'!$A$1:$D$4762,4,FALSE)) -> - | F268: 8 | G268: 1 | I268: =IF($G268="","",VLOOKUP($G268,'AFM-Artikel'!$A$1:$D$4762,3)) -> 0
B269: =IF(ISNA(VLOOKUP(G269,'AFM-Artikel'!$A$1:$D$4762,4,FALSE)),"-",VLOOKUP(G269,'AFM-Artikel'!$A$1:$D$4762,4,FALSE)) -> - | F269: 9 | G269: 1 | I269: =IF($G269="","",VLOOKUP($G269,'AFM-Artikel'!$A$1:$D$4762,3)) -> 0
B270: =IF(ISNA(VLOOKUP(G270,'AFM-Artikel'!$A$1:$D$4762,4,FALSE)),"-",VLOOKUP(G270,'AFM-Artikel'!$A$1:$D$4762,4,FALSE)) -> - | F270: 10 | G270: 1 | I270: =IF($G270="","",VLOOKUP($G270,'AFM-Artikel'!$A$1:$D$4762,3)) -> 0
A271: Zusatzkabel-1 | B271: =IF($G271="","",VLOOKUP($G271,'AFM-Artikel'!$A$1:$D$4762,2)) -> zusätzliche Kabellänge DVI-D | G271: 5313 | I271: =IF($G271="","",VLOOKUP($G271,'AFM-Artikel'!$A$1:$D$4762,3)) -> 6.93
A272: Zusatzkabel-2 | B272: =IF($G272="","",VLOOKUP($G272,'AFM-Artikel'!$A$1:$D$4762,2)) -> zusätzliche Kabellänge DVI-I | G272: 5314 | I272: =IF($G272="","",VLOOKUP($G272,'AFM-Artikel'!$A$1:$D$4762,3)) -> 7.959
A273: Zusatzkabel-Audio | B273: =IF($G273="","",VLOOKUP($G273,'AFM-Artikel'!$A$1:$D$4762,2)) -> Nicht verfügbar! | G273: 0 | I273: =IF($G273="","",VLOOKUP($G273,'AFM-Artikel'!$A$1:$D$4762,3)) -> 0
B279: AL280_
A280: DVI-Bu/3,5Kl. | B280: Auswählen! | C280: AFM | D280: DB | F280: =IF(Konfigurator!J$42=B281,1,IF(Konfigurator!J$42=B282,2,IF(Konfigurator!J$42=B283,3,IF(Konfigurator!J$42=B284,4,IF(Konfigurator!J$42=B285,5,IF(Konfigurator!J$42=B286,6,IF(Konfigurator!J$42=B287,7,IF(Konfigurator!J$42=B288,8,))))))))+IF(Konfigurator!J$42=B289,9)+IF(Konfigurator!J$42=B290,10)+IF(Konfigurator!J$42=E280,0)+IF(Konfigurator!J$42="",0) -> 0 | G280: Art.Nr. | H280: TE | I280: Liste | J280: Kabel
B281: =IF(ISNA(VLOOKUP(G281,'AFM-Artikel'!$A$1:$D$4762,4,FALSE)),"-",VLOOKUP(G281,'AFM-Artikel'!$A$1:$D$4762,4,FALSE)) -> DVI-D-St.30cm+Kl. lötbar | F281: 1 | G281: 5735 | H281: 8 | I281: =IF($G281="","",VLOOKUP($G281,'AFM-Artikel'!$A$1:$D$4762,3)) -> 82.9605 | J281: N
B282: =IF(ISNA(VLOOKUP(G282,'AFM-Artikel'!$A$1:$D$4762,4,FALSE)),"-",VLOOKUP(G282,'AFM-Artikel'!$A$1:$D$4762,4,FALSE)) -> DVI-I+Kl.-Bu.steckbar | F282: 2 | G282: 5759 | H282: 8 | I282: =IF($G282="","",VLOOKUP($G282,'AFM-Artikel'!$A$1:$D$4762,3)) -> 40.782 | J282: N
B283: =IF(ISNA(VLOOKUP(G283,'AFM-Artikel'!$A$1:$D$4762,4,FALSE)),"-",VLOOKUP(G283,'AFM-Artikel'!$A$1:$D$4762,4,FALSE)) -> DVI-D-St.+Kl.-St. 30cm | F283: 3 | G283: 5731 | H283: 8 | I283: =IF($G283="","",VLOOKUP($G283,'AFM-Artikel'!$A$1:$D$4762,3)) -> 93.114 | J283: J
B284: =IF(ISNA(VLOOKUP(G284,'AFM-Artikel'!$A$1:$D$4762,4,FALSE)),"-",VLOOKUP(G284,'AFM-Artikel'!$A$1:$D$4762,4,FALSE)) -> DVI-I-St.+Kl.-St. 30cm | F284: 4 | G284: 5736 | H284: 8 | I284: =IF($G284="","",VLOOKUP($G284,'AFM-Artikel'!$A$1:$D$4762,3)) -> 106.9635 | J284: J
B285: =IF(ISNA(VLOOKUP(G285,'AFM-Artikel'!$A$1:$D$4762,4,FALSE)),"-",VLOOKUP(G285,'AFM-Artikel'!$A$1:$D$4762,4,FALSE)) -> - | F285: 5 | G285: 1 | I285: =IF($G285="","",VLOOKUP($G285,'AFM-Artikel'!$A$1:$D$4762,3)) -> 0
B286: =IF(ISNA(VLOOKUP(G286,'AFM-Artikel'!$A$1:$D$4762,4,FALSE)),"-",VLOOKUP(G286,'AFM-Artikel'!$A$1:$D$4762,4,FALSE)) -> - | F286: 6 | G286: 1 | I286: =IF($G286="","",VLOOKUP($G286,'AFM-Artikel'!$A$1:$D$4762,3)) -> 0
B287: =IF(ISNA(VLOOKUP(G287,'AFM-Artikel'!$A$1:$D$4762,4,FALSE)),"-",VLOOKUP(G287,'AFM-Artikel'!$A$1:$D$4762,4,FALSE)) -> - | F287: 7 | G287: 1 | I287: =IF($G287="","",VLOOKUP($G287,'AFM-Artikel'!$A$1:$D$4762,3)) -> 0
B288: =IF(ISNA(VLOOKUP(G288,'AFM-Artikel'!$A$1:$D$4762,4,FALSE)),"-",VLOOKUP(G288,'AFM-Artikel'!$A$1:$D$4762,4,FALSE)) -> - | F288: 8 | G288: 1 | I288: =IF($G288="","",VLOOKUP($G288,'AFM-Artikel'!$A$1:$D$4762,3)) -> 0
B289: =IF(ISNA(VLOOKUP(G289,'AFM-Artikel'!$A$1:$D$4762,4,FALSE)),"-",VLOOKUP(G289,'AFM-Artikel'!$A$1:$D$4762,4,FALSE)) -> - | F289: 9 | G289: 1 | I289: =IF($G289="","",VLOOKUP($G289,'AFM-Artikel'!$A$1:$D$4762,3)) -> 0
B290: =IF(ISNA(VLOOKUP(G290,'AFM-Artikel'!$A$1:$D$4762,4,FALSE)),"-",VLOOKUP(G290,'AFM-Artikel'!$A$1:$D$4762,4,FALSE)) -> - | F290: 10 | G290: 1 | I290: =IF($G290="","",VLOOKUP($G290,'AFM-Artikel'!$A$1:$D$4762,3)) -> 0
A291: Zusatzkabel-1 | B291: =IF($G291="","",VLOOKUP($G291,'AFM-Artikel'!$A$1:$D$4762,2)) -> zusätzliche Kabellänge DVI-D | G291: 5313 | I291: =IF($G291="","",VLOOKUP($G291,'AFM-Artikel'!$A$1:$D$4762,3)) -> 6.93
A292: Zusatzkabel-2 | B292: =IF($G292="","",VLOOKUP($G292,'AFM-Artikel'!$A$1:$D$4762,2)) -> zusätzliche Kabellänge DVI-I | G292: 5314 | I292: =IF($G292="","",VLOOKUP($G292,'AFM-Artikel'!$A$1:$D$4762,3)) -> 7.959
A293: Zusatzkabel-Audio | B293: =IF($G293="","",VLOOKUP($G293,'AFM-Artikel'!$A$1:$D$4762,2)) -> zusätzliche Kabellänge Audio 3mm | G293: 5301 | I293: =IF($G293="","",VLOOKUP($G293,'AFM-Artikel'!$A$1:$D$4762,3)) -> 0.6405
... 1015 more rows

Sheet AFM-Artikel
A1: 0 | B1: Nicht verfügbar! | C1: 0 | D1: Modulex-Text
A2: 1031 | B2: Befestigungssatz Sub-D | C2: 0.63 | D2: Befestigungssatz Sub-D
A3: 1032 | B3: Buchsenleiste HD 15pol | C3: 0.7455 | D3: Buchsenleiste HD 15pol
A4: 1033 | B4: Stiftleiste HD 15pol | C4: 0.693 | D4: Stiftleiste HD 15pol
A5: 1034 | B5: Buchsenleiste Sub-D 15pol | C5: 0.7455 | D5: Buchsenleiste Sub-D 15pol
A6: 1035 | B6: Buchsenleiste Sub-D 37pol | C6: 1.5645 | D6: Buchsenleiste Sub-D 37pol
A7: 1036 | B7: Buchsenleiste Sub-D 50pol | C7: 3.5595 | D7: Buchsenleiste Sub-D 50pol
A8: 1037 | B8: Buchsenleiste Sub-D 25pol | C8: 0.882 | D8: Buchsenleiste Sub-D 25pol
A9: 1038 | B9: Buchsenleiste Sub-D 9pol | C9: 0.5565 | D9: Buchsenleiste Sub-D 9pol
A10: 1039 | B10: Stiftleiste Sub-D 50pol | C10: 3.444 | D10: Stiftleiste Sub-D 50pol
A11: 1040 | B11: Stiftleiste Sub-D 37pol | C11: 1.743 | D11: Stiftleiste Sub-D 37pol
A12: 1041 | B12: Stiftleiste Sub-D 25pol | C12: 0.882 | D12: Stiftleiste Sub-D 25pol
A13: 1042 | B13: Stiftleiste Sub-D 15pol | C13: 0.693 | D13: Stiftleiste Sub-D 15pol
A14: 1043 | B14: Stiftleiste Sub-D 9pol | C14: 0.504 | D14: Stiftleiste Sub-D 9pol
A15: 1055 | B15: Sub-D Metallhaube 9pol EVE | C15: 5.985 | D15: Sub-D Metallhaube 9pol EVE
A16: 1062 | B16: Knickschutztülle Helavia Cinch | C16: 0.4725 | D16: Knickschutztülle Helavia Cinch
A17: 1063 | B17: Sub-D Metallhaube 9pol 10mm Typ A | C17: 3.2445 | D17: Sub-D Metallhaube 9pol 10mm Typ A
A18: 1064 | B18: Einbaubuchse Cinch rot | C18: 3.2445 | D18: Einbaubuchse Cinch rot
A19: 1065 | B19: Einbaubuchse Cinch gelb | C19: 3.2445 | D19: Einbaubuchse Cinch gelb
A20: 1066 | B20: Einbaubuchse Cinch grün | C20: 3.2445 | D20: Einbaubuchse Cinch grün
A21: 1067 | B21: Einbaubuchse Cinch blau | C21: 3.2445 | D21: Einbaubuchse Cinch blau
A22: 1068 | B22: Einbaubuchse Cinch schwarz | C22: 3.2445 | D22: Einbaubuchse Cinch schwarz
A23: 1069 | B23: Stecker Cinch schwarz Neutrik | C23: 2.856 | D23: Stecker Cinch schwarz Neutrik
A24: 1070 | B24: Stecker Cinch rot Neutrik | C24: 2.856 | D24: Stecker Cinch rot Neutrik
A25: 1071 | B25: Stecker Cinch gelb Neutrik | C25: 2.856 | D25: Stecker Cinch gelb Neutrik
A26: 1072 | B26: Einbaubuchse XLR 3pol | C26: 8.127 | D26: Einbaubuchse XLR 3pol
A27: 1073 | B27: Einbaustecker XLR 3pol | C27: 7.5075 | D27: Einbaustecker XLR 3pol
A28: 1074 | B28: Stecker XLR 3pol | C28: 6.174 | D28: Stecker XLR 3pol
A29: 1075 | B29: Kupplung XLR 3pol | C29: 7.3395 | D29: Kupplung XLR 3pol
A30: 1076 | B30: Einbaubuchse RJ45-EtherCon, schneid-klemm, Neutrik | C30: 20.5065 | D30: RJ45-EtherCon Schneid-Klemm, Neutrik
A31: 1077 | B31: Stecker RJ45 Ethercon, Neutrik | C31: 6.9825 | D31: RJ45-EtherCon, Neutrik
A32: 1079 | B32: Gender Changer VGA-Ku./Ku. | C32: 4.5045 | D32: Gender Changer VGA-Ku./Ku.
A33: 1080 | B33: Gender Changer VGA-St./St. | C33: 4.137 | D33: Gender Changer VGA-St./St.
A34: 1081 | B34: Gender Changer 9pol-St./St. | C34: 3.885 | D34: Gender Changer 9pol-St./St.
A35: 1082 | B35: Gender Changer 9pol-Ku./Ku. | C35: 3.885 | D35: Gender Changer 9pol-Ku./Ku.
A36: 1083 | B36: Gender Changer 9pol-St./Bu. | C36: 4.5045 | D36: Gender Changer 9pol-St./Bu.
A37: 1084 | B37: Gender Changer 15pol-Ku./Ku. | C37: 4.5465 | D37: Gender Changer 15pol-Ku./Ku.
A38: 1085 | B38: Gender Changer 9pol-St./Bu. Nullmodem | C38: 10.227 | D38: Gender Changer 9po-St./Bu. Nullmodem
A39: 1086 | B39: Einbaubuchse 3,5 Klinke stereo | C39: 1.533 | D39: Einbaubuchse 3,5 Klinke stereo
A40: 1087 | B40: Einbaubuchse 3,5 Klinke 4pol | C40: 8.5995 | D40: Einbaubuchse 3,5 Klinke 4pol
A41: 1088 | B41: Stecker DVI 24+5 | C41: 8.2635 | D41: Stecker DVI 24+5
A42: 1089 | B42: Stecker Speakon 2pol | C42: 6.5835 | D42: Stecker Speakon 2pol
A43: 1090 | B43: Stecker XLR 4pol | C43: 8.3685 | D43: Stecker XLR 4pol
A44: 1091 | B44: Stecker XLR 5pol | C44: 13.6395 | D44: Stecker XLR 5pol
A45: 1092 | B45: Stecker XLR 6pol | C45: 16.401 | D45: Stecker XLR 6pol
A46: 1093 | B46: Stecker XLR 7pol | C46: 19.572 | D46: Stecker XLR 7pol
A47: 1094 | B47: Kupplung XLR 4pol | C47: 11.004 | D47: Kupplung XLR 4pol
A48: 1095 | B48: Kupplung XLR 5pol | C48: 16.443 | D48: Kupplung XLR 5pol
A49: 1096 | B49: Kupplung XLR 6pol | C49: 19.1625 | D49: Kupplung XLR 6pol
A50: 1097 | B50: Kupplung XLR 7pol | C50: 22.281 | D50: Kupplung XLR 7pol
A51: 1098 | B51: Einbaustecker XLR 4pol | C51: 9.45 | D51: Einbaustecker XLR 4pol
A52: 1099 | B52: Einbaustecker XLR 5pol | C52: 14.0805 | D52: Einbaustecker XLR 5pol
A53: 1100 | B53: Einbaustecker XLR 6pol | C53: 19.236 | D53: Einbaustecker XLR 6pol
A54: 1101 | B54: Einbaustecker XLR 7pol | C54: 24.276 | D54: Einbaustecker XLR 7pol
A55: 1102 | B55: Einbaubuchse XLR 4pol | C55: 11.7705 | D55: Einbaubuchse XLR 4pol
A56: 1103 | B56: Einbaubuchse XLR 5pol | C56: 17.9865 | D56: Einbaubuchse XLR 5pol
A57: 1104 | B57: Einbaubuchse XLR 6pol | C57: 24.0765 | D57: Einbaubuchse XLR 6pol
A58: 1105 | B58: Einbaubuchse XLR 7pol | C58: 29.106 | D58: Einbaubuchse XLR 7pol
A59: 1108 | B59: Einbaubuchse 2,5 Klinke stereo | C59: 3.171 | D59: Einbaubuchse 2,5 Klinke stereo
A60: 1109 | B60: Schrumpfschlauchbox 1,6mm sw | C60: 23.247 | D60: Schrumpfschlauchbox 1,6mm sw
A61: 1110 | B61: Schrumpfschlauchbox 2,4mm sw | C61: 23.247 | D61: Schrumpfschlauchbox 2,4mm sw
A62: 1111 | B62: Schrumpfschlauchbox 3,2mm sw | C62: 23.247 | D62: Schrumpfschlauchbox 3,2mm sw
A63: 1112 | B63: Schrumpfschlauchbox 4,8mm sw | C63: 23.247 | D63: Schrumpfschlauchbox 4,8mm sw
A64: 1113 | B64: Schrumpfschlauchbox 6,4mm sw | C64: 23.247 | D64: Schrumpfschlauchbox 6,4mm sw
A65: 1114 | B65: Schrumpfschlauchbox 9,5mm sw | C65: 23.247 | D65: Schrumpfschlauchbox 9,5mm sw
A66: 1115 | B66: Schrumpfschlauchbox 12,7mm sw | C66: 23.247 | D66: Schrumpfschlauchbox 12,7mm sw
A67: 1116 | B67: Schrumpfschlauchbox 16,0mm sw | C67: 23.247 | D67: Schrumpfschlauchbox 16,0mm sw
A68: 1117 | B68: Schrumpfschlauchbox 19,0mm sw | C68: 23.247 | D68: Schrumpfschlauchbox 19,0mm sw
A69: 1118 | B69: Schrumpfschlauchbox 25,4mm sw | C69: 23.247 | D69: Schrumpfschlauchbox 25,4mm sw
A70: 1119 | B70: Schrumpfschlauchbox 3,2mm trans | C70: 23.247 | D70: Schrumpfschlauchbox 3,2mm trans
A71: 1120 | B71: Schrumpfschlauchbox 6,4mm trans | C71: 23.247 | D71: Schrumpfschlauchbox 6,4mm trans
A72: 1121 | B72: Schrumpfschlauchbox 9,5mm trans | C72: 23.247 | D72: Schrumpfschlauchbox 9,5mm trans
A73: 1122 | B73: Schrumpfschlauchbox 12,7mm tran | C73: 23.247 | D73: Schrumpfschlauchbox 12,7mm tran
A74: 1123 | B74: Einbaubuchse 2,5 Klinke mono | C74: 3.171 | D74: Einbaubuchse 2,5 Klinke mono
A75: 1124 | B75: Knickschutz für XLR Ethercon Stecker (NE8MC) gelb | C75: 0.6615 | D75: Knickschutz für XLR Ethercon Stecker (NE8MC) gelb
A76: 1125 | B76: Knickschutz für XLR Ethercon Stecker (NE8MC) blau | C76: 0.6615 | D76: Knickschutz für XLR Ethercon Stecker (NE8MC) blau
A77: 1126 | B77: Knickschutz für XLR Ethercon Stecker (NE8MC) viol. | C77: 0.6615 | D77: Knickschutz für XLR Ethercon Stecker (NE8MC) viol.
A78: 1127 | B78: Stecker, RJ45 EtherCon, Neutrik, Crimpversion | C78: 6.9825 | D78: Stecker, RJ45 EtherCon, Neutrik, Crimpversion
A79: 1128 | B79: Mutter M12x0,75 | C79: 1.1865 | D79: Mutter M12x0,75
A80: 1134 | B80: Einbaubuchse 4pin-Mini-DIN rückseitig steckbar | C80: 20.307 | D80: Einbaubuchse 4pin-Mini-DIN rückseitig steckbar
A81: 1135 | B81: Kabeltülle Braun N-BXX-1 | C81: 1.596 | D81: Kabeltülle Braun N-BXX-1
A82: 1136 | B82: Kabeltülle Rot N-BXX-2 | C82: 1.596 | D82: Kabeltülle Rot N-BXX-2
A83: 1137 | B83: Kabeltülle Orange N-BXX-3 | C83: 1.596 | D83: Kabeltülle Orange N-BXX-3
A84: 1138 | B84: Kabeltülle Gelb N-BXX-4 | C84: 1.596 | D84: Kabeltülle Gelb N-BXX-4
A85: 1139 | B85: Kabeltülle Grün N-BXX-5 | C85: 1.596 | D85: Kabeltülle Grün N-BXX-5
A86: 1140 | B86: Kabeltülle Blau N-BXX-6 | C86: 1.596 | D86: Kabeltülle Blau N-BXX-6
A87: 1141 | B87: Kabeltülle Violett N-BXX-7 | C87: 1.596 | D87: Kabeltülle Violett N-BXX-7
A88: 1142 | B88: Kabeltülle Grau N-BXX-8 | C88: 1.596 | D88: Kabeltülle Grau N-BXX-8
A89: 1145 | B89: Stecker BNC-Ku./Cinch-St. | C89: 1.5015 | D89: Stecker BNC-Ku./Cinch-St.
A90: 1146 | B90: Stecker BNC-St./Cinch-Ku. | C90: 1.6275 | D90: Stecker BNC-St./Cinch-Ku.
A91: 1151 | B91: Isolierdurchführung BNC rot | C91: 0.651 | D91: Isolierdurchführung BNC rot
A92: 1152 | B92: Isolierdurchführung BNC grün | C92: 0.651 | D92: Isolierdurchführung BNC grün
A93: 1153 | B93: Isolierdurchführung BNC blau | C93: 0.651 | D93: Isolierdurchführung BNC blau
A94: 1154 | B94: Isolierdurchführung BNC schwarz | C94: 0.651 | D94: Isolierdurchführung BNC schwarz
A95: 1155 | B95: Isolierdurchführung BNC weiß | C95: 0.651 | D95: Isolierdurchführung BNC weiß
A96: 1156 | B96: Isolierdurchführung BNC gelb | C96: 0.651 | D96: Isolierdurchführung BNC gelb
A97: 1172 | B97: Stecker 4pin-Mini-DIN hh | C97: 4.452 | D97: Stecker 4pin-Mini-DIN hh
A98: 1173 | B98: Kupplung 6pin-Mini-DIN hh | C98: 4.9875 | D98: Kupplung 6pin-Mini-DIN hh
A99: 1174 | B99: Stecker 6pin-Mini-DIN hh | C99: 4.7565 | D99: Stecker 6pin-Mini-DIN hh
A100: 1175 | B100: Kupplung 4pin-Mini-DIN hh | C100: 4.683 | D100: Kupplung 4pin-Mini-DIN hh
A101: 1176 | B101: Stecker 4pin-Mini-DIN ls | C101: 3.822 | D101: Stecker 4pin-Mini-DIN ls
A102: 1177 | B102: Stecker Cinch gelb ls | C102: 2.7405 | D102: Stecker Cinch gelb ls
A103: 1178 | B103: Stecker Cinch rot ls | C103: 2.7405 | D103: Stecker Cinch rot ls
A104: 1179 | B104: Stecker Cinch schwarz ls | C104: 2.7405 | D104: Stecker Cinch schwarz ls
A105: 1180 | B105: Kupplung Cinch gelb ls | C105: 2.646 | D105: Kupplung Cinch gelb ls
A106: 1181 | B106: Kupplung Cinch rot ls | C106: 2.646 | D106: Kupplung Cinch rot ls
A107: 1182 | B107: Kupplung Cinch schwarz ls | C107: 2.646 | D107: Kupplung Cinch schwarz ls
A108: 1184 | B108: Einbaubuchse XLR 3pol schwarz-g | C108: 9.8595 | D108: Einbaubuchse XLR 3pol schwarz-g
A109: 1188 | B109: Sub-D Metallhaube 9pol Typ H | C109: 5.439 | D109: Sub-D Metallhaube 9pol Typ H
A110: 1189 | B110: Stecker 3pin-Mini-DIN Kunststoffausführung | C110: 3.906 | D110: Stecker 4pin-Mini-DIN Kunststoffausführung
A111: 1194 | B111: Crimpzange RG 179 S | C111: 49.9695 | D111: Crimpzange RG 179 S
A112: 1195 | B112: Crimpzange RG 59 S | C112: 45.9795 | D112: Crimpzange RG 59 S
A113: 1196 | B113: Einbaubuchse BNC/BNC S | C113: 4.5885 | D113: Einbaubuchse BNC/BNC S
A114: 1197 | B114: Kupplung BNC 6mm S | C114: 2.5305 | D114: Kupplung BNC 6mm S
A115: 1198 | B115: Stecker BNC Verbinder S | C115: 2.982 | D115: Stecker BNC Verbinder S
A116: 1199 | B116: Kupplung BNC 3mm S | C116: 3.003 | D116: Kupplung BNC 3mm S
A117: 1200 | B117: Stecker BNC 3mm Typ S | C117: 2.1525 | D117: Stecker BNC 3mm Typ S
A118: 1201 | B118: Einbaubuchse BNC unisoliert S | C118: 3.3705 | D118: Einbaubuchse BNC unisoliert S
A119: 1202 | B119: Knickschutztülle 6mm weiß S | C119: 0.441 | D119: Knickschutztülle 6mm weiß S
A120: 1203 | B120: Knickschutztülle 6mm blau S | C120: 0.441 | D120: Knickschutztülle 6mm blau S
A121: 1204 | B121: Knickschutztülle 6mm grün S | C121: 0.441 | D121: Knickschutztülle 6mm grün S
A122: 1205 | B122: Knickschutztülle 6mm gelb S | C122: 0.441 | D122: Knickschutztülle 6mm gelb S
A123: 1206 | B123: Knickschutztülle 6mm grau S | C123: 0.441 | D123: Knickschutztülle 6mm grau S
A124: 1207 | B124: Knickschutztülle 6mm orange S | C124: 0.441 | D124: Knickschutztülle 6mm orange S
A125: 1208 | B125: Knickschutztülle 6mm rot S | C125: 0.441 | D125: Knickschutztülle 6mm rot S
A126: 1209 | B126: Knickschutztülle 6mm schwarz S | C126: 0.441 | D126: Knickschutztülle 6mm schwarz S
A127: 1210 | B127: Stecker BNC 6mm S | C127: 1.6275 | D127: Stecker BNC 6mm S
A128: 1211 | B128: Knickschutztülle 3mm rot S | C128: 0.441 | D128: Knickschutztülle 3mm rot S
A129: 1212 | B129: Knickschutztülle 3mm weiß S | C129: 0.441 | D129: Knickschutztülle 3mm weiß S
A130: 1213 | B130: Knickschutztülle 3mm blau S | C130: 0.441 | D130: Knickschutztülle 3mm blau S
A131: 1214 | B131: Knickschutztülle 3mm grün S | C131: 0.441 | D131: Knickschutztülle 3mm grün S
A132: 1215 | B132: Knickschutztülle 3mm grau S | C132: 0.441 | D132: Knickschutztülle 3mm grau S
A133: 1216 | B133: Knickschutztülle 3mm orange S | C133: 0.441 | D133: Knickschutztülle 3mm orange S
A134: 1217 | B134: Knickschutztülle 3mm gelb S | C134: 0.441 | D134: Knickschutztülle 3mm gelb S
A135: 1218 | B135: Knickschutztülle 3mm schwarz S | C135: 0.441 | D135: Knickschutztülle 3mm schwarz S
A136: 1219 | B136: Stecker 12pol Minicon | C136: 32.2035 | D136: Stecker 12pol Minicon
A137: 1220 | B137: Einbaubuchse 12pol Minicon | C137: 38.7345 | D137: Einbaubuchse 12pol Minicon
A138: 1222 | B138: Einbaubuchse Speakon 4pol | C138: 3.696 | D138: Einbaubuchse Speakon 4pol
A139: 1223 | B139: Stecker Speakon 4pol | C139: 9.45 | D139: Stecker Speakon 4pol
A140: 1225 | B140: Sub-D Metallhaube 15pol EVE | C140: 10.962 | D140: Sub-D Metallhaube 15pol EVE
A141: 1226 | B141: Sub-D Metallhaube 25pol EVE | C141: 11.7285 | D141: Sub-D Metallhaube 25pol EVE
A142: 1227 | B142: Sub-D Metallhaube 37pol EVE | C142: 14.007 | D142: Sub-D Metallhaube 37pol EVE
A143: 1228 | B143: Sub-D Metallhaube 9pol 45° EVG | C143: 11.0775 | D143: Sub-D Metallhaube 9pol 45° EVG
A144: 1229 | B144: Sub-D Metallhaube 50pol FCT kurze Haube | C144: 15.5925 | D144: Sub-D Metallhaube 50pol FCT kurze Haube
A145: 1230 | B145: Sub-D Rändelschraube lang FCT | C145: 1.6275 | D145: Sub-D Rändelschraube lang FCT
A146: 1231 | B146: Isolierdurchführung BNC/BNC schwarz | C146: 0.651 | D146: Isolierdurchführung BNC/BNC schwarz
A147: 1232 | B147: Einbaubuchse Cinch/Cinch Rot S | C147: 5.796 | D147: Einbaubuchse Cinch/Cinch Rot S
A148: 1233 | B148: Einbaubuchse Cinch/Cinch, schwarz S | C148: 5.796 | D148: Einbaubuchse Cinch/Cinch Schw S
A149: 1234 | B149: Einbaubuchse Cinch/Cinch Gelb S | C149: 5.796 | D149: Einbaubuchse Cinch/Cinch Gelb S
A150: 1242 | B150: Isolierdurchführung BNC/BNC rot | C150: 0.651 | D150: Isolierdurchführung BNC/BNC rot
A151: 1243 | B151: Isolierdurchführung BNC/BNC grün | C151: 0.651 | D151: Isolierdurchführung BNC/BNC grün
A152: 1244 | B152: Isolierdurchführung BNC/BNC blau | C152: 0.651 | D152: Isolierdurchführung BNC/BNC blau
A153: 1245 | B153: Isolierdurchführung BNC/BNC weiß | C153: 0.651 | D153: Isolierdurchführung BNC/BNC weiß
A154: 1246 | B154: Isolierdurchführung BNC/BNC gelb | C154: 0.651 | D154: Isolierdurchführung BNC/BNC gelb
A155: 1249 | B155: Sub-D Metallhaube 50pol FCT lange Haube | C155: 15.5925 | D155: Sub-D Metallhaube 50pol FCT lange Haube
A156: 1251 | B156: Koaxkontakt Stift FCT Mischk. | C156: 10.815 | D156: Koaxkontakt Stift FCT Mischk.
A157: 1259 | B157: Stecker BNC 4,5mm S | C157: 2.8665 | D157: Stecker BNC 4,5mm S
A158: 1260 | B158: Knickschutztülle 4,5mm, rot S | C158: 0.441 | D158: Knickschutztülle 4,5mm rot S
A159: 1261 | B159: Knickschutztülle 4,5mm, grün S | C159: 0.441 | D159: Knickschutztülle 4,5mm grün S
A160: 1262 | B160: Knickschutztülle 4,5mm, blau S | C160: 0.441 | D160: Knickschutztülle 4,5mm blau S
A161: 1263 | B161: Knickschutztülle 4,5mm, schwarz S | C161: 0.441 | D161: Knickschutztülle 4,5mm schwar S
A162: 1264 | B162: Knickschutztülle 4,5mm, weiß S | C162: 0.441 | D162: Knickschutztülle 4,5mm weiß S
A163: 1265 | B163: Crimpzange Typ S 3; 4,5 und 6mm | C163: 49.9695 | D163: Crimpzange Typ S 3; 4,5 und 6mm
A164: 1267 | B164: Kupplung Klinke 3,5mm stereo Metall vergoldet | C164: 1.701 | D164: Kupplung Klinke 3,5mm stereo Metall vergoldet
A165: 1268 | B165: Stecker 26pol Hirose | C165: 51.9225 | D165: Stecker 26pol Hirose
A166: 1269 | B166: Kupplung 26pol Hirose | C166: 51.9225 | D166: Kupplung 26pol Hirose
A167: 1270 | B167: Stecker Scart | C167: 0.9345 | D167: Stecker Scart
A168: 1271 | B168: Einbaubuchse PowerCon blau | C168: 6.132 | D168: Einbaubuchse PowerCon blau
A169: 1273 | B169: Schrumpfschlauchbox 1,6mm trans | C169: 23.247 | D169: Schrumpfschlauchbox 1,6mm trans
A170: 1274 | B170: Schrumpfschlauchbox 2,4mm trans | C170: 23.247 | D170: Schrumpfschlauchbox 2,4mm trans
A171: 1275 | B171: Schrumpfschlauchbox 4,8mm trans | C171: 23.247 | D171: Schrumpfschlauchbox 4,8mm trans
A172: 1276 | B172: Schrumpfschlauchbox 16,0mm tran | C172: 23.247 | D172: Schrumpfschlauchbox 16,0mm tran
A173: 1277 | B173: Schrumpfschlauchbox 19,0mm tran | C173: 23.247 | D173: Schrumpfschlauchbox 19,0mm tran
A174: 1278 | B174: Schrumpfschlauchbox 25,4mm tran | C174: 23.247 | D174: Schrumpfschlauchbox 25,4mm tran
A175: 1285 | B175: Stecker Klinke 3,5mm stereo abg | C175: 1.743 | D175: Stecker Klinke 3,5mm stereo abg
A176: 1322 | B176: Abisolierwerkzeug RG59 | C176: 16.2225 | D176: Abisolierwerkzeug RG59
A177: 1323 | B177: Abisolierwerkzeug 0,6/2,8 | C177: 33.0435 | D177: Abisolierwerkzeug 0,6/2,8
A178: 1324 | B178: Scart-Adapter 3xCinch+Hosiden S | C178: 8.1585 | D178: Scart-Adapter 3xCinch+Hosiden S
A179: 1325 | B179: Einbaubuchse USB Neutrik | C179: 9.303 | D179: Einbaubuchse USB Neutrik
A180: 1347 | B180: Stecker BNC 6mm abgewinkelt S | C180: 5.0715 | D180: Stecker BNC 6mm abgewinkelt S
A181: 1348 | B181: Stecker BNC 3mm abgewinkelt S | C181: 5.376 | D181: Stecker BNC 3mm abgewinkelt S
A182: 1349 | B182: Mittel-Pin BNC-Stecker 3mm | C182: 0.6615 | D182: Mittel-Pin BNC-Stecker 3mm
A183: 1350 | B183: Mittel Pin BNC-Kupplung 3mm | C183: 0.714 | D183: Mittel Pin BNC-Kupplung 3mm
A184: 1356 | B184: Kupplung Mini-XLR 3pol | C184: 17.8185 | D184: Kupplung Mini-XLR 3pol
A185: 1358 | B185: Stecker Klinke 6,3mm mono met | C185: 1.869 | D185: Stecker Klinke 6,3mm mono met
A186: 1359 | B186: Stecker Klinke 6,3mm stereo met | C186: 1.911 | D186: Stecker Klinke 6,3mm stereo met
A187: 1360 | B187: Kupplung Klinke 6,3mm mono Metall vergoldet | C187: 3.4545 | D187: Kupplung Klinke 6,3mm mono Metall vergoldet
A188: 1361 | B188: Kupplung Klinke 6,3mm stereo Metall vergoldet | C188: 2.478 | D188: Kupplung Klinke 6,3mm stereo Metall vergoldet
A189: 1362 | B189: Stecker Klinke 3,5mm mono met | C189: 1.1025 | D189: Stecker Klinke 3,5mm mono met
A190: 1363 | B190: Kupplung Klinke 3,5mm mono Metall vergoldet | C190: 1.5015 | D190: Kupplung Klinke 3,5mm mono Metall vergoldet
A191: 1364 | B191: Stecker Klinke 2,5mm mono met | C191: 1.701 | D191: Stecker Klinke 2,5mm mono met
A192: 1365 | B192: Kupplung Klinke 2,5mm mono Metall vergoldet | C192: 0.9345 | D192: Kupplung Klinke 2,5mm mono Metall vergoldet
A193: 1366 | B193: Stecker Klinke 2,5mm stereo met | C193: 1.1025 | D193: Stecker Klinke 2,5mm stereo met
A194: 1367 | B194: Kupplung Klinke 2,5mm stereo Metall vergoldet | C194: 1.176 | D194: Kupplung Klinke 2,5mm stereo Metall vergoldet
A195: 1368 | B195: Stecker Klinke 6,3mm mono abg | C195: 1.008 | D195: Stecker Klinke 6,3mm mono abg
A196: 1379 | B196: Stecker Mini-XLR 3pol | C196: 17.8185 | D196: Stecker Mini-XLR 3pol
A197: 1393 | B197: Blindabdeckung XLR D-Bohrung | C197: 1.5435 | D197: Blindabdeckung XLR D-Bohrung
A198: 1412 | B198: Stecker Klinke 3,5mm NYS231L | C198: 1.701 | D198: Stecker Klinke 3,5mm NYS231L
A199: 1413 | B199: Stecker Klinke 3,5mm NYS231 | C199: 1.701 | D199: Stecker Klinke 3,5mm NYS231
A200: 1414 | B200: Kupplung Klinke 3,5mm NYS240 | C200: 1.701 | D200: Kupplung Klinke 3,5mm NYS240
... 1366 more rows
